Workbook

Sheet Standards
A1: DRAFTING STANDARDS
A3: TEXT MAPPING
A5: Windows | B5: Microstation Attributes
A6: Font
A7: Color | B7: FT | C7: TH | D7: TW | E7: LV | F7: CO | G7: LC | H7: WT | I7: Comment
A8: Black | B8: 3 | C8: 0.12 | D8: 0.12 | E8: Common-Notes | F8: 5 | G8: 0 | H8: 2 | I8: small
A9: Red | B9: 3 | C9: 0.18 | D9: 0.18 | E9: Common-Notes | F9: 1 | G9: 0 | H9: 5 | I9: large
A10: Green | B10: 3 | C10: 0.15 | D10: 0.15 | E10: Common-Notes | F10: 4 | G10: 0 | H10: 4 | I10: medium
A11: Blue | B11: 3 | C11: 0.1 | D11: 0.1 | E11: Common-Notes | F11: 7 | G11: 0 | H11: 1 | I11: x-small
A12: Violet | B12: 3 | C12: 0.21 | D12: 0.21 | E12: Common-Notes | F12: 2 | G12: 0 | H12: 7 | I12: x-large
A18: Note when setting fonts to a color, the color name shown on the popup tag must match the table name exactly.
A20: BORDER MAPPING
A22: Excel | B22: Name | C22: Microstation Attributes
A23: Border
A24: Style | C24: LV | D24: CO | E24: LC | F24: WT | G24: Comment
B25: Continuous | C25: Grid_Line-Main | D25: 1 | E25: 0 | F25: 5
B27: Dot | C27: Grid_Line-Main | D27: 5 | E27: 0 | F27: 2
B29: Dash | C29: Grid_Line-Main | D29: 5 | E29: 0 | F29: 2
B31: DashDot | C31: Grid_Line-Main | D31: 5 | E31: 0 | F31: 2
B33: DashDotDot | C33: Grid_Line-Main | D33: 5 | E33: 0 | F33: 2
B35: Double | C35: Grid_Line-Main | D35: 5 | E35: 0 | F35: 2
B37: SlantDashDot | C37: Grid_Line-Main | D37: 5 | E37: 0 | F37: 2

Sheet INSTRUCTIONS
A1: SIGNAL DESIGN WORKBOOK
A3: Purpose: These worksheets are intended to aid in the computation of signal quantities
A5: Overview: There are 7 worksheets in the workbook.
B6: Conduit Length: Provides space to make additions and subtractions to conduit length
B7: Cable Length: Provides space to make additions to cable length
B8: Breaker: Calculates breaker trip ratings and cable size for the cable between the power supply and controller
B9: Pull Box Sizing: Sizes pull boxes based on the number of conductors
B10: Conduit Capacity Auto: Automatically checks the allowable area of the conduit versus the total size of all cables in it
B11: Conduit Capacity: Allows the designer to manually enter information to check the total cable area versus the allowable occupied area of a conduit
B12: Rev D37b: Organizes the cable and conduit total lengths into a sheet formatted to resemble a D-37b sheet
B13: The worksheets in the workbook are completed for the sample intersection layout shown in the Sample Intersection tab.
A15: General Note: There are formulas in these worksheets that look for cells containing certain information. Only certain inputs will
B16: generate the correct results throughout the workbook. The instructions below contain information on how to input
B17: data correctly for each worksheet. Red cells are formulas and do not require input. Data should be input into white
B18: cells.
B19: Green text indicate modifications that can be made by advanced excel users to expand the functionality of the worksheet.
A21: Conduit Length Worksheet
A23: The Conduit Length Worksheet makes adjustments to the conduit length.
A25: Sample:
A26: FROM | B26: TO | C26: C-C | D26: SOURCE | E26: P.S. (TYPE 1or2) | F26: CONTROLLER or PAD MOUNTED P.S. | G26: PULL BOX | H26: SIGNAL POST (F or C) | I26: SIGNAL POST (A) | J26: ITS DEVICE | K26: TOTAL | L26: SIZES | M26: TYPES
D27: +0 | E27: +0 | F27: +4 | G27: -1 | H27: +2 | I27: +4 | J27: +5
C28: DIST | D28: # | E28: # | F28: # | G28: # | H28: # | I28: # | J28: # | K28: LENGTH
A29: SOURCE | B29: UPS | C29: 9 | D29: 1 | E29: 1 | F29: 1 | K29: =+C29+D29*0+E29*0+F29*4+G29*-1+H29*2+I29*4+J29*5 -> 13 | L29: 3" | M29: T
A30: UPS | B30: CA | C30: 11 | F30: 2 | K30: =+C30+D30*0+E30*0+F30*4+G30*-1+H30*2+I30*4+J30*5 -> 19 | L30: 3" | M30: T
A31: CA | B31: PB1 | C31: 10 | F31: 1 | G31: 1 | K31: 13 | L31: 2x3" | M31: T
A32: PB1 | B32: PB2 | C32: 91 | G32: 2 | K32: 89 | L32: 3" | M32: P
A33: PB1 | B33: D71 | C33: 31 | G33: 1 | K33: 30 | L33: 1" | M33: L
A35: The "FROM," "TO,' and "C-C DIST" Columns are the signal features between which the conduit runs and the center-to-center distance between them.
B36: Enter this data based on the signal system layout. NOTE: C-C DIST for conduit from PB to loop detector is the distance from the center of
B37: the PB to the face of curb or edge of shoulder.
A38: The "SOURCE," "P.S. (TYPE1or2)," "CONTROLLER or PAD MOUNTED P.S.", "PULL BOX," POST (F or C)," "POST (A)," and "ITS DEVICE"
B39: Columns are places to indicate the features connected by the conduit runs. The spreadsheet calculates the addition or subtraction to the
B40: conduit length required based on the type of connected structure.
B41: Enter the number of each type of connected structure.
A42: The "TOTAL LENGTH" Column is a formula that calculates the addition or subtraction required and adds that to the center to center distance.
A43: The "SIZES" Column is the size of the conduit.
B44: Enter the size. The workbook is set-up to handle data input as:
C45: 1"
C46: 2"
C47: 3"
C48: 2x3"
C49: 4"
B50: Other sizes can be used. On the Rev D37b sheet the size headings can be changed to match the size of conduit required. That data must
B51: be typed the same way as in the "SIZES" Column of the Conduit Length Worksheet as it is in the Column heading on the Rev D37b Worksheet.
B52: On the Conduit Capacity Auto sheet, an unused size of conduit in the chart starting on Row 120 would need to be overwritten with data for the
B53: used conduit size.
A54: The "TYPE" Column is the type of conduit.
B55: Enter the letter that corresponds to the type of conduit from the chart below
C56: L | D56: =Loop Detector Stub
C57: M | D57: =Median
C58: O | D58: =On Structure
C59: P | D59: =Pushed
C60: T | D60: =Trenched
A62: Row 56 is colored black. All data entered above this row will automatically be transferred to the Rev D37b, pull box sizing, and conduit capacity sheets. Data entered
B63: below this row will not be automatically transferred to the Rev D37b, pull box sizing, and conduit capacity sheets. If more data needs to be entered
B64: than will fit above row 56, it is recommended that an additional SignalWorksheets.xlsm file be used.
A66: Cable Length Worksheet
A68: The Cable Length Worksheet makes adjustments to cable length.
A70: Sample:
A71: FROM | B71: TO | C71: CABLE CENTER TO CENTER LENGTHS | Q71: DIST C-C | R71: ADDITIONS TO LENGTH | AJ71: TOTAL | AK71: CABLE TYPE | AL71: # OF CABLES
R72: SOURCE | S72: P.S. | T72: CONTROL | U72: ITS CABINET | V72: COPPER PULL BOX | W72: FIBER CLASS2 | X72: FIBER CLASS 5 | Y72: LOOP PULLBOX | Z72: SPLICE | AA72: MOUNT TYPE | AB72: LUMINAIRE | AC72: MAST ARMS | AD72: JUMPER | AE72: VIDEO | AF72: LOOP TYPE | AG72: LOOP OFFSET | AH72: CAMERA | AI72: DETECTOR
R73: +35 | S73: +8 | T73: +8 | U73: +10 | V73: +6 | W73: +10 | X73: +60 | Z73: +3 | AC73: +L | AD73: +J | AE73: +L | AG73: +L | AH73: +H+5 | AI73: +H+5
C74: d | D74: feature | E74: d | F74: feature | G74: d | H74: feature | I74: d | J74: feature | K74: d | L74: feature | M74: d | N74: feature | O74: d | P74: feature | R74: # | S74: # | T74: # | U74: # | V74: # | W74: # | X74: # | Y74: # | Z74: # | AA74: T | AB74: L | AC74: L | AD74: J | AE74: L | AF74: T | AG74: L | AH74: H | AI74: H
A75: SOURCE | B75: UPS | C75: =+C29 -> 9 | Q75: =SUM(C75:P75) -> 9 | R75: 1 | S75: 1 | AJ75: =+Q75+R75*35+S75*8+T75*8+U75*10+V75*6+W75*10+X75*60+Y75+Z75*3+IF(AA75="PV",13,IF(AA75="PP",10,IF(AA75="PD",9,IF(AA75="MA",21,IF(AA75="BA",30,IF(AA75="MB",25,0))))))+AB75+AC75+AD75+AE75+IF(AF75=$AO$22,264,IF(AF75=$AO$23,72,IF(AF75=$AO$24,144,0)))+AG75+IF(AH75>0,AH75+5,0)+IF(AI75>0,AI75+5,0) -> 316 | AK75: 1c-#2 | AL75: 3
A76: UPS | B76: CA | C76: =+C30 -> 11 | Q76: =SUM(C76:P76) -> 11 | S76: 1 | T76: 1 | V76: 1 | AJ76: =+Q76+R76*35+S76*8+T76*8+U76*10+V76*6+W76*10+X76*60+Y76+Z76*3+IF(AA76="PV",13,IF(AA76="PP",10,IF(AA76="PD",9,IF(AA76="MA",21,IF(AA76="BA",30,IF(AA76="MB",25,0))))))+AB76+AC76+AD76+AE76+IF(AF76=$AO$22,264,IF(AF76=$AO$23,72,IF(AF76=$AO$24,144,0)))+AG76+IF(AH76>0,AH76+5,0)+IF(AI76>0,AI76+5,0) -> 297 | AK76: 1c-#8 | AL76: 3
A77: CA | B77: H21,22 | C77: =+C31 -> 10 | D77: PB1 | E77: 25 | F77: P9 | Q77: 35 | T77: 1 | V77: 1 | AA77: MA | AC77: 33 | AD77: 12 | AJ77: 379 | AK77: 7c-#16 | AL77: 1
A78: C1 | B78: D71 | C78: =+C31 -> 10 | D78: PB1 | Q78: =SUM(C78:P78) -> 10 | T78: 1 | Y78: 1 | AJ78: 153 | AK78: 2c-#14 | AL78: 1
B79: D71 | C79: 51 | Q79: =SUM(C79:P79) -> 51 | Y79: 1 | AF79: 6x30 | AG79: 51 | AJ79: 279 | AK79: 1c-#14 | AL79: 1
A81: The "FROM," and "TO" Columns are the signal feature between which the cable runs.
B82: Enter this data based on the signal system layout.
A83: The "d" and "feature" Columns under the cable center to center lengths are the distances between the controller, pull boxes, and poles on which the
B84: signal feature is mounted or the distance between the center of a pull box and the corner of a loop detector nearest the pull box.
B85: Enter this data based on the signal system layout.
B86: When the "TO" feature is last feature a cable runs to (such as the power cable between PS and CA in the sample above) DO NOT reenter
B87: that feature in a "feature" Column.
B88: Note: Pull boxes MUST be entered in the "feature" Columns the same as the column headings on the Pull Box Sizing Worksheet.
B89: All entries in the "FROM", "TO", and "feature" Columns must be entered the same as data in the Conduit Length Worksheet.
B90: Note: Rather than manually typing in the length of the center to center distance between each feature, an equation can be used to reference
B91: the conduit length tab. Type "=", then click on the CONDUIT LENGTH tab and click in the C-C DIST cell required, finally hit enter. This
B92: will allow future changes to the center to center distances in the conduit length tab to be automatically reflected in the cable lengths. However,
B93: changes to conduit routing may require updating the equations in the CABLE LENGTH tab to ensure the proper cells in the CONDUIT length
B94: tab are being referenced.
A95: The "DIST C-C" Column is a formula that sums the Cable Center to Center lengths Column.
B96: Note: More columns can be added under the cable center to center lengths Column. Check the sum formula in the "DIST C-C" to make sure
B97: it includes all the columns under the cable center to center lengths heading. These columns should be entered to the left of column O. This
B98: should ensure that Conduit Capacity Auto Worksheet functions properly.
A99: The "SOURCE," "P.S." "CONTROL," and "COPPER PULL BOX" Columns make additions for the utility pole, power supply, controller and pull boxes respectively.
B100: Enter the number of each item encountered in the cable run. The formulas account for the additional quantity of cable needed at each
B101: location.
B102: Do not enter data in the pull box Column when using fiber optic cable or for loop detection in duct or lead in cables.
A103: The "FIBER CLASS2," and "FIBER CLASS5" Columns make addition to fiber optic cable length in preformed class 2 and preformed class 5 pullboxes
B104: respectively.
B105: Enter the number of corresponding type of pull box the cable passes through. These are used only for fiber optic cable. The formulas
B106: account for the additional quantity of fiber optic cable needed at each location.
A107: The "LOOP PULLBOX" Column makes additions to the loop detector in duct and loop detector lead in cables in pull boxes.
B108: Enter the number of pullboxes through which the loop detector cables pass.
A109: The "SPLICE" Column makes additions to cables when two different cables need to be spliced together for lighting.
B110: Enter 1 if a cable is spliced.
A111: The "MOUNT TYPE" Column makes additions for the mounting of the signal equipment.
B112: Enter the code that corresponds to the mounting type from the chart below:
C113: MA | D113: =Mast arm signal head mounting | J113: +21'
C114: PV | D114: =Post mounted (top or side) vehicular head | J114: +13'
C115: PP | D115: =Post mounted (top or side) pedestrian head | J115: +10'
C116: PD | D116: =Post mounted pedestrian push button detector | J116: +9'
C117: MB | D117: =Mounting bracket (for video detection cameras only) | J117: +25'
C118: BA | D118: =Bracket arm mounting (for luminaires or video detection cameras) | J118: +30'
A119: The "LUMINAIRE" Column makes addition for the mounting of a luminaire L is the length of the luminaire bracket arm.
B120: Enter the length of the luminaire bracket arm.
A121: The "MAST ARM" Column makes addition for the distance a signal is away from the pole on a mast arm. L is the distance from the center of the signal
B122: pole to the signal. When multiple signal heads are on the same arm, L = the mast arm length only for the signal at the end of the mast arm, if
B123: that signal is located less than 1' from the end of the mast arm.
B124: Enter the distance between the signal head and the center of the pole.
A125: The "JUMPER" Column is included when two signal heads are jumped together. When two heads are jumped to together, the length L in the mast arm
B126: Column should be the distance to the head that is farther from the center of the signal pole. J is the length of the jumper back to the nearer
B127: signal.
B128: Enter the distance between the two heads that the jumper connects.
A129: The "VIDEO" Column makes additions for the distance a video camera is away from the signal pole. For cameras mounted on bracket arms, L = the
B130: bracket arm length. For cameras mounted on mounting brackets, L = the distance along the mast arm that the bracket is located.
B131: Enter the distance between the video camera and the center of the pole.
A132: The "LOOP TYPE" Column makes additions for the cable loop size.
B133: Enter the size of the loop from the chart below:
C134: 6x30
C135: 6x15
C136: 6x6
B137: Additional loop sizes could be used. Enter the total length of cable needed to make the loop in the loop type column rather than the loop size.
A138: The "LOOP OFFSET" Column makes additions for the return of the cable from the loop back to the pull box.
B139: Enter the distance between the pullbox and the corner of the loop nearest the pullbox. This is the same as the center-to-center distance
B140: shown in the "DIST C-C" Column.
A141: The "TOTAL" Column is a formula that adds cable length as indicated in the additions boxes to the center-to-center distance.
A142: The "CABLE TYPE" Column indicates what type of cable the is running between the "FROM" and "TO" features.
B143: Enter the cable type from the chart below:
C144: 7c-#16 | D144: =Control cable from controller to vehicular signal heads
C145: 5c-#16 | D145: =Control cable from controller to pedestrian signal heads
C146: 2c-#16 | D146: =Control cable from controller to pedestrian push button detectors.
C147: 2c-#12 | D147: =Control cable from controller to the base of the signal pole when a luminaire is mounted on a signal pole.
C148: 12c-#12 | D148: =Control cable from controller to controller for hardwire actuated interconnection
C149: 3 PAIR-#16 | D149: =Control cable from controller to controller for hardwire closed-loop actuated interconnection
C150: 1c-#10 | D150: =Control cable from pole base to luminaire
C151: 1c-#14 | D151: =Loop detector cable ("In duct cable")
C152: 2c-#14 | D152: =Control cable from controller to pull box nearest induction loop detectors ("Lead in cable")
C153: VIDEO | D153: =Control cables from controller to video camera for video detection (power and coaxial)
C154: 24 FIBER | D154: =Fiber optic cable from controller to controller for signal networking
C155: 1c-#4 | D155: =Power cable from power supply to controller
C156: 1c-#6 | D156: =Power cable from power supply to controller | H156: =Size from Breaker Worksheet. Only one used per intersection.
C157: 1c-#8 | D157: =Power cable from power supply to controller
C158: 1c-#2 | D158: =Power cable from utility company power source to power supply.
B159: Note: Cable type MUST be entered exactly as shown in the chart above.
B160: Other types can be used. On the Rev D37b sheet the type headings can be changed to match the type of cable required. That data must
B161: be typed the same way as in the "CABLE TYPE" Column of the Cable Length Worksheet as it is in the Column headings in either
B162: cells T10-AA10 or cells AB9-AF9 on the Rev D37b Worksheet. On the conduit Capacity Auto Worksheet, an unused cable type in chart
B163: beginning on Row 120 would need to be overwritten with data for the used cable type.
A165: The "# OF CABLES" Column indicates how many of each type of cable are running between the "FROM" and "TO" features. Generally,
B166: 3 power cables run between features and 1 control or fiber optic cable runs between features.
B167: Enter the number of cables running between the "FROM" and "TO" features.
A169: Row 57 is colored black. All data entered above this row will automatically be transferred to the Rev D37b, pull box sizing, and conduit capacity sheets. Data entered
B170: below this row will not be automatically transferred to the Rev D37b and pull box sizing sheets. If more data needs to be entered than will fit above row
B171: row 57, it is recommended that an additional SignalWorksheets.xlsm file be used.
A173: Breaker Worksheet
A175: There are two sides to the Breaker Worksheet. The left side is for signals that do not have luminaires mounted on the signal poles. The right side is
B176: for signals that do have luminaires mounted on the signal poles.
A178: Signals without lighting:
A179: The Breaker Worksheet sizes the breakers and the power cables for the signal system.
A181: The chart at the top of the worksheet displays the Wattage and Amperage for signal features.
A183: The middle section of the worksheet calculates the Breaker Amps for each of the breakers in the controller.
B184: Enter the number each of 3-section signal heads, 4-section signal heads, 4-section flashing yellow left signal heads, 5-section signal heads,
B185: and pedestrian heads controlled by the controller.
B186: The controller and accessories Amps are the same for all signal designs.
A188: The Breaker ratings are shown in bold. The auxiliary breaker will always be 15 amps. The signal main breaker will usually be 100 Amps; it should
B189: match the power provided by the utility company. The controller breaker will vary based on the above calculation.
A191: The bottom of the worksheet calculates the wire sizes.
B192: Enter the center to center distance between the power supply assembly and the signal controller.
B193: Enter the center to center distance between the power source and the power supply.
A195: The wire sizes are shown in bold.
A197: Signals with lighting:
A198: The pad mounted power supply and lighting control station has 2 circuits available for signal mounted lighting. If one or two luminaires are provided, they
B199: will be wired to separate circuits with 15 amp breakers. If more than 2 luminaires are provided, the luminaires will need to be circuited with
B200: splices in the pull boxes and the circuits checked to ensure the breaker sizing is adequate.
A202: The chart at the top of the worksheet displays the Wattage and Amperage for signal features.
A204: The middle section of the worksheet calculates the Breaker Amps for each of the breakers in the controller.
B205: Enter the number each of 3-section signal heads, 4-section signal heads, 4-section flashing yellow left signal heads, 5-section signal heads,
B206: and pedestrian heads controlled by the controller.
B207: The controller and accessories Amps are the same for all signal designs.
A209: The Breaker ratings are shown in bold. The auxiliary breaker will always be 15 amps. The signal main breaker will usually be 100 Amps; it should
B210: match the power provided by the utility company. The controller breaker will vary based on the above calculation.
A212: The next section of the worksheet calculates the lighting breakers for each circuit.
B213: Enter the number of luminaires on each circuit.
B214: Note: Due to the short distance lighting circuits at intersections travel, the loading due to line loss is negligible.
A216: The bottom of the worksheet calculates the wire sizes.
B217: Enter the center to center distance between the power supply assembly and the signal controller.
B218: Enter the center to center distance between the power source and the power supply.
A220: The wire sizes are shown in bold.
A223: Pull Box Sizing Worksheet
A225: The Pull Box Sizing Worksheet determines the pull box size based on the number of conductors passing through it. This sheet is automated
B226: and the columns under the "CABLE INFORMATION" and "CABLE ROUTING" headings will be populated as data is inputted into the Cable
B227: Length Worksheet.
B228: The user should ensure that the pull box names used in row 3 under both the "CABLE ROUTING" and "CONDUCTORS PER PULL BOX" headings
B229: match each other AND MUST be the same as the input in the feature columns of the Cable Length tab.
B230: More columns can be added for additional pull boxes by inserting columns under the "CABLE ROUTING" and "CONDUCTORS PER PULL BOX"
B231: headings and copying the formulas from adjacent columns.
A233: A "0" in the "CABLE" column indicates that there is no cable identified in the "CABLE TYPE" column of the Cable Length Worksheet. This could be
... 57 more rows

Sheet SAMPLE INTERSECTION
A1: Note: Intersection A is connected to intersection B to the left and intersection C to the right with 24 strand singlemode fiber optic cable. Fiber pull boxes between intersections are ITS class 2; at
A2: intersections, pull boxes are ITS class 5.
A3: Zone 71 is drawn with a loop lead data is input for this detector only to show a sample of how to enter data for loops.

Sheet CONDUIT LENGTH
A1: CONDUIT LENGTHS
A2: FROM | B2: TO | C2: C-C | D2: SOURCE | E2: P.S. (TYPE 1 or 2) | F2: CONTROLLER or PAD MOUNTED P.S. | G2: PULL BOX | H2: SIGNAL POST (F or C BASE) | I2: SIGNAL POST (A BASE) | J2: ITS DEVICE | K2: TOTAL | L2: SIZES | M2: TYPES
D3: +0 | E3: +0 | F3: +4 | G3: -1 | H3: +2 | I3: +4 | J3: +5
C4: DIST | D4: # | E4: # | F4: # | G4: # | H4: # | I4: # | J4: # | K4: LENGTH | N4: Conduit Sizing:
K5: =+C5+D5*0+E5*0+F5*4+G5*-1+H5*2+I5*4+J5*5 -> 0 | N5: 3" throughout system (ie pull box to pull box, pull box to base)
K6: =+C6+D6*0+E6*0+F6*4+G6*-1+H6*2+I6*4+J6*5 -> 0 | N6: Two (2) 3" from controller to its pull box
K7: 0 | N7: 2" from power source to power supply
K8: 0 | N8: 1" to loop detector
K9: 0 | N9: 2" for fiber optic interconnect
K10: 0
K11: 0 | N11: Conduit Types:
K12: 0 | N12: P = Pushed--used to cross under existing pavement
K13: 0 | N13: T = Trenched--used whenever digging is possible
K14: 0 | N14: M = In median
K15: 0 | N15: O = Externally on structure, typically bridge
K16: 0 | N16: L = Loop detector
K17: 0
K18: 0
K19: 0
K20: 0
K21: 0 | N21: 1" | O21: L
K22: 0 | N22: 3" | O22: T
K23: 0 | N23: 2" | O23: P
K24: 0 | N24: 4" | O24: M
K25: 0 | N25: 2X3" | O25: O
K26: 0
K27: 0
K28: 0
K29: 0
K30: 0
K31: 0
K32: 0
K33: 0
K34: 0
K35: 0
K36: 0
K37: 0
K38: 0
K39: 0
K40: 0
K41: 0
K42: 0
K43: 0
K44: 0
K45: 0
K46: 0
K47: 0
K48: 0
K49: 0
K50: 0
K51: 0
K52: 0
K53: 0
K54: 0
K55: 0

Sheet CABLE LENGTH
A1: CABLE LENGTHS
A2: FROM | B2: TO | C2: CABLE CENTER TO CENTER LENGTHS | Q2: DIST C-C | R2: ADDITIONS TO LENGTH | AJ2: TOTAL | AK2: CABLE TYPE | AL2: # OF CABLES
R3: SOURCE | S3: P.S. | T3: CONTROL | U3: ITS CABINET | V3: COPPER PULL BOX | W3: FIBER CLASS2 | X3: FIBER CLASS5 | Y3: LOOP PULLBOX | Z3: SPLICE | AA3: MOUNT TYPE | AB3: LUMINAIRE | AC3: MAST ARMS | AD3: JUMPER | AE3: VIDEO | AF3: LOOP TYPE | AG3: LOOP OFFSET | AH3: CAMERA | AI3: DETECTOR
R4: +35 | S4: +8 | T4: +8 | U4: +10 | V4: +6 | W4: +10 | X4: +60 | Z4: +3 | AB4: +L | AC4: +L | AD4: +J | AE4: +L | AG4: +L | AH4: +H+5 | AI4: +H+5
C5: d | D5: feature | E5: d | F5: feature | G5: d | H5: feature | I5: d | J5: feature | K5: d | L5: feature | M5: d | N5: feature | O5: d | P5: feature | R5: # | S5: # | T5: # | U5: # | V5: # | W5: # | X5: # | Y5: # | Z5: # | AA5: T | AB5: L | AC5: L | AD5: J | AE5: L | AF5: T | AG5: L | AH5: H | AI5: H
Q6: =SUM(C6:P6) -> 0 | AJ6: =+Q6+R6*35+S6*8+T6*8+U6*10+V6*6+W6*10+X6*60+IF(Y6>0,Y6*6-3,0)+Z6*3+IF(AA6="PV",13,IF(AA6="PP",10,IF(AA6="PD",9,IF(AA6="MA",21,IF(AA6="BA",30,IF(AA6="MB",25,0))))))+AB6+AC6+AD6+AE6+IF(AF6=$AO$19,264,IF(AF6=$AO$20,72,IF(AF6=$AO$21,144,IF(AF6>0,AF6,0))))+AG6+IF(AH6>0,AH6+5,0)+IF(AI6>0,AI6+5,0) -> 0 | AO6: Mounting types:
Q7: =SUM(C7:P7) -> 0 | AJ7: =+Q7+R7*35+S7*8+T7*8+U7*10+V7*6+W7*10+X7*60+IF(Y7>0,Y7*6-3,0)+Z7*3+IF(AA7="PV",13,IF(AA7="PP",10,IF(AA7="PD",9,IF(AA7="MA",21,IF(AA7="BA",30,IF(AA7="MB",25,0))))))+AB7+AC7+AD7+AE7+IF(AF7=$AO$19,264,IF(AF7=$AO$20,72,IF(AF7=$AO$21,144,IF(AF7>0,AF7,0))))+AG7+IF(AH7>0,AH7+5,0)+IF(AI7>0,AI7+5,0) -> 0 | AN7: 13 | AO7: PV=Post mounted (top or side) vehicular head
Q8: 0 | AJ8: 0 | AN8: 10 | AO8: PP=Post mounted (top or side) pedestrian head
Q9: 0 | AJ9: 0 | AN9: 9 | AO9: PD=Post mounted pedestrian push button detector
Q10: 0 | AJ10: 0 | AN10: 21 | AO10: MA=Mast arm mounting
Q11: 0 | AJ11: 0 | AN11: 30 | AO11: BA=Bracket arm mounting
Q12: 0 | AJ12: 0 | AN12: 25 | AO12: MB=Mounting bracket
Q13: 0 | AJ13: 0 | AO13: d is center to center distance between features in the cable run between the controller and the post, i.e. pull boxes
Q14: 0 | AJ14: 0 | AO14: feature labels allow you to organize runs
Q15: 0 | AJ15: 0
Q16: 0 | AJ16: 0 | AO16: ITS CABINET is for pole or ground mounted cabinets
Q17: 0 | AJ17: 0
Q18: 0 | AJ18: 0 | AO18: Loop Types:
Q19: 0 | AJ19: 0 | AO19: 6x30 | AP19: 264 foot of in duct cable
Q20: =SUM(C20:P20) -> 0 | AJ20: 0 | AO20: 6x6 | AP20: 72 foot of in duct cable
Q21: =SUM(C21:P21) -> 0 | AJ21: 0 | AO21: 6x15 | AP21: 144 foot of in duct cable
Q22: 0 | AJ22: 0
Q23: 0 | AJ23: 0
Q24: 0 | AJ24: 0
Q25: 0 | AJ25: 0
Q26: 0 | AJ26: 0
Q27: 0 | AJ27: 0
Q28: 0 | AJ28: 0
Q29: 0 | AJ29: 0
Q30: 0 | AJ30: 0
Q31: 0 | AJ31: 0
Q32: 0 | AJ32: 0
Q33: 0 | AJ33: 0
Q34: 0 | AJ34: 0
Q35: 0 | AJ35: 0
Q36: 0 | AJ36: 0
Q37: 0 | AJ37: 0
Q38: 0 | AJ38: 0
Q39: 0 | AJ39: 0
Q40: 0 | AJ40: 0
Q41: 0 | AJ41: 0
Q42: 0 | AJ42: 0
Q43: 0 | AJ43: 0
Q44: =SUM(C44:P44) -> 0 | AJ44: 0
Q45: =SUM(C45:P45) -> 0 | AJ45: 0
Q46: 0 | AJ46: 0
Q47: 0 | AJ47: 0
Q48: 0 | AJ48: 0
Q49: 0 | AJ49: 0
Q50: 0 | AJ50: 0
Q51: =SUM(C51:P51) -> 0 | AJ51: 0
Q52: 0 | AJ52: 0
Q53: 0 | AJ53: 0
Q54: =SUM(C54:P54) -> 0 | AJ54: 0
Q55: 0 | AJ55: 0
Q56: 0 | AJ56: 0

Sheet BREAKER
A1: Signals without Lighting | F1: Signals with Lighting
A2: SIGNAL FEATURE | B2: WATTS | C2: AMPS | F2: SIGNAL FEATURE | G2: WATTS | H2: AMPS
A3: L.E.D. | B3: 20 | C3: =+B3/120 -> 0.1666666667 | F3: L.E.D. | G3: 20 | H3: =+G3/120 -> 0.1666666667
A4: CONTROLLER | B4: 480 | C4: =+B4/120 -> 4 | F4: CONTROLLER | G4: 480 | H4: =+G4/120 -> 4
A5: ACCESSORIES | B5: 240 | C5: =+B5/120 -> 2 | F5: ACCESSORIES | G5: 240 | H5: =+G5/120 -> 2
F6: LUMINAIRE | G6: 150 | H6: =+G6/120 -> 1.25
A9: SIGNAL AMPS: | F9: SIGNAL AMPS:
A10: # OF EACH | B10: FEATURE | C10: TOTAL AMPS | F10: # OF EACH | G10: FEATURE | H10: TOTAL AMPS
A11: 9 | B11: 3-SECTION HEAD | C11: =+A11*$C$3 -> 1.5 | D11: AMPS | F11: 9 | G11: 3-SECTION HEAD | H11: =+F11*$C$3 -> 1.5 | I11: AMPS
A12: 0 | B12: 4-SECTION HEAD | C12: =2*A12*$C$3 -> 0 | D12: AMPS | F12: 0 | G12: 4-SECTION HEAD | H12: =2*F12*$C$3 -> 0 | I12: AMPS
A13: 1 | B13: 4-SECTION HEAD: FYL | C13: =+A13*$C$3 -> 0.1666666667 | D13: AMPS | F13: 1 | G13: 4-SECTION HEAD: FYL | H13: =+F13*$C$3 -> 0.1666666667 | I13: AMPS
A14: 0 | B14: 5-SECTION HEAD | C14: =2*A14*$C$3 -> 0 | D14: AMPS | F14: 0 | G14: 5-SECTION HEAD | H14: =2*F14*$C$3 -> 0 | I14: AMPS
A15: 8 | B15: PEDESTRIAN HEAD | C15: =+A15*$C$3 -> 1.333333333 | D15: AMPS | F15: 8 | G15: PEDESTRIAN HEAD | H15: =+F15*$C$3 -> 1.333333333 | I15: AMPS
A16: 1 | B16: CONTROLLER | C16: =+A16*$C$4 -> 4 | D16: AMPS | F16: 1 | G16: CONTROLLER | H16: =+F16*$C$4 -> 4 | I16: AMPS
A17: 1 | B17: ACCESSORIES | C17: =A17*$C$5 -> 2 | D17: AMPS | F17: 1 | G17: ACCESSORIES | H17: =F17*$C$5 -> 2 | I17: AMPS
B18: TOTAL AMPS | C18: =SUM(C11:C17) -> 9 | D18: AMPS | G18: TOTAL AMPS | H18: =SUM(H11:H17) -> 9 | I18: AMPS
B19: *1.3 | C19: =+C18*1.3 -> 11.7 | D19: AMPS | G19: *1.3 | H19: =+H18*1.3 -> 11.7 | I19: AMPS
A21: AUXILIARY BREAKER | C21: 15 | D21: AMPS | F21: AUXILIARY BREAKER | H21: 15 | I21: AMPS
A22: CONTROLLER BREAKER RATING | C22: =IF(C19>0,IF((IF(C19<=15,15,IF(C19<=20,20,IF(C19<=30,30,IF(C19<=40,40,IF(C19<=50,50,IF(C19<=60,60,0))))))+IF(AND(C19>60,C19<=70)=TRUE,70,IF(AND(C19>70,C19<=80)=TRUE,80,IF(AND(C19>80,C19<=90)=TRUE,90,IF(AND(C19>90,C19<=100)=TRUE,100,0)))))>0,IF(C19<=15,15,IF(C19<=20,20,IF(C19<=30,30,IF(C19<=40,40,IF(C19<=50,50,IF(C19<=60,60,0))))))+IF(AND(C19>60,C19<=70)=TRUE,70,IF(AND(C19>70,C19<=80)=TRUE,80,IF(AND(C19>80,C19<=90)=TRUE,90,IF(AND(C19>90,C19<=100)=TRUE,100,0)))),"O/R"),"N/A") -> 15 | D22: AMPS | F22: CONTROLLER BREAKER RATING | H22: =IF(H19>0,IF((IF(H19<=15,15,IF(H19<=20,20,IF(H19<=30,30,IF(H19<=40,40,IF(H19<=50,50,IF(H19<=60,60,0))))))+IF(AND(H19>60,H19<=70)=TRUE,70,IF(AND(H19>70,H19<=80)=TRUE,80,IF(AND(H19>80,H19<=90)=TRUE,90,IF(AND(H19>90,H19<=100)=TRUE,100,0)))))>0,IF(H19<=15,15,IF(H19<=20,20,IF(H19<=30,30,IF(H19<=40,40,IF(H19<=50,50,IF(H19<=60,60,0))))))+IF(AND(H19>60,H19<=70)=TRUE,70,IF(AND(H19>70,H19<=80)=TRUE,80,IF(AND(H19>80,H19<=90)=TRUE,90,IF(AND(H19>90,H19<=100)=TRUE,100,0)))),"O/R"),"N/A") -> 15 | I22: AMPS
A23: SIGNAL MAIN BREAKER | C23: 100 | D23: AMPS | F23: SIGNAL MAIN BREAKER | H23: 100 | I23: AMPS
A25: POWER SUPPLY TO CONTROLLER DISTANCE | C25: 11 | D25: FEET | F25: POWER SUPPLY TO CONTROLLER DISTANCE | H25: 11 | I25: FEET
A26: CABLE SIZE (POWER SUPPLY TO CONTROLLER) | C26: =+(C25+8+8)*1.05*C19*25.8/6 -> 1426.2885 | D26: CIRCULAR MILS | F26: CABLE SIZE (POWER SUPPLY TO CONTROLLER) | H26: =+(H25+8+8)*1.05*H19*25.8/6 -> 1426.2885 | I26: CIRCULAR MILS
C27: =IF(C26<=16510,8,IF(C26<=26240,6,IF(C26<41740,4,IF(C26<52620,3,IF(C26<=66360,2,"SEE EPG"))))) -> 8 | D27: AWG | H27: =IF(H26<=16510,8,IF(H26<=26240,6,IF(H26<41740,4,IF(H26<52620,3,IF(H26<=66360,2,"SEE EPG"))))) -> 8 | I27: AWG
A29: POWER SOURCE TO POWER SUPPLY DISTANCE | C29: 9 | D29: FEET | F29: LIGHTING CIRCUIT 1:
A30: CABLE SIZE (POWER SOURCE TO POWER SUPPLY) | C30: =+(C29+35+8)*1.05*C19*25.8/6 -> 2746.926 | D30: CIRCULAR MILS | F30: # OF EACH | G30: FEATURE | H30: TOTAL AMPS
C31: =IF(C30<=66360,2,"SEE EPG") -> 2 | D31: AWG | F31: 2 | G31: LUMINAIRE | H31: =+F31*$H$6 -> 2.5 | I31: AMPS
G32: TOTAL AMPS *1.3 | H32: =+H31*1.3 -> 3.25
F34: LIGHTING CIRCUIT 2:
F35: # OF EACH | G35: FEATURE | H35: TOTAL AMPS
F36: 2 | G36: LUMINAIRE | H36: =+F36*$H$6 -> 2.5 | I36: AMPS
G37: TOTAL AMPS *1.3 | H37: =+H36*1.3 -> 3.25
F40: LIGHTING CIRCUIT 1 BREAKER | H40: =IF(H32>0,IF((IF(H32<=15,15,IF(H32<=20,20,IF(H32<=30,30,IF(H32<=40,40,IF(H32<=50,50,IF(H32<=60,60,0))))))+IF(AND(H32>60,H32<=70)=TRUE,70,IF(AND(H32>70,H32<=80)=TRUE,80,IF(AND(H32>80,H32<=90)=TRUE,90,IF(AND(H32>90,H32<=100)=TRUE,100,0)))))>0,IF(H32<=15,15,IF(H32<=20,20,IF(H32<=30,30,IF(H32<=40,40,IF(H32<=50,50,IF(H32<=60,60,0))))))+IF(AND(H32>60,H32<=70)=TRUE,70,IF(AND(H32>70,H32<=80)=TRUE,80,IF(AND(H32>80,H32<=90)=TRUE,90,IF(AND(H32>90,H32<=100)=TRUE,100,0)))),"O/R"),"N/A") -> 15 | I40: AMPS
F41: LIGHTING CIRCUIT 2 BREAKER | H41: =IF(H37>0,IF((IF(H37<=15,15,IF(H37<=20,20,IF(H37<=30,30,IF(H37<=40,40,IF(H37<=50,50,IF(H37<=60,60,0))))))+IF(AND(H37>60,H37<=70)=TRUE,70,IF(AND(H37>70,H37<=80)=TRUE,80,IF(AND(H37>80,H37<=90)=TRUE,90,IF(AND(H37>90,H37<=100)=TRUE,100,0)))))>0,IF(H37<=15,15,IF(H37<=20,20,IF(H37<=30,30,IF(H37<=40,40,IF(H37<=50,50,IF(H37<=60,60,0))))))+IF(AND(H37>60,H37<=70)=TRUE,70,IF(AND(H37>70,H37<=80)=TRUE,80,IF(AND(H37>80,H37<=90)=TRUE,90,IF(AND(H37>90,H37<=100)=TRUE,100,0)))),"O/R"),"N/A") -> 15 | I41: AMPS
F42: LIGHTING MAIN BREAKER | H42: 100 | I42: AMPS
F44: POWER SOURCE TO POWER SUPPLY DISTANCE | H44: 9 | I44: FEET
F45: CABLE SIZE (POWER SOURCE TO POWER SUPPLY) | H45: =+(H44+35+8)*1.05*(H19+H32+H37)*25.8/6 -> 4272.996 | I45: CIRCULAR MILS
H46: =IF(H45<=66360,2,"SEE EPG") -> 2 | I46: AWG

Sheet PULL BOX SIZING
A1: CABLE INFORMATION | C1: CABLE ROUTING | L1: CONDUCTORS PER PULL BOX | AC1: PULL BOX SIZING
AC2: PULL BOX | AD2: PB1
A3: CABLE | B3: CONDUCTORS PER CABLE | C3: PB1 | D3: PB2 | E3: PB3 | F3: PB4 | G3: PB5 | H3: PB6 | I3: PB7 | L3: PB1 | M3: PB2 | N3: PB3 | O3: PB4 | P3: PB5 | Q3: PB6 | R3: PB7 | AC3: CABLE | AD3: # of EACH | AE3: # of CONDUCTORS | AF3: TOTAL CONDUCTORS | AG3: PULL BOX SIZE
AC4: TYPE | AD4: TYPE | AE4: PER CABLE | AF4: PER TYPE | AG4: PREFORMED | AI4: CONCRETE
A5: =IF('CABLE LENGTH'!AK6>0,'CABLE LENGTH'!AK6,0) -> 0 | B5: =+IF(A5="VIDEO",5,IF(A5="24 FIBER",0,VALUE(LEFT(A5,1)))) -> 0 | C5: =COUNTIF('CABLE LENGTH'!$A6:$P6,'PULL BOX SIZING'!C$3)*'CABLE LENGTH'!$AL6 -> 0 | D5: =COUNTIF('CABLE LENGTH'!$A6:$P6,'PULL BOX SIZING'!D$3)*'CABLE LENGTH'!$AL6 -> 0 | E5: =COUNTIF('CABLE LENGTH'!$A6:$P6,'PULL BOX SIZING'!E$3)*'CABLE LENGTH'!$AL6 -> 0 | F5: =COUNTIF('CABLE LENGTH'!$A6:$P6,'PULL BOX SIZING'!F$3)*'CABLE LENGTH'!$AL6 -> 0 | G5: =COUNTIF('CABLE LENGTH'!$A6:$P6,'PULL BOX SIZING'!G$3)*'CABLE LENGTH'!$AL6 -> 0 | H5: =COUNTIF('CABLE LENGTH'!$A6:$P6,'PULL BOX SIZING'!H$3)*'CABLE LENGTH'!$AL6 -> 0 | I5: =COUNTIF('CABLE LENGTH'!$A6:$P6,'PULL BOX SIZING'!I$3)*'CABLE LENGTH'!$AL6 -> 0 | J5: =COUNTIF('CABLE LENGTH'!$A6:$P6,'PULL BOX SIZING'!J$3)*'CABLE LENGTH'!$AL6 -> 0 | K5: =COUNTIF('CABLE LENGTH'!$A6:$P6,'PULL BOX SIZING'!K$3)*'CABLE LENGTH'!$AL6 -> 0 | L5: =+C5*$B5 -> 0 | M5: 0 | N5: 0 | O5: 0 | P5: 0 | Q5: 0 | R5: 0 | S5: 0 | T5: 0 | AC5: 7c-#12 | AD5: 8 | AE5: =VALUE(LEFT(AC5,1)) -> 7 | AF5: =+AE5*AD5 -> 56
A6: =IF('CABLE LENGTH'!AK7>0,'CABLE LENGTH'!AK7,0) -> 0 | B6: 0 | C6: =COUNTIF('CABLE LENGTH'!$A7:$P7,'PULL BOX SIZING'!C$3)*'CABLE LENGTH'!$AL7 -> 0 | D6: =COUNTIF('CABLE LENGTH'!$A7:$P7,'PULL BOX SIZING'!D$3)*'CABLE LENGTH'!$AL7 -> 0 | E6: =COUNTIF('CABLE LENGTH'!$A7:$P7,'PULL BOX SIZING'!E$3)*'CABLE LENGTH'!$AL7 -> 0 | F6: =COUNTIF('CABLE LENGTH'!$A7:$P7,'PULL BOX SIZING'!F$3)*'CABLE LENGTH'!$AL7 -> 0 | G6: =COUNTIF('CABLE LENGTH'!$A7:$P7,'PULL BOX SIZING'!G$3)*'CABLE LENGTH'!$AL7 -> 0 | H6: =COUNTIF('CABLE LENGTH'!$A7:$P7,'PULL BOX SIZING'!H$3)*'CABLE LENGTH'!$AL7 -> 0 | I6: =COUNTIF('CABLE LENGTH'!$A7:$P7,'PULL BOX SIZING'!I$3)*'CABLE LENGTH'!$AL7 -> 0 | J6: =COUNTIF('CABLE LENGTH'!$A7:$P7,'PULL BOX SIZING'!J$3)*'CABLE LENGTH'!$AL7 -> 0 | K6: =COUNTIF('CABLE LENGTH'!$A7:$P7,'PULL BOX SIZING'!K$3)*'CABLE LENGTH'!$AL7 -> 0 | L6: 0 | M6: 0 | N6: 0 | O6: 0 | P6: 0 | Q6: 0 | R6: 0 | S6: 0 | T6: 0 | AC6: 5c-#12 | AD6: 8 | AE6: =VALUE(LEFT(AC6,1)) -> 5 | AF6: =+AE6*AD6 -> 40
A7: =IF('CABLE LENGTH'!AK8>0,'CABLE LENGTH'!AK8,0) -> 0 | B7: =+IF(A7="VIDEO",5,IF(A7="24 FIBER",0,VALUE(LEFT(A7,1)))) -> 0 | C7: =COUNTIF('CABLE LENGTH'!$A8:$P8,'PULL BOX SIZING'!C$3)*'CABLE LENGTH'!$AL8 -> 0 | D7: =COUNTIF('CABLE LENGTH'!$A8:$P8,'PULL BOX SIZING'!D$3)*'CABLE LENGTH'!$AL8 -> 0 | E7: =COUNTIF('CABLE LENGTH'!$A8:$P8,'PULL BOX SIZING'!E$3)*'CABLE LENGTH'!$AL8 -> 0 | F7: =COUNTIF('CABLE LENGTH'!$A8:$P8,'PULL BOX SIZING'!F$3)*'CABLE LENGTH'!$AL8 -> 0 | G7: =COUNTIF('CABLE LENGTH'!$A8:$P8,'PULL BOX SIZING'!G$3)*'CABLE LENGTH'!$AL8 -> 0 | H7: =COUNTIF('CABLE LENGTH'!$A8:$P8,'PULL BOX SIZING'!H$3)*'CABLE LENGTH'!$AL8 -> 0 | I7: =COUNTIF('CABLE LENGTH'!$A8:$P8,'PULL BOX SIZING'!I$3)*'CABLE LENGTH'!$AL8 -> 0 | J7: =COUNTIF('CABLE LENGTH'!$A8:$P8,'PULL BOX SIZING'!J$3)*'CABLE LENGTH'!$AL8 -> 0 | K7: =COUNTIF('CABLE LENGTH'!$A8:$P8,'PULL BOX SIZING'!K$3)*'CABLE LENGTH'!$AL8 -> 0 | L7: 0 | M7: 0 | N7: 0 | O7: 0 | P7: 0 | Q7: 0 | R7: 0 | S7: 0 | T7: 0 | AC7: 2c-#12 | AD7: 8 | AE7: =VALUE(LEFT(AC7,1)) -> 2 | AF7: =+AE7*AD7 -> 16
A8: =IF('CABLE LENGTH'!AK9>0,'CABLE LENGTH'!AK9,0) -> 0 | B8: 0 | C8: =COUNTIF('CABLE LENGTH'!$A9:$P9,'PULL BOX SIZING'!C$3)*'CABLE LENGTH'!$AL9 -> 0 | D8: =COUNTIF('CABLE LENGTH'!$A9:$P9,'PULL BOX SIZING'!D$3)*'CABLE LENGTH'!$AL9 -> 0 | E8: =COUNTIF('CABLE LENGTH'!$A9:$P9,'PULL BOX SIZING'!E$3)*'CABLE LENGTH'!$AL9 -> 0 | F8: =COUNTIF('CABLE LENGTH'!$A9:$P9,'PULL BOX SIZING'!F$3)*'CABLE LENGTH'!$AL9 -> 0 | G8: =COUNTIF('CABLE LENGTH'!$A9:$P9,'PULL BOX SIZING'!G$3)*'CABLE LENGTH'!$AL9 -> 0 | H8: =COUNTIF('CABLE LENGTH'!$A9:$P9,'PULL BOX SIZING'!H$3)*'CABLE LENGTH'!$AL9 -> 0 | I8: =COUNTIF('CABLE LENGTH'!$A9:$P9,'PULL BOX SIZING'!I$3)*'CABLE LENGTH'!$AL9 -> 0 | J8: =COUNTIF('CABLE LENGTH'!$A9:$P9,'PULL BOX SIZING'!J$3)*'CABLE LENGTH'!$AL9 -> 0 | K8: =COUNTIF('CABLE LENGTH'!$A9:$P9,'PULL BOX SIZING'!K$3)*'CABLE LENGTH'!$AL9 -> 0 | L8: 0 | M8: 0 | N8: 0 | O8: 0 | P8: 0 | Q8: 0 | R8: 0 | S8: 0 | T8: 0 | AC8: 1c-#6 | AD8: 3 | AE8: =VALUE(LEFT(AC8,1)) -> 1 | AF8: =+AE8*AD8 -> 3
A9: =IF('CABLE LENGTH'!AK10>0,'CABLE LENGTH'!AK10,0) -> 0 | B9: 0 | C9: =COUNTIF('CABLE LENGTH'!$A10:$P10,'PULL BOX SIZING'!C$3)*'CABLE LENGTH'!$AL10 -> 0 | D9: =COUNTIF('CABLE LENGTH'!$A10:$P10,'PULL BOX SIZING'!D$3)*'CABLE LENGTH'!$AL10 -> 0 | E9: =COUNTIF('CABLE LENGTH'!$A10:$P10,'PULL BOX SIZING'!E$3)*'CABLE LENGTH'!$AL10 -> 0 | F9: =COUNTIF('CABLE LENGTH'!$A10:$P10,'PULL BOX SIZING'!F$3)*'CABLE LENGTH'!$AL10 -> 0 | G9: =COUNTIF('CABLE LENGTH'!$A10:$P10,'PULL BOX SIZING'!G$3)*'CABLE LENGTH'!$AL10 -> 0 | H9: =COUNTIF('CABLE LENGTH'!$A10:$P10,'PULL BOX SIZING'!H$3)*'CABLE LENGTH'!$AL10 -> 0 | I9: =COUNTIF('CABLE LENGTH'!$A10:$P10,'PULL BOX SIZING'!I$3)*'CABLE LENGTH'!$AL10 -> 0 | J9: =COUNTIF('CABLE LENGTH'!$A10:$P10,'PULL BOX SIZING'!J$3)*'CABLE LENGTH'!$AL10 -> 0 | K9: =COUNTIF('CABLE LENGTH'!$A10:$P10,'PULL BOX SIZING'!K$3)*'CABLE LENGTH'!$AL10 -> 0 | L9: 0 | M9: 0 | N9: 0 | O9: 0 | P9: 0 | Q9: 0 | R9: 0 | S9: 0 | T9: 0 | AC9: VIDEO | AD9: 4 | AF9: =+AE9*AD9 -> 0
A10: =IF('CABLE LENGTH'!AK11>0,'CABLE LENGTH'!AK11,0) -> 0 | B10: 0 | C10: =COUNTIF('CABLE LENGTH'!$A11:$P11,'PULL BOX SIZING'!C$3)*'CABLE LENGTH'!$AL11 -> 0 | D10: =COUNTIF('CABLE LENGTH'!$A11:$P11,'PULL BOX SIZING'!D$3)*'CABLE LENGTH'!$AL11 -> 0 | E10: =COUNTIF('CABLE LENGTH'!$A11:$P11,'PULL BOX SIZING'!E$3)*'CABLE LENGTH'!$AL11 -> 0 | F10: =COUNTIF('CABLE LENGTH'!$A11:$P11,'PULL BOX SIZING'!F$3)*'CABLE LENGTH'!$AL11 -> 0 | G10: =COUNTIF('CABLE LENGTH'!$A11:$P11,'PULL BOX SIZING'!G$3)*'CABLE LENGTH'!$AL11 -> 0 | H10: =COUNTIF('CABLE LENGTH'!$A11:$P11,'PULL BOX SIZING'!H$3)*'CABLE LENGTH'!$AL11 -> 0 | I10: =COUNTIF('CABLE LENGTH'!$A11:$P11,'PULL BOX SIZING'!I$3)*'CABLE LENGTH'!$AL11 -> 0 | J10: =COUNTIF('CABLE LENGTH'!$A11:$P11,'PULL BOX SIZING'!J$3)*'CABLE LENGTH'!$AL11 -> 0 | K10: =COUNTIF('CABLE LENGTH'!$A11:$P11,'PULL BOX SIZING'!K$3)*'CABLE LENGTH'!$AL11 -> 0 | L10: 0 | M10: 0 | N10: 0 | O10: 0 | P10: 0 | Q10: 0 | R10: 0 | S10: 0 | T10: 0 | AE10: TOTAL | AF10: =SUM(AF5:AF9) -> 115 | AG10: =IF(AF10>=69,"CLASS 3",IF(AF10>22,"CLASS 2","CLASS 1")) -> CLASS 3 | AH10: or | AI10: =IF(AF10>=69,"DOUBLE","STANDARD") -> DOUBLE
A11: =IF('CABLE LENGTH'!AK12>0,'CABLE LENGTH'!AK12,0) -> 0 | B11: 0 | C11: =COUNTIF('CABLE LENGTH'!$A12:$P12,'PULL BOX SIZING'!C$3)*'CABLE LENGTH'!$AL12 -> 0 | D11: =COUNTIF('CABLE LENGTH'!$A12:$P12,'PULL BOX SIZING'!D$3)*'CABLE LENGTH'!$AL12 -> 0 | E11: =COUNTIF('CABLE LENGTH'!$A12:$P12,'PULL BOX SIZING'!E$3)*'CABLE LENGTH'!$AL12 -> 0 | F11: =COUNTIF('CABLE LENGTH'!$A12:$P12,'PULL BOX SIZING'!F$3)*'CABLE LENGTH'!$AL12 -> 0 | G11: =COUNTIF('CABLE LENGTH'!$A12:$P12,'PULL BOX SIZING'!G$3)*'CABLE LENGTH'!$AL12 -> 0 | H11: =COUNTIF('CABLE LENGTH'!$A12:$P12,'PULL BOX SIZING'!H$3)*'CABLE LENGTH'!$AL12 -> 0 | I11: =COUNTIF('CABLE LENGTH'!$A12:$P12,'PULL BOX SIZING'!I$3)*'CABLE LENGTH'!$AL12 -> 0 | J11: =COUNTIF('CABLE LENGTH'!$A12:$P12,'PULL BOX SIZING'!J$3)*'CABLE LENGTH'!$AL12 -> 0 | K11: =COUNTIF('CABLE LENGTH'!$A12:$P12,'PULL BOX SIZING'!K$3)*'CABLE LENGTH'!$AL12 -> 0 | L11: 0 | M11: 0 | N11: 0 | O11: 0 | P11: 0 | Q11: 0 | R11: 0 | S11: 0 | T11: 0
A12: =IF('CABLE LENGTH'!AK13>0,'CABLE LENGTH'!AK13,0) -> 0 | B12: 0 | C12: =COUNTIF('CABLE LENGTH'!$A13:$P13,'PULL BOX SIZING'!C$3)*'CABLE LENGTH'!$AL13 -> 0 | D12: =COUNTIF('CABLE LENGTH'!$A13:$P13,'PULL BOX SIZING'!D$3)*'CABLE LENGTH'!$AL13 -> 0 | E12: =COUNTIF('CABLE LENGTH'!$A13:$P13,'PULL BOX SIZING'!E$3)*'CABLE LENGTH'!$AL13 -> 0 | F12: =COUNTIF('CABLE LENGTH'!$A13:$P13,'PULL BOX SIZING'!F$3)*'CABLE LENGTH'!$AL13 -> 0 | G12: =COUNTIF('CABLE LENGTH'!$A13:$P13,'PULL BOX SIZING'!G$3)*'CABLE LENGTH'!$AL13 -> 0 | H12: =COUNTIF('CABLE LENGTH'!$A13:$P13,'PULL BOX SIZING'!H$3)*'CABLE LENGTH'!$AL13 -> 0 | I12: =COUNTIF('CABLE LENGTH'!$A13:$P13,'PULL BOX SIZING'!I$3)*'CABLE LENGTH'!$AL13 -> 0 | J12: =COUNTIF('CABLE LENGTH'!$A13:$P13,'PULL BOX SIZING'!J$3)*'CABLE LENGTH'!$AL13 -> 0 | K12: =COUNTIF('CABLE LENGTH'!$A13:$P13,'PULL BOX SIZING'!K$3)*'CABLE LENGTH'!$AL13 -> 0 | L12: 0 | M12: 0 | N12: 0 | O12: 0 | P12: 0 | Q12: 0 | R12: 0 | S12: 0 | T12: 0 | AC12: PULL BOX | AD12: 2
A13: =IF('CABLE LENGTH'!AK14>0,'CABLE LENGTH'!AK14,0) -> 0 | B13: 0 | C13: =COUNTIF('CABLE LENGTH'!$A14:$P14,'PULL BOX SIZING'!C$3)*'CABLE LENGTH'!$AL14 -> 0 | D13: =COUNTIF('CABLE LENGTH'!$A14:$P14,'PULL BOX SIZING'!D$3)*'CABLE LENGTH'!$AL14 -> 0 | E13: =COUNTIF('CABLE LENGTH'!$A14:$P14,'PULL BOX SIZING'!E$3)*'CABLE LENGTH'!$AL14 -> 0 | F13: =COUNTIF('CABLE LENGTH'!$A14:$P14,'PULL BOX SIZING'!F$3)*'CABLE LENGTH'!$AL14 -> 0 | G13: =COUNTIF('CABLE LENGTH'!$A14:$P14,'PULL BOX SIZING'!G$3)*'CABLE LENGTH'!$AL14 -> 0 | H13: =COUNTIF('CABLE LENGTH'!$A14:$P14,'PULL BOX SIZING'!H$3)*'CABLE LENGTH'!$AL14 -> 0 | I13: =COUNTIF('CABLE LENGTH'!$A14:$P14,'PULL BOX SIZING'!I$3)*'CABLE LENGTH'!$AL14 -> 0 | J13: =COUNTIF('CABLE LENGTH'!$A14:$P14,'PULL BOX SIZING'!J$3)*'CABLE LENGTH'!$AL14 -> 0 | K13: =COUNTIF('CABLE LENGTH'!$A14:$P14,'PULL BOX SIZING'!K$3)*'CABLE LENGTH'!$AL14 -> 0 | L13: 0 | M13: 0 | N13: 0 | O13: 0 | P13: 0 | Q13: 0 | R13: 0 | S13: 0 | T13: 0 | AC13: CABLE | AD13: # of EACH | AE13: # of CONDUCTORS | AF13: TOTAL CONDUCTORS | AG13: PULL BOX SIZE
A14: =IF('CABLE LENGTH'!AK15>0,'CABLE LENGTH'!AK15,0) -> 0 | B14: 0 | C14: =COUNTIF('CABLE LENGTH'!$A15:$P15,'PULL BOX SIZING'!C$3)*'CABLE LENGTH'!$AL15 -> 0 | D14: =COUNTIF('CABLE LENGTH'!$A15:$P15,'PULL BOX SIZING'!D$3)*'CABLE LENGTH'!$AL15 -> 0 | E14: =COUNTIF('CABLE LENGTH'!$A15:$P15,'PULL BOX SIZING'!E$3)*'CABLE LENGTH'!$AL15 -> 0 | F14: =COUNTIF('CABLE LENGTH'!$A15:$P15,'PULL BOX SIZING'!F$3)*'CABLE LENGTH'!$AL15 -> 0 | G14: =COUNTIF('CABLE LENGTH'!$A15:$P15,'PULL BOX SIZING'!G$3)*'CABLE LENGTH'!$AL15 -> 0 | H14: =COUNTIF('CABLE LENGTH'!$A15:$P15,'PULL BOX SIZING'!H$3)*'CABLE LENGTH'!$AL15 -> 0 | I14: =COUNTIF('CABLE LENGTH'!$A15:$P15,'PULL BOX SIZING'!I$3)*'CABLE LENGTH'!$AL15 -> 0 | J14: =COUNTIF('CABLE LENGTH'!$A15:$P15,'PULL BOX SIZING'!J$3)*'CABLE LENGTH'!$AL15 -> 0 | K14: =COUNTIF('CABLE LENGTH'!$A15:$P15,'PULL BOX SIZING'!K$3)*'CABLE LENGTH'!$AL15 -> 0 | L14: 0 | M14: 0 | N14: 0 | O14: 0 | P14: 0 | Q14: 0 | R14: 0 | S14: 0 | T14: 0 | AC14: TYPE | AD14: TYPE | AE14: PER CABLE | AF14: PER TYPE | AG14: PREFORMED | AI14: CONCRETE
A15: =IF('CABLE LENGTH'!AK16>0,'CABLE LENGTH'!AK16,0) -> 0 | B15: 0 | C15: =COUNTIF('CABLE LENGTH'!$A16:$P16,'PULL BOX SIZING'!C$3)*'CABLE LENGTH'!$AL16 -> 0 | D15: =COUNTIF('CABLE LENGTH'!$A16:$P16,'PULL BOX SIZING'!D$3)*'CABLE LENGTH'!$AL16 -> 0 | E15: =COUNTIF('CABLE LENGTH'!$A16:$P16,'PULL BOX SIZING'!E$3)*'CABLE LENGTH'!$AL16 -> 0 | F15: =COUNTIF('CABLE LENGTH'!$A16:$P16,'PULL BOX SIZING'!F$3)*'CABLE LENGTH'!$AL16 -> 0 | G15: =COUNTIF('CABLE LENGTH'!$A16:$P16,'PULL BOX SIZING'!G$3)*'CABLE LENGTH'!$AL16 -> 0 | H15: =COUNTIF('CABLE LENGTH'!$A16:$P16,'PULL BOX SIZING'!H$3)*'CABLE LENGTH'!$AL16 -> 0 | I15: =COUNTIF('CABLE LENGTH'!$A16:$P16,'PULL BOX SIZING'!I$3)*'CABLE LENGTH'!$AL16 -> 0 | J15: =COUNTIF('CABLE LENGTH'!$A16:$P16,'PULL BOX SIZING'!J$3)*'CABLE LENGTH'!$AL16 -> 0 | K15: =COUNTIF('CABLE LENGTH'!$A16:$P16,'PULL BOX SIZING'!K$3)*'CABLE LENGTH'!$AL16 -> 0 | L15: 0 | M15: 0 | N15: 0 | O15: 0 | P15: 0 | Q15: 0 | R15: 0 | S15: 0 | T15: 0 | AC15: 7c-#12 | AD15: 4 | AE15: =VALUE(LEFT(AC15,1)) -> 7 | AF15: =+AE15*AD15 -> 28
A16: =IF('CABLE LENGTH'!AK17>0,'CABLE LENGTH'!AK17,0) -> 0 | B16: 0 | C16: =COUNTIF('CABLE LENGTH'!$A17:$P17,'PULL BOX SIZING'!C$3)*'CABLE LENGTH'!$AL17 -> 0 | D16: =COUNTIF('CABLE LENGTH'!$A17:$P17,'PULL BOX SIZING'!D$3)*'CABLE LENGTH'!$AL17 -> 0 | E16: =COUNTIF('CABLE LENGTH'!$A17:$P17,'PULL BOX SIZING'!E$3)*'CABLE LENGTH'!$AL17 -> 0 | F16: =COUNTIF('CABLE LENGTH'!$A17:$P17,'PULL BOX SIZING'!F$3)*'CABLE LENGTH'!$AL17 -> 0 | G16: =COUNTIF('CABLE LENGTH'!$A17:$P17,'PULL BOX SIZING'!G$3)*'CABLE LENGTH'!$AL17 -> 0 | H16: =COUNTIF('CABLE LENGTH'!$A17:$P17,'PULL BOX SIZING'!H$3)*'CABLE LENGTH'!$AL17 -> 0 | I16: =COUNTIF('CABLE LENGTH'!$A17:$P17,'PULL BOX SIZING'!I$3)*'CABLE LENGTH'!$AL17 -> 0 | J16: =COUNTIF('CABLE LENGTH'!$A17:$P17,'PULL BOX SIZING'!J$3)*'CABLE LENGTH'!$AL17 -> 0 | K16: =COUNTIF('CABLE LENGTH'!$A17:$P17,'PULL BOX SIZING'!K$3)*'CABLE LENGTH'!$AL17 -> 0 | L16: 0 | M16: 0 | N16: 0 | O16: 0 | P16: 0 | Q16: 0 | R16: 0 | S16: 0 | T16: 0 | AC16: 5c-#12 | AD16: 4 | AE16: =VALUE(LEFT(AC16,1)) -> 5 | AF16: =+AE16*AD16 -> 20
A17: =IF('CABLE LENGTH'!AK18>0,'CABLE LENGTH'!AK18,0) -> 0 | B17: 0 | C17: =COUNTIF('CABLE LENGTH'!$A18:$P18,'PULL BOX SIZING'!C$3)*'CABLE LENGTH'!$AL18 -> 0 | D17: =COUNTIF('CABLE LENGTH'!$A18:$P18,'PULL BOX SIZING'!D$3)*'CABLE LENGTH'!$AL18 -> 0 | E17: =COUNTIF('CABLE LENGTH'!$A18:$P18,'PULL BOX SIZING'!E$3)*'CABLE LENGTH'!$AL18 -> 0 | F17: =COUNTIF('CABLE LENGTH'!$A18:$P18,'PULL BOX SIZING'!F$3)*'CABLE LENGTH'!$AL18 -> 0 | G17: =COUNTIF('CABLE LENGTH'!$A18:$P18,'PULL BOX SIZING'!G$3)*'CABLE LENGTH'!$AL18 -> 0 | H17: =COUNTIF('CABLE LENGTH'!$A18:$P18,'PULL BOX SIZING'!H$3)*'CABLE LENGTH'!$AL18 -> 0 | I17: =COUNTIF('CABLE LENGTH'!$A18:$P18,'PULL BOX SIZING'!I$3)*'CABLE LENGTH'!$AL18 -> 0 | J17: =COUNTIF('CABLE LENGTH'!$A18:$P18,'PULL BOX SIZING'!J$3)*'CABLE LENGTH'!$AL18 -> 0 | K17: =COUNTIF('CABLE LENGTH'!$A18:$P18,'PULL BOX SIZING'!K$3)*'CABLE LENGTH'!$AL18 -> 0 | L17: 0 | M17: 0 | N17: 0 | O17: 0 | P17: 0 | Q17: 0 | R17: 0 | S17: 0 | T17: 0 | AC17: 2c-#12 | AD17: 4 | AE17: =VALUE(LEFT(AC17,1)) -> 2 | AF17: =+AE17*AD17 -> 8
A18: =IF('CABLE LENGTH'!AK19>0,'CABLE LENGTH'!AK19,0) -> 0 | B18: 0 | C18: =COUNTIF('CABLE LENGTH'!$A19:$P19,'PULL BOX SIZING'!C$3)*'CABLE LENGTH'!$AL19 -> 0 | D18: =COUNTIF('CABLE LENGTH'!$A19:$P19,'PULL BOX SIZING'!D$3)*'CABLE LENGTH'!$AL19 -> 0 | E18: =COUNTIF('CABLE LENGTH'!$A19:$P19,'PULL BOX SIZING'!E$3)*'CABLE LENGTH'!$AL19 -> 0 | F18: =COUNTIF('CABLE LENGTH'!$A19:$P19,'PULL BOX SIZING'!F$3)*'CABLE LENGTH'!$AL19 -> 0 | G18: =COUNTIF('CABLE LENGTH'!$A19:$P19,'PULL BOX SIZING'!G$3)*'CABLE LENGTH'!$AL19 -> 0 | H18: =COUNTIF('CABLE LENGTH'!$A19:$P19,'PULL BOX SIZING'!H$3)*'CABLE LENGTH'!$AL19 -> 0 | I18: =COUNTIF('CABLE LENGTH'!$A19:$P19,'PULL BOX SIZING'!I$3)*'CABLE LENGTH'!$AL19 -> 0 | J18: =COUNTIF('CABLE LENGTH'!$A19:$P19,'PULL BOX SIZING'!J$3)*'CABLE LENGTH'!$AL19 -> 0 | K18: =COUNTIF('CABLE LENGTH'!$A19:$P19,'PULL BOX SIZING'!K$3)*'CABLE LENGTH'!$AL19 -> 0 | L18: 0 | M18: 0 | N18: 0 | O18: 0 | P18: 0 | Q18: 0 | R18: 0 | S18: 0 | T18: 0 | AC18: VIDEO | AD18: 2 | AF18: =+AE18*AD18 -> 0
A19: =IF('CABLE LENGTH'!AK20>0,'CABLE LENGTH'!AK20,0) -> 0 | B19: 0 | C19: =COUNTIF('CABLE LENGTH'!$A20:$P20,'PULL BOX SIZING'!C$3)*'CABLE LENGTH'!$AL20 -> 0 | D19: =COUNTIF('CABLE LENGTH'!$A20:$P20,'PULL BOX SIZING'!D$3)*'CABLE LENGTH'!$AL20 -> 0 | E19: =COUNTIF('CABLE LENGTH'!$A20:$P20,'PULL BOX SIZING'!E$3)*'CABLE LENGTH'!$AL20 -> 0 | F19: =COUNTIF('CABLE LENGTH'!$A20:$P20,'PULL BOX SIZING'!F$3)*'CABLE LENGTH'!$AL20 -> 0 | G19: =COUNTIF('CABLE LENGTH'!$A20:$P20,'PULL BOX SIZING'!G$3)*'CABLE LENGTH'!$AL20 -> 0 | H19: =COUNTIF('CABLE LENGTH'!$A20:$P20,'PULL BOX SIZING'!H$3)*'CABLE LENGTH'!$AL20 -> 0 | I19: =COUNTIF('CABLE LENGTH'!$A20:$P20,'PULL BOX SIZING'!I$3)*'CABLE LENGTH'!$AL20 -> 0 | J19: =COUNTIF('CABLE LENGTH'!$A20:$P20,'PULL BOX SIZING'!J$3)*'CABLE LENGTH'!$AL20 -> 0 | K19: =COUNTIF('CABLE LENGTH'!$A20:$P20,'PULL BOX SIZING'!K$3)*'CABLE LENGTH'!$AL20 -> 0 | L19: 0 | M19: 0 | N19: 0 | O19: 0 | P19: 0 | Q19: 0 | R19: 0 | S19: 0 | T19: 0 | AE19: TOTAL | AF19: =SUM(AF15:AF18) -> 56 | AG19: =IF(AF19>=69,"CLASS 3",IF(AF19>22,"CLASS 2","CLASS 1")) -> CLASS 2 | AH19: or | AI19: =IF(AF19>=69,"DOUBLE","STANDARD") -> STANDARD
A20: =IF('CABLE LENGTH'!AK21>0,'CABLE LENGTH'!AK21,0) -> 0 | B20: 0 | C20: =COUNTIF('CABLE LENGTH'!$A21:$P21,'PULL BOX SIZING'!C$3)*'CABLE LENGTH'!$AL21 -> 0 | D20: =COUNTIF('CABLE LENGTH'!$A21:$P21,'PULL BOX SIZING'!D$3)*'CABLE LENGTH'!$AL21 -> 0 | E20: =COUNTIF('CABLE LENGTH'!$A21:$P21,'PULL BOX SIZING'!E$3)*'CABLE LENGTH'!$AL21 -> 0 | F20: =COUNTIF('CABLE LENGTH'!$A21:$P21,'PULL BOX SIZING'!F$3)*'CABLE LENGTH'!$AL21 -> 0 | G20: =COUNTIF('CABLE LENGTH'!$A21:$P21,'PULL BOX SIZING'!G$3)*'CABLE LENGTH'!$AL21 -> 0 | H20: =COUNTIF('CABLE LENGTH'!$A21:$P21,'PULL BOX SIZING'!H$3)*'CABLE LENGTH'!$AL21 -> 0 | I20: =COUNTIF('CABLE LENGTH'!$A21:$P21,'PULL BOX SIZING'!I$3)*'CABLE LENGTH'!$AL21 -> 0 | J20: =COUNTIF('CABLE LENGTH'!$A21:$P21,'PULL BOX SIZING'!J$3)*'CABLE LENGTH'!$AL21 -> 0 | K20: =COUNTIF('CABLE LENGTH'!$A21:$P21,'PULL BOX SIZING'!K$3)*'CABLE LENGTH'!$AL21 -> 0 | L20: 0 | M20: 0 | N20: 0 | O20: 0 | P20: 0 | Q20: 0 | R20: 0 | S20: 0 | T20: 0
A21: =IF('CABLE LENGTH'!AK22>0,'CABLE LENGTH'!AK22,0) -> 0 | B21: 0 | C21: =COUNTIF('CABLE LENGTH'!$A22:$P22,'PULL BOX SIZING'!C$3)*'CABLE LENGTH'!$AL22 -> 0 | D21: =COUNTIF('CABLE LENGTH'!$A22:$P22,'PULL BOX SIZING'!D$3)*'CABLE LENGTH'!$AL22 -> 0 | E21: =COUNTIF('CABLE LENGTH'!$A22:$P22,'PULL BOX SIZING'!E$3)*'CABLE LENGTH'!$AL22 -> 0 | F21: =COUNTIF('CABLE LENGTH'!$A22:$P22,'PULL BOX SIZING'!F$3)*'CABLE LENGTH'!$AL22 -> 0 | G21: =COUNTIF('CABLE LENGTH'!$A22:$P22,'PULL BOX SIZING'!G$3)*'CABLE LENGTH'!$AL22 -> 0 | H21: =COUNTIF('CABLE LENGTH'!$A22:$P22,'PULL BOX SIZING'!H$3)*'CABLE LENGTH'!$AL22 -> 0 | I21: =COUNTIF('CABLE LENGTH'!$A22:$P22,'PULL BOX SIZING'!I$3)*'CABLE LENGTH'!$AL22 -> 0 | J21: =COUNTIF('CABLE LENGTH'!$A22:$P22,'PULL BOX SIZING'!J$3)*'CABLE LENGTH'!$AL22 -> 0 | K21: =COUNTIF('CABLE LENGTH'!$A22:$P22,'PULL BOX SIZING'!K$3)*'CABLE LENGTH'!$AL22 -> 0 | L21: =+C21*$B21 -> 0 | M21: 0 | N21: 0 | O21: 0 | P21: 0 | Q21: 0 | R21: 0 | S21: 0 | T21: 0 | AC21: PULL BOX | AD21: 3
A22: =IF('CABLE LENGTH'!AK23>0,'CABLE LENGTH'!AK23,0) -> 0 | B22: 0 | C22: =COUNTIF('CABLE LENGTH'!$A23:$P23,'PULL BOX SIZING'!C$3)*'CABLE LENGTH'!$AL23 -> 0 | D22: =COUNTIF('CABLE LENGTH'!$A23:$P23,'PULL BOX SIZING'!D$3)*'CABLE LENGTH'!$AL23 -> 0 | E22: =COUNTIF('CABLE LENGTH'!$A23:$P23,'PULL BOX SIZING'!E$3)*'CABLE LENGTH'!$AL23 -> 0 | F22: =COUNTIF('CABLE LENGTH'!$A23:$P23,'PULL BOX SIZING'!F$3)*'CABLE LENGTH'!$AL23 -> 0 | G22: =COUNTIF('CABLE LENGTH'!$A23:$P23,'PULL BOX SIZING'!G$3)*'CABLE LENGTH'!$AL23 -> 0 | H22: =COUNTIF('CABLE LENGTH'!$A23:$P23,'PULL BOX SIZING'!H$3)*'CABLE LENGTH'!$AL23 -> 0 | I22: =COUNTIF('CABLE LENGTH'!$A23:$P23,'PULL BOX SIZING'!I$3)*'CABLE LENGTH'!$AL23 -> 0 | J22: =COUNTIF('CABLE LENGTH'!$A23:$P23,'PULL BOX SIZING'!J$3)*'CABLE LENGTH'!$AL23 -> 0 | K22: =COUNTIF('CABLE LENGTH'!$A23:$P23,'PULL BOX SIZING'!K$3)*'CABLE LENGTH'!$AL23 -> 0 | L22: 0 | M22: 0 | N22: 0 | O22: 0 | P22: 0 | Q22: 0 | R22: 0 | S22: 0 | T22: 0 | AC22: CABLE | AD22: # of EACH | AE22: # of CONDUCTORS | AF22: TOTAL CONDUCTORS | AG22: PULL BOX SIZE
A23: =IF('CABLE LENGTH'!AK24>0,'CABLE LENGTH'!AK24,0) -> 0 | B23: 0 | C23: =COUNTIF('CABLE LENGTH'!$A24:$P24,'PULL BOX SIZING'!C$3)*'CABLE LENGTH'!$AL24 -> 0 | D23: =COUNTIF('CABLE LENGTH'!$A24:$P24,'PULL BOX SIZING'!D$3)*'CABLE LENGTH'!$AL24 -> 0 | E23: =COUNTIF('CABLE LENGTH'!$A24:$P24,'PULL BOX SIZING'!E$3)*'CABLE LENGTH'!$AL24 -> 0 | F23: =COUNTIF('CABLE LENGTH'!$A24:$P24,'PULL BOX SIZING'!F$3)*'CABLE LENGTH'!$AL24 -> 0 | G23: =COUNTIF('CABLE LENGTH'!$A24:$P24,'PULL BOX SIZING'!G$3)*'CABLE LENGTH'!$AL24 -> 0 | H23: =COUNTIF('CABLE LENGTH'!$A24:$P24,'PULL BOX SIZING'!H$3)*'CABLE LENGTH'!$AL24 -> 0 | I23: =COUNTIF('CABLE LENGTH'!$A24:$P24,'PULL BOX SIZING'!I$3)*'CABLE LENGTH'!$AL24 -> 0 | J23: =COUNTIF('CABLE LENGTH'!$A24:$P24,'PULL BOX SIZING'!J$3)*'CABLE LENGTH'!$AL24 -> 0 | K23: =COUNTIF('CABLE LENGTH'!$A24:$P24,'PULL BOX SIZING'!K$3)*'CABLE LENGTH'!$AL24 -> 0 | L23: 0 | M23: 0 | N23: 0 | O23: 0 | P23: 0 | Q23: 0 | R23: 0 | S23: 0 | T23: 0 | AC23: TYPE | AD23: TYPE | AE23: PER CABLE | AF23: PER TYPE | AG23: PREFORMED | AI23: CONCRETE
A24: =IF('CABLE LENGTH'!AK25>0,'CABLE LENGTH'!AK25,0) -> 0 | B24: 0 | C24: =COUNTIF('CABLE LENGTH'!$A25:$P25,'PULL BOX SIZING'!C$3)*'CABLE LENGTH'!$AL25 -> 0 | D24: =COUNTIF('CABLE LENGTH'!$A25:$P25,'PULL BOX SIZING'!D$3)*'CABLE LENGTH'!$AL25 -> 0 | E24: =COUNTIF('CABLE LENGTH'!$A25:$P25,'PULL BOX SIZING'!E$3)*'CABLE LENGTH'!$AL25 -> 0 | F24: =COUNTIF('CABLE LENGTH'!$A25:$P25,'PULL BOX SIZING'!F$3)*'CABLE LENGTH'!$AL25 -> 0 | G24: =COUNTIF('CABLE LENGTH'!$A25:$P25,'PULL BOX SIZING'!G$3)*'CABLE LENGTH'!$AL25 -> 0 | H24: =COUNTIF('CABLE LENGTH'!$A25:$P25,'PULL BOX SIZING'!H$3)*'CABLE LENGTH'!$AL25 -> 0 | I24: =COUNTIF('CABLE LENGTH'!$A25:$P25,'PULL BOX SIZING'!I$3)*'CABLE LENGTH'!$AL25 -> 0 | J24: =COUNTIF('CABLE LENGTH'!$A25:$P25,'PULL BOX SIZING'!J$3)*'CABLE LENGTH'!$AL25 -> 0 | K24: =COUNTIF('CABLE LENGTH'!$A25:$P25,'PULL BOX SIZING'!K$3)*'CABLE LENGTH'!$AL25 -> 0 | L24: 0 | M24: 0 | N24: 0 | O24: 0 | P24: 0 | Q24: 0 | R24: 0 | S24: 0 | T24: 0 | AC24: 7c-#12 | AD24: 2 | AE24: =VALUE(LEFT(AC24,1)) -> 7 | AF24: =+AE24*AD24 -> 14
A25: =IF('CABLE LENGTH'!AK26>0,'CABLE LENGTH'!AK26,0) -> 0 | B25: 0 | C25: =COUNTIF('CABLE LENGTH'!$A26:$P26,'PULL BOX SIZING'!C$3)*'CABLE LENGTH'!$AL26 -> 0 | D25: =COUNTIF('CABLE LENGTH'!$A26:$P26,'PULL BOX SIZING'!D$3)*'CABLE LENGTH'!$AL26 -> 0 | E25: =COUNTIF('CABLE LENGTH'!$A26:$P26,'PULL BOX SIZING'!E$3)*'CABLE LENGTH'!$AL26 -> 0 | F25: =COUNTIF('CABLE LENGTH'!$A26:$P26,'PULL BOX SIZING'!F$3)*'CABLE LENGTH'!$AL26 -> 0 | G25: =COUNTIF('CABLE LENGTH'!$A26:$P26,'PULL BOX SIZING'!G$3)*'CABLE LENGTH'!$AL26 -> 0 | H25: =COUNTIF('CABLE LENGTH'!$A26:$P26,'PULL BOX SIZING'!H$3)*'CABLE LENGTH'!$AL26 -> 0 | I25: =COUNTIF('CABLE LENGTH'!$A26:$P26,'PULL BOX SIZING'!I$3)*'CABLE LENGTH'!$AL26 -> 0 | J25: =COUNTIF('CABLE LENGTH'!$A26:$P26,'PULL BOX SIZING'!J$3)*'CABLE LENGTH'!$AL26 -> 0 | K25: =COUNTIF('CABLE LENGTH'!$A26:$P26,'PULL BOX SIZING'!K$3)*'CABLE LENGTH'!$AL26 -> 0 | L25: 0 | M25: 0 | N25: 0 | O25: 0 | P25: 0 | Q25: 0 | R25: 0 | S25: 0 | T25: 0 | AC25: 5c-#12 | AD25: 2 | AE25: =VALUE(LEFT(AC25,1)) -> 5 | AF25: =+AE25*AD25 -> 10
A26: =IF('CABLE LENGTH'!AK27>0,'CABLE LENGTH'!AK27,0) -> 0 | B26: 0 | C26: =COUNTIF('CABLE LENGTH'!$A27:$P27,'PULL BOX SIZING'!C$3)*'CABLE LENGTH'!$AL27 -> 0 | D26: =COUNTIF('CABLE LENGTH'!$A27:$P27,'PULL BOX SIZING'!D$3)*'CABLE LENGTH'!$AL27 -> 0 | E26: =COUNTIF('CABLE LENGTH'!$A27:$P27,'PULL BOX SIZING'!E$3)*'CABLE LENGTH'!$AL27 -> 0 | F26: =COUNTIF('CABLE LENGTH'!$A27:$P27,'PULL BOX SIZING'!F$3)*'CABLE LENGTH'!$AL27 -> 0 | G26: =COUNTIF('CABLE LENGTH'!$A27:$P27,'PULL BOX SIZING'!G$3)*'CABLE LENGTH'!$AL27 -> 0 | H26: =COUNTIF('CABLE LENGTH'!$A27:$P27,'PULL BOX SIZING'!H$3)*'CABLE LENGTH'!$AL27 -> 0 | I26: =COUNTIF('CABLE LENGTH'!$A27:$P27,'PULL BOX SIZING'!I$3)*'CABLE LENGTH'!$AL27 -> 0 | J26: =COUNTIF('CABLE LENGTH'!$A27:$P27,'PULL BOX SIZING'!J$3)*'CABLE LENGTH'!$AL27 -> 0 | K26: =COUNTIF('CABLE LENGTH'!$A27:$P27,'PULL BOX SIZING'!K$3)*'CABLE LENGTH'!$AL27 -> 0 | L26: 0 | M26: 0 | N26: 0 | O26: 0 | P26: 0 | Q26: 0 | R26: 0 | S26: 0 | T26: 0 | AC26: 2c-#12 | AD26: 2 | AE26: =VALUE(LEFT(AC26,1)) -> 2 | AF26: =+AE26*AD26 -> 4
A27: =IF('CABLE LENGTH'!AK28>0,'CABLE LENGTH'!AK28,0) -> 0 | B27: 0 | C27: =COUNTIF('CABLE LENGTH'!$A28:$P28,'PULL BOX SIZING'!C$3)*'CABLE LENGTH'!$AL28 -> 0 | D27: =COUNTIF('CABLE LENGTH'!$A28:$P28,'PULL BOX SIZING'!D$3)*'CABLE LENGTH'!$AL28 -> 0 | E27: =COUNTIF('CABLE LENGTH'!$A28:$P28,'PULL BOX SIZING'!E$3)*'CABLE LENGTH'!$AL28 -> 0 | F27: =COUNTIF('CABLE LENGTH'!$A28:$P28,'PULL BOX SIZING'!F$3)*'CABLE LENGTH'!$AL28 -> 0 | G27: =COUNTIF('CABLE LENGTH'!$A28:$P28,'PULL BOX SIZING'!G$3)*'CABLE LENGTH'!$AL28 -> 0 | H27: =COUNTIF('CABLE LENGTH'!$A28:$P28,'PULL BOX SIZING'!H$3)*'CABLE LENGTH'!$AL28 -> 0 | I27: =COUNTIF('CABLE LENGTH'!$A28:$P28,'PULL BOX SIZING'!I$3)*'CABLE LENGTH'!$AL28 -> 0 | J27: =COUNTIF('CABLE LENGTH'!$A28:$P28,'PULL BOX SIZING'!J$3)*'CABLE LENGTH'!$AL28 -> 0 | K27: =COUNTIF('CABLE LENGTH'!$A28:$P28,'PULL BOX SIZING'!K$3)*'CABLE LENGTH'!$AL28 -> 0 | L27: 0 | M27: 0 | N27: 0 | O27: 0 | P27: 0 | Q27: 0 | R27: 0 | S27: 0 | T27: 0 | AC27: VIDEO | AD27: 1 | AF27: =+AE27*AD27 -> 0
A28: =IF('CABLE LENGTH'!AK29>0,'CABLE LENGTH'!AK29,0) -> 0 | B28: 0 | C28: =COUNTIF('CABLE LENGTH'!$A29:$P29,'PULL BOX SIZING'!C$3)*'CABLE LENGTH'!$AL29 -> 0 | D28: =COUNTIF('CABLE LENGTH'!$A29:$P29,'PULL BOX SIZING'!D$3)*'CABLE LENGTH'!$AL29 -> 0 | E28: =COUNTIF('CABLE LENGTH'!$A29:$P29,'PULL BOX SIZING'!E$3)*'CABLE LENGTH'!$AL29 -> 0 | F28: =COUNTIF('CABLE LENGTH'!$A29:$P29,'PULL BOX SIZING'!F$3)*'CABLE LENGTH'!$AL29 -> 0 | G28: =COUNTIF('CABLE LENGTH'!$A29:$P29,'PULL BOX SIZING'!G$3)*'CABLE LENGTH'!$AL29 -> 0 | H28: =COUNTIF('CABLE LENGTH'!$A29:$P29,'PULL BOX SIZING'!H$3)*'CABLE LENGTH'!$AL29 -> 0 | I28: =COUNTIF('CABLE LENGTH'!$A29:$P29,'PULL BOX SIZING'!I$3)*'CABLE LENGTH'!$AL29 -> 0 | J28: =COUNTIF('CABLE LENGTH'!$A29:$P29,'PULL BOX SIZING'!J$3)*'CABLE LENGTH'!$AL29 -> 0 | K28: =COUNTIF('CABLE LENGTH'!$A29:$P29,'PULL BOX SIZING'!K$3)*'CABLE LENGTH'!$AL29 -> 0 | L28: 0 | M28: 0 | N28: 0 | O28: 0 | P28: 0 | Q28: 0 | R28: 0 | S28: 0 | T28: 0 | AE28: TOTAL | AF28: =SUM(AF24:AF27) -> 28 | AG28: =IF(AF28>=69,"CLASS 3",IF(AF28>22,"CLASS 2","CLASS 1")) -> CLASS 2 | AH28: or | AI28: =IF(AF28>=69,"DOUBLE","STANDARD") -> STANDARD
A29: =IF('CABLE LENGTH'!AK30>0,'CABLE LENGTH'!AK30,0) -> 0 | B29: 0 | C29: =COUNTIF('CABLE LENGTH'!$A30:$P30,'PULL BOX SIZING'!C$3)*'CABLE LENGTH'!$AL30 -> 0 | D29: =COUNTIF('CABLE LENGTH'!$A30:$P30,'PULL BOX SIZING'!D$3)*'CABLE LENGTH'!$AL30 -> 0 | E29: =COUNTIF('CABLE LENGTH'!$A30:$P30,'PULL BOX SIZING'!E$3)*'CABLE LENGTH'!$AL30 -> 0 | F29: =COUNTIF('CABLE LENGTH'!$A30:$P30,'PULL BOX SIZING'!F$3)*'CABLE LENGTH'!$AL30 -> 0 | G29: =COUNTIF('CABLE LENGTH'!$A30:$P30,'PULL BOX SIZING'!G$3)*'CABLE LENGTH'!$AL30 -> 0 | H29: =COUNTIF('CABLE LENGTH'!$A30:$P30,'PULL BOX SIZING'!H$3)*'CABLE LENGTH'!$AL30 -> 0 | I29: =COUNTIF('CABLE LENGTH'!$A30:$P30,'PULL BOX SIZING'!I$3)*'CABLE LENGTH'!$AL30 -> 0 | J29: =COUNTIF('CABLE LENGTH'!$A30:$P30,'PULL BOX SIZING'!J$3)*'CABLE LENGTH'!$AL30 -> 0 | K29: =COUNTIF('CABLE LENGTH'!$A30:$P30,'PULL BOX SIZING'!K$3)*'CABLE LENGTH'!$AL30 -> 0 | L29: 0 | M29: 0 | N29: 0 | O29: 0 | P29: 0 | Q29: 0 | R29: 0 | S29: 0 | T29: 0
A30: =IF('CABLE LENGTH'!AK31>0,'CABLE LENGTH'!AK31,0) -> 0 | B30: 0 | C30: =COUNTIF('CABLE LENGTH'!$A31:$P31,'PULL BOX SIZING'!C$3)*'CABLE LENGTH'!$AL31 -> 0 | D30: =COUNTIF('CABLE LENGTH'!$A31:$P31,'PULL BOX SIZING'!D$3)*'CABLE LENGTH'!$AL31 -> 0 | E30: =COUNTIF('CABLE LENGTH'!$A31:$P31,'PULL BOX SIZING'!E$3)*'CABLE LENGTH'!$AL31 -> 0 | F30: =COUNTIF('CABLE LENGTH'!$A31:$P31,'PULL BOX SIZING'!F$3)*'CABLE LENGTH'!$AL31 -> 0 | G30: =COUNTIF('CABLE LENGTH'!$A31:$P31,'PULL BOX SIZING'!G$3)*'CABLE LENGTH'!$AL31 -> 0 | H30: =COUNTIF('CABLE LENGTH'!$A31:$P31,'PULL BOX SIZING'!H$3)*'CABLE LENGTH'!$AL31 -> 0 | I30: =COUNTIF('CABLE LENGTH'!$A31:$P31,'PULL BOX SIZING'!I$3)*'CABLE LENGTH'!$AL31 -> 0 | J30: =COUNTIF('CABLE LENGTH'!$A31:$P31,'PULL BOX SIZING'!J$3)*'CABLE LENGTH'!$AL31 -> 0 | K30: =COUNTIF('CABLE LENGTH'!$A31:$P31,'PULL BOX SIZING'!K$3)*'CABLE LENGTH'!$AL31 -> 0 | L30: 0 | M30: 0 | N30: 0 | O30: 0 | P30: 0 | Q30: 0 | R30: 0 | S30: 0 | T30: 0 | AC30: PULL BOX | AD30: 4
A31: =IF('CABLE LENGTH'!AK32>0,'CABLE LENGTH'!AK32,0) -> 0 | B31: 0 | C31: =COUNTIF('CABLE LENGTH'!$A32:$P32,'PULL BOX SIZING'!C$3)*'CABLE LENGTH'!$AL32 -> 0 | D31: =COUNTIF('CABLE LENGTH'!$A32:$P32,'PULL BOX SIZING'!D$3)*'CABLE LENGTH'!$AL32 -> 0 | E31: =COUNTIF('CABLE LENGTH'!$A32:$P32,'PULL BOX SIZING'!E$3)*'CABLE LENGTH'!$AL32 -> 0 | F31: =COUNTIF('CABLE LENGTH'!$A32:$P32,'PULL BOX SIZING'!F$3)*'CABLE LENGTH'!$AL32 -> 0 | G31: =COUNTIF('CABLE LENGTH'!$A32:$P32,'PULL BOX SIZING'!G$3)*'CABLE LENGTH'!$AL32 -> 0 | H31: =COUNTIF('CABLE LENGTH'!$A32:$P32,'PULL BOX SIZING'!H$3)*'CABLE LENGTH'!$AL32 -> 0 | I31: =COUNTIF('CABLE LENGTH'!$A32:$P32,'PULL BOX SIZING'!I$3)*'CABLE LENGTH'!$AL32 -> 0 | J31: =COUNTIF('CABLE LENGTH'!$A32:$P32,'PULL BOX SIZING'!J$3)*'CABLE LENGTH'!$AL32 -> 0 | K31: =COUNTIF('CABLE LENGTH'!$A32:$P32,'PULL BOX SIZING'!K$3)*'CABLE LENGTH'!$AL32 -> 0 | L31: 0 | M31: 0 | N31: 0 | O31: 0 | P31: 0 | Q31: 0 | R31: 0 | S31: 0 | T31: 0 | AC31: CABLE | AD31: # of EACH | AE31: # of CONDUCTORS | AF31: TOTAL CONDUCTORS | AG31: PULL BOX SIZE
A32: =IF('CABLE LENGTH'!AK33>0,'CABLE LENGTH'!AK33,0) -> 0 | B32: 0 | C32: =COUNTIF('CABLE LENGTH'!$A33:$P33,'PULL BOX SIZING'!C$3)*'CABLE LENGTH'!$AL33 -> 0 | D32: =COUNTIF('CABLE LENGTH'!$A33:$P33,'PULL BOX SIZING'!D$3)*'CABLE LENGTH'!$AL33 -> 0 | E32: =COUNTIF('CABLE LENGTH'!$A33:$P33,'PULL BOX SIZING'!E$3)*'CABLE LENGTH'!$AL33 -> 0 | F32: =COUNTIF('CABLE LENGTH'!$A33:$P33,'PULL BOX SIZING'!F$3)*'CABLE LENGTH'!$AL33 -> 0 | G32: =COUNTIF('CABLE LENGTH'!$A33:$P33,'PULL BOX SIZING'!G$3)*'CABLE LENGTH'!$AL33 -> 0 | H32: =COUNTIF('CABLE LENGTH'!$A33:$P33,'PULL BOX SIZING'!H$3)*'CABLE LENGTH'!$AL33 -> 0 | I32: =COUNTIF('CABLE LENGTH'!$A33:$P33,'PULL BOX SIZING'!I$3)*'CABLE LENGTH'!$AL33 -> 0 | J32: =COUNTIF('CABLE LENGTH'!$A33:$P33,'PULL BOX SIZING'!J$3)*'CABLE LENGTH'!$AL33 -> 0 | K32: =COUNTIF('CABLE LENGTH'!$A33:$P33,'PULL BOX SIZING'!K$3)*'CABLE LENGTH'!$AL33 -> 0 | L32: 0 | M32: 0 | N32: 0 | O32: 0 | P32: 0 | Q32: 0 | R32: 0 | S32: 0 | T32: 0 | AC32: TYPE | AD32: TYPE | AE32: PER CABLE | AF32: PER TYPE | AG32: PREFORMED | AI32: CONCRETE
A33: =IF('CABLE LENGTH'!AK34>0,'CABLE LENGTH'!AK34,0) -> 0 | B33: 0 | C33: =COUNTIF('CABLE LENGTH'!$A34:$P34,'PULL BOX SIZING'!C$3)*'CABLE LENGTH'!$AL34 -> 0 | D33: =COUNTIF('CABLE LENGTH'!$A34:$P34,'PULL BOX SIZING'!D$3)*'CABLE LENGTH'!$AL34 -> 0 | E33: =COUNTIF('CABLE LENGTH'!$A34:$P34,'PULL BOX SIZING'!E$3)*'CABLE LENGTH'!$AL34 -> 0 | F33: =COUNTIF('CABLE LENGTH'!$A34:$P34,'PULL BOX SIZING'!F$3)*'CABLE LENGTH'!$AL34 -> 0 | G33: =COUNTIF('CABLE LENGTH'!$A34:$P34,'PULL BOX SIZING'!G$3)*'CABLE LENGTH'!$AL34 -> 0 | H33: =COUNTIF('CABLE LENGTH'!$A34:$P34,'PULL BOX SIZING'!H$3)*'CABLE LENGTH'!$AL34 -> 0 | I33: =COUNTIF('CABLE LENGTH'!$A34:$P34,'PULL BOX SIZING'!I$3)*'CABLE LENGTH'!$AL34 -> 0 | J33: =COUNTIF('CABLE LENGTH'!$A34:$P34,'PULL BOX SIZING'!J$3)*'CABLE LENGTH'!$AL34 -> 0 | K33: =COUNTIF('CABLE LENGTH'!$A34:$P34,'PULL BOX SIZING'!K$3)*'CABLE LENGTH'!$AL34 -> 0 | L33: 0 | M33: 0 | N33: 0 | O33: 0 | P33: 0 | Q33: 0 | R33: 0 | S33: 0 | T33: 0 | AC33: 7c-#12 | AD33: 2 | AE33: =VALUE(LEFT(AC33,1)) -> 7 | AF33: =+AE33*AD33 -> 14
A34: =IF('CABLE LENGTH'!AK35>0,'CABLE LENGTH'!AK35,0) -> 0 | B34: 0 | C34: =COUNTIF('CABLE LENGTH'!$A35:$P35,'PULL BOX SIZING'!C$3)*'CABLE LENGTH'!$AL35 -> 0 | D34: =COUNTIF('CABLE LENGTH'!$A35:$P35,'PULL BOX SIZING'!D$3)*'CABLE LENGTH'!$AL35 -> 0 | E34: =COUNTIF('CABLE LENGTH'!$A35:$P35,'PULL BOX SIZING'!E$3)*'CABLE LENGTH'!$AL35 -> 0 | F34: =COUNTIF('CABLE LENGTH'!$A35:$P35,'PULL BOX SIZING'!F$3)*'CABLE LENGTH'!$AL35 -> 0 | G34: =COUNTIF('CABLE LENGTH'!$A35:$P35,'PULL BOX SIZING'!G$3)*'CABLE LENGTH'!$AL35 -> 0 | H34: =COUNTIF('CABLE LENGTH'!$A35:$P35,'PULL BOX SIZING'!H$3)*'CABLE LENGTH'!$AL35 -> 0 | I34: =COUNTIF('CABLE LENGTH'!$A35:$P35,'PULL BOX SIZING'!I$3)*'CABLE LENGTH'!$AL35 -> 0 | J34: =COUNTIF('CABLE LENGTH'!$A35:$P35,'PULL BOX SIZING'!J$3)*'CABLE LENGTH'!$AL35 -> 0 | K34: =COUNTIF('CABLE LENGTH'!$A35:$P35,'PULL BOX SIZING'!K$3)*'CABLE LENGTH'!$AL35 -> 0 | L34: 0 | M34: 0 | N34: 0 | O34: 0 | P34: 0 | Q34: 0 | R34: 0 | S34: 0 | T34: 0 | AC34: 5c-#12 | AD34: 2 | AE34: =VALUE(LEFT(AC34,1)) -> 5 | AF34: =+AE34*AD34 -> 10
A35: =IF('CABLE LENGTH'!AK36>0,'CABLE LENGTH'!AK36,0) -> 0 | B35: 0 | C35: =COUNTIF('CABLE LENGTH'!$A36:$P36,'PULL BOX SIZING'!C$3)*'CABLE LENGTH'!$AL36 -> 0 | D35: =COUNTIF('CABLE LENGTH'!$A36:$P36,'PULL BOX SIZING'!D$3)*'CABLE LENGTH'!$AL36 -> 0 | E35: =COUNTIF('CABLE LENGTH'!$A36:$P36,'PULL BOX SIZING'!E$3)*'CABLE LENGTH'!$AL36 -> 0 | F35: =COUNTIF('CABLE LENGTH'!$A36:$P36,'PULL BOX SIZING'!F$3)*'CABLE LENGTH'!$AL36 -> 0 | G35: =COUNTIF('CABLE LENGTH'!$A36:$P36,'PULL BOX SIZING'!G$3)*'CABLE LENGTH'!$AL36 -> 0 | H35: =COUNTIF('CABLE LENGTH'!$A36:$P36,'PULL BOX SIZING'!H$3)*'CABLE LENGTH'!$AL36 -> 0 | I35: =COUNTIF('CABLE LENGTH'!$A36:$P36,'PULL BOX SIZING'!I$3)*'CABLE LENGTH'!$AL36 -> 0 | J35: =COUNTIF('CABLE LENGTH'!$A36:$P36,'PULL BOX SIZING'!J$3)*'CABLE LENGTH'!$AL36 -> 0 | K35: =COUNTIF('CABLE LENGTH'!$A36:$P36,'PULL BOX SIZING'!K$3)*'CABLE LENGTH'!$AL36 -> 0 | L35: 0 | M35: 0 | N35: 0 | O35: 0 | P35: 0 | Q35: 0 | R35: 0 | S35: 0 | T35: 0 | AC35: 2c-#12 | AD35: 2 | AE35: =VALUE(LEFT(AC35,1)) -> 2 | AF35: =+AE35*AD35 -> 4
A36: =IF('CABLE LENGTH'!AK37>0,'CABLE LENGTH'!AK37,0) -> 0 | B36: 0 | C36: =COUNTIF('CABLE LENGTH'!$A37:$P37,'PULL BOX SIZING'!C$3)*'CABLE LENGTH'!$AL37 -> 0 | D36: =COUNTIF('CABLE LENGTH'!$A37:$P37,'PULL BOX SIZING'!D$3)*'CABLE LENGTH'!$AL37 -> 0 | E36: =COUNTIF('CABLE LENGTH'!$A37:$P37,'PULL BOX SIZING'!E$3)*'CABLE LENGTH'!$AL37 -> 0 | F36: =COUNTIF('CABLE LENGTH'!$A37:$P37,'PULL BOX SIZING'!F$3)*'CABLE LENGTH'!$AL37 -> 0 | G36: =COUNTIF('CABLE LENGTH'!$A37:$P37,'PULL BOX SIZING'!G$3)*'CABLE LENGTH'!$AL37 -> 0 | H36: =COUNTIF('CABLE LENGTH'!$A37:$P37,'PULL BOX SIZING'!H$3)*'CABLE LENGTH'!$AL37 -> 0 | I36: =COUNTIF('CABLE LENGTH'!$A37:$P37,'PULL BOX SIZING'!I$3)*'CABLE LENGTH'!$AL37 -> 0 | J36: =COUNTIF('CABLE LENGTH'!$A37:$P37,'PULL BOX SIZING'!J$3)*'CABLE LENGTH'!$AL37 -> 0 | K36: =COUNTIF('CABLE LENGTH'!$A37:$P37,'PULL BOX SIZING'!K$3)*'CABLE LENGTH'!$AL37 -> 0 | L36: 0 | M36: 0 | N36: 0 | O36: 0 | P36: 0 | Q36: 0 | R36: 0 | S36: 0 | T36: 0
A37: =IF('CABLE LENGTH'!AK38>0,'CABLE LENGTH'!AK38,0) -> 0 | B37: 0 | C37: =COUNTIF('CABLE LENGTH'!$A38:$P38,'PULL BOX SIZING'!C$3)*'CABLE LENGTH'!$AL38 -> 0 | D37: =COUNTIF('CABLE LENGTH'!$A38:$P38,'PULL BOX SIZING'!D$3)*'CABLE LENGTH'!$AL38 -> 0 | E37: =COUNTIF('CABLE LENGTH'!$A38:$P38,'PULL BOX SIZING'!E$3)*'CABLE LENGTH'!$AL38 -> 0 | F37: =COUNTIF('CABLE LENGTH'!$A38:$P38,'PULL BOX SIZING'!F$3)*'CABLE LENGTH'!$AL38 -> 0 | G37: =COUNTIF('CABLE LENGTH'!$A38:$P38,'PULL BOX SIZING'!G$3)*'CABLE LENGTH'!$AL38 -> 0 | H37: =COUNTIF('CABLE LENGTH'!$A38:$P38,'PULL BOX SIZING'!H$3)*'CABLE LENGTH'!$AL38 -> 0 | I37: =COUNTIF('CABLE LENGTH'!$A38:$P38,'PULL BOX SIZING'!I$3)*'CABLE LENGTH'!$AL38 -> 0 | J37: =COUNTIF('CABLE LENGTH'!$A38:$P38,'PULL BOX SIZING'!J$3)*'CABLE LENGTH'!$AL38 -> 0 | K37: =COUNTIF('CABLE LENGTH'!$A38:$P38,'PULL BOX SIZING'!K$3)*'CABLE LENGTH'!$AL38 -> 0 | L37: 0 | M37: 0 | N37: 0 | O37: 0 | P37: 0 | Q37: 0 | R37: 0 | S37: 0 | T37: 0
A38: =IF('CABLE LENGTH'!AK39>0,'CABLE LENGTH'!AK39,0) -> 0 | B38: 0 | C38: =COUNTIF('CABLE LENGTH'!$A39:$P39,'PULL BOX SIZING'!C$3)*'CABLE LENGTH'!$AL39 -> 0 | D38: =COUNTIF('CABLE LENGTH'!$A39:$P39,'PULL BOX SIZING'!D$3)*'CABLE LENGTH'!$AL39 -> 0 | E38: =COUNTIF('CABLE LENGTH'!$A39:$P39,'PULL BOX SIZING'!E$3)*'CABLE LENGTH'!$AL39 -> 0 | F38: =COUNTIF('CABLE LENGTH'!$A39:$P39,'PULL BOX SIZING'!F$3)*'CABLE LENGTH'!$AL39 -> 0 | G38: =COUNTIF('CABLE LENGTH'!$A39:$P39,'PULL BOX SIZING'!G$3)*'CABLE LENGTH'!$AL39 -> 0 | H38: =COUNTIF('CABLE LENGTH'!$A39:$P39,'PULL BOX SIZING'!H$3)*'CABLE LENGTH'!$AL39 -> 0 | I38: =COUNTIF('CABLE LENGTH'!$A39:$P39,'PULL BOX SIZING'!I$3)*'CABLE LENGTH'!$AL39 -> 0 | J38: =COUNTIF('CABLE LENGTH'!$A39:$P39,'PULL BOX SIZING'!J$3)*'CABLE LENGTH'!$AL39 -> 0 | K38: =COUNTIF('CABLE LENGTH'!$A39:$P39,'PULL BOX SIZING'!K$3)*'CABLE LENGTH'!$AL39 -> 0 | L38: 0 | M38: 0 | N38: 0 | O38: 0 | P38: 0 | Q38: 0 | R38: 0 | S38: 0 | T38: 0
A39: =IF('CABLE LENGTH'!AK40>0,'CABLE LENGTH'!AK40,0) -> 0 | B39: 0 | C39: =COUNTIF('CABLE LENGTH'!$A40:$P40,'PULL BOX SIZING'!C$3)*'CABLE LENGTH'!$AL40 -> 0 | D39: =COUNTIF('CABLE LENGTH'!$A40:$P40,'PULL BOX SIZING'!D$3)*'CABLE LENGTH'!$AL40 -> 0 | E39: =COUNTIF('CABLE LENGTH'!$A40:$P40,'PULL BOX SIZING'!E$3)*'CABLE LENGTH'!$AL40 -> 0 | F39: =COUNTIF('CABLE LENGTH'!$A40:$P40,'PULL BOX SIZING'!F$3)*'CABLE LENGTH'!$AL40 -> 0 | G39: =COUNTIF('CABLE LENGTH'!$A40:$P40,'PULL BOX SIZING'!G$3)*'CABLE LENGTH'!$AL40 -> 0 | H39: =COUNTIF('CABLE LENGTH'!$A40:$P40,'PULL BOX SIZING'!H$3)*'CABLE LENGTH'!$AL40 -> 0 | I39: =COUNTIF('CABLE LENGTH'!$A40:$P40,'PULL BOX SIZING'!I$3)*'CABLE LENGTH'!$AL40 -> 0 | J39: =COUNTIF('CABLE LENGTH'!$A40:$P40,'PULL BOX SIZING'!J$3)*'CABLE LENGTH'!$AL40 -> 0 | K39: =COUNTIF('CABLE LENGTH'!$A40:$P40,'PULL BOX SIZING'!K$3)*'CABLE LENGTH'!$AL40 -> 0 | L39: 0 | M39: 0 | N39: 0 | O39: 0 | P39: 0 | Q39: 0 | R39: 0 | S39: 0 | T39: 0
A40: =IF('CABLE LENGTH'!AK41>0,'CABLE LENGTH'!AK41,0) -> 0 | B40: 0 | C40: =COUNTIF('CABLE LENGTH'!$A41:$P41,'PULL BOX SIZING'!C$3)*'CABLE LENGTH'!$AL41 -> 0 | D40: =COUNTIF('CABLE LENGTH'!$A41:$P41,'PULL BOX SIZING'!D$3)*'CABLE LENGTH'!$AL41 -> 0 | E40: =COUNTIF('CABLE LENGTH'!$A41:$P41,'PULL BOX SIZING'!E$3)*'CABLE LENGTH'!$AL41 -> 0 | F40: =COUNTIF('CABLE LENGTH'!$A41:$P41,'PULL BOX SIZING'!F$3)*'CABLE LENGTH'!$AL41 -> 0 | G40: =COUNTIF('CABLE LENGTH'!$A41:$P41,'PULL BOX SIZING'!G$3)*'CABLE LENGTH'!$AL41 -> 0 | H40: =COUNTIF('CABLE LENGTH'!$A41:$P41,'PULL BOX SIZING'!H$3)*'CABLE LENGTH'!$AL41 -> 0 | I40: =COUNTIF('CABLE LENGTH'!$A41:$P41,'PULL BOX SIZING'!I$3)*'CABLE LENGTH'!$AL41 -> 0 | J40: =COUNTIF('CABLE LENGTH'!$A41:$P41,'PULL BOX SIZING'!J$3)*'CABLE LENGTH'!$AL41 -> 0 | K40: =COUNTIF('CABLE LENGTH'!$A41:$P41,'PULL BOX SIZING'!K$3)*'CABLE LENGTH'!$AL41 -> 0 | L40: 0 | M40: 0 | N40: 0 | O40: 0 | P40: 0 | Q40: 0 | R40: 0 | S40: 0 | T40: 0
A41: =IF('CABLE LENGTH'!AK42>0,'CABLE LENGTH'!AK42,0) -> 0 | B41: 0 | C41: =COUNTIF('CABLE LENGTH'!$A42:$P42,'PULL BOX SIZING'!C$3)*'CABLE LENGTH'!$AL42 -> 0 | D41: =COUNTIF('CABLE LENGTH'!$A42:$P42,'PULL BOX SIZING'!D$3)*'CABLE LENGTH'!$AL42 -> 0 | E41: =COUNTIF('CABLE LENGTH'!$A42:$P42,'PULL BOX SIZING'!E$3)*'CABLE LENGTH'!$AL42 -> 0 | F41: =COUNTIF('CABLE LENGTH'!$A42:$P42,'PULL BOX SIZING'!F$3)*'CABLE LENGTH'!$AL42 -> 0 | G41: =COUNTIF('CABLE LENGTH'!$A42:$P42,'PULL BOX SIZING'!G$3)*'CABLE LENGTH'!$AL42 -> 0 | H41: =COUNTIF('CABLE LENGTH'!$A42:$P42,'PULL BOX SIZING'!H$3)*'CABLE LENGTH'!$AL42 -> 0 | I41: =COUNTIF('CABLE LENGTH'!$A42:$P42,'PULL BOX SIZING'!I$3)*'CABLE LENGTH'!$AL42 -> 0 | J41: =COUNTIF('CABLE LENGTH'!$A42:$P42,'PULL BOX SIZING'!J$3)*'CABLE LENGTH'!$AL42 -> 0 | K41: =COUNTIF('CABLE LENGTH'!$A42:$P42,'PULL BOX SIZING'!K$3)*'CABLE LENGTH'!$AL42 -> 0 | L41: 0 | M41: 0 | N41: 0 | O41: 0 | P41: 0 | Q41: 0 | R41: 0 | S41: 0 | T41: 0
A42: =IF('CABLE LENGTH'!AK43>0,'CABLE LENGTH'!AK43,0) -> 0 | B42: 0 | C42: =COUNTIF('CABLE LENGTH'!$A43:$P43,'PULL BOX SIZING'!C$3)*'CABLE LENGTH'!$AL43 -> 0 | D42: =COUNTIF('CABLE LENGTH'!$A43:$P43,'PULL BOX SIZING'!D$3)*'CABLE LENGTH'!$AL43 -> 0 | E42: =COUNTIF('CABLE LENGTH'!$A43:$P43,'PULL BOX SIZING'!E$3)*'CABLE LENGTH'!$AL43 -> 0 | F42: =COUNTIF('CABLE LENGTH'!$A43:$P43,'PULL BOX SIZING'!F$3)*'CABLE LENGTH'!$AL43 -> 0 | G42: =COUNTIF('CABLE LENGTH'!$A43:$P43,'PULL BOX SIZING'!G$3)*'CABLE LENGTH'!$AL43 -> 0 | H42: =COUNTIF('CABLE LENGTH'!$A43:$P43,'PULL BOX SIZING'!H$3)*'CABLE LENGTH'!$AL43 -> 0 | I42: =COUNTIF('CABLE LENGTH'!$A43:$P43,'PULL BOX SIZING'!I$3)*'CABLE LENGTH'!$AL43 -> 0 | J42: =COUNTIF('CABLE LENGTH'!$A43:$P43,'PULL BOX SIZING'!J$3)*'CABLE LENGTH'!$AL43 -> 0 | K42: =COUNTIF('CABLE LENGTH'!$A43:$P43,'PULL BOX SIZING'!K$3)*'CABLE LENGTH'!$AL43 -> 0 | L42: 0 | M42: 0 | N42: 0 | O42: 0 | P42: 0 | Q42: 0 | R42: 0 | S42: 0 | T42: 0
A43: =IF('CABLE LENGTH'!AK44>0,'CABLE LENGTH'!AK44,0) -> 0 | B43: 0 | C43: =COUNTIF('CABLE LENGTH'!$A44:$P44,'PULL BOX SIZING'!C$3)*'CABLE LENGTH'!$AL44 -> 0 | D43: =COUNTIF('CABLE LENGTH'!$A44:$P44,'PULL BOX SIZING'!D$3)*'CABLE LENGTH'!$AL44 -> 0 | E43: =COUNTIF('CABLE LENGTH'!$A44:$P44,'PULL BOX SIZING'!E$3)*'CABLE LENGTH'!$AL44 -> 0 | F43: =COUNTIF('CABLE LENGTH'!$A44:$P44,'PULL BOX SIZING'!F$3)*'CABLE LENGTH'!$AL44 -> 0 | G43: =COUNTIF('CABLE LENGTH'!$A44:$P44,'PULL BOX SIZING'!G$3)*'CABLE LENGTH'!$AL44 -> 0 | H43: =COUNTIF('CABLE LENGTH'!$A44:$P44,'PULL BOX SIZING'!H$3)*'CABLE LENGTH'!$AL44 -> 0 | I43: =COUNTIF('CABLE LENGTH'!$A44:$P44,'PULL BOX SIZING'!I$3)*'CABLE LENGTH'!$AL44 -> 0 | J43: =COUNTIF('CABLE LENGTH'!$A44:$P44,'PULL BOX SIZING'!J$3)*'CABLE LENGTH'!$AL44 -> 0 | K43: =COUNTIF('CABLE LENGTH'!$A44:$P44,'PULL BOX SIZING'!K$3)*'CABLE LENGTH'!$AL44 -> 0 | L43: 0 | M43: 0 | N43: 0 | O43: 0 | P43: 0 | Q43: 0 | R43: 0 | S43: 0 | T43: 0
A44: =IF('CABLE LENGTH'!AK45>0,'CABLE LENGTH'!AK45,0) -> 0 | B44: 0 | C44: =COUNTIF('CABLE LENGTH'!$A45:$P45,'PULL BOX SIZING'!C$3)*'CABLE LENGTH'!$AL45 -> 0 | D44: =COUNTIF('CABLE LENGTH'!$A45:$P45,'PULL BOX SIZING'!D$3)*'CABLE LENGTH'!$AL45 -> 0 | E44: =COUNTIF('CABLE LENGTH'!$A45:$P45,'PULL BOX SIZING'!E$3)*'CABLE LENGTH'!$AL45 -> 0 | F44: =COUNTIF('CABLE LENGTH'!$A45:$P45,'PULL BOX SIZING'!F$3)*'CABLE LENGTH'!$AL45 -> 0 | G44: =COUNTIF('CABLE LENGTH'!$A45:$P45,'PULL BOX SIZING'!G$3)*'CABLE LENGTH'!$AL45 -> 0 | H44: =COUNTIF('CABLE LENGTH'!$A45:$P45,'PULL BOX SIZING'!H$3)*'CABLE LENGTH'!$AL45 -> 0 | I44: =COUNTIF('CABLE LENGTH'!$A45:$P45,'PULL BOX SIZING'!I$3)*'CABLE LENGTH'!$AL45 -> 0 | J44: =COUNTIF('CABLE LENGTH'!$A45:$P45,'PULL BOX SIZING'!J$3)*'CABLE LENGTH'!$AL45 -> 0 | K44: =COUNTIF('CABLE LENGTH'!$A45:$P45,'PULL BOX SIZING'!K$3)*'CABLE LENGTH'!$AL45 -> 0 | L44: 0 | M44: 0 | N44: 0 | O44: 0 | P44: 0 | Q44: 0 | R44: 0 | S44: 0 | T44: 0
A45: =IF('CABLE LENGTH'!AK46>0,'CABLE LENGTH'!AK46,0) -> 0 | B45: 0 | C45: =COUNTIF('CABLE LENGTH'!$A46:$P46,'PULL BOX SIZING'!C$3)*'CABLE LENGTH'!$AL46 -> 0 | D45: =COUNTIF('CABLE LENGTH'!$A46:$P46,'PULL BOX SIZING'!D$3)*'CABLE LENGTH'!$AL46 -> 0 | E45: =COUNTIF('CABLE LENGTH'!$A46:$P46,'PULL BOX SIZING'!E$3)*'CABLE LENGTH'!$AL46 -> 0 | F45: =COUNTIF('CABLE LENGTH'!$A46:$P46,'PULL BOX SIZING'!F$3)*'CABLE LENGTH'!$AL46 -> 0 | G45: =COUNTIF('CABLE LENGTH'!$A46:$P46,'PULL BOX SIZING'!G$3)*'CABLE LENGTH'!$AL46 -> 0 | H45: =COUNTIF('CABLE LENGTH'!$A46:$P46,'PULL BOX SIZING'!H$3)*'CABLE LENGTH'!$AL46 -> 0 | I45: =COUNTIF('CABLE LENGTH'!$A46:$P46,'PULL BOX SIZING'!I$3)*'CABLE LENGTH'!$AL46 -> 0 | J45: =COUNTIF('CABLE LENGTH'!$A46:$P46,'PULL BOX SIZING'!J$3)*'CABLE LENGTH'!$AL46 -> 0 | K45: =COUNTIF('CABLE LENGTH'!$A46:$P46,'PULL BOX SIZING'!K$3)*'CABLE LENGTH'!$AL46 -> 0 | L45: 0 | M45: 0 | N45: 0 | O45: 0 | P45: 0 | Q45: 0 | R45: 0 | S45: 0 | T45: 0
A46: =IF('CABLE LENGTH'!AK47>0,'CABLE LENGTH'!AK47,0) -> 0 | B46: 0 | C46: =COUNTIF('CABLE LENGTH'!$A47:$P47,'PULL BOX SIZING'!C$3)*'CABLE LENGTH'!$AL47 -> 0 | D46: =COUNTIF('CABLE LENGTH'!$A47:$P47,'PULL BOX SIZING'!D$3)*'CABLE LENGTH'!$AL47 -> 0 | E46: =COUNTIF('CABLE LENGTH'!$A47:$P47,'PULL BOX SIZING'!E$3)*'CABLE LENGTH'!$AL47 -> 0 | F46: =COUNTIF('CABLE LENGTH'!$A47:$P47,'PULL BOX SIZING'!F$3)*'CABLE LENGTH'!$AL47 -> 0 | G46: =COUNTIF('CABLE LENGTH'!$A47:$P47,'PULL BOX SIZING'!G$3)*'CABLE LENGTH'!$AL47 -> 0 | H46: =COUNTIF('CABLE LENGTH'!$A47:$P47,'PULL BOX SIZING'!H$3)*'CABLE LENGTH'!$AL47 -> 0 | I46: =COUNTIF('CABLE LENGTH'!$A47:$P47,'PULL BOX SIZING'!I$3)*'CABLE LENGTH'!$AL47 -> 0 | J46: =COUNTIF('CABLE LENGTH'!$A47:$P47,'PULL BOX SIZING'!J$3)*'CABLE LENGTH'!$AL47 -> 0 | K46: =COUNTIF('CABLE LENGTH'!$A47:$P47,'PULL BOX SIZING'!K$3)*'CABLE LENGTH'!$AL47 -> 0 | L46: 0 | M46: 0 | N46: 0 | O46: 0 | P46: 0 | Q46: 0 | R46: 0 | S46: 0 | T46: 0
A47: =IF('CABLE LENGTH'!AK48>0,'CABLE LENGTH'!AK48,0) -> 0 | B47: 0 | C47: =COUNTIF('CABLE LENGTH'!$A48:$P48,'PULL BOX SIZING'!C$3)*'CABLE LENGTH'!$AL48 -> 0 | D47: =COUNTIF('CABLE LENGTH'!$A48:$P48,'PULL BOX SIZING'!D$3)*'CABLE LENGTH'!$AL48 -> 0 | E47: =COUNTIF('CABLE LENGTH'!$A48:$P48,'PULL BOX SIZING'!E$3)*'CABLE LENGTH'!$AL48 -> 0 | F47: =COUNTIF('CABLE LENGTH'!$A48:$P48,'PULL BOX SIZING'!F$3)*'CABLE LENGTH'!$AL48 -> 0 | G47: =COUNTIF('CABLE LENGTH'!$A48:$P48,'PULL BOX SIZING'!G$3)*'CABLE LENGTH'!$AL48 -> 0 | H47: =COUNTIF('CABLE LENGTH'!$A48:$P48,'PULL BOX SIZING'!H$3)*'CABLE LENGTH'!$AL48 -> 0 | I47: =COUNTIF('CABLE LENGTH'!$A48:$P48,'PULL BOX SIZING'!I$3)*'CABLE LENGTH'!$AL48 -> 0 | J47: =COUNTIF('CABLE LENGTH'!$A48:$P48,'PULL BOX SIZING'!J$3)*'CABLE LENGTH'!$AL48 -> 0 | K47: =COUNTIF('CABLE LENGTH'!$A48:$P48,'PULL BOX SIZING'!K$3)*'CABLE LENGTH'!$AL48 -> 0 | L47: 0 | M47: 0 | N47: 0 | O47: 0 | P47: 0 | Q47: 0 | R47: 0 | S47: 0 | T47: 0 | AC47: VIDEO | AD47: 1 | AF47: =+AE47*AD47 -> 0
A48: =IF('CABLE LENGTH'!AK49>0,'CABLE LENGTH'!AK49,0) -> 0 | B48: 0 | C48: =COUNTIF('CABLE LENGTH'!$A49:$P49,'PULL BOX SIZING'!C$3)*'CABLE LENGTH'!$AL49 -> 0 | D48: =COUNTIF('CABLE LENGTH'!$A49:$P49,'PULL BOX SIZING'!D$3)*'CABLE LENGTH'!$AL49 -> 0 | E48: =COUNTIF('CABLE LENGTH'!$A49:$P49,'PULL BOX SIZING'!E$3)*'CABLE LENGTH'!$AL49 -> 0 | F48: =COUNTIF('CABLE LENGTH'!$A49:$P49,'PULL BOX SIZING'!F$3)*'CABLE LENGTH'!$AL49 -> 0 | G48: =COUNTIF('CABLE LENGTH'!$A49:$P49,'PULL BOX SIZING'!G$3)*'CABLE LENGTH'!$AL49 -> 0 | H48: =COUNTIF('CABLE LENGTH'!$A49:$P49,'PULL BOX SIZING'!H$3)*'CABLE LENGTH'!$AL49 -> 0 | I48: =COUNTIF('CABLE LENGTH'!$A49:$P49,'PULL BOX SIZING'!I$3)*'CABLE LENGTH'!$AL49 -> 0 | J48: =COUNTIF('CABLE LENGTH'!$A49:$P49,'PULL BOX SIZING'!J$3)*'CABLE LENGTH'!$AL49 -> 0 | K48: =COUNTIF('CABLE LENGTH'!$A49:$P49,'PULL BOX SIZING'!K$3)*'CABLE LENGTH'!$AL49 -> 0 | L48: 0 | M48: 0 | N48: 0 | O48: 0 | P48: 0 | Q48: 0 | R48: 0 | S48: 0 | T48: 0 | AE48: TOTAL | AF48: =SUM(AF33:AF47) -> 28 | AG48: =IF(AF48>=69,"CLASS 3",IF(AF48>22,"CLASS 2","CLASS 1")) -> CLASS 2 | AH48: or | AI48: =IF(AF48>=69,"DOUBLE","STANDARD") -> STANDARD
A49: =IF('CABLE LENGTH'!AK50>0,'CABLE LENGTH'!AK50,0) -> 0 | B49: 0 | C49: =COUNTIF('CABLE LENGTH'!$A50:$P50,'PULL BOX SIZING'!C$3)*'CABLE LENGTH'!$AL50 -> 0 | D49: =COUNTIF('CABLE LENGTH'!$A50:$P50,'PULL BOX SIZING'!D$3)*'CABLE LENGTH'!$AL50 -> 0 | E49: =COUNTIF('CABLE LENGTH'!$A50:$P50,'PULL BOX SIZING'!E$3)*'CABLE LENGTH'!$AL50 -> 0 | F49: =COUNTIF('CABLE LENGTH'!$A50:$P50,'PULL BOX SIZING'!F$3)*'CABLE LENGTH'!$AL50 -> 0 | G49: =COUNTIF('CABLE LENGTH'!$A50:$P50,'PULL BOX SIZING'!G$3)*'CABLE LENGTH'!$AL50 -> 0 | H49: =COUNTIF('CABLE LENGTH'!$A50:$P50,'PULL BOX SIZING'!H$3)*'CABLE LENGTH'!$AL50 -> 0 | I49: =COUNTIF('CABLE LENGTH'!$A50:$P50,'PULL BOX SIZING'!I$3)*'CABLE LENGTH'!$AL50 -> 0 | J49: =COUNTIF('CABLE LENGTH'!$A50:$P50,'PULL BOX SIZING'!J$3)*'CABLE LENGTH'!$AL50 -> 0 | K49: =COUNTIF('CABLE LENGTH'!$A50:$P50,'PULL BOX SIZING'!K$3)*'CABLE LENGTH'!$AL50 -> 0 | L49: 0 | M49: 0 | N49: 0 | O49: =+F49*$B49 -> 0 | P49: 0 | Q49: 0 | R49: 0 | S49: 0 | T49: 0
A50: =IF('CABLE LENGTH'!AK51>0,'CABLE LENGTH'!AK51,0) -> 0 | B50: 0 | C50: =COUNTIF('CABLE LENGTH'!$A51:$P51,'PULL BOX SIZING'!C$3)*'CABLE LENGTH'!$AL51 -> 0 | D50: =COUNTIF('CABLE LENGTH'!$A51:$P51,'PULL BOX SIZING'!D$3)*'CABLE LENGTH'!$AL51 -> 0 | E50: =COUNTIF('CABLE LENGTH'!$A51:$P51,'PULL BOX SIZING'!E$3)*'CABLE LENGTH'!$AL51 -> 0 | F50: =COUNTIF('CABLE LENGTH'!$A51:$P51,'PULL BOX SIZING'!F$3)*'CABLE LENGTH'!$AL51 -> 0 | G50: =COUNTIF('CABLE LENGTH'!$A51:$P51,'PULL BOX SIZING'!G$3)*'CABLE LENGTH'!$AL51 -> 0 | H50: =COUNTIF('CABLE LENGTH'!$A51:$P51,'PULL BOX SIZING'!H$3)*'CABLE LENGTH'!$AL51 -> 0 | I50: =COUNTIF('CABLE LENGTH'!$A51:$P51,'PULL BOX SIZING'!I$3)*'CABLE LENGTH'!$AL51 -> 0 | J50: =COUNTIF('CABLE LENGTH'!$A51:$P51,'PULL BOX SIZING'!J$3)*'CABLE LENGTH'!$AL51 -> 0 | K50: =COUNTIF('CABLE LENGTH'!$A51:$P51,'PULL BOX SIZING'!K$3)*'CABLE LENGTH'!$AL51 -> 0 | L50: =+C50*$B50 -> 0 | M50: 0 | N50: 0 | O50: 0 | P50: 0 | Q50: 0 | R50: 0 | S50: 0 | T50: 0 | AC50: PULL BOX | AD50: 3
K51: TOTAL CONDUCTORS | L51: =SUM(L5:L50) -> 0 | M51: =SUM(M5:M50) -> 0 | N51: 0 | O51: 0 | P51: 0 | Q51: 0 | R51: =SUM(R5:R50) -> 0 | S51: =SUM(S5:S50) -> 0 | T51: =SUM(T5:T50) -> 0 | AC51: CABLE | AD51: # of EACH | AE51: # of CONDUCTORS | AF51: TOTAL CONDUCTORS | AG51: PULL BOX SIZE
A52: PULL BOX SIZE | K52: PREFORMED | L52: =IF(L51>0,IF(L51>=69,"CLASS 3",IF(L51>22,"CLASS 2","CLASS 1")),"N/A") -> N/A | M52: =IF(M51>0,IF(M51>=69,"CLASS 3",IF(M51>22,"CLASS 2","CLASS 1")),"N/A") -> N/A | N52: N/A | O52: N/A | P52: N/A | Q52: N/A | R52: =IF(R51>0,IF(R51>=69,"CLASS 3",IF(R51>22,"CLASS 2","CLASS 1")),"N/A") -> N/A | S52: =IF(S51>0,IF(S51>=69,"CLASS 3",IF(S51>22,"CLASS 2","CLASS 1")),"N/A") -> N/A | T52: =IF(T51>0,IF(T51>=69,"CLASS 3",IF(T51>22,"CLASS 2","CLASS 1")),"N/A") -> N/A | AC52: TYPE | AD52: TYPE | AE52: PER CABLE | AF52: PER TYPE | AG52: PREFORMED | AI52: CONCRETE
K53: CONCRETE | L53: =IF(L51>0,IF(L51>=69,"DOUBLE","STANDARD"),"N/A") -> N/A | M53: N/A | N53: N/A | O53: N/A | P53: N/A | Q53: N/A | R53: N/A | S53: N/A | T53: N/A | AC53: 7c-#12 | AD53: 2 | AE53: =VALUE(LEFT(AC53,1)) -> 7 | AF53: =+AE53*AD53 -> 14
AC54: 5c-#12 | AD54: 2 | AE54: =VALUE(LEFT(AC54,1)) -> 5 | AF54: =+AE54*AD54 -> 10
AC55: 2c-#12 | AD55: 2 | AE55: =VALUE(LEFT(AC55,1)) -> 2 | AF55: =+AE55*AD55 -> 4
AC56: VIDEO | AD56: 1 | AF56: =+AE56*AD56 -> 0
AE57: TOTAL | AF57: =SUM(AF53:AF56) -> 28 | AG57: =IF(AF57>=69,"CLASS 3",IF(AF57>22,"CLASS 2","CLASS 1")) -> CLASS 2 | AH57: or | AI57: =IF(AF57>=69,"DOUBLE","STANDARD") -> STANDARD

Sheet CONDUIT CAPACITY AUTO
A1: CONDUIT FROM: | C1: =+'CONDUIT LENGTH'!$A$5 -> 0 | D1: =+'CONDUIT LENGTH'!$A$6 -> 0 | E1: =+'CONDUIT LENGTH'!$A$7 -> 0 | F1: =+'CONDUIT LENGTH'!$A$8 -> 0 | G1: =+'CONDUIT LENGTH'!$A$9 -> 0 | H1: =+'CONDUIT LENGTH'!$A$10 -> 0 | I1: =+'CONDUIT LENGTH'!$A$11 -> 0 | J1: =+'CONDUIT LENGTH'!$A$12 -> 0 | K1: =+'CONDUIT LENGTH'!$A$13 -> 0 | L1: =+'CONDUIT LENGTH'!$A$14 -> 0 | M1: =+'CONDUIT LENGTH'!$A$15 -> 0 | N1: =+'CONDUIT LENGTH'!$A$16 -> 0 | O1: =+'CONDUIT LENGTH'!$A$17 -> 0 | P1: =+'CONDUIT LENGTH'!$A$18 -> 0 | Q1: =+'CONDUIT LENGTH'!$A$19 -> 0 | R1: =+'CONDUIT LENGTH'!$A$20 -> 0 | S1: =+'CONDUIT LENGTH'!$A$21 -> 0 | T1: =+'CONDUIT LENGTH'!$A$22 -> 0 | U1: =+'CONDUIT LENGTH'!$A$23 -> 0 | V1: =+'CONDUIT LENGTH'!$A$24 -> 0 | W1: =+'CONDUIT LENGTH'!$A$25 -> 0 | X1: =+'CONDUIT LENGTH'!$A$26 -> 0 | Y1: =+'CONDUIT LENGTH'!$A$27 -> 0 | Z1: =+'CONDUIT LENGTH'!$A$28 -> 0 | AA1: =+'CONDUIT LENGTH'!$A$29 -> 0 | AB1: =+'CONDUIT LENGTH'!$A$30 -> 0 | AC1: =+'CONDUIT LENGTH'!$A$31 -> 0 | AD1: =+'CONDUIT LENGTH'!$A$32 -> 0 | AE1: =+'CONDUIT LENGTH'!$A$33 -> 0 | AF1: =+'CONDUIT LENGTH'!$A$34 -> 0 | AG1: =+'CONDUIT LENGTH'!$A$35 -> 0 | AH1: =+'CONDUIT LENGTH'!$A$36 -> 0 | AI1: =+'CONDUIT LENGTH'!$A$37 -> 0 | AJ1: =+'CONDUIT LENGTH'!$A$38 -> 0 | AK1: =+'CONDUIT LENGTH'!$A$39 -> 0 | AL1: =+'CONDUIT LENGTH'!$A$40 -> 0 | AM1: =+'CONDUIT LENGTH'!$A$41 -> 0 | AN1: =+'CONDUIT LENGTH'!$A$42 -> 0 | AO1: =+'CONDUIT LENGTH'!$A$43 -> 0 | AP1: =+'CONDUIT LENGTH'!$A$44 -> 0 | AQ1: =+'CONDUIT LENGTH'!$A$45 -> 0 | AR1: =+'CONDUIT LENGTH'!$A$46 -> 0 | AS1: =+'CONDUIT LENGTH'!$A$47 -> 0 | AT1: =+'CONDUIT LENGTH'!$A$48 -> 0 | AU1: =+'CONDUIT LENGTH'!$A$49 -> 0 | AV1: =+'CONDUIT LENGTH'!$A$50 -> 0 | AW1: =+'CONDUIT LENGTH'!$A$51 -> 0 | AX1: =+'CONDUIT LENGTH'!$A$52 -> 0 | AY1: =+'CONDUIT LENGTH'!$A$53 -> 0 | AZ1: =+'CONDUIT LENGTH'!$A$54 -> 0
A2: CONDUIT TO: | C2: =+'CONDUIT LENGTH'!$B$5 -> 0 | D2: =+'CONDUIT LENGTH'!$B$6 -> 0 | E2: =+'CONDUIT LENGTH'!$B$7 -> 0 | F2: =+'CONDUIT LENGTH'!$B$8 -> 0 | G2: =+'CONDUIT LENGTH'!$B$9 -> 0 | H2: =+'CONDUIT LENGTH'!$B$10 -> 0 | I2: =+'CONDUIT LENGTH'!$B$11 -> 0 | J2: =+'CONDUIT LENGTH'!$B$12 -> 0 | K2: =+'CONDUIT LENGTH'!$B$13 -> 0 | L2: =+'CONDUIT LENGTH'!$B$14 -> 0 | M2: =+'CONDUIT LENGTH'!$B$15 -> 0 | N2: =+'CONDUIT LENGTH'!$B$16 -> 0 | O2: =+'CONDUIT LENGTH'!$B$17 -> 0 | P2: =+'CONDUIT LENGTH'!$B$18 -> 0 | Q2: =+'CONDUIT LENGTH'!$B$19 -> 0 | R2: =+'CONDUIT LENGTH'!$B$20 -> 0 | S2: =+'CONDUIT LENGTH'!$B$21 -> 0 | T2: =+'CONDUIT LENGTH'!$B$22 -> 0 | U2: =+'CONDUIT LENGTH'!$B$23 -> 0 | V2: =+'CONDUIT LENGTH'!$B$24 -> 0 | W2: =+'CONDUIT LENGTH'!$B$25 -> 0 | X2: =+'CONDUIT LENGTH'!$B$26 -> 0 | Y2: =+'CONDUIT LENGTH'!$B$27 -> 0 | Z2: =+'CONDUIT LENGTH'!$B$28 -> 0 | AA2: =+'CONDUIT LENGTH'!$B$29 -> 0 | AB2: =+'CONDUIT LENGTH'!$B$30 -> 0 | AC2: =+'CONDUIT LENGTH'!$B$31 -> 0 | AD2: =+'CONDUIT LENGTH'!$B$32 -> 0 | AE2: =+'CONDUIT LENGTH'!$B$33 -> 0 | AF2: =+'CONDUIT LENGTH'!$B$34 -> 0 | AG2: =+'CONDUIT LENGTH'!$B$35 -> 0 | AH2: =+'CONDUIT LENGTH'!$B$36 -> 0 | AI2: =+'CONDUIT LENGTH'!$B$37 -> 0 | AJ2: =+'CONDUIT LENGTH'!$B$38 -> 0 | AK2: =+'CONDUIT LENGTH'!$B$39 -> 0 | AL2: =+'CONDUIT LENGTH'!$B$40 -> 0 | AM2: =+'CONDUIT LENGTH'!$B$41 -> 0 | AN2: =+'CONDUIT LENGTH'!$B$42 -> 0 | AO2: =+'CONDUIT LENGTH'!$B$43 -> 0 | AP2: =+'CONDUIT LENGTH'!$B$44 -> 0 | AQ2: =+'CONDUIT LENGTH'!$B$45 -> 0 | AR2: =+'CONDUIT LENGTH'!$B$46 -> 0 | AS2: =+'CONDUIT LENGTH'!$B$47 -> 0 | AT2: =+'CONDUIT LENGTH'!$B$48 -> 0 | AU2: =+'CONDUIT LENGTH'!$B$49 -> 0 | AV2: =+'CONDUIT LENGTH'!$B$50 -> 0 | AW2: =+'CONDUIT LENGTH'!$B$51 -> 0 | AX2: =+'CONDUIT LENGTH'!$B$52 -> 0 | AY2: =+'CONDUIT LENGTH'!$B$53 -> 0 | AZ2: =+'CONDUIT LENGTH'!$B$54 -> 0
A3: CONDUIT SIZE: | C3: =+'CONDUIT LENGTH'!$L$5 -> 0 | D3: =+'CONDUIT LENGTH'!$L$6 -> 0 | E3: =+'CONDUIT LENGTH'!$L$7 -> 0 | F3: =+'CONDUIT LENGTH'!$L$8 -> 0 | G3: =+'CONDUIT LENGTH'!$L$9 -> 0 | H3: =+'CONDUIT LENGTH'!$L$10 -> 0 | I3: =+'CONDUIT LENGTH'!$L$11 -> 0 | J3: =+'CONDUIT LENGTH'!$L$12 -> 0 | K3: =+'CONDUIT LENGTH'!$L$13 -> 0 | L3: =+'CONDUIT LENGTH'!$L$14 -> 0 | M3: =+'CONDUIT LENGTH'!$L$15 -> 0 | N3: =+'CONDUIT LENGTH'!$L$16 -> 0 | O3: =+'CONDUIT LENGTH'!$L$17 -> 0 | P3: =+'CONDUIT LENGTH'!$L$18 -> 0 | Q3: =+'CONDUIT LENGTH'!$L$19 -> 0 | R3: =+'CONDUIT LENGTH'!$L$20 -> 0 | S3: =+'CONDUIT LENGTH'!$L$21 -> 0 | T3: =+'CONDUIT LENGTH'!$L$22 -> 0 | U3: =+'CONDUIT LENGTH'!$L$23 -> 0 | V3: =+'CONDUIT LENGTH'!$L$24 -> 0 | W3: =+'CONDUIT LENGTH'!$L$25 -> 0 | X3: =+'CONDUIT LENGTH'!$L$26 -> 0 | Y3: =+'CONDUIT LENGTH'!$L$27 -> 0 | Z3: =+'CONDUIT LENGTH'!$L$28 -> 0 | AA3: =+'CONDUIT LENGTH'!$L$29 -> 0 | AB3: =+'CONDUIT LENGTH'!$L$30 -> 0 | AC3: =+'CONDUIT LENGTH'!$L$31 -> 0 | AD3: =+'CONDUIT LENGTH'!$L$32 -> 0 | AE3: =+'CONDUIT LENGTH'!$L$33 -> 0 | AF3: =+'CONDUIT LENGTH'!$L$34 -> 0 | AG3: =+'CONDUIT LENGTH'!$L$35 -> 0 | AH3: =+'CONDUIT LENGTH'!$L$36 -> 0 | AI3: =+'CONDUIT LENGTH'!$L$37 -> 0 | AJ3: =+'CONDUIT LENGTH'!$L$38 -> 0 | AK3: =+'CONDUIT LENGTH'!$L$39 -> 0 | AL3: =+'CONDUIT LENGTH'!$L$40 -> 0 | AM3: =+'CONDUIT LENGTH'!$L$41 -> 0 | AN3: =+'CONDUIT LENGTH'!$L$42 -> 0 | AO3: =+'CONDUIT LENGTH'!$L$43 -> 0 | AP3: =+'CONDUIT LENGTH'!$L$44 -> 0 | AQ3: =+'CONDUIT LENGTH'!$L$45 -> 0 | AR3: =+'CONDUIT LENGTH'!$L$46 -> 0 | AS3: =+'CONDUIT LENGTH'!$L$47 -> 0 | AT3: =+'CONDUIT LENGTH'!$L$48 -> 0 | AU3: =+'CONDUIT LENGTH'!$L$49 -> 0 | AV3: =+'CONDUIT LENGTH'!$L$50 -> 0 | AW3: =+'CONDUIT LENGTH'!$L$51 -> 0 | AX3: =+'CONDUIT LENGTH'!$L$52 -> 0 | AY3: =+'CONDUIT LENGTH'!$L$53 -> 0 | AZ3: =+'CONDUIT LENGTH'!$L$54 -> 0
A4: CONDUIT AREA: | C4: =IF(C$3=$D$122,$E$122,IF(C$3=$D$123,$E$123,IF(C$3=$D$124,$E$124,IF(C$3=$D$125,$E$125,IF(C$3=$D$126,$E$126,IF(C$3=$D$127,$E$127,IF(C$3=$D$128,$E$128,"N/A"))))))) -> N/A | D4: N/A | E4: N/A | F4: N/A | G4: N/A | H4: N/A | I4: N/A | J4: N/A | K4: N/A | L4: N/A | M4: N/A | N4: N/A | O4: N/A | P4: N/A | Q4: N/A | R4: N/A | S4: N/A | T4: N/A | U4: N/A | V4: N/A | W4: N/A | X4: N/A | Y4: N/A | Z4: N/A | AA4: N/A | AB4: N/A | AC4: N/A | AD4: N/A | AE4: N/A | AF4: N/A | AG4: N/A | AH4: N/A | AI4: =IF(AI$3=$D$122,$E$122,IF(AI$3=$D$123,$E$123,IF(AI$3=$D$124,$E$124,IF(AI$3=$D$125,$E$125,IF(AI$3=$D$126,$E$126,IF(AI$3=$D$127,$E$127,IF(AI$3=$D$128,$E$128,"N/A"))))))) -> N/A | AJ4: N/A | AK4: N/A | AL4: N/A | AM4: N/A | AN4: N/A | AO4: N/A | AP4: N/A | AQ4: N/A | AR4: N/A | AS4: N/A | AT4: N/A | AU4: N/A | AV4: N/A | AW4: N/A | AX4: N/A | AY4: N/A | AZ4: N/A
A5: ALLOWABLE AREA: | C5: =IF(C$3=$D$122,$F$122,IF(C$3=$D$123,$F$123,IF(C$3=$D$124,$F$124,IF(C$3=$D$125,$F$125,IF(C$3=$D$126,$F$126,IF(C$3=$D$127,$F$127,IF(C$3=$D$128,$F$128,"N/A"))))))) -> N/A | D5: N/A | E5: N/A | F5: N/A | G5: N/A | H5: N/A | I5: N/A | J5: N/A | K5: N/A | L5: N/A | M5: N/A | N5: N/A | O5: N/A | P5: N/A | Q5: N/A | R5: N/A | S5: N/A | T5: N/A | U5: N/A | V5: N/A | W5: N/A | X5: N/A | Y5: N/A | Z5: N/A | AA5: N/A | AB5: N/A | AC5: N/A | AD5: N/A | AE5: N/A | AF5: N/A | AG5: N/A | AH5: N/A | AI5: =IF(AI$3=$D$122,$F$122,IF(AI$3=$D$123,$F$123,IF(AI$3=$D$124,$F$124,IF(AI$3=$D$125,$F$125,IF(AI$3=$D$126,$F$126,IF(AI$3=$D$127,$F$127,IF(AI$3=$D$128,$F$128,"N/A"))))))) -> N/A | AJ5: N/A | AK5: N/A | AL5: N/A | AM5: N/A | AN5: N/A | AO5: N/A | AP5: N/A | AQ5: N/A | AR5: N/A | AS5: N/A | AT5: N/A | AU5: N/A | AV5: N/A | AW5: N/A | AX5: N/A | AY5: N/A | AZ5: N/A
A6: CABLES IN CONDUIT | B6: =+'CABLE LENGTH'!AK6 -> 0 | C6: =IF(COUNTIF('CABLE LENGTH'!$A6:$P6,C$1)+COUNTIF('CABLE LENGTH'!$B6:$P6,C$2)=2,'CABLE LENGTH'!$AL6,0) -> 0 | D6: =IF(COUNTIF('CABLE LENGTH'!$A6:$P6,D$1)+COUNTIF('CABLE LENGTH'!$B6:$P6,D$2)=2,'CABLE LENGTH'!$AL6,0) -> 0 | E6: =IF(COUNTIF('CABLE LENGTH'!$A6:$P6,E$1)+COUNTIF('CABLE LENGTH'!$B6:$P6,E$2)=2,'CABLE LENGTH'!$AL6,0) -> 0 | F6: =IF(COUNTIF('CABLE LENGTH'!$A6:$P6,F$1)+COUNTIF('CABLE LENGTH'!$B6:$P6,F$2)=2,'CABLE LENGTH'!$AL6,0) -> 0 | G6: =IF(COUNTIF('CABLE LENGTH'!$A6:$P6,G$1)+COUNTIF('CABLE LENGTH'!$B6:$P6,G$2)=2,'CABLE LENGTH'!$AL6,0) -> 0 | H6: =IF(COUNTIF('CABLE LENGTH'!$A6:$P6,H$1)+COUNTIF('CABLE LENGTH'!$B6:$P6,H$2)=2,'CABLE LENGTH'!$AL6,0) -> 0 | I6: =IF(COUNTIF('CABLE LENGTH'!$A6:$P6,I$1)+COUNTIF('CABLE LENGTH'!$B6:$P6,I$2)=2,'CABLE LENGTH'!$AL6,0) -> 0 | J6: =IF(COUNTIF('CABLE LENGTH'!$A6:$P6,J$1)+COUNTIF('CABLE LENGTH'!$B6:$P6,J$2)=2,'CABLE LENGTH'!$AL6,0) -> 0 | K6: =IF(COUNTIF('CABLE LENGTH'!$A6:$P6,K$1)+COUNTIF('CABLE LENGTH'!$B6:$P6,K$2)=2,'CABLE LENGTH'!$AL6,0) -> 0 | L6: =IF(COUNTIF('CABLE LENGTH'!$A6:$P6,L$1)+COUNTIF('CABLE LENGTH'!$B6:$P6,L$2)=2,'CABLE LENGTH'!$AL6,0) -> 0 | M6: =IF(COUNTIF('CABLE LENGTH'!$A6:$P6,M$1)+COUNTIF('CABLE LENGTH'!$B6:$P6,M$2)=2,'CABLE LENGTH'!$AL6,0) -> 0 | N6: =IF(COUNTIF('CABLE LENGTH'!$A6:$P6,N$1)+COUNTIF('CABLE LENGTH'!$B6:$P6,N$2)=2,'CABLE LENGTH'!$AL6,0) -> 0 | O6: =IF(COUNTIF('CABLE LENGTH'!$A6:$P6,O$1)+COUNTIF('CABLE LENGTH'!$B6:$P6,O$2)=2,'CABLE LENGTH'!$AL6,0) -> 0 | P6: =IF(COUNTIF('CABLE LENGTH'!$A6:$P6,P$1)+COUNTIF('CABLE LENGTH'!$B6:$P6,P$2)=2,'CABLE LENGTH'!$AL6,0) -> 0 | Q6: =IF(COUNTIF('CABLE LENGTH'!$A6:$P6,Q$1)+COUNTIF('CABLE LENGTH'!$B6:$P6,Q$2)=2,'CABLE LENGTH'!$AL6,0) -> 0 | R6: =IF(COUNTIF('CABLE LENGTH'!$A6:$P6,R$1)+COUNTIF('CABLE LENGTH'!$B6:$P6,R$2)=2,'CABLE LENGTH'!$AL6,0) -> 0 | S6: =IF(COUNTIF('CABLE LENGTH'!$A6:$P6,S$1)+COUNTIF('CABLE LENGTH'!$B6:$P6,S$2)=2,'CABLE LENGTH'!$AL6,0) -> 0 | T6: =IF(COUNTIF('CABLE LENGTH'!$A6:$P6,T$1)+COUNTIF('CABLE LENGTH'!$B6:$P6,T$2)=2,'CABLE LENGTH'!$AL6,0) -> 0 | U6: =IF(COUNTIF('CABLE LENGTH'!$A6:$P6,U$1)+COUNTIF('CABLE LENGTH'!$B6:$P6,U$2)=2,'CABLE LENGTH'!$AL6,0) -> 0 | V6: =IF(COUNTIF('CABLE LENGTH'!$A6:$P6,V$1)+COUNTIF('CABLE LENGTH'!$B6:$P6,V$2)=2,'CABLE LENGTH'!$AL6,0) -> 0 | W6: =IF(COUNTIF('CABLE LENGTH'!$A6:$P6,W$1)+COUNTIF('CABLE LENGTH'!$B6:$P6,W$2)=2,'CABLE LENGTH'!$AL6,0) -> 0 | X6: =IF(COUNTIF('CABLE LENGTH'!$A6:$P6,X$1)+COUNTIF('CABLE LENGTH'!$B6:$P6,X$2)=2,'CABLE LENGTH'!$AL6,0) -> 0 | Y6: =IF(COUNTIF('CABLE LENGTH'!$A6:$P6,Y$1)+COUNTIF('CABLE LENGTH'!$A6:$P6,Y$2)=2,'CABLE LENGTH'!$AL6,0) -> 0 | Z6: =IF(COUNTIF('CABLE LENGTH'!$A6:$P6,Z$1)+COUNTIF('CABLE LENGTH'!$A6:$P6,Z$2)=2,'CABLE LENGTH'!$AL6,0) -> 0 | AA6: =IF(COUNTIF('CABLE LENGTH'!$A6:$P6,AA$1)+COUNTIF('CABLE LENGTH'!$A6:$P6,AA$2)=2,'CABLE LENGTH'!$AL6,0) -> 0 | AB6: =IF(COUNTIF('CABLE LENGTH'!$A6:$P6,AB$1)+COUNTIF('CABLE LENGTH'!$A6:$P6,AB$2)=2,'CABLE LENGTH'!$AL6,0) -> 0 | AC6: =IF(COUNTIF('CABLE LENGTH'!$A6:$P6,AC$1)+COUNTIF('CABLE LENGTH'!$A6:$P6,AC$2)=2,'CABLE LENGTH'!$AL6,0) -> 0 | AD6: =IF(COUNTIF('CABLE LENGTH'!$A6:$P6,AD$1)+COUNTIF('CABLE LENGTH'!$A6:$P6,AD$2)=2,'CABLE LENGTH'!$AL6,0) -> 0 | AE6: =IF(COUNTIF('CABLE LENGTH'!$A6:$P6,AE$1)+COUNTIF('CABLE LENGTH'!$A6:$P6,AE$2)=2,'CABLE LENGTH'!$AL6,0) -> 0 | AF6: =IF(COUNTIF('CABLE LENGTH'!$A6:$P6,AF$1)+COUNTIF('CABLE LENGTH'!$A6:$P6,AF$2)=2,'CABLE LENGTH'!$AL6,0) -> 0 | AG6: =IF(COUNTIF('CABLE LENGTH'!$A6:$P6,AG$1)+COUNTIF('CABLE LENGTH'!$A6:$P6,AG$2)=2,'CABLE LENGTH'!$AL6,0) -> 0 | AH6: =IF(COUNTIF('CABLE LENGTH'!$A6:$P6,AH$1)+COUNTIF('CABLE LENGTH'!$A6:$P6,AH$2)=2,'CABLE LENGTH'!$AL6,0) -> 0 | AI6: =IF(COUNTIF('CABLE LENGTH'!$A6:$P6,AI$1)+COUNTIF('CABLE LENGTH'!$A6:$P6,AI$2)=2,'CABLE LENGTH'!$AL6,0) -> 0 | AJ6: =IF(COUNTIF('CABLE LENGTH'!$A6:$P6,AJ$1)+COUNTIF('CABLE LENGTH'!$A6:$P6,AJ$2)=2,'CABLE LENGTH'!$AL6,0) -> 0 | AK6: =IF(COUNTIF('CABLE LENGTH'!$A6:$P6,AK$1)+COUNTIF('CABLE LENGTH'!$A6:$P6,AK$2)=2,'CABLE LENGTH'!$AL6,0) -> 0 | AL6: =IF(COUNTIF('CABLE LENGTH'!$A6:$P6,AL$1)+COUNTIF('CABLE LENGTH'!$A6:$P6,AL$2)=2,'CABLE LENGTH'!$AL6,0) -> 0 | AM6: =IF(COUNTIF('CABLE LENGTH'!$A6:$P6,AM$1)+COUNTIF('CABLE LENGTH'!$A6:$P6,AM$2)=2,'CABLE LENGTH'!$AL6,0) -> 0 | AN6: =IF(COUNTIF('CABLE LENGTH'!$A6:$P6,AN$1)+COUNTIF('CABLE LENGTH'!$A6:$P6,AN$2)=2,'CABLE LENGTH'!$AL6,0) -> 0 | AO6: =IF(COUNTIF('CABLE LENGTH'!$A6:$P6,AO$1)+COUNTIF('CABLE LENGTH'!$A6:$P6,AO$2)=2,'CABLE LENGTH'!$AL6,0) -> 0 | AP6: =IF(COUNTIF('CABLE LENGTH'!$A6:$P6,AP$1)+COUNTIF('CABLE LENGTH'!$A6:$P6,AP$2)=2,'CABLE LENGTH'!$AL6,0) -> 0 | AQ6: =IF(COUNTIF('CABLE LENGTH'!$A6:$P6,AQ$1)+COUNTIF('CABLE LENGTH'!$A6:$P6,AQ$2)=2,'CABLE LENGTH'!$AL6,0) -> 0 | AR6: =IF(COUNTIF('CABLE LENGTH'!$A6:$P6,AR$1)+COUNTIF('CABLE LENGTH'!$A6:$P6,AR$2)=2,'CABLE LENGTH'!$AL6,0) -> 0 | AS6: =IF(COUNTIF('CABLE LENGTH'!$A6:$P6,AS$1)+COUNTIF('CABLE LENGTH'!$A6:$P6,AS$2)=2,'CABLE LENGTH'!$AL6,0) -> 0 | AT6: =IF(COUNTIF('CABLE LENGTH'!$A6:$P6,AT$1)+COUNTIF('CABLE LENGTH'!$A6:$P6,AT$2)=2,'CABLE LENGTH'!$AL6,0) -> 0 | AU6: =IF(COUNTIF('CABLE LENGTH'!$A6:$P6,AU$1)+COUNTIF('CABLE LENGTH'!$A6:$P6,AU$2)=2,'CABLE LENGTH'!$AL6,0) -> 0 | AV6: =IF(COUNTIF('CABLE LENGTH'!$A6:$P6,AV$1)+COUNTIF('CABLE LENGTH'!$A6:$P6,AV$2)=2,'CABLE LENGTH'!$AL6,0) -> 0 | AW6: =IF(COUNTIF('CABLE LENGTH'!$A6:$P6,AW$1)+COUNTIF('CABLE LENGTH'!$A6:$P6,AW$2)=2,'CABLE LENGTH'!$AL6,0) -> 0 | AX6: =IF(COUNTIF('CABLE LENGTH'!$A6:$P6,AX$1)+COUNTIF('CABLE LENGTH'!$A6:$P6,AX$2)=2,'CABLE LENGTH'!$AL6,0) -> 0 | AY6: =IF(COUNTIF('CABLE LENGTH'!$A6:$P6,AY$1)+COUNTIF('CABLE LENGTH'!$A6:$P6,AY$2)=2,'CABLE LENGTH'!$AL6,0) -> 0 | AZ6: =IF(COUNTIF('CABLE LENGTH'!$A6:$P6,AZ$1)+COUNTIF('CABLE LENGTH'!$A6:$P6,AZ$2)=2,'CABLE LENGTH'!$AL6,0) -> 0
B7: =+'CABLE LENGTH'!AK7 -> 0 | C7: =IF(COUNTIF('CABLE LENGTH'!$A7:$P7,C$1)+COUNTIF('CABLE LENGTH'!$B7:$P7,C$2)=2,'CABLE LENGTH'!$AL7,0) -> 0 | D7: =IF(COUNTIF('CABLE LENGTH'!$A7:$P7,D$1)+COUNTIF('CABLE LENGTH'!$B7:$P7,D$2)=2,'CABLE LENGTH'!$AL7,0) -> 0 | E7: =IF(COUNTIF('CABLE LENGTH'!$A7:$P7,E$1)+COUNTIF('CABLE LENGTH'!$B7:$P7,E$2)=2,'CABLE LENGTH'!$AL7,0) -> 0 | F7: =IF(COUNTIF('CABLE LENGTH'!$A7:$P7,F$1)+COUNTIF('CABLE LENGTH'!$B7:$P7,F$2)=2,'CABLE LENGTH'!$AL7,0) -> 0 | G7: =IF(COUNTIF('CABLE LENGTH'!$A7:$P7,G$1)+COUNTIF('CABLE LENGTH'!$B7:$P7,G$2)=2,'CABLE LENGTH'!$AL7,0) -> 0 | H7: =IF(COUNTIF('CABLE LENGTH'!$A7:$P7,H$1)+COUNTIF('CABLE LENGTH'!$B7:$P7,H$2)=2,'CABLE LENGTH'!$AL7,0) -> 0 | I7: =IF(COUNTIF('CABLE LENGTH'!$A7:$P7,I$1)+COUNTIF('CABLE LENGTH'!$B7:$P7,I$2)=2,'CABLE LENGTH'!$AL7,0) -> 0 | J7: =IF(COUNTIF('CABLE LENGTH'!$A7:$P7,J$1)+COUNTIF('CABLE LENGTH'!$B7:$P7,J$2)=2,'CABLE LENGTH'!$AL7,0) -> 0 | K7: =IF(COUNTIF('CABLE LENGTH'!$A7:$P7,K$1)+COUNTIF('CABLE LENGTH'!$B7:$P7,K$2)=2,'CABLE LENGTH'!$AL7,0) -> 0 | L7: =IF(COUNTIF('CABLE LENGTH'!$A7:$P7,L$1)+COUNTIF('CABLE LENGTH'!$B7:$P7,L$2)=2,'CABLE LENGTH'!$AL7,0) -> 0 | M7: =IF(COUNTIF('CABLE LENGTH'!$A7:$P7,M$1)+COUNTIF('CABLE LENGTH'!$B7:$P7,M$2)=2,'CABLE LENGTH'!$AL7,0) -> 0 | N7: =IF(COUNTIF('CABLE LENGTH'!$A7:$P7,N$1)+COUNTIF('CABLE LENGTH'!$B7:$P7,N$2)=2,'CABLE LENGTH'!$AL7,0) -> 0 | O7: =IF(COUNTIF('CABLE LENGTH'!$A7:$P7,O$1)+COUNTIF('CABLE LENGTH'!$B7:$P7,O$2)=2,'CABLE LENGTH'!$AL7,0) -> 0 | P7: =IF(COUNTIF('CABLE LENGTH'!$A7:$P7,P$1)+COUNTIF('CABLE LENGTH'!$B7:$P7,P$2)=2,'CABLE LENGTH'!$AL7,0) -> 0 | Q7: =IF(COUNTIF('CABLE LENGTH'!$A7:$P7,Q$1)+COUNTIF('CABLE LENGTH'!$B7:$P7,Q$2)=2,'CABLE LENGTH'!$AL7,0) -> 0 | R7: =IF(COUNTIF('CABLE LENGTH'!$A7:$P7,R$1)+COUNTIF('CABLE LENGTH'!$B7:$P7,R$2)=2,'CABLE LENGTH'!$AL7,0) -> 0 | S7: =IF(COUNTIF('CABLE LENGTH'!$A7:$P7,S$1)+COUNTIF('CABLE LENGTH'!$B7:$P7,S$2)=2,'CABLE LENGTH'!$AL7,0) -> 0 | T7: =IF(COUNTIF('CABLE LENGTH'!$A7:$P7,T$1)+COUNTIF('CABLE LENGTH'!$B7:$P7,T$2)=2,'CABLE LENGTH'!$AL7,0) -> 0 | U7: =IF(COUNTIF('CABLE LENGTH'!$A7:$P7,U$1)+COUNTIF('CABLE LENGTH'!$B7:$P7,U$2)=2,'CABLE LENGTH'!$AL7,0) -> 0 | V7: =IF(COUNTIF('CABLE LENGTH'!$A7:$P7,V$1)+COUNTIF('CABLE LENGTH'!$B7:$P7,V$2)=2,'CABLE LENGTH'!$AL7,0) -> 0 | W7: =IF(COUNTIF('CABLE LENGTH'!$A7:$P7,W$1)+COUNTIF('CABLE LENGTH'!$B7:$P7,W$2)=2,'CABLE LENGTH'!$AL7,0) -> 0 | X7: =IF(COUNTIF('CABLE LENGTH'!$A7:$P7,X$1)+COUNTIF('CABLE LENGTH'!$B7:$P7,X$2)=2,'CABLE LENGTH'!$AL7,0) -> 0 | Y7: =IF(COUNTIF('CABLE LENGTH'!$A7:$P7,Y$1)+COUNTIF('CABLE LENGTH'!$A7:$P7,Y$2)=2,'CABLE LENGTH'!$AL7,0) -> 0 | Z7: =IF(COUNTIF('CABLE LENGTH'!$A7:$P7,Z$1)+COUNTIF('CABLE LENGTH'!$A7:$P7,Z$2)=2,'CABLE LENGTH'!$AL7,0) -> 0 | AA7: =IF(COUNTIF('CABLE LENGTH'!$A7:$P7,AA$1)+COUNTIF('CABLE LENGTH'!$A7:$P7,AA$2)=2,'CABLE LENGTH'!$AL7,0) -> 0 | AB7: =IF(COUNTIF('CABLE LENGTH'!$A7:$P7,AB$1)+COUNTIF('CABLE LENGTH'!$A7:$P7,AB$2)=2,'CABLE LENGTH'!$AL7,0) -> 0 | AC7: =IF(COUNTIF('CABLE LENGTH'!$A7:$P7,AC$1)+COUNTIF('CABLE LENGTH'!$A7:$P7,AC$2)=2,'CABLE LENGTH'!$AL7,0) -> 0 | AD7: =IF(COUNTIF('CABLE LENGTH'!$A7:$P7,AD$1)+COUNTIF('CABLE LENGTH'!$A7:$P7,AD$2)=2,'CABLE LENGTH'!$AL7,0) -> 0 | AE7: =IF(COUNTIF('CABLE LENGTH'!$A7:$P7,AE$1)+COUNTIF('CABLE LENGTH'!$A7:$P7,AE$2)=2,'CABLE LENGTH'!$AL7,0) -> 0 | AF7: =IF(COUNTIF('CABLE LENGTH'!$A7:$P7,AF$1)+COUNTIF('CABLE LENGTH'!$A7:$P7,AF$2)=2,'CABLE LENGTH'!$AL7,0) -> 0 | AG7: =IF(COUNTIF('CABLE LENGTH'!$A7:$P7,AG$1)+COUNTIF('CABLE LENGTH'!$A7:$P7,AG$2)=2,'CABLE LENGTH'!$AL7,0) -> 0 | AH7: =IF(COUNTIF('CABLE LENGTH'!$A7:$P7,AH$1)+COUNTIF('CABLE LENGTH'!$A7:$P7,AH$2)=2,'CABLE LENGTH'!$AL7,0) -> 0 | AI7: =IF(COUNTIF('CABLE LENGTH'!$A7:$P7,AI$1)+COUNTIF('CABLE LENGTH'!$A7:$P7,AI$2)=2,'CABLE LENGTH'!$AL7,0) -> 0 | AJ7: =IF(COUNTIF('CABLE LENGTH'!$A7:$P7,AJ$1)+COUNTIF('CABLE LENGTH'!$A7:$P7,AJ$2)=2,'CABLE LENGTH'!$AL7,0) -> 0 | AK7: =IF(COUNTIF('CABLE LENGTH'!$A7:$P7,AK$1)+COUNTIF('CABLE LENGTH'!$A7:$P7,AK$2)=2,'CABLE LENGTH'!$AL7,0) -> 0 | AL7: =IF(COUNTIF('CABLE LENGTH'!$A7:$P7,AL$1)+COUNTIF('CABLE LENGTH'!$A7:$P7,AL$2)=2,'CABLE LENGTH'!$AL7,0) -> 0 | AM7: =IF(COUNTIF('CABLE LENGTH'!$A7:$P7,AM$1)+COUNTIF('CABLE LENGTH'!$A7:$P7,AM$2)=2,'CABLE LENGTH'!$AL7,0) -> 0 | AN7: =IF(COUNTIF('CABLE LENGTH'!$A7:$P7,AN$1)+COUNTIF('CABLE LENGTH'!$A7:$P7,AN$2)=2,'CABLE LENGTH'!$AL7,0) -> 0 | AO7: =IF(COUNTIF('CABLE LENGTH'!$A7:$P7,AO$1)+COUNTIF('CABLE LENGTH'!$A7:$P7,AO$2)=2,'CABLE LENGTH'!$AL7,0) -> 0 | AP7: =IF(COUNTIF('CABLE LENGTH'!$A7:$P7,AP$1)+COUNTIF('CABLE LENGTH'!$A7:$P7,AP$2)=2,'CABLE LENGTH'!$AL7,0) -> 0 | AQ7: =IF(COUNTIF('CABLE LENGTH'!$A7:$P7,AQ$1)+COUNTIF('CABLE LENGTH'!$A7:$P7,AQ$2)=2,'CABLE LENGTH'!$AL7,0) -> 0 | AR7: =IF(COUNTIF('CABLE LENGTH'!$A7:$P7,AR$1)+COUNTIF('CABLE LENGTH'!$A7:$P7,AR$2)=2,'CABLE LENGTH'!$AL7,0) -> 0 | AS7: =IF(COUNTIF('CABLE LENGTH'!$A7:$P7,AS$1)+COUNTIF('CABLE LENGTH'!$A7:$P7,AS$2)=2,'CABLE LENGTH'!$AL7,0) -> 0 | AT7: =IF(COUNTIF('CABLE LENGTH'!$A7:$P7,AT$1)+COUNTIF('CABLE LENGTH'!$A7:$P7,AT$2)=2,'CABLE LENGTH'!$AL7,0) -> 0 | AU7: =IF(COUNTIF('CABLE LENGTH'!$A7:$P7,AU$1)+COUNTIF('CABLE LENGTH'!$A7:$P7,AU$2)=2,'CABLE LENGTH'!$AL7,0) -> 0 | AV7: =IF(COUNTIF('CABLE LENGTH'!$A7:$P7,AV$1)+COUNTIF('CABLE LENGTH'!$A7:$P7,AV$2)=2,'CABLE LENGTH'!$AL7,0) -> 0 | AW7: =IF(COUNTIF('CABLE LENGTH'!$A7:$P7,AW$1)+COUNTIF('CABLE LENGTH'!$A7:$P7,AW$2)=2,'CABLE LENGTH'!$AL7,0) -> 0 | AX7: =IF(COUNTIF('CABLE LENGTH'!$A7:$P7,AX$1)+COUNTIF('CABLE LENGTH'!$A7:$P7,AX$2)=2,'CABLE LENGTH'!$AL7,0) -> 0 | AY7: =IF(COUNTIF('CABLE LENGTH'!$A7:$P7,AY$1)+COUNTIF('CABLE LENGTH'!$A7:$P7,AY$2)=2,'CABLE LENGTH'!$AL7,0) -> 0 | AZ7: =IF(COUNTIF('CABLE LENGTH'!$A7:$P7,AZ$1)+COUNTIF('CABLE LENGTH'!$A7:$P7,AZ$2)=2,'CABLE LENGTH'!$AL7,0) -> 0
B8: =+'CABLE LENGTH'!AK8 -> 0 | C8: =IF(COUNTIF('CABLE LENGTH'!$A8:$P8,C$1)+COUNTIF('CABLE LENGTH'!$B8:$P8,C$2)=2,'CABLE LENGTH'!$AL8,0) -> 0 | D8: =IF(COUNTIF('CABLE LENGTH'!$A8:$P8,D$1)+COUNTIF('CABLE LENGTH'!$B8:$P8,D$2)=2,'CABLE LENGTH'!$AL8,0) -> 0 | E8: =IF(COUNTIF('CABLE LENGTH'!$A8:$P8,E$1)+COUNTIF('CABLE LENGTH'!$B8:$P8,E$2)=2,'CABLE LENGTH'!$AL8,0) -> 0 | F8: =IF(COUNTIF('CABLE LENGTH'!$A8:$P8,F$1)+COUNTIF('CABLE LENGTH'!$B8:$P8,F$2)=2,'CABLE LENGTH'!$AL8,0) -> 0 | G8: =IF(COUNTIF('CABLE LENGTH'!$A8:$P8,G$1)+COUNTIF('CABLE LENGTH'!$B8:$P8,G$2)=2,'CABLE LENGTH'!$AL8,0) -> 0 | H8: =IF(COUNTIF('CABLE LENGTH'!$A8:$P8,H$1)+COUNTIF('CABLE LENGTH'!$B8:$P8,H$2)=2,'CABLE LENGTH'!$AL8,0) -> 0 | I8: =IF(COUNTIF('CABLE LENGTH'!$A8:$P8,I$1)+COUNTIF('CABLE LENGTH'!$B8:$P8,I$2)=2,'CABLE LENGTH'!$AL8,0) -> 0 | J8: =IF(COUNTIF('CABLE LENGTH'!$A8:$P8,J$1)+COUNTIF('CABLE LENGTH'!$B8:$P8,J$2)=2,'CABLE LENGTH'!$AL8,0) -> 0 | K8: =IF(COUNTIF('CABLE LENGTH'!$A8:$P8,K$1)+COUNTIF('CABLE LENGTH'!$B8:$P8,K$2)=2,'CABLE LENGTH'!$AL8,0) -> 0 | L8: =IF(COUNTIF('CABLE LENGTH'!$A8:$P8,L$1)+COUNTIF('CABLE LENGTH'!$B8:$P8,L$2)=2,'CABLE LENGTH'!$AL8,0) -> 0 | M8: =IF(COUNTIF('CABLE LENGTH'!$A8:$P8,M$1)+COUNTIF('CABLE LENGTH'!$B8:$P8,M$2)=2,'CABLE LENGTH'!$AL8,0) -> 0 | N8: =IF(COUNTIF('CABLE LENGTH'!$A8:$P8,N$1)+COUNTIF('CABLE LENGTH'!$B8:$P8,N$2)=2,'CABLE LENGTH'!$AL8,0) -> 0 | O8: =IF(COUNTIF('CABLE LENGTH'!$A8:$P8,O$1)+COUNTIF('CABLE LENGTH'!$B8:$P8,O$2)=2,'CABLE LENGTH'!$AL8,0) -> 0 | P8: =IF(COUNTIF('CABLE LENGTH'!$A8:$P8,P$1)+COUNTIF('CABLE LENGTH'!$B8:$P8,P$2)=2,'CABLE LENGTH'!$AL8,0) -> 0 | Q8: =IF(COUNTIF('CABLE LENGTH'!$A8:$P8,Q$1)+COUNTIF('CABLE LENGTH'!$B8:$P8,Q$2)=2,'CABLE LENGTH'!$AL8,0) -> 0 | R8: =IF(COUNTIF('CABLE LENGTH'!$A8:$P8,R$1)+COUNTIF('CABLE LENGTH'!$B8:$P8,R$2)=2,'CABLE LENGTH'!$AL8,0) -> 0 | S8: =IF(COUNTIF('CABLE LENGTH'!$A8:$P8,S$1)+COUNTIF('CABLE LENGTH'!$B8:$P8,S$2)=2,'CABLE LENGTH'!$AL8,0) -> 0 | T8: =IF(COUNTIF('CABLE LENGTH'!$A8:$P8,T$1)+COUNTIF('CABLE LENGTH'!$B8:$P8,T$2)=2,'CABLE LENGTH'!$AL8,0) -> 0 | U8: =IF(COUNTIF('CABLE LENGTH'!$A8:$P8,U$1)+COUNTIF('CABLE LENGTH'!$B8:$P8,U$2)=2,'CABLE LENGTH'!$AL8,0) -> 0 | V8: =IF(COUNTIF('CABLE LENGTH'!$A8:$P8,V$1)+COUNTIF('CABLE LENGTH'!$B8:$P8,V$2)=2,'CABLE LENGTH'!$AL8,0) -> 0 | W8: =IF(COUNTIF('CABLE LENGTH'!$A8:$P8,W$1)+COUNTIF('CABLE LENGTH'!$B8:$P8,W$2)=2,'CABLE LENGTH'!$AL8,0) -> 0 | X8: =IF(COUNTIF('CABLE LENGTH'!$A8:$P8,X$1)+COUNTIF('CABLE LENGTH'!$B8:$P8,X$2)=2,'CABLE LENGTH'!$AL8,0) -> 0 | Y8: =IF(COUNTIF('CABLE LENGTH'!$A8:$P8,Y$1)+COUNTIF('CABLE LENGTH'!$A8:$P8,Y$2)=2,'CABLE LENGTH'!$AL8,0) -> 0 | Z8: =IF(COUNTIF('CABLE LENGTH'!$A8:$P8,Z$1)+COUNTIF('CABLE LENGTH'!$A8:$P8,Z$2)=2,'CABLE LENGTH'!$AL8,0) -> 0 | AA8: =IF(COUNTIF('CABLE LENGTH'!$A8:$P8,AA$1)+COUNTIF('CABLE LENGTH'!$A8:$P8,AA$2)=2,'CABLE LENGTH'!$AL8,0) -> 0 | AB8: =IF(COUNTIF('CABLE LENGTH'!$A8:$P8,AB$1)+COUNTIF('CABLE LENGTH'!$A8:$P8,AB$2)=2,'CABLE LENGTH'!$AL8,0) -> 0 | AC8: =IF(COUNTIF('CABLE LENGTH'!$A8:$P8,AC$1)+COUNTIF('CABLE LENGTH'!$A8:$P8,AC$2)=2,'CABLE LENGTH'!$AL8,0) -> 0 | AD8: =IF(COUNTIF('CABLE LENGTH'!$A8:$P8,AD$1)+COUNTIF('CABLE LENGTH'!$A8:$P8,AD$2)=2,'CABLE LENGTH'!$AL8,0) -> 0 | AE8: =IF(COUNTIF('CABLE LENGTH'!$A8:$P8,AE$1)+COUNTIF('CABLE LENGTH'!$A8:$P8,AE$2)=2,'CABLE LENGTH'!$AL8,0) -> 0 | AF8: =IF(COUNTIF('CABLE LENGTH'!$A8:$P8,AF$1)+COUNTIF('CABLE LENGTH'!$A8:$P8,AF$2)=2,'CABLE LENGTH'!$AL8,0) -> 0 | AG8: =IF(COUNTIF('CABLE LENGTH'!$A8:$P8,AG$1)+COUNTIF('CABLE LENGTH'!$A8:$P8,AG$2)=2,'CABLE LENGTH'!$AL8,0) -> 0 | AH8: =IF(COUNTIF('CABLE LENGTH'!$A8:$P8,AH$1)+COUNTIF('CABLE LENGTH'!$A8:$P8,AH$2)=2,'CABLE LENGTH'!$AL8,0) -> 0 | AI8: =IF(COUNTIF('CABLE LENGTH'!$A8:$P8,AI$1)+COUNTIF('CABLE LENGTH'!$A8:$P8,AI$2)=2,'CABLE LENGTH'!$AL8,0) -> 0 | AJ8: =IF(COUNTIF('CABLE LENGTH'!$A8:$P8,AJ$1)+COUNTIF('CABLE LENGTH'!$A8:$P8,AJ$2)=2,'CABLE LENGTH'!$AL8,0) -> 0 | AK8: =IF(COUNTIF('CABLE LENGTH'!$A8:$P8,AK$1)+COUNTIF('CABLE LENGTH'!$A8:$P8,AK$2)=2,'CABLE LENGTH'!$AL8,0) -> 0 | AL8: =IF(COUNTIF('CABLE LENGTH'!$A8:$P8,AL$1)+COUNTIF('CABLE LENGTH'!$A8:$P8,AL$2)=2,'CABLE LENGTH'!$AL8,0) -> 0 | AM8: =IF(COUNTIF('CABLE LENGTH'!$A8:$P8,AM$1)+COUNTIF('CABLE LENGTH'!$A8:$P8,AM$2)=2,'CABLE LENGTH'!$AL8,0) -> 0 | AN8: =IF(COUNTIF('CABLE LENGTH'!$A8:$P8,AN$1)+COUNTIF('CABLE LENGTH'!$A8:$P8,AN$2)=2,'CABLE LENGTH'!$AL8,0) -> 0 | AO8: =IF(COUNTIF('CABLE LENGTH'!$A8:$P8,AO$1)+COUNTIF('CABLE LENGTH'!$A8:$P8,AO$2)=2,'CABLE LENGTH'!$AL8,0) -> 0 | AP8: =IF(COUNTIF('CABLE LENGTH'!$A8:$P8,AP$1)+COUNTIF('CABLE LENGTH'!$A8:$P8,AP$2)=2,'CABLE LENGTH'!$AL8,0) -> 0 | AQ8: =IF(COUNTIF('CABLE LENGTH'!$A8:$P8,AQ$1)+COUNTIF('CABLE LENGTH'!$A8:$P8,AQ$2)=2,'CABLE LENGTH'!$AL8,0) -> 0 | AR8: =IF(COUNTIF('CABLE LENGTH'!$A8:$P8,AR$1)+COUNTIF('CABLE LENGTH'!$A8:$P8,AR$2)=2,'CABLE LENGTH'!$AL8,0) -> 0 | AS8: =IF(COUNTIF('CABLE LENGTH'!$A8:$P8,AS$1)+COUNTIF('CABLE LENGTH'!$A8:$P8,AS$2)=2,'CABLE LENGTH'!$AL8,0) -> 0 | AT8: =IF(COUNTIF('CABLE LENGTH'!$A8:$P8,AT$1)+COUNTIF('CABLE LENGTH'!$A8:$P8,AT$2)=2,'CABLE LENGTH'!$AL8,0) -> 0 | AU8: =IF(COUNTIF('CABLE LENGTH'!$A8:$P8,AU$1)+COUNTIF('CABLE LENGTH'!$A8:$P8,AU$2)=2,'CABLE LENGTH'!$AL8,0) -> 0 | AV8: =IF(COUNTIF('CABLE LENGTH'!$A8:$P8,AV$1)+COUNTIF('CABLE LENGTH'!$A8:$P8,AV$2)=2,'CABLE LENGTH'!$AL8,0) -> 0 | AW8: =IF(COUNTIF('CABLE LENGTH'!$A8:$P8,AW$1)+COUNTIF('CABLE LENGTH'!$A8:$P8,AW$2)=2,'CABLE LENGTH'!$AL8,0) -> 0 | AX8: =IF(COUNTIF('CABLE LENGTH'!$A8:$P8,AX$1)+COUNTIF('CABLE LENGTH'!$A8:$P8,AX$2)=2,'CABLE LENGTH'!$AL8,0) -> 0 | AY8: =IF(COUNTIF('CABLE LENGTH'!$A8:$P8,AY$1)+COUNTIF('CABLE LENGTH'!$A8:$P8,AY$2)=2,'CABLE LENGTH'!$AL8,0) -> 0 | AZ8: =IF(COUNTIF('CABLE LENGTH'!$A8:$P8,AZ$1)+COUNTIF('CABLE LENGTH'!$A8:$P8,AZ$2)=2,'CABLE LENGTH'!$AL8,0) -> 0
B9: =+'CABLE LENGTH'!AK9 -> 0 | C9: =IF(COUNTIF('CABLE LENGTH'!$A9:$P9,C$1)+COUNTIF('CABLE LENGTH'!$B9:$P9,C$2)=2,'CABLE LENGTH'!$AL9,0) -> 0 | D9: =IF(COUNTIF('CABLE LENGTH'!$A9:$P9,D$1)+COUNTIF('CABLE LENGTH'!$B9:$P9,D$2)=2,'CABLE LENGTH'!$AL9,0) -> 0 | E9: =IF(COUNTIF('CABLE LENGTH'!$A9:$P9,E$1)+COUNTIF('CABLE LENGTH'!$B9:$P9,E$2)=2,'CABLE LENGTH'!$AL9,0) -> 0 | F9: =IF(COUNTIF('CABLE LENGTH'!$A9:$P9,F$1)+COUNTIF('CABLE LENGTH'!$B9:$P9,F$2)=2,'CABLE LENGTH'!$AL9,0) -> 0 | G9: =IF(COUNTIF('CABLE LENGTH'!$A9:$P9,G$1)+COUNTIF('CABLE LENGTH'!$B9:$P9,G$2)=2,'CABLE LENGTH'!$AL9,0) -> 0 | H9: =IF(COUNTIF('CABLE LENGTH'!$A9:$P9,H$1)+COUNTIF('CABLE LENGTH'!$B9:$P9,H$2)=2,'CABLE LENGTH'!$AL9,0) -> 0 | I9: =IF(COUNTIF('CABLE LENGTH'!$A9:$P9,I$1)+COUNTIF('CABLE LENGTH'!$B9:$P9,I$2)=2,'CABLE LENGTH'!$AL9,0) -> 0 | J9: =IF(COUNTIF('CABLE LENGTH'!$A9:$P9,J$1)+COUNTIF('CABLE LENGTH'!$B9:$P9,J$2)=2,'CABLE LENGTH'!$AL9,0) -> 0 | K9: =IF(COUNTIF('CABLE LENGTH'!$A9:$P9,K$1)+COUNTIF('CABLE LENGTH'!$B9:$P9,K$2)=2,'CABLE LENGTH'!$AL9,0) -> 0 | L9: =IF(COUNTIF('CABLE LENGTH'!$A9:$P9,L$1)+COUNTIF('CABLE LENGTH'!$B9:$P9,L$2)=2,'CABLE LENGTH'!$AL9,0) -> 0 | M9: =IF(COUNTIF('CABLE LENGTH'!$A9:$P9,M$1)+COUNTIF('CABLE LENGTH'!$B9:$P9,M$2)=2,'CABLE LENGTH'!$AL9,0) -> 0 | N9: =IF(COUNTIF('CABLE LENGTH'!$A9:$P9,N$1)+COUNTIF('CABLE LENGTH'!$B9:$P9,N$2)=2,'CABLE LENGTH'!$AL9,0) -> 0 | O9: =IF(COUNTIF('CABLE LENGTH'!$A9:$P9,O$1)+COUNTIF('CABLE LENGTH'!$B9:$P9,O$2)=2,'CABLE LENGTH'!$AL9,0) -> 0 | P9: =IF(COUNTIF('CABLE LENGTH'!$A9:$P9,P$1)+COUNTIF('CABLE LENGTH'!$B9:$P9,P$2)=2,'CABLE LENGTH'!$AL9,0) -> 0 | Q9: =IF(COUNTIF('CABLE LENGTH'!$A9:$P9,Q$1)+COUNTIF('CABLE LENGTH'!$B9:$P9,Q$2)=2,'CABLE LENGTH'!$AL9,0) -> 0 | R9: =IF(COUNTIF('CABLE LENGTH'!$A9:$P9,R$1)+COUNTIF('CABLE LENGTH'!$B9:$P9,R$2)=2,'CABLE LENGTH'!$AL9,0) -> 0 | S9: =IF(COUNTIF('CABLE LENGTH'!$A9:$P9,S$1)+COUNTIF('CABLE LENGTH'!$B9:$P9,S$2)=2,'CABLE LENGTH'!$AL9,0) -> 0 | T9: =IF(COUNTIF('CABLE LENGTH'!$A9:$P9,T$1)+COUNTIF('CABLE LENGTH'!$B9:$P9,T$2)=2,'CABLE LENGTH'!$AL9,0) -> 0 | U9: =IF(COUNTIF('CABLE LENGTH'!$A9:$P9,U$1)+COUNTIF('CABLE LENGTH'!$B9:$P9,U$2)=2,'CABLE LENGTH'!$AL9,0) -> 0 | V9: =IF(COUNTIF('CABLE LENGTH'!$A9:$P9,V$1)+COUNTIF('CABLE LENGTH'!$B9:$P9,V$2)=2,'CABLE LENGTH'!$AL9,0) -> 0 | W9: =IF(COUNTIF('CABLE LENGTH'!$A9:$P9,W$1)+COUNTIF('CABLE LENGTH'!$B9:$P9,W$2)=2,'CABLE LENGTH'!$AL9,0) -> 0 | X9: =IF(COUNTIF('CABLE LENGTH'!$A9:$P9,X$1)+COUNTIF('CABLE LENGTH'!$B9:$P9,X$2)=2,'CABLE LENGTH'!$AL9,0) -> 0 | Y9: =IF(COUNTIF('CABLE LENGTH'!$A9:$P9,Y$1)+COUNTIF('CABLE LENGTH'!$A9:$P9,Y$2)=2,'CABLE LENGTH'!$AL9,0) -> 0 | Z9: =IF(COUNTIF('CABLE LENGTH'!$A9:$P9,Z$1)+COUNTIF('CABLE LENGTH'!$A9:$P9,Z$2)=2,'CABLE LENGTH'!$AL9,0) -> 0 | AA9: =IF(COUNTIF('CABLE LENGTH'!$A9:$P9,AA$1)+COUNTIF('CABLE LENGTH'!$A9:$P9,AA$2)=2,'CABLE LENGTH'!$AL9,0) -> 0 | AB9: =IF(COUNTIF('CABLE LENGTH'!$A9:$P9,AB$1)+COUNTIF('CABLE LENGTH'!$A9:$P9,AB$2)=2,'CABLE LENGTH'!$AL9,0) -> 0 | AC9: =IF(COUNTIF('CABLE LENGTH'!$A9:$P9,AC$1)+COUNTIF('CABLE LENGTH'!$A9:$P9,AC$2)=2,'CABLE LENGTH'!$AL9,0) -> 0 | AD9: =IF(COUNTIF('CABLE LENGTH'!$A9:$P9,AD$1)+COUNTIF('CABLE LENGTH'!$A9:$P9,AD$2)=2,'CABLE LENGTH'!$AL9,0) -> 0 | AE9: =IF(COUNTIF('CABLE LENGTH'!$A9:$P9,AE$1)+COUNTIF('CABLE LENGTH'!$A9:$P9,AE$2)=2,'CABLE LENGTH'!$AL9,0) -> 0 | AF9: =IF(COUNTIF('CABLE LENGTH'!$A9:$P9,AF$1)+COUNTIF('CABLE LENGTH'!$A9:$P9,AF$2)=2,'CABLE LENGTH'!$AL9,0) -> 0 | AG9: =IF(COUNTIF('CABLE LENGTH'!$A9:$P9,AG$1)+COUNTIF('CABLE LENGTH'!$A9:$P9,AG$2)=2,'CABLE LENGTH'!$AL9,0) -> 0 | AH9: =IF(COUNTIF('CABLE LENGTH'!$A9:$P9,AH$1)+COUNTIF('CABLE LENGTH'!$A9:$P9,AH$2)=2,'CABLE LENGTH'!$AL9,0) -> 0 | AI9: =IF(COUNTIF('CABLE LENGTH'!$A9:$P9,AI$1)+COUNTIF('CABLE LENGTH'!$A9:$P9,AI$2)=2,'CABLE LENGTH'!$AL9,0) -> 0 | AJ9: =IF(COUNTIF('CABLE LENGTH'!$A9:$P9,AJ$1)+COUNTIF('CABLE LENGTH'!$A9:$P9,AJ$2)=2,'CABLE LENGTH'!$AL9,0) -> 0 | AK9: =IF(COUNTIF('CABLE LENGTH'!$A9:$P9,AK$1)+COUNTIF('CABLE LENGTH'!$A9:$P9,AK$2)=2,'CABLE LENGTH'!$AL9,0) -> 0 | AL9: =IF(COUNTIF('CABLE LENGTH'!$A9:$P9,AL$1)+COUNTIF('CABLE LENGTH'!$A9:$P9,AL$2)=2,'CABLE LENGTH'!$AL9,0) -> 0 | AM9: =IF(COUNTIF('CABLE LENGTH'!$A9:$P9,AM$1)+COUNTIF('CABLE LENGTH'!$A9:$P9,AM$2)=2,'CABLE LENGTH'!$AL9,0) -> 0 | AN9: =IF(COUNTIF('CABLE LENGTH'!$A9:$P9,AN$1)+COUNTIF('CABLE LENGTH'!$A9:$P9,AN$2)=2,'CABLE LENGTH'!$AL9,0) -> 0 | AO9: =IF(COUNTIF('CABLE LENGTH'!$A9:$P9,AO$1)+COUNTIF('CABLE LENGTH'!$A9:$P9,AO$2)=2,'CABLE LENGTH'!$AL9,0) -> 0 | AP9: =IF(COUNTIF('CABLE LENGTH'!$A9:$P9,AP$1)+COUNTIF('CABLE LENGTH'!$A9:$P9,AP$2)=2,'CABLE LENGTH'!$AL9,0) -> 0 | AQ9: =IF(COUNTIF('CABLE LENGTH'!$A9:$P9,AQ$1)+COUNTIF('CABLE LENGTH'!$A9:$P9,AQ$2)=2,'CABLE LENGTH'!$AL9,0) -> 0 | AR9: =IF(COUNTIF('CABLE LENGTH'!$A9:$P9,AR$1)+COUNTIF('CABLE LENGTH'!$A9:$P9,AR$2)=2,'CABLE LENGTH'!$AL9,0) -> 0 | AS9: =IF(COUNTIF('CABLE LENGTH'!$A9:$P9,AS$1)+COUNTIF('CABLE LENGTH'!$A9:$P9,AS$2)=2,'CABLE LENGTH'!$AL9,0) -> 0 | AT9: =IF(COUNTIF('CABLE LENGTH'!$A9:$P9,AT$1)+COUNTIF('CABLE LENGTH'!$A9:$P9,AT$2)=2,'CABLE LENGTH'!$AL9,0) -> 0 | AU9: =IF(COUNTIF('CABLE LENGTH'!$A9:$P9,AU$1)+COUNTIF('CABLE LENGTH'!$A9:$P9,AU$2)=2,'CABLE LENGTH'!$AL9,0) -> 0 | AV9: =IF(COUNTIF('CABLE LENGTH'!$A9:$P9,AV$1)+COUNTIF('CABLE LENGTH'!$A9:$P9,AV$2)=2,'CABLE LENGTH'!$AL9,0) -> 0 | AW9: =IF(COUNTIF('CABLE LENGTH'!$A9:$P9,AW$1)+COUNTIF('CABLE LENGTH'!$A9:$P9,AW$2)=2,'CABLE LENGTH'!$AL9,0) -> 0 | AX9: =IF(COUNTIF('CABLE LENGTH'!$A9:$P9,AX$1)+COUNTIF('CABLE LENGTH'!$A9:$P9,AX$2)=2,'CABLE LENGTH'!$AL9,0) -> 0 | AY9: =IF(COUNTIF('CABLE LENGTH'!$A9:$P9,AY$1)+COUNTIF('CABLE LENGTH'!$A9:$P9,AY$2)=2,'CABLE LENGTH'!$AL9,0) -> 0 | AZ9: =IF(COUNTIF('CABLE LENGTH'!$A9:$P9,AZ$1)+COUNTIF('CABLE LENGTH'!$A9:$P9,AZ$2)=2,'CABLE LENGTH'!$AL9,0) -> 0
B10: =+'CABLE LENGTH'!AK10 -> 0 | C10: =IF(COUNTIF('CABLE LENGTH'!$A10:$P10,C$1)+COUNTIF('CABLE LENGTH'!$B10:$P10,C$2)=2,'CABLE LENGTH'!$AL10,0) -> 0 | D10: =IF(COUNTIF('CABLE LENGTH'!$A10:$P10,D$1)+COUNTIF('CABLE LENGTH'!$B10:$P10,D$2)=2,'CABLE LENGTH'!$AL10,0) -> 0 | E10: =IF(COUNTIF('CABLE LENGTH'!$A10:$P10,E$1)+COUNTIF('CABLE LENGTH'!$B10:$P10,E$2)=2,'CABLE LENGTH'!$AL10,0) -> 0 | F10: =IF(COUNTIF('CABLE LENGTH'!$A10:$P10,F$1)+COUNTIF('CABLE LENGTH'!$B10:$P10,F$2)=2,'CABLE LENGTH'!$AL10,0) -> 0 | G10: =IF(COUNTIF('CABLE LENGTH'!$A10:$P10,G$1)+COUNTIF('CABLE LENGTH'!$B10:$P10,G$2)=2,'CABLE LENGTH'!$AL10,0) -> 0 | H10: =IF(COUNTIF('CABLE LENGTH'!$A10:$P10,H$1)+COUNTIF('CABLE LENGTH'!$B10:$P10,H$2)=2,'CABLE LENGTH'!$AL10,0) -> 0 | I10: =IF(COUNTIF('CABLE LENGTH'!$A10:$P10,I$1)+COUNTIF('CABLE LENGTH'!$B10:$P10,I$2)=2,'CABLE LENGTH'!$AL10,0) -> 0 | J10: =IF(COUNTIF('CABLE LENGTH'!$A10:$P10,J$1)+COUNTIF('CABLE LENGTH'!$B10:$P10,J$2)=2,'CABLE LENGTH'!$AL10,0) -> 0 | K10: =IF(COUNTIF('CABLE LENGTH'!$A10:$P10,K$1)+COUNTIF('CABLE LENGTH'!$B10:$P10,K$2)=2,'CABLE LENGTH'!$AL10,0) -> 0 | L10: =IF(COUNTIF('CABLE LENGTH'!$A10:$P10,L$1)+COUNTIF('CABLE LENGTH'!$B10:$P10,L$2)=2,'CABLE LENGTH'!$AL10,0) -> 0 | M10: =IF(COUNTIF('CABLE LENGTH'!$A10:$P10,M$1)+COUNTIF('CABLE LENGTH'!$B10:$P10,M$2)=2,'CABLE LENGTH'!$AL10,0) -> 0 | N10: =IF(COUNTIF('CABLE LENGTH'!$A10:$P10,N$1)+COUNTIF('CABLE LENGTH'!$B10:$P10,N$2)=2,'CABLE LENGTH'!$AL10,0) -> 0 | O10: =IF(COUNTIF('CABLE LENGTH'!$A10:$P10,O$1)+COUNTIF('CABLE LENGTH'!$B10:$P10,O$2)=2,'CABLE LENGTH'!$AL10,0) -> 0 | P10: =IF(COUNTIF('CABLE LENGTH'!$A10:$P10,P$1)+COUNTIF('CABLE LENGTH'!$B10:$P10,P$2)=2,'CABLE LENGTH'!$AL10,0) -> 0 | Q10: =IF(COUNTIF('CABLE LENGTH'!$A10:$P10,Q$1)+COUNTIF('CABLE LENGTH'!$B10:$P10,Q$2)=2,'CABLE LENGTH'!$AL10,0) -> 0 | R10: =IF(COUNTIF('CABLE LENGTH'!$A10:$P10,R$1)+COUNTIF('CABLE LENGTH'!$B10:$P10,R$2)=2,'CABLE LENGTH'!$AL10,0) -> 0 | S10: =IF(COUNTIF('CABLE LENGTH'!$A10:$P10,S$1)+COUNTIF('CABLE LENGTH'!$B10:$P10,S$2)=2,'CABLE LENGTH'!$AL10,0) -> 0 | T10: =IF(COUNTIF('CABLE LENGTH'!$A10:$P10,T$1)+COUNTIF('CABLE LENGTH'!$B10:$P10,T$2)=2,'CABLE LENGTH'!$AL10,0) -> 0 | U10: =IF(COUNTIF('CABLE LENGTH'!$A10:$P10,U$1)+COUNTIF('CABLE LENGTH'!$B10:$P10,U$2)=2,'CABLE LENGTH'!$AL10,0) -> 0 | V10: =IF(COUNTIF('CABLE LENGTH'!$A10:$P10,V$1)+COUNTIF('CABLE LENGTH'!$B10:$P10,V$2)=2,'CABLE LENGTH'!$AL10,0) -> 0 | W10: =IF(COUNTIF('CABLE LENGTH'!$A10:$P10,W$1)+COUNTIF('CABLE LENGTH'!$B10:$P10,W$2)=2,'CABLE LENGTH'!$AL10,0) -> 0 | X10: =IF(COUNTIF('CABLE LENGTH'!$A10:$P10,X$1)+COUNTIF('CABLE LENGTH'!$B10:$P10,X$2)=2,'CABLE LENGTH'!$AL10,0) -> 0 | Y10: =IF(COUNTIF('CABLE LENGTH'!$A10:$P10,Y$1)+COUNTIF('CABLE LENGTH'!$A10:$P10,Y$2)=2,'CABLE LENGTH'!$AL10,0) -> 0 | Z10: =IF(COUNTIF('CABLE LENGTH'!$A10:$P10,Z$1)+COUNTIF('CABLE LENGTH'!$A10:$P10,Z$2)=2,'CABLE LENGTH'!$AL10,0) -> 0 | AA10: =IF(COUNTIF('CABLE LENGTH'!$A10:$P10,AA$1)+COUNTIF('CABLE LENGTH'!$A10:$P10,AA$2)=2,'CABLE LENGTH'!$AL10,0) -> 0 | AB10: =IF(COUNTIF('CABLE LENGTH'!$A10:$P10,AB$1)+COUNTIF('CABLE LENGTH'!$A10:$P10,AB$2)=2,'CABLE LENGTH'!$AL10,0) -> 0 | AC10: =IF(COUNTIF('CABLE LENGTH'!$A10:$P10,AC$1)+COUNTIF('CABLE LENGTH'!$A10:$P10,AC$2)=2,'CABLE LENGTH'!$AL10,0) -> 0 | AD10: =IF(COUNTIF('CABLE LENGTH'!$A10:$P10,AD$1)+COUNTIF('CABLE LENGTH'!$A10:$P10,AD$2)=2,'CABLE LENGTH'!$AL10,0) -> 0 | AE10: =IF(COUNTIF('CABLE LENGTH'!$A10:$P10,AE$1)+COUNTIF('CABLE LENGTH'!$A10:$P10,AE$2)=2,'CABLE LENGTH'!$AL10,0) -> 0 | AF10: =IF(COUNTIF('CABLE LENGTH'!$A10:$P10,AF$1)+COUNTIF('CABLE LENGTH'!$A10:$P10,AF$2)=2,'CABLE LENGTH'!$AL10,0) -> 0 | AG10: =IF(COUNTIF('CABLE LENGTH'!$A10:$P10,AG$1)+COUNTIF('CABLE LENGTH'!$A10:$P10,AG$2)=2,'CABLE LENGTH'!$AL10,0) -> 0 | AH10: =IF(COUNTIF('CABLE LENGTH'!$A10:$P10,AH$1)+COUNTIF('CABLE LENGTH'!$A10:$P10,AH$2)=2,'CABLE LENGTH'!$AL10,0) -> 0 | AI10: =IF(COUNTIF('CABLE LENGTH'!$A10:$P10,AI$1)+COUNTIF('CABLE LENGTH'!$A10:$P10,AI$2)=2,'CABLE LENGTH'!$AL10,0) -> 0 | AJ10: =IF(COUNTIF('CABLE LENGTH'!$A10:$P10,AJ$1)+COUNTIF('CABLE LENGTH'!$A10:$P10,AJ$2)=2,'CABLE LENGTH'!$AL10,0) -> 0 | AK10: =IF(COUNTIF('CABLE LENGTH'!$A10:$P10,AK$1)+COUNTIF('CABLE LENGTH'!$A10:$P10,AK$2)=2,'CABLE LENGTH'!$AL10,0) -> 0 | AL10: =IF(COUNTIF('CABLE LENGTH'!$A10:$P10,AL$1)+COUNTIF('CABLE LENGTH'!$A10:$P10,AL$2)=2,'CABLE LENGTH'!$AL10,0) -> 0 | AM10: =IF(COUNTIF('CABLE LENGTH'!$A10:$P10,AM$1)+COUNTIF('CABLE LENGTH'!$A10:$P10,AM$2)=2,'CABLE LENGTH'!$AL10,0) -> 0 | AN10: =IF(COUNTIF('CABLE LENGTH'!$A10:$P10,AN$1)+COUNTIF('CABLE LENGTH'!$A10:$P10,AN$2)=2,'CABLE LENGTH'!$AL10,0) -> 0 | AO10: =IF(COUNTIF('CABLE LENGTH'!$A10:$P10,AO$1)+COUNTIF('CABLE LENGTH'!$A10:$P10,AO$2)=2,'CABLE LENGTH'!$AL10,0) -> 0 | AP10: =IF(COUNTIF('CABLE LENGTH'!$A10:$P10,AP$1)+COUNTIF('CABLE LENGTH'!$A10:$P10,AP$2)=2,'CABLE LENGTH'!$AL10,0) -> 0 | AQ10: =IF(COUNTIF('CABLE LENGTH'!$A10:$P10,AQ$1)+COUNTIF('CABLE LENGTH'!$A10:$P10,AQ$2)=2,'CABLE LENGTH'!$AL10,0) -> 0 | AR10: =IF(COUNTIF('CABLE LENGTH'!$A10:$P10,AR$1)+COUNTIF('CABLE LENGTH'!$A10:$P10,AR$2)=2,'CABLE LENGTH'!$AL10,0) -> 0 | AS10: =IF(COUNTIF('CABLE LENGTH'!$A10:$P10,AS$1)+COUNTIF('CABLE LENGTH'!$A10:$P10,AS$2)=2,'CABLE LENGTH'!$AL10,0) -> 0 | AT10: =IF(COUNTIF('CABLE LENGTH'!$A10:$P10,AT$1)+COUNTIF('CABLE LENGTH'!$A10:$P10,AT$2)=2,'CABLE LENGTH'!$AL10,0) -> 0 | AU10: =IF(COUNTIF('CABLE LENGTH'!$A10:$P10,AU$1)+COUNTIF('CABLE LENGTH'!$A10:$P10,AU$2)=2,'CABLE LENGTH'!$AL10,0) -> 0 | AV10: =IF(COUNTIF('CABLE LENGTH'!$A10:$P10,AV$1)+COUNTIF('CABLE LENGTH'!$A10:$P10,AV$2)=2,'CABLE LENGTH'!$AL10,0) -> 0 | AW10: =IF(COUNTIF('CABLE LENGTH'!$A10:$P10,AW$1)+COUNTIF('CABLE LENGTH'!$A10:$P10,AW$2)=2,'CABLE LENGTH'!$AL10,0) -> 0 | AX10: =IF(COUNTIF('CABLE LENGTH'!$A10:$P10,AX$1)+COUNTIF('CABLE LENGTH'!$A10:$P10,AX$2)=2,'CABLE LENGTH'!$AL10,0) -> 0 | AY10: =IF(COUNTIF('CABLE LENGTH'!$A10:$P10,AY$1)+COUNTIF('CABLE LENGTH'!$A10:$P10,AY$2)=2,'CABLE LENGTH'!$AL10,0) -> 0 | AZ10: =IF(COUNTIF('CABLE LENGTH'!$A10:$P10,AZ$1)+COUNTIF('CABLE LENGTH'!$A10:$P10,AZ$2)=2,'CABLE LENGTH'!$AL10,0) -> 0
B11: =+'CABLE LENGTH'!AK11 -> 0 | C11: =IF(COUNTIF('CABLE LENGTH'!$A11:$P11,C$1)+COUNTIF('CABLE LENGTH'!$B11:$P11,C$2)=2,'CABLE LENGTH'!$AL11,0) -> 0 | D11: =IF(COUNTIF('CABLE LENGTH'!$A11:$P11,D$1)+COUNTIF('CABLE LENGTH'!$B11:$P11,D$2)=2,'CABLE LENGTH'!$AL11,0) -> 0 | E11: =IF(COUNTIF('CABLE LENGTH'!$A11:$P11,E$1)+COUNTIF('CABLE LENGTH'!$B11:$P11,E$2)=2,'CABLE LENGTH'!$AL11,0) -> 0 | F11: =IF(COUNTIF('CABLE LENGTH'!$A11:$P11,F$1)+COUNTIF('CABLE LENGTH'!$B11:$P11,F$2)=2,'CABLE LENGTH'!$AL11,0) -> 0 | G11: =IF(COUNTIF('CABLE LENGTH'!$A11:$P11,G$1)+COUNTIF('CABLE LENGTH'!$B11:$P11,G$2)=2,'CABLE LENGTH'!$AL11,0) -> 0 | H11: =IF(COUNTIF('CABLE LENGTH'!$A11:$P11,H$1)+COUNTIF('CABLE LENGTH'!$B11:$P11,H$2)=2,'CABLE LENGTH'!$AL11,0) -> 0 | I11: =IF(COUNTIF('CABLE LENGTH'!$A11:$P11,I$1)+COUNTIF('CABLE LENGTH'!$B11:$P11,I$2)=2,'CABLE LENGTH'!$AL11,0) -> 0 | J11: =IF(COUNTIF('CABLE LENGTH'!$A11:$P11,J$1)+COUNTIF('CABLE LENGTH'!$B11:$P11,J$2)=2,'CABLE LENGTH'!$AL11,0) -> 0 | K11: =IF(COUNTIF('CABLE LENGTH'!$A11:$P11,K$1)+COUNTIF('CABLE LENGTH'!$B11:$P11,K$2)=2,'CABLE LENGTH'!$AL11,0) -> 0 | L11: =IF(COUNTIF('CABLE LENGTH'!$A11:$P11,L$1)+COUNTIF('CABLE LENGTH'!$B11:$P11,L$2)=2,'CABLE LENGTH'!$AL11,0) -> 0 | M11: =IF(COUNTIF('CABLE LENGTH'!$A11:$P11,M$1)+COUNTIF('CABLE LENGTH'!$B11:$P11,M$2)=2,'CABLE LENGTH'!$AL11,0) -> 0 | N11: =IF(COUNTIF('CABLE LENGTH'!$A11:$P11,N$1)+COUNTIF('CABLE LENGTH'!$B11:$P11,N$2)=2,'CABLE LENGTH'!$AL11,0) -> 0 | O11: =IF(COUNTIF('CABLE LENGTH'!$A11:$P11,O$1)+COUNTIF('CABLE LENGTH'!$B11:$P11,O$2)=2,'CABLE LENGTH'!$AL11,0) -> 0 | P11: =IF(COUNTIF('CABLE LENGTH'!$A11:$P11,P$1)+COUNTIF('CABLE LENGTH'!$B11:$P11,P$2)=2,'CABLE LENGTH'!$AL11,0) -> 0 | Q11: =IF(COUNTIF('CABLE LENGTH'!$A11:$P11,Q$1)+COUNTIF('CABLE LENGTH'!$B11:$P11,Q$2)=2,'CABLE LENGTH'!$AL11,0) -> 0 | R11: =IF(COUNTIF('CABLE LENGTH'!$A11:$P11,R$1)+COUNTIF('CABLE LENGTH'!$B11:$P11,R$2)=2,'CABLE LENGTH'!$AL11,0) -> 0 | S11: =IF(COUNTIF('CABLE LENGTH'!$A11:$P11,S$1)+COUNTIF('CABLE LENGTH'!$B11:$P11,S$2)=2,'CABLE LENGTH'!$AL11,0) -> 0 | T11: =IF(COUNTIF('CABLE LENGTH'!$A11:$P11,T$1)+COUNTIF('CABLE LENGTH'!$B11:$P11,T$2)=2,'CABLE LENGTH'!$AL11,0) -> 0 | U11: =IF(COUNTIF('CABLE LENGTH'!$A11:$P11,U$1)+COUNTIF('CABLE LENGTH'!$B11:$P11,U$2)=2,'CABLE LENGTH'!$AL11,0) -> 0 | V11: =IF(COUNTIF('CABLE LENGTH'!$A11:$P11,V$1)+COUNTIF('CABLE LENGTH'!$B11:$P11,V$2)=2,'CABLE LENGTH'!$AL11,0) -> 0 | W11: =IF(COUNTIF('CABLE LENGTH'!$A11:$P11,W$1)+COUNTIF('CABLE LENGTH'!$B11:$P11,W$2)=2,'CABLE LENGTH'!$AL11,0) -> 0 | X11: =IF(COUNTIF('CABLE LENGTH'!$A11:$P11,X$1)+COUNTIF('CABLE LENGTH'!$B11:$P11,X$2)=2,'CABLE LENGTH'!$AL11,0) -> 0 | Y11: =IF(COUNTIF('CABLE LENGTH'!$A11:$P11,Y$1)+COUNTIF('CABLE LENGTH'!$A11:$P11,Y$2)=2,'CABLE LENGTH'!$AL11,0) -> 0 | Z11: =IF(COUNTIF('CABLE LENGTH'!$A11:$P11,Z$1)+COUNTIF('CABLE LENGTH'!$A11:$P11,Z$2)=2,'CABLE LENGTH'!$AL11,0) -> 0 | AA11: =IF(COUNTIF('CABLE LENGTH'!$A11:$P11,AA$1)+COUNTIF('CABLE LENGTH'!$A11:$P11,AA$2)=2,'CABLE LENGTH'!$AL11,0) -> 0 | AB11: =IF(COUNTIF('CABLE LENGTH'!$A11:$P11,AB$1)+COUNTIF('CABLE LENGTH'!$A11:$P11,AB$2)=2,'CABLE LENGTH'!$AL11,0) -> 0 | AC11: =IF(COUNTIF('CABLE LENGTH'!$A11:$P11,AC$1)+COUNTIF('CABLE LENGTH'!$A11:$P11,AC$2)=2,'CABLE LENGTH'!$AL11,0) -> 0 | AD11: =IF(COUNTIF('CABLE LENGTH'!$A11:$P11,AD$1)+COUNTIF('CABLE LENGTH'!$A11:$P11,AD$2)=2,'CABLE LENGTH'!$AL11,0) -> 0 | AE11: =IF(COUNTIF('CABLE LENGTH'!$A11:$P11,AE$1)+COUNTIF('CABLE LENGTH'!$A11:$P11,AE$2)=2,'CABLE LENGTH'!$AL11,0) -> 0 | AF11: =IF(COUNTIF('CABLE LENGTH'!$A11:$P11,AF$1)+COUNTIF('CABLE LENGTH'!$A11:$P11,AF$2)=2,'CABLE LENGTH'!$AL11,0) -> 0 | AG11: =IF(COUNTIF('CABLE LENGTH'!$A11:$P11,AG$1)+COUNTIF('CABLE LENGTH'!$A11:$P11,AG$2)=2,'CABLE LENGTH'!$AL11,0) -> 0 | AH11: =IF(COUNTIF('CABLE LENGTH'!$A11:$P11,AH$1)+COUNTIF('CABLE LENGTH'!$A11:$P11,AH$2)=2,'CABLE LENGTH'!$AL11,0) -> 0 | AI11: =IF(COUNTIF('CABLE LENGTH'!$A11:$P11,AI$1)+COUNTIF('CABLE LENGTH'!$A11:$P11,AI$2)=2,'CABLE LENGTH'!$AL11,0) -> 0 | AJ11: =IF(COUNTIF('CABLE LENGTH'!$A11:$P11,AJ$1)+COUNTIF('CABLE LENGTH'!$A11:$P11,AJ$2)=2,'CABLE LENGTH'!$AL11,0) -> 0 | AK11: =IF(COUNTIF('CABLE LENGTH'!$A11:$P11,AK$1)+COUNTIF('CABLE LENGTH'!$A11:$P11,AK$2)=2,'CABLE LENGTH'!$AL11,0) -> 0 | AL11: =IF(COUNTIF('CABLE LENGTH'!$A11:$P11,AL$1)+COUNTIF('CABLE LENGTH'!$A11:$P11,AL$2)=2,'CABLE LENGTH'!$AL11,0) -> 0 | AM11: =IF(COUNTIF('CABLE LENGTH'!$A11:$P11,AM$1)+COUNTIF('CABLE LENGTH'!$A11:$P11,AM$2)=2,'CABLE LENGTH'!$AL11,0) -> 0 | AN11: =IF(COUNTIF('CABLE LENGTH'!$A11:$P11,AN$1)+COUNTIF('CABLE LENGTH'!$A11:$P11,AN$2)=2,'CABLE LENGTH'!$AL11,0) -> 0 | AO11: =IF(COUNTIF('CABLE LENGTH'!$A11:$P11,AO$1)+COUNTIF('CABLE LENGTH'!$A11:$P11,AO$2)=2,'CABLE LENGTH'!$AL11,0) -> 0 | AP11: =IF(COUNTIF('CABLE LENGTH'!$A11:$P11,AP$1)+COUNTIF('CABLE LENGTH'!$A11:$P11,AP$2)=2,'CABLE LENGTH'!$AL11,0) -> 0 | AQ11: =IF(COUNTIF('CABLE LENGTH'!$A11:$P11,AQ$1)+COUNTIF('CABLE LENGTH'!$A11:$P11,AQ$2)=2,'CABLE LENGTH'!$AL11,0) -> 0 | AR11: =IF(COUNTIF('CABLE LENGTH'!$A11:$P11,AR$1)+COUNTIF('CABLE LENGTH'!$A11:$P11,AR$2)=2,'CABLE LENGTH'!$AL11,0) -> 0 | AS11: =IF(COUNTIF('CABLE LENGTH'!$A11:$P11,AS$1)+COUNTIF('CABLE LENGTH'!$A11:$P11,AS$2)=2,'CABLE LENGTH'!$AL11,0) -> 0 | AT11: =IF(COUNTIF('CABLE LENGTH'!$A11:$P11,AT$1)+COUNTIF('CABLE LENGTH'!$A11:$P11,AT$2)=2,'CABLE LENGTH'!$AL11,0) -> 0 | AU11: =IF(COUNTIF('CABLE LENGTH'!$A11:$P11,AU$1)+COUNTIF('CABLE LENGTH'!$A11:$P11,AU$2)=2,'CABLE LENGTH'!$AL11,0) -> 0 | AV11: =IF(COUNTIF('CABLE LENGTH'!$A11:$P11,AV$1)+COUNTIF('CABLE LENGTH'!$A11:$P11,AV$2)=2,'CABLE LENGTH'!$AL11,0) -> 0 | AW11: =IF(COUNTIF('CABLE LENGTH'!$A11:$P11,AW$1)+COUNTIF('CABLE LENGTH'!$A11:$P11,AW$2)=2,'CABLE LENGTH'!$AL11,0) -> 0 | AX11: =IF(COUNTIF('CABLE LENGTH'!$A11:$P11,AX$1)+COUNTIF('CABLE LENGTH'!$A11:$P11,AX$2)=2,'CABLE LENGTH'!$AL11,0) -> 0 | AY11: =IF(COUNTIF('CABLE LENGTH'!$A11:$P11,AY$1)+COUNTIF('CABLE LENGTH'!$A11:$P11,AY$2)=2,'CABLE LENGTH'!$AL11,0) -> 0 | AZ11: =IF(COUNTIF('CABLE LENGTH'!$A11:$P11,AZ$1)+COUNTIF('CABLE LENGTH'!$A11:$P11,AZ$2)=2,'CABLE LENGTH'!$AL11,0) -> 0
B12: =+'CABLE LENGTH'!AK12 -> 0 | C12: =IF(COUNTIF('CABLE LENGTH'!$A12:$P12,C$1)+COUNTIF('CABLE LENGTH'!$B12:$P12,C$2)=2,'CABLE LENGTH'!$AL12,0) -> 0 | D12: =IF(COUNTIF('CABLE LENGTH'!$A12:$P12,D$1)+COUNTIF('CABLE LENGTH'!$B12:$P12,D$2)=2,'CABLE LENGTH'!$AL12,0) -> 0 | E12: =IF(COUNTIF('CABLE LENGTH'!$A12:$P12,E$1)+COUNTIF('CABLE LENGTH'!$B12:$P12,E$2)=2,'CABLE LENGTH'!$AL12,0) -> 0 | F12: =IF(COUNTIF('CABLE LENGTH'!$A12:$P12,F$1)+COUNTIF('CABLE LENGTH'!$B12:$P12,F$2)=2,'CABLE LENGTH'!$AL12,0) -> 0 | G12: =IF(COUNTIF('CABLE LENGTH'!$A12:$P12,G$1)+COUNTIF('CABLE LENGTH'!$B12:$P12,G$2)=2,'CABLE LENGTH'!$AL12,0) -> 0 | H12: =IF(COUNTIF('CABLE LENGTH'!$A12:$P12,H$1)+COUNTIF('CABLE LENGTH'!$B12:$P12,H$2)=2,'CABLE LENGTH'!$AL12,0) -> 0 | I12: =IF(COUNTIF('CABLE LENGTH'!$A12:$P12,I$1)+COUNTIF('CABLE LENGTH'!$B12:$P12,I$2)=2,'CABLE LENGTH'!$AL12,0) -> 0 | J12: =IF(COUNTIF('CABLE LENGTH'!$A12:$P12,J$1)+COUNTIF('CABLE LENGTH'!$B12:$P12,J$2)=2,'CABLE LENGTH'!$AL12,0) -> 0 | K12: =IF(COUNTIF('CABLE LENGTH'!$A12:$P12,K$1)+COUNTIF('CABLE LENGTH'!$B12:$P12,K$2)=2,'CABLE LENGTH'!$AL12,0) -> 0 | L12: =IF(COUNTIF('CABLE LENGTH'!$A12:$P12,L$1)+COUNTIF('CABLE LENGTH'!$B12:$P12,L$2)=2,'CABLE LENGTH'!$AL12,0) -> 0 | M12: =IF(COUNTIF('CABLE LENGTH'!$A12:$P12,M$1)+COUNTIF('CABLE LENGTH'!$B12:$P12,M$2)=2,'CABLE LENGTH'!$AL12,0) -> 0 | N12: =IF(COUNTIF('CABLE LENGTH'!$A12:$P12,N$1)+COUNTIF('CABLE LENGTH'!$B12:$P12,N$2)=2,'CABLE LENGTH'!$AL12,0) -> 0 | O12: =IF(COUNTIF('CABLE LENGTH'!$A12:$P12,O$1)+COUNTIF('CABLE LENGTH'!$B12:$P12,O$2)=2,'CABLE LENGTH'!$AL12,0) -> 0 | P12: =IF(COUNTIF('CABLE LENGTH'!$A12:$P12,P$1)+COUNTIF('CABLE LENGTH'!$B12:$P12,P$2)=2,'CABLE LENGTH'!$AL12,0) -> 0 | Q12: =IF(COUNTIF('CABLE LENGTH'!$A12:$P12,Q$1)+COUNTIF('CABLE LENGTH'!$B12:$P12,Q$2)=2,'CABLE LENGTH'!$AL12,0) -> 0 | R12: =IF(COUNTIF('CABLE LENGTH'!$A12:$P12,R$1)+COUNTIF('CABLE LENGTH'!$B12:$P12,R$2)=2,'CABLE LENGTH'!$AL12,0) -> 0 | S12: =IF(COUNTIF('CABLE LENGTH'!$A12:$P12,S$1)+COUNTIF('CABLE LENGTH'!$B12:$P12,S$2)=2,'CABLE LENGTH'!$AL12,0) -> 0 | T12: =IF(COUNTIF('CABLE LENGTH'!$A12:$P12,T$1)+COUNTIF('CABLE LENGTH'!$B12:$P12,T$2)=2,'CABLE LENGTH'!$AL12,0) -> 0 | U12: =IF(COUNTIF('CABLE LENGTH'!$A12:$P12,U$1)+COUNTIF('CABLE LENGTH'!$B12:$P12,U$2)=2,'CABLE LENGTH'!$AL12,0) -> 0 | V12: =IF(COUNTIF('CABLE LENGTH'!$A12:$P12,V$1)+COUNTIF('CABLE LENGTH'!$B12:$P12,V$2)=2,'CABLE LENGTH'!$AL12,0) -> 0 | W12: =IF(COUNTIF('CABLE LENGTH'!$A12:$P12,W$1)+COUNTIF('CABLE LENGTH'!$B12:$P12,W$2)=2,'CABLE LENGTH'!$AL12,0) -> 0 | X12: =IF(COUNTIF('CABLE LENGTH'!$A12:$P12,X$1)+COUNTIF('CABLE LENGTH'!$B12:$P12,X$2)=2,'CABLE LENGTH'!$AL12,0) -> 0 | Y12: =IF(COUNTIF('CABLE LENGTH'!$A12:$P12,Y$1)+COUNTIF('CABLE LENGTH'!$A12:$P12,Y$2)=2,'CABLE LENGTH'!$AL12,0) -> 0 | Z12: =IF(COUNTIF('CABLE LENGTH'!$A12:$P12,Z$1)+COUNTIF('CABLE LENGTH'!$A12:$P12,Z$2)=2,'CABLE LENGTH'!$AL12,0) -> 0 | AA12: =IF(COUNTIF('CABLE LENGTH'!$A12:$P12,AA$1)+COUNTIF('CABLE LENGTH'!$A12:$P12,AA$2)=2,'CABLE LENGTH'!$AL12,0) -> 0 | AB12: =IF(COUNTIF('CABLE LENGTH'!$A12:$P12,AB$1)+COUNTIF('CABLE LENGTH'!$A12:$P12,AB$2)=2,'CABLE LENGTH'!$AL12,0) -> 0 | AC12: =IF(COUNTIF('CABLE LENGTH'!$A12:$P12,AC$1)+COUNTIF('CABLE LENGTH'!$A12:$P12,AC$2)=2,'CABLE LENGTH'!$AL12,0) -> 0 | AD12: =IF(COUNTIF('CABLE LENGTH'!$A12:$P12,AD$1)+COUNTIF('CABLE LENGTH'!$A12:$P12,AD$2)=2,'CABLE LENGTH'!$AL12,0) -> 0 | AE12: =IF(COUNTIF('CABLE LENGTH'!$A12:$P12,AE$1)+COUNTIF('CABLE LENGTH'!$A12:$P12,AE$2)=2,'CABLE LENGTH'!$AL12,0) -> 0 | AF12: =IF(COUNTIF('CABLE LENGTH'!$A12:$P12,AF$1)+COUNTIF('CABLE LENGTH'!$A12:$P12,AF$2)=2,'CABLE LENGTH'!$AL12,0) -> 0 | AG12: =IF(COUNTIF('CABLE LENGTH'!$A12:$P12,AG$1)+COUNTIF('CABLE LENGTH'!$A12:$P12,AG$2)=2,'CABLE LENGTH'!$AL12,0) -> 0 | AH12: =IF(COUNTIF('CABLE LENGTH'!$A12:$P12,AH$1)+COUNTIF('CABLE LENGTH'!$A12:$P12,AH$2)=2,'CABLE LENGTH'!$AL12,0) -> 0 | AI12: =IF(COUNTIF('CABLE LENGTH'!$A12:$P12,AI$1)+COUNTIF('CABLE LENGTH'!$A12:$P12,AI$2)=2,'CABLE LENGTH'!$AL12,0) -> 0 | AJ12: =IF(COUNTIF('CABLE LENGTH'!$A12:$P12,AJ$1)+COUNTIF('CABLE LENGTH'!$A12:$P12,AJ$2)=2,'CABLE LENGTH'!$AL12,0) -> 0 | AK12: =IF(COUNTIF('CABLE LENGTH'!$A12:$P12,AK$1)+COUNTIF('CABLE LENGTH'!$A12:$P12,AK$2)=2,'CABLE LENGTH'!$AL12,0) -> 0 | AL12: =IF(COUNTIF('CABLE LENGTH'!$A12:$P12,AL$1)+COUNTIF('CABLE LENGTH'!$A12:$P12,AL$2)=2,'CABLE LENGTH'!$AL12,0) -> 0 | AM12: =IF(COUNTIF('CABLE LENGTH'!$A12:$P12,AM$1)+COUNTIF('CABLE LENGTH'!$A12:$P12,AM$2)=2,'CABLE LENGTH'!$AL12,0) -> 0 | AN12: =IF(COUNTIF('CABLE LENGTH'!$A12:$P12,AN$1)+COUNTIF('CABLE LENGTH'!$A12:$P12,AN$2)=2,'CABLE LENGTH'!$AL12,0) -> 0 | AO12: =IF(COUNTIF('CABLE LENGTH'!$A12:$P12,AO$1)+COUNTIF('CABLE LENGTH'!$A12:$P12,AO$2)=2,'CABLE LENGTH'!$AL12,0) -> 0 | AP12: =IF(COUNTIF('CABLE LENGTH'!$A12:$P12,AP$1)+COUNTIF('CABLE LENGTH'!$A12:$P12,AP$2)=2,'CABLE LENGTH'!$AL12,0) -> 0 | AQ12: =IF(COUNTIF('CABLE LENGTH'!$A12:$P12,AQ$1)+COUNTIF('CABLE LENGTH'!$A12:$P12,AQ$2)=2,'CABLE LENGTH'!$AL12,0) -> 0 | AR12: =IF(COUNTIF('CABLE LENGTH'!$A12:$P12,AR$1)+COUNTIF('CABLE LENGTH'!$A12:$P12,AR$2)=2,'CABLE LENGTH'!$AL12,0) -> 0 | AS12: =IF(COUNTIF('CABLE LENGTH'!$A12:$P12,AS$1)+COUNTIF('CABLE LENGTH'!$A12:$P12,AS$2)=2,'CABLE LENGTH'!$AL12,0) -> 0 | AT12: =IF(COUNTIF('CABLE LENGTH'!$A12:$P12,AT$1)+COUNTIF('CABLE LENGTH'!$A12:$P12,AT$2)=2,'CABLE LENGTH'!$AL12,0) -> 0 | AU12: =IF(COUNTIF('CABLE LENGTH'!$A12:$P12,AU$1)+COUNTIF('CABLE LENGTH'!$A12:$P12,AU$2)=2,'CABLE LENGTH'!$AL12,0) -> 0 | AV12: =IF(COUNTIF('CABLE LENGTH'!$A12:$P12,AV$1)+COUNTIF('CABLE LENGTH'!$A12:$P12,AV$2)=2,'CABLE LENGTH'!$AL12,0) -> 0 | AW12: =IF(COUNTIF('CABLE LENGTH'!$A12:$P12,AW$1)+COUNTIF('CABLE LENGTH'!$A12:$P12,AW$2)=2,'CABLE LENGTH'!$AL12,0) -> 0 | AX12: =IF(COUNTIF('CABLE LENGTH'!$A12:$P12,AX$1)+COUNTIF('CABLE LENGTH'!$A12:$P12,AX$2)=2,'CABLE LENGTH'!$AL12,0) -> 0 | AY12: =IF(COUNTIF('CABLE LENGTH'!$A12:$P12,AY$1)+COUNTIF('CABLE LENGTH'!$A12:$P12,AY$2)=2,'CABLE LENGTH'!$AL12,0) -> 0 | AZ12: =IF(COUNTIF('CABLE LENGTH'!$A12:$P12,AZ$1)+COUNTIF('CABLE LENGTH'!$A12:$P12,AZ$2)=2,'CABLE LENGTH'!$AL12,0) -> 0
B13: =+'CABLE LENGTH'!AK13 -> 0 | C13: =IF(COUNTIF('CABLE LENGTH'!$A13:$P13,C$1)+COUNTIF('CABLE LENGTH'!$B13:$P13,C$2)=2,'CABLE LENGTH'!$AL13,0) -> 0 | D13: =IF(COUNTIF('CABLE LENGTH'!$A13:$P13,D$1)+COUNTIF('CABLE LENGTH'!$B13:$P13,D$2)=2,'CABLE LENGTH'!$AL13,0) -> 0 | E13: =IF(COUNTIF('CABLE LENGTH'!$A13:$P13,E$1)+COUNTIF('CABLE LENGTH'!$B13:$P13,E$2)=2,'CABLE LENGTH'!$AL13,0) -> 0 | F13: =IF(COUNTIF('CABLE LENGTH'!$A13:$P13,F$1)+COUNTIF('CABLE LENGTH'!$B13:$P13,F$2)=2,'CABLE LENGTH'!$AL13,0) -> 0 | G13: =IF(COUNTIF('CABLE LENGTH'!$A13:$P13,G$1)+COUNTIF('CABLE LENGTH'!$B13:$P13,G$2)=2,'CABLE LENGTH'!$AL13,0) -> 0 | H13: =IF(COUNTIF('CABLE LENGTH'!$A13:$P13,H$1)+COUNTIF('CABLE LENGTH'!$B13:$P13,H$2)=2,'CABLE LENGTH'!$AL13,0) -> 0 | I13: =IF(COUNTIF('CABLE LENGTH'!$A13:$P13,I$1)+COUNTIF('CABLE LENGTH'!$B13:$P13,I$2)=2,'CABLE LENGTH'!$AL13,0) -> 0 | J13: =IF(COUNTIF('CABLE LENGTH'!$A13:$P13,J$1)+COUNTIF('CABLE LENGTH'!$B13:$P13,J$2)=2,'CABLE LENGTH'!$AL13,0) -> 0 | K13: =IF(COUNTIF('CABLE LENGTH'!$A13:$P13,K$1)+COUNTIF('CABLE LENGTH'!$B13:$P13,K$2)=2,'CABLE LENGTH'!$AL13,0) -> 0 | L13: =IF(COUNTIF('CABLE LENGTH'!$A13:$P13,L$1)+COUNTIF('CABLE LENGTH'!$B13:$P13,L$2)=2,'CABLE LENGTH'!$AL13,0) -> 0 | M13: =IF(COUNTIF('CABLE LENGTH'!$A13:$P13,M$1)+COUNTIF('CABLE LENGTH'!$B13:$P13,M$2)=2,'CABLE LENGTH'!$AL13,0) -> 0 | N13: =IF(COUNTIF('CABLE LENGTH'!$A13:$P13,N$1)+COUNTIF('CABLE LENGTH'!$B13:$P13,N$2)=2,'CABLE LENGTH'!$AL13,0) -> 0 | O13: =IF(COUNTIF('CABLE LENGTH'!$A13:$P13,O$1)+COUNTIF('CABLE LENGTH'!$B13:$P13,O$2)=2,'CABLE LENGTH'!$AL13,0) -> 0 | P13: =IF(COUNTIF('CABLE LENGTH'!$A13:$P13,P$1)+COUNTIF('CABLE LENGTH'!$B13:$P13,P$2)=2,'CABLE LENGTH'!$AL13,0) -> 0 | Q13: =IF(COUNTIF('CABLE LENGTH'!$A13:$P13,Q$1)+COUNTIF('CABLE LENGTH'!$B13:$P13,Q$2)=2,'CABLE LENGTH'!$AL13,0) -> 0 | R13: =IF(COUNTIF('CABLE LENGTH'!$A13:$P13,R$1)+COUNTIF('CABLE LENGTH'!$B13:$P13,R$2)=2,'CABLE LENGTH'!$AL13,0) -> 0 | S13: =IF(COUNTIF('CABLE LENGTH'!$A13:$P13,S$1)+COUNTIF('CABLE LENGTH'!$B13:$P13,S$2)=2,'CABLE LENGTH'!$AL13,0) -> 0 | T13: =IF(COUNTIF('CABLE LENGTH'!$A13:$P13,T$1)+COUNTIF('CABLE LENGTH'!$B13:$P13,T$2)=2,'CABLE LENGTH'!$AL13,0) -> 0 | U13: =IF(COUNTIF('CABLE LENGTH'!$A13:$P13,U$1)+COUNTIF('CABLE LENGTH'!$B13:$P13,U$2)=2,'CABLE LENGTH'!$AL13,0) -> 0 | V13: =IF(COUNTIF('CABLE LENGTH'!$A13:$P13,V$1)+COUNTIF('CABLE LENGTH'!$B13:$P13,V$2)=2,'CABLE LENGTH'!$AL13,0) -> 0 | W13: =IF(COUNTIF('CABLE LENGTH'!$A13:$P13,W$1)+COUNTIF('CABLE LENGTH'!$B13:$P13,W$2)=2,'CABLE LENGTH'!$AL13,0) -> 0 | X13: =IF(COUNTIF('CABLE LENGTH'!$A13:$P13,X$1)+COUNTIF('CABLE LENGTH'!$B13:$P13,X$2)=2,'CABLE LENGTH'!$AL13,0) -> 0 | Y13: =IF(COUNTIF('CABLE LENGTH'!$A13:$P13,Y$1)+COUNTIF('CABLE LENGTH'!$A13:$P13,Y$2)=2,'CABLE LENGTH'!$AL13,0) -> 0 | Z13: =IF(COUNTIF('CABLE LENGTH'!$A13:$P13,Z$1)+COUNTIF('CABLE LENGTH'!$A13:$P13,Z$2)=2,'CABLE LENGTH'!$AL13,0) -> 0 | AA13: =IF(COUNTIF('CABLE LENGTH'!$A13:$P13,AA$1)+COUNTIF('CABLE LENGTH'!$A13:$P13,AA$2)=2,'CABLE LENGTH'!$AL13,0) -> 0 | AB13: =IF(COUNTIF('CABLE LENGTH'!$A13:$P13,AB$1)+COUNTIF('CABLE LENGTH'!$A13:$P13,AB$2)=2,'CABLE LENGTH'!$AL13,0) -> 0 | AC13: =IF(COUNTIF('CABLE LENGTH'!$A13:$P13,AC$1)+COUNTIF('CABLE LENGTH'!$A13:$P13,AC$2)=2,'CABLE LENGTH'!$AL13,0) -> 0 | AD13: =IF(COUNTIF('CABLE LENGTH'!$A13:$P13,AD$1)+COUNTIF('CABLE LENGTH'!$A13:$P13,AD$2)=2,'CABLE LENGTH'!$AL13,0) -> 0 | AE13: =IF(COUNTIF('CABLE LENGTH'!$A13:$P13,AE$1)+COUNTIF('CABLE LENGTH'!$A13:$P13,AE$2)=2,'CABLE LENGTH'!$AL13,0) -> 0 | AF13: =IF(COUNTIF('CABLE LENGTH'!$A13:$P13,AF$1)+COUNTIF('CABLE LENGTH'!$A13:$P13,AF$2)=2,'CABLE LENGTH'!$AL13,0) -> 0 | AG13: =IF(COUNTIF('CABLE LENGTH'!$A13:$P13,AG$1)+COUNTIF('CABLE LENGTH'!$A13:$P13,AG$2)=2,'CABLE LENGTH'!$AL13,0) -> 0 | AH13: =IF(COUNTIF('CABLE LENGTH'!$A13:$P13,AH$1)+COUNTIF('CABLE LENGTH'!$A13:$P13,AH$2)=2,'CABLE LENGTH'!$AL13,0) -> 0 | AI13: =IF(COUNTIF('CABLE LENGTH'!$A13:$P13,AI$1)+COUNTIF('CABLE LENGTH'!$A13:$P13,AI$2)=2,'CABLE LENGTH'!$AL13,0) -> 0 | AJ13: =IF(COUNTIF('CABLE LENGTH'!$A13:$P13,AJ$1)+COUNTIF('CABLE LENGTH'!$A13:$P13,AJ$2)=2,'CABLE LENGTH'!$AL13,0) -> 0 | AK13: =IF(COUNTIF('CABLE LENGTH'!$A13:$P13,AK$1)+COUNTIF('CABLE LENGTH'!$A13:$P13,AK$2)=2,'CABLE LENGTH'!$AL13,0) -> 0 | AL13: =IF(COUNTIF('CABLE LENGTH'!$A13:$P13,AL$1)+COUNTIF('CABLE LENGTH'!$A13:$P13,AL$2)=2,'CABLE LENGTH'!$AL13,0) -> 0 | AM13: =IF(COUNTIF('CABLE LENGTH'!$A13:$P13,AM$1)+COUNTIF('CABLE LENGTH'!$A13:$P13,AM$2)=2,'CABLE LENGTH'!$AL13,0) -> 0 | AN13: =IF(COUNTIF('CABLE LENGTH'!$A13:$P13,AN$1)+COUNTIF('CABLE LENGTH'!$A13:$P13,AN$2)=2,'CABLE LENGTH'!$AL13,0) -> 0 | AO13: =IF(COUNTIF('CABLE LENGTH'!$A13:$P13,AO$1)+COUNTIF('CABLE LENGTH'!$A13:$P13,AO$2)=2,'CABLE LENGTH'!$AL13,0) -> 0 | AP13: =IF(COUNTIF('CABLE LENGTH'!$A13:$P13,AP$1)+COUNTIF('CABLE LENGTH'!$A13:$P13,AP$2)=2,'CABLE LENGTH'!$AL13,0) -> 0 | AQ13: =IF(COUNTIF('CABLE LENGTH'!$A13:$P13,AQ$1)+COUNTIF('CABLE LENGTH'!$A13:$P13,AQ$2)=2,'CABLE LENGTH'!$AL13,0) -> 0 | AR13: =IF(COUNTIF('CABLE LENGTH'!$A13:$P13,AR$1)+COUNTIF('CABLE LENGTH'!$A13:$P13,AR$2)=2,'CABLE LENGTH'!$AL13,0) -> 0 | AS13: =IF(COUNTIF('CABLE LENGTH'!$A13:$P13,AS$1)+COUNTIF('CABLE LENGTH'!$A13:$P13,AS$2)=2,'CABLE LENGTH'!$AL13,0) -> 0 | AT13: =IF(COUNTIF('CABLE LENGTH'!$A13:$P13,AT$1)+COUNTIF('CABLE LENGTH'!$A13:$P13,AT$2)=2,'CABLE LENGTH'!$AL13,0) -> 0 | AU13: =IF(COUNTIF('CABLE LENGTH'!$A13:$P13,AU$1)+COUNTIF('CABLE LENGTH'!$A13:$P13,AU$2)=2,'CABLE LENGTH'!$AL13,0) -> 0 | AV13: =IF(COUNTIF('CABLE LENGTH'!$A13:$P13,AV$1)+COUNTIF('CABLE LENGTH'!$A13:$P13,AV$2)=2,'CABLE LENGTH'!$AL13,0) -> 0 | AW13: =IF(COUNTIF('CABLE LENGTH'!$A13:$P13,AW$1)+COUNTIF('CABLE LENGTH'!$A13:$P13,AW$2)=2,'CABLE LENGTH'!$AL13,0) -> 0 | AX13: =IF(COUNTIF('CABLE LENGTH'!$A13:$P13,AX$1)+COUNTIF('CABLE LENGTH'!$A13:$P13,AX$2)=2,'CABLE LENGTH'!$AL13,0) -> 0 | AY13: =IF(COUNTIF('CABLE LENGTH'!$A13:$P13,AY$1)+COUNTIF('CABLE LENGTH'!$A13:$P13,AY$2)=2,'CABLE LENGTH'!$AL13,0) -> 0 | AZ13: =IF(COUNTIF('CABLE LENGTH'!$A13:$P13,AZ$1)+COUNTIF('CABLE LENGTH'!$A13:$P13,AZ$2)=2,'CABLE LENGTH'!$AL13,0) -> 0
B14: =+'CABLE LENGTH'!AK14 -> 0 | C14: =IF(COUNTIF('CABLE LENGTH'!$A14:$P14,C$1)+COUNTIF('CABLE LENGTH'!$B14:$P14,C$2)=2,'CABLE LENGTH'!$AL14,0) -> 0 | D14: =IF(COUNTIF('CABLE LENGTH'!$A14:$P14,D$1)+COUNTIF('CABLE LENGTH'!$B14:$P14,D$2)=2,'CABLE LENGTH'!$AL14,0) -> 0 | E14: =IF(COUNTIF('CABLE LENGTH'!$A14:$P14,E$1)+COUNTIF('CABLE LENGTH'!$B14:$P14,E$2)=2,'CABLE LENGTH'!$AL14,0) -> 0 | F14: =IF(COUNTIF('CABLE LENGTH'!$A14:$P14,F$1)+COUNTIF('CABLE LENGTH'!$B14:$P14,F$2)=2,'CABLE LENGTH'!$AL14,0) -> 0 | G14: =IF(COUNTIF('CABLE LENGTH'!$A14:$P14,G$1)+COUNTIF('CABLE LENGTH'!$B14:$P14,G$2)=2,'CABLE LENGTH'!$AL14,0) -> 0 | H14: =IF(COUNTIF('CABLE LENGTH'!$A14:$P14,H$1)+COUNTIF('CABLE LENGTH'!$B14:$P14,H$2)=2,'CABLE LENGTH'!$AL14,0) -> 0 | I14: =IF(COUNTIF('CABLE LENGTH'!$A14:$P14,I$1)+COUNTIF('CABLE LENGTH'!$B14:$P14,I$2)=2,'CABLE LENGTH'!$AL14,0) -> 0 | J14: =IF(COUNTIF('CABLE LENGTH'!$A14:$P14,J$1)+COUNTIF('CABLE LENGTH'!$B14:$P14,J$2)=2,'CABLE LENGTH'!$AL14,0) -> 0 | K14: =IF(COUNTIF('CABLE LENGTH'!$A14:$P14,K$1)+COUNTIF('CABLE LENGTH'!$B14:$P14,K$2)=2,'CABLE LENGTH'!$AL14,0) -> 0 | L14: =IF(COUNTIF('CABLE LENGTH'!$A14:$P14,L$1)+COUNTIF('CABLE LENGTH'!$B14:$P14,L$2)=2,'CABLE LENGTH'!$AL14,0) -> 0 | M14: =IF(COUNTIF('CABLE LENGTH'!$A14:$P14,M$1)+COUNTIF('CABLE LENGTH'!$B14:$P14,M$2)=2,'CABLE LENGTH'!$AL14,0) -> 0 | N14: =IF(COUNTIF('CABLE LENGTH'!$A14:$P14,N$1)+COUNTIF('CABLE LENGTH'!$B14:$P14,N$2)=2,'CABLE LENGTH'!$AL14,0) -> 0 | O14: =IF(COUNTIF('CABLE LENGTH'!$A14:$P14,O$1)+COUNTIF('CABLE LENGTH'!$B14:$P14,O$2)=2,'CABLE LENGTH'!$AL14,0) -> 0 | P14: =IF(COUNTIF('CABLE LENGTH'!$A14:$P14,P$1)+COUNTIF('CABLE LENGTH'!$B14:$P14,P$2)=2,'CABLE LENGTH'!$AL14,0) -> 0 | Q14: =IF(COUNTIF('CABLE LENGTH'!$A14:$P14,Q$1)+COUNTIF('CABLE LENGTH'!$B14:$P14,Q$2)=2,'CABLE LENGTH'!$AL14,0) -> 0 | R14: =IF(COUNTIF('CABLE LENGTH'!$A14:$P14,R$1)+COUNTIF('CABLE LENGTH'!$B14:$P14,R$2)=2,'CABLE LENGTH'!$AL14,0) -> 0 | S14: =IF(COUNTIF('CABLE LENGTH'!$A14:$P14,S$1)+COUNTIF('CABLE LENGTH'!$B14:$P14,S$2)=2,'CABLE LENGTH'!$AL14,0) -> 0 | T14: =IF(COUNTIF('CABLE LENGTH'!$A14:$P14,T$1)+COUNTIF('CABLE LENGTH'!$B14:$P14,T$2)=2,'CABLE LENGTH'!$AL14,0) -> 0 | U14: =IF(COUNTIF('CABLE LENGTH'!$A14:$P14,U$1)+COUNTIF('CABLE LENGTH'!$B14:$P14,U$2)=2,'CABLE LENGTH'!$AL14,0) -> 0 | V14: =IF(COUNTIF('CABLE LENGTH'!$A14:$P14,V$1)+COUNTIF('CABLE LENGTH'!$B14:$P14,V$2)=2,'CABLE LENGTH'!$AL14,0) -> 0 | W14: =IF(COUNTIF('CABLE LENGTH'!$A14:$P14,W$1)+COUNTIF('CABLE LENGTH'!$B14:$P14,W$2)=2,'CABLE LENGTH'!$AL14,0) -> 0 | X14: =IF(COUNTIF('CABLE LENGTH'!$A14:$P14,X$1)+COUNTIF('CABLE LENGTH'!$B14:$P14,X$2)=2,'CABLE LENGTH'!$AL14,0) -> 0 | Y14: =IF(COUNTIF('CABLE LENGTH'!$A14:$P14,Y$1)+COUNTIF('CABLE LENGTH'!$A14:$P14,Y$2)=2,'CABLE LENGTH'!$AL14,0) -> 0 | Z14: =IF(COUNTIF('CABLE LENGTH'!$A14:$P14,Z$1)+COUNTIF('CABLE LENGTH'!$A14:$P14,Z$2)=2,'CABLE LENGTH'!$AL14,0) -> 0 | AA14: =IF(COUNTIF('CABLE LENGTH'!$A14:$P14,AA$1)+COUNTIF('CABLE LENGTH'!$A14:$P14,AA$2)=2,'CABLE LENGTH'!$AL14,0) -> 0 | AB14: =IF(COUNTIF('CABLE LENGTH'!$A14:$P14,AB$1)+COUNTIF('CABLE LENGTH'!$A14:$P14,AB$2)=2,'CABLE LENGTH'!$AL14,0) -> 0 | AC14: =IF(COUNTIF('CABLE LENGTH'!$A14:$P14,AC$1)+COUNTIF('CABLE LENGTH'!$A14:$P14,AC$2)=2,'CABLE LENGTH'!$AL14,0) -> 0 | AD14: =IF(COUNTIF('CABLE LENGTH'!$A14:$P14,AD$1)+COUNTIF('CABLE LENGTH'!$A14:$P14,AD$2)=2,'CABLE LENGTH'!$AL14,0) -> 0 | AE14: =IF(COUNTIF('CABLE LENGTH'!$A14:$P14,AE$1)+COUNTIF('CABLE LENGTH'!$A14:$P14,AE$2)=2,'CABLE LENGTH'!$AL14,0) -> 0 | AF14: =IF(COUNTIF('CABLE LENGTH'!$A14:$P14,AF$1)+COUNTIF('CABLE LENGTH'!$A14:$P14,AF$2)=2,'CABLE LENGTH'!$AL14,0) -> 0 | AG14: =IF(COUNTIF('CABLE LENGTH'!$A14:$P14,AG$1)+COUNTIF('CABLE LENGTH'!$A14:$P14,AG$2)=2,'CABLE LENGTH'!$AL14,0) -> 0 | AH14: =IF(COUNTIF('CABLE LENGTH'!$A14:$P14,AH$1)+COUNTIF('CABLE LENGTH'!$A14:$P14,AH$2)=2,'CABLE LENGTH'!$AL14,0) -> 0 | AI14: =IF(COUNTIF('CABLE LENGTH'!$A14:$P14,AI$1)+COUNTIF('CABLE LENGTH'!$A14:$P14,AI$2)=2,'CABLE LENGTH'!$AL14,0) -> 0 | AJ14: =IF(COUNTIF('CABLE LENGTH'!$A14:$P14,AJ$1)+COUNTIF('CABLE LENGTH'!$A14:$P14,AJ$2)=2,'CABLE LENGTH'!$AL14,0) -> 0 | AK14: =IF(COUNTIF('CABLE LENGTH'!$A14:$P14,AK$1)+COUNTIF('CABLE LENGTH'!$A14:$P14,AK$2)=2,'CABLE LENGTH'!$AL14,0) -> 0 | AL14: =IF(COUNTIF('CABLE LENGTH'!$A14:$P14,AL$1)+COUNTIF('CABLE LENGTH'!$A14:$P14,AL$2)=2,'CABLE LENGTH'!$AL14,0) -> 0 | AM14: =IF(COUNTIF('CABLE LENGTH'!$A14:$P14,AM$1)+COUNTIF('CABLE LENGTH'!$A14:$P14,AM$2)=2,'CABLE LENGTH'!$AL14,0) -> 0 | AN14: =IF(COUNTIF('CABLE LENGTH'!$A14:$P14,AN$1)+COUNTIF('CABLE LENGTH'!$A14:$P14,AN$2)=2,'CABLE LENGTH'!$AL14,0) -> 0 | AO14: =IF(COUNTIF('CABLE LENGTH'!$A14:$P14,AO$1)+COUNTIF('CABLE LENGTH'!$A14:$P14,AO$2)=2,'CABLE LENGTH'!$AL14,0) -> 0 | AP14: =IF(COUNTIF('CABLE LENGTH'!$A14:$P14,AP$1)+COUNTIF('CABLE LENGTH'!$A14:$P14,AP$2)=2,'CABLE LENGTH'!$AL14,0) -> 0 | AQ14: =IF(COUNTIF('CABLE LENGTH'!$A14:$P14,AQ$1)+COUNTIF('CABLE LENGTH'!$A14:$P14,AQ$2)=2,'CABLE LENGTH'!$AL14,0) -> 0 | AR14: =IF(COUNTIF('CABLE LENGTH'!$A14:$P14,AR$1)+COUNTIF('CABLE LENGTH'!$A14:$P14,AR$2)=2,'CABLE LENGTH'!$AL14,0) -> 0 | AS14: =IF(COUNTIF('CABLE LENGTH'!$A14:$P14,AS$1)+COUNTIF('CABLE LENGTH'!$A14:$P14,AS$2)=2,'CABLE LENGTH'!$AL14,0) -> 0 | AT14: =IF(COUNTIF('CABLE LENGTH'!$A14:$P14,AT$1)+COUNTIF('CABLE LENGTH'!$A14:$P14,AT$2)=2,'CABLE LENGTH'!$AL14,0) -> 0 | AU14: =IF(COUNTIF('CABLE LENGTH'!$A14:$P14,AU$1)+COUNTIF('CABLE LENGTH'!$A14:$P14,AU$2)=2,'CABLE LENGTH'!$AL14,0) -> 0 | AV14: =IF(COUNTIF('CABLE LENGTH'!$A14:$P14,AV$1)+COUNTIF('CABLE LENGTH'!$A14:$P14,AV$2)=2,'CABLE LENGTH'!$AL14,0) -> 0 | AW14: =IF(COUNTIF('CABLE LENGTH'!$A14:$P14,AW$1)+COUNTIF('CABLE LENGTH'!$A14:$P14,AW$2)=2,'CABLE LENGTH'!$AL14,0) -> 0 | AX14: =IF(COUNTIF('CABLE LENGTH'!$A14:$P14,AX$1)+COUNTIF('CABLE LENGTH'!$A14:$P14,AX$2)=2,'CABLE LENGTH'!$AL14,0) -> 0 | AY14: =IF(COUNTIF('CABLE LENGTH'!$A14:$P14,AY$1)+COUNTIF('CABLE LENGTH'!$A14:$P14,AY$2)=2,'CABLE LENGTH'!$AL14,0) -> 0 | AZ14: =IF(COUNTIF('CABLE LENGTH'!$A14:$P14,AZ$1)+COUNTIF('CABLE LENGTH'!$A14:$P14,AZ$2)=2,'CABLE LENGTH'!$AL14,0) -> 0
B15: =+'CABLE LENGTH'!AK15 -> 0 | C15: =IF(COUNTIF('CABLE LENGTH'!$A15:$P15,C$1)+COUNTIF('CABLE LENGTH'!$B15:$P15,C$2)=2,'CABLE LENGTH'!$AL15,0) -> 0 | D15: =IF(COUNTIF('CABLE LENGTH'!$A15:$P15,D$1)+COUNTIF('CABLE LENGTH'!$B15:$P15,D$2)=2,'CABLE LENGTH'!$AL15,0) -> 0 | E15: =IF(COUNTIF('CABLE LENGTH'!$A15:$P15,E$1)+COUNTIF('CABLE LENGTH'!$B15:$P15,E$2)=2,'CABLE LENGTH'!$AL15,0) -> 0 | F15: =IF(COUNTIF('CABLE LENGTH'!$A15:$P15,F$1)+COUNTIF('CABLE LENGTH'!$B15:$P15,F$2)=2,'CABLE LENGTH'!$AL15,0) -> 0 | G15: =IF(COUNTIF('CABLE LENGTH'!$A15:$P15,G$1)+COUNTIF('CABLE LENGTH'!$B15:$P15,G$2)=2,'CABLE LENGTH'!$AL15,0) -> 0 | H15: =IF(COUNTIF('CABLE LENGTH'!$A15:$P15,H$1)+COUNTIF('CABLE LENGTH'!$B15:$P15,H$2)=2,'CABLE LENGTH'!$AL15,0) -> 0 | I15: =IF(COUNTIF('CABLE LENGTH'!$A15:$P15,I$1)+COUNTIF('CABLE LENGTH'!$B15:$P15,I$2)=2,'CABLE LENGTH'!$AL15,0) -> 0 | J15: =IF(COUNTIF('CABLE LENGTH'!$A15:$P15,J$1)+COUNTIF('CABLE LENGTH'!$B15:$P15,J$2)=2,'CABLE LENGTH'!$AL15,0) -> 0 | K15: =IF(COUNTIF('CABLE LENGTH'!$A15:$P15,K$1)+COUNTIF('CABLE LENGTH'!$B15:$P15,K$2)=2,'CABLE LENGTH'!$AL15,0) -> 0 | L15: =IF(COUNTIF('CABLE LENGTH'!$A15:$P15,L$1)+COUNTIF('CABLE LENGTH'!$B15:$P15,L$2)=2,'CABLE LENGTH'!$AL15,0) -> 0 | M15: =IF(COUNTIF('CABLE LENGTH'!$A15:$P15,M$1)+COUNTIF('CABLE LENGTH'!$B15:$P15,M$2)=2,'CABLE LENGTH'!$AL15,0) -> 0 | N15: =IF(COUNTIF('CABLE LENGTH'!$A15:$P15,N$1)+COUNTIF('CABLE LENGTH'!$B15:$P15,N$2)=2,'CABLE LENGTH'!$AL15,0) -> 0 | O15: =IF(COUNTIF('CABLE LENGTH'!$A15:$P15,O$1)+COUNTIF('CABLE LENGTH'!$B15:$P15,O$2)=2,'CABLE LENGTH'!$AL15,0) -> 0 | P15: =IF(COUNTIF('CABLE LENGTH'!$A15:$P15,P$1)+COUNTIF('CABLE LENGTH'!$B15:$P15,P$2)=2,'CABLE LENGTH'!$AL15,0) -> 0 | Q15: =IF(COUNTIF('CABLE LENGTH'!$A15:$P15,Q$1)+COUNTIF('CABLE LENGTH'!$B15:$P15,Q$2)=2,'CABLE LENGTH'!$AL15,0) -> 0 | R15: =IF(COUNTIF('CABLE LENGTH'!$A15:$P15,R$1)+COUNTIF('CABLE LENGTH'!$B15:$P15,R$2)=2,'CABLE LENGTH'!$AL15,0) -> 0 | S15: =IF(COUNTIF('CABLE LENGTH'!$A15:$P15,S$1)+COUNTIF('CABLE LENGTH'!$B15:$P15,S$2)=2,'CABLE LENGTH'!$AL15,0) -> 0 | T15: =IF(COUNTIF('CABLE LENGTH'!$A15:$P15,T$1)+COUNTIF('CABLE LENGTH'!$B15:$P15,T$2)=2,'CABLE LENGTH'!$AL15,0) -> 0 | U15: =IF(COUNTIF('CABLE LENGTH'!$A15:$P15,U$1)+COUNTIF('CABLE LENGTH'!$B15:$P15,U$2)=2,'CABLE LENGTH'!$AL15,0) -> 0 | V15: =IF(COUNTIF('CABLE LENGTH'!$A15:$P15,V$1)+COUNTIF('CABLE LENGTH'!$B15:$P15,V$2)=2,'CABLE LENGTH'!$AL15,0) -> 0 | W15: =IF(COUNTIF('CABLE LENGTH'!$A15:$P15,W$1)+COUNTIF('CABLE LENGTH'!$B15:$P15,W$2)=2,'CABLE LENGTH'!$AL15,0) -> 0 | X15: =IF(COUNTIF('CABLE LENGTH'!$A15:$P15,X$1)+COUNTIF('CABLE LENGTH'!$B15:$P15,X$2)=2,'CABLE LENGTH'!$AL15,0) -> 0 | Y15: =IF(COUNTIF('CABLE LENGTH'!$A15:$P15,Y$1)+COUNTIF('CABLE LENGTH'!$A15:$P15,Y$2)=2,'CABLE LENGTH'!$AL15,0) -> 0 | Z15: =IF(COUNTIF('CABLE LENGTH'!$A15:$P15,Z$1)+COUNTIF('CABLE LENGTH'!$A15:$P15,Z$2)=2,'CABLE LENGTH'!$AL15,0) -> 0 | AA15: =IF(COUNTIF('CABLE LENGTH'!$A15:$P15,AA$1)+COUNTIF('CABLE LENGTH'!$A15:$P15,AA$2)=2,'CABLE LENGTH'!$AL15,0) -> 0 | AB15: =IF(COUNTIF('CABLE LENGTH'!$A15:$P15,AB$1)+COUNTIF('CABLE LENGTH'!$A15:$P15,AB$2)=2,'CABLE LENGTH'!$AL15,0) -> 0 | AC15: =IF(COUNTIF('CABLE LENGTH'!$A15:$P15,AC$1)+COUNTIF('CABLE LENGTH'!$A15:$P15,AC$2)=2,'CABLE LENGTH'!$AL15,0) -> 0 | AD15: =IF(COUNTIF('CABLE LENGTH'!$A15:$P15,AD$1)+COUNTIF('CABLE LENGTH'!$A15:$P15,AD$2)=2,'CABLE LENGTH'!$AL15,0) -> 0 | AE15: =IF(COUNTIF('CABLE LENGTH'!$A15:$P15,AE$1)+COUNTIF('CABLE LENGTH'!$A15:$P15,AE$2)=2,'CABLE LENGTH'!$AL15,0) -> 0 | AF15: =IF(COUNTIF('CABLE LENGTH'!$A15:$P15,AF$1)+COUNTIF('CABLE LENGTH'!$A15:$P15,AF$2)=2,'CABLE LENGTH'!$AL15,0) -> 0 | AG15: =IF(COUNTIF('CABLE LENGTH'!$A15:$P15,AG$1)+COUNTIF('CABLE LENGTH'!$A15:$P15,AG$2)=2,'CABLE LENGTH'!$AL15,0) -> 0 | AH15: =IF(COUNTIF('CABLE LENGTH'!$A15:$P15,AH$1)+COUNTIF('CABLE LENGTH'!$A15:$P15,AH$2)=2,'CABLE LENGTH'!$AL15,0) -> 0 | AI15: =IF(COUNTIF('CABLE LENGTH'!$A15:$P15,AI$1)+COUNTIF('CABLE LENGTH'!$A15:$P15,AI$2)=2,'CABLE LENGTH'!$AL15,0) -> 0 | AJ15: =IF(COUNTIF('CABLE LENGTH'!$A15:$P15,AJ$1)+COUNTIF('CABLE LENGTH'!$A15:$P15,AJ$2)=2,'CABLE LENGTH'!$AL15,0) -> 0 | AK15: =IF(COUNTIF('CABLE LENGTH'!$A15:$P15,AK$1)+COUNTIF('CABLE LENGTH'!$A15:$P15,AK$2)=2,'CABLE LENGTH'!$AL15,0) -> 0 | AL15: =IF(COUNTIF('CABLE LENGTH'!$A15:$P15,AL$1)+COUNTIF('CABLE LENGTH'!$A15:$P15,AL$2)=2,'CABLE LENGTH'!$AL15,0) -> 0 | AM15: =IF(COUNTIF('CABLE LENGTH'!$A15:$P15,AM$1)+COUNTIF('CABLE LENGTH'!$A15:$P15,AM$2)=2,'CABLE LENGTH'!$AL15,0) -> 0 | AN15: =IF(COUNTIF('CABLE LENGTH'!$A15:$P15,AN$1)+COUNTIF('CABLE LENGTH'!$A15:$P15,AN$2)=2,'CABLE LENGTH'!$AL15,0) -> 0 | AO15: =IF(COUNTIF('CABLE LENGTH'!$A15:$P15,AO$1)+COUNTIF('CABLE LENGTH'!$A15:$P15,AO$2)=2,'CABLE LENGTH'!$AL15,0) -> 0 | AP15: =IF(COUNTIF('CABLE LENGTH'!$A15:$P15,AP$1)+COUNTIF('CABLE LENGTH'!$A15:$P15,AP$2)=2,'CABLE LENGTH'!$AL15,0) -> 0 | AQ15: =IF(COUNTIF('CABLE LENGTH'!$A15:$P15,AQ$1)+COUNTIF('CABLE LENGTH'!$A15:$P15,AQ$2)=2,'CABLE LENGTH'!$AL15,0) -> 0 | AR15: =IF(COUNTIF('CABLE LENGTH'!$A15:$P15,AR$1)+COUNTIF('CABLE LENGTH'!$A15:$P15,AR$2)=2,'CABLE LENGTH'!$AL15,0) -> 0 | AS15: =IF(COUNTIF('CABLE LENGTH'!$A15:$P15,AS$1)+COUNTIF('CABLE LENGTH'!$A15:$P15,AS$2)=2,'CABLE LENGTH'!$AL15,0) -> 0 | AT15: =IF(COUNTIF('CABLE LENGTH'!$A15:$P15,AT$1)+COUNTIF('CABLE LENGTH'!$A15:$P15,AT$2)=2,'CABLE LENGTH'!$AL15,0) -> 0 | AU15: =IF(COUNTIF('CABLE LENGTH'!$A15:$P15,AU$1)+COUNTIF('CABLE LENGTH'!$A15:$P15,AU$2)=2,'CABLE LENGTH'!$AL15,0) -> 0 | AV15: =IF(COUNTIF('CABLE LENGTH'!$A15:$P15,AV$1)+COUNTIF('CABLE LENGTH'!$A15:$P15,AV$2)=2,'CABLE LENGTH'!$AL15,0) -> 0 | AW15: =IF(COUNTIF('CABLE LENGTH'!$A15:$P15,AW$1)+COUNTIF('CABLE LENGTH'!$A15:$P15,AW$2)=2,'CABLE LENGTH'!$AL15,0) -> 0 | AX15: =IF(COUNTIF('CABLE LENGTH'!$A15:$P15,AX$1)+COUNTIF('CABLE LENGTH'!$A15:$P15,AX$2)=2,'CABLE LENGTH'!$AL15,0) -> 0 | AY15: =IF(COUNTIF('CABLE LENGTH'!$A15:$P15,AY$1)+COUNTIF('CABLE LENGTH'!$A15:$P15,AY$2)=2,'CABLE LENGTH'!$AL15,0) -> 0 | AZ15: =IF(COUNTIF('CABLE LENGTH'!$A15:$P15,AZ$1)+COUNTIF('CABLE LENGTH'!$A15:$P15,AZ$2)=2,'CABLE LENGTH'!$AL15,0) -> 0
B16: =+'CABLE LENGTH'!AK16 -> 0 | C16: =IF(COUNTIF('CABLE LENGTH'!$A16:$P16,C$1)+COUNTIF('CABLE LENGTH'!$B16:$P16,C$2)=2,'CABLE LENGTH'!$AL16,0) -> 0 | D16: =IF(COUNTIF('CABLE LENGTH'!$A16:$P16,D$1)+COUNTIF('CABLE LENGTH'!$B16:$P16,D$2)=2,'CABLE LENGTH'!$AL16,0) -> 0 | E16: =IF(COUNTIF('CABLE LENGTH'!$A16:$P16,E$1)+COUNTIF('CABLE LENGTH'!$B16:$P16,E$2)=2,'CABLE LENGTH'!$AL16,0) -> 0 | F16: =IF(COUNTIF('CABLE LENGTH'!$A16:$P16,F$1)+COUNTIF('CABLE LENGTH'!$B16:$P16,F$2)=2,'CABLE LENGTH'!$AL16,0) -> 0 | G16: =IF(COUNTIF('CABLE LENGTH'!$A16:$P16,G$1)+COUNTIF('CABLE LENGTH'!$B16:$P16,G$2)=2,'CABLE LENGTH'!$AL16,0) -> 0 | H16: =IF(COUNTIF('CABLE LENGTH'!$A16:$P16,H$1)+COUNTIF('CABLE LENGTH'!$B16:$P16,H$2)=2,'CABLE LENGTH'!$AL16,0) -> 0 | I16: =IF(COUNTIF('CABLE LENGTH'!$A16:$P16,I$1)+COUNTIF('CABLE LENGTH'!$B16:$P16,I$2)=2,'CABLE LENGTH'!$AL16,0) -> 0 | J16: =IF(COUNTIF('CABLE LENGTH'!$A16:$P16,J$1)+COUNTIF('CABLE LENGTH'!$B16:$P16,J$2)=2,'CABLE LENGTH'!$AL16,0) -> 0 | K16: =IF(COUNTIF('CABLE LENGTH'!$A16:$P16,K$1)+COUNTIF('CABLE LENGTH'!$B16:$P16,K$2)=2,'CABLE LENGTH'!$AL16,0) -> 0 | L16: =IF(COUNTIF('CABLE LENGTH'!$A16:$P16,L$1)+COUNTIF('CABLE LENGTH'!$B16:$P16,L$2)=2,'CABLE LENGTH'!$AL16,0) -> 0 | M16: =IF(COUNTIF('CABLE LENGTH'!$A16:$P16,M$1)+COUNTIF('CABLE LENGTH'!$B16:$P16,M$2)=2,'CABLE LENGTH'!$AL16,0) -> 0 | N16: =IF(COUNTIF('CABLE LENGTH'!$A16:$P16,N$1)+COUNTIF('CABLE LENGTH'!$B16:$P16,N$2)=2,'CABLE LENGTH'!$AL16,0) -> 0 | O16: =IF(COUNTIF('CABLE LENGTH'!$A16:$P16,O$1)+COUNTIF('CABLE LENGTH'!$B16:$P16,O$2)=2,'CABLE LENGTH'!$AL16,0) -> 0 | P16: =IF(COUNTIF('CABLE LENGTH'!$A16:$P16,P$1)+COUNTIF('CABLE LENGTH'!$B16:$P16,P$2)=2,'CABLE LENGTH'!$AL16,0) -> 0 | Q16: =IF(COUNTIF('CABLE LENGTH'!$A16:$P16,Q$1)+COUNTIF('CABLE LENGTH'!$B16:$P16,Q$2)=2,'CABLE LENGTH'!$AL16,0) -> 0 | R16: =IF(COUNTIF('CABLE LENGTH'!$A16:$P16,R$1)+COUNTIF('CABLE LENGTH'!$B16:$P16,R$2)=2,'CABLE LENGTH'!$AL16,0) -> 0 | S16: =IF(COUNTIF('CABLE LENGTH'!$A16:$P16,S$1)+COUNTIF('CABLE LENGTH'!$B16:$P16,S$2)=2,'CABLE LENGTH'!$AL16,0) -> 0 | T16: =IF(COUNTIF('CABLE LENGTH'!$A16:$P16,T$1)+COUNTIF('CABLE LENGTH'!$B16:$P16,T$2)=2,'CABLE LENGTH'!$AL16,0) -> 0 | U16: =IF(COUNTIF('CABLE LENGTH'!$A16:$P16,U$1)+COUNTIF('CABLE LENGTH'!$B16:$P16,U$2)=2,'CABLE LENGTH'!$AL16,0) -> 0 | V16: =IF(COUNTIF('CABLE LENGTH'!$A16:$P16,V$1)+COUNTIF('CABLE LENGTH'!$B16:$P16,V$2)=2,'CABLE LENGTH'!$AL16,0) -> 0 | W16: =IF(COUNTIF('CABLE LENGTH'!$A16:$P16,W$1)+COUNTIF('CABLE LENGTH'!$B16:$P16,W$2)=2,'CABLE LENGTH'!$AL16,0) -> 0 | X16: =IF(COUNTIF('CABLE LENGTH'!$A16:$P16,X$1)+COUNTIF('CABLE LENGTH'!$B16:$P16,X$2)=2,'CABLE LENGTH'!$AL16,0) -> 0 | Y16: =IF(COUNTIF('CABLE LENGTH'!$A16:$P16,Y$1)+COUNTIF('CABLE LENGTH'!$A16:$P16,Y$2)=2,'CABLE LENGTH'!$AL16,0) -> 0 | Z16: =IF(COUNTIF('CABLE LENGTH'!$A16:$P16,Z$1)+COUNTIF('CABLE LENGTH'!$A16:$P16,Z$2)=2,'CABLE LENGTH'!$AL16,0) -> 0 | AA16: =IF(COUNTIF('CABLE LENGTH'!$A16:$P16,AA$1)+COUNTIF('CABLE LENGTH'!$A16:$P16,AA$2)=2,'CABLE LENGTH'!$AL16,0) -> 0 | AB16: =IF(COUNTIF('CABLE LENGTH'!$A16:$P16,AB$1)+COUNTIF('CABLE LENGTH'!$A16:$P16,AB$2)=2,'CABLE LENGTH'!$AL16,0) -> 0 | AC16: =IF(COUNTIF('CABLE LENGTH'!$A16:$P16,AC$1)+COUNTIF('CABLE LENGTH'!$A16:$P16,AC$2)=2,'CABLE LENGTH'!$AL16,0) -> 0 | AD16: =IF(COUNTIF('CABLE LENGTH'!$A16:$P16,AD$1)+COUNTIF('CABLE LENGTH'!$A16:$P16,AD$2)=2,'CABLE LENGTH'!$AL16,0) -> 0 | AE16: =IF(COUNTIF('CABLE LENGTH'!$A16:$P16,AE$1)+COUNTIF('CABLE LENGTH'!$A16:$P16,AE$2)=2,'CABLE LENGTH'!$AL16,0) -> 0 | AF16: =IF(COUNTIF('CABLE LENGTH'!$A16:$P16,AF$1)+COUNTIF('CABLE LENGTH'!$A16:$P16,AF$2)=2,'CABLE LENGTH'!$AL16,0) -> 0 | AG16: =IF(COUNTIF('CABLE LENGTH'!$A16:$P16,AG$1)+COUNTIF('CABLE LENGTH'!$A16:$P16,AG$2)=2,'CABLE LENGTH'!$AL16,0) -> 0 | AH16: =IF(COUNTIF('CABLE LENGTH'!$A16:$P16,AH$1)+COUNTIF('CABLE LENGTH'!$A16:$P16,AH$2)=2,'CABLE LENGTH'!$AL16,0) -> 0 | AI16: =IF(COUNTIF('CABLE LENGTH'!$A16:$P16,AI$1)+COUNTIF('CABLE LENGTH'!$A16:$P16,AI$2)=2,'CABLE LENGTH'!$AL16,0) -> 0 | AJ16: =IF(COUNTIF('CABLE LENGTH'!$A16:$P16,AJ$1)+COUNTIF('CABLE LENGTH'!$A16:$P16,AJ$2)=2,'CABLE LENGTH'!$AL16,0) -> 0 | AK16: =IF(COUNTIF('CABLE LENGTH'!$A16:$P16,AK$1)+COUNTIF('CABLE LENGTH'!$A16:$P16,AK$2)=2,'CABLE LENGTH'!$AL16,0) -> 0 | AL16: =IF(COUNTIF('CABLE LENGTH'!$A16:$P16,AL$1)+COUNTIF('CABLE LENGTH'!$A16:$P16,AL$2)=2,'CABLE LENGTH'!$AL16,0) -> 0 | AM16: =IF(COUNTIF('CABLE LENGTH'!$A16:$P16,AM$1)+COUNTIF('CABLE LENGTH'!$A16:$P16,AM$2)=2,'CABLE LENGTH'!$AL16,0) -> 0 | AN16: =IF(COUNTIF('CABLE LENGTH'!$A16:$P16,AN$1)+COUNTIF('CABLE LENGTH'!$A16:$P16,AN$2)=2,'CABLE LENGTH'!$AL16,0) -> 0 | AO16: =IF(COUNTIF('CABLE LENGTH'!$A16:$P16,AO$1)+COUNTIF('CABLE LENGTH'!$A16:$P16,AO$2)=2,'CABLE LENGTH'!$AL16,0) -> 0 | AP16: =IF(COUNTIF('CABLE LENGTH'!$A16:$P16,AP$1)+COUNTIF('CABLE LENGTH'!$A16:$P16,AP$2)=2,'CABLE LENGTH'!$AL16,0) -> 0 | AQ16: =IF(COUNTIF('CABLE LENGTH'!$A16:$P16,AQ$1)+COUNTIF('CABLE LENGTH'!$A16:$P16,AQ$2)=2,'CABLE LENGTH'!$AL16,0) -> 0 | AR16: =IF(COUNTIF('CABLE LENGTH'!$A16:$P16,AR$1)+COUNTIF('CABLE LENGTH'!$A16:$P16,AR$2)=2,'CABLE LENGTH'!$AL16,0) -> 0 | AS16: =IF(COUNTIF('CABLE LENGTH'!$A16:$P16,AS$1)+COUNTIF('CABLE LENGTH'!$A16:$P16,AS$2)=2,'CABLE LENGTH'!$AL16,0) -> 0 | AT16: =IF(COUNTIF('CABLE LENGTH'!$A16:$P16,AT$1)+COUNTIF('CABLE LENGTH'!$A16:$P16,AT$2)=2,'CABLE LENGTH'!$AL16,0) -> 0 | AU16: =IF(COUNTIF('CABLE LENGTH'!$A16:$P16,AU$1)+COUNTIF('CABLE LENGTH'!$A16:$P16,AU$2)=2,'CABLE LENGTH'!$AL16,0) -> 0 | AV16: =IF(COUNTIF('CABLE LENGTH'!$A16:$P16,AV$1)+COUNTIF('CABLE LENGTH'!$A16:$P16,AV$2)=2,'CABLE LENGTH'!$AL16,0) -> 0 | AW16: =IF(COUNTIF('CABLE LENGTH'!$A16:$P16,AW$1)+COUNTIF('CABLE LENGTH'!$A16:$P16,AW$2)=2,'CABLE LENGTH'!$AL16,0) -> 0 | AX16: =IF(COUNTIF('CABLE LENGTH'!$A16:$P16,AX$1)+COUNTIF('CABLE LENGTH'!$A16:$P16,AX$2)=2,'CABLE LENGTH'!$AL16,0) -> 0 | AY16: =IF(COUNTIF('CABLE LENGTH'!$A16:$P16,AY$1)+COUNTIF('CABLE LENGTH'!$A16:$P16,AY$2)=2,'CABLE LENGTH'!$AL16,0) -> 0 | AZ16: =IF(COUNTIF('CABLE LENGTH'!$A16:$P16,AZ$1)+COUNTIF('CABLE LENGTH'!$A16:$P16,AZ$2)=2,'CABLE LENGTH'!$AL16,0) -> 0
B17: =+'CABLE LENGTH'!AK17 -> 0 | C17: =IF(COUNTIF('CABLE LENGTH'!$A17:$P17,C$1)+COUNTIF('CABLE LENGTH'!$B17:$P17,C$2)=2,'CABLE LENGTH'!$AL17,0) -> 0 | D17: =IF(COUNTIF('CABLE LENGTH'!$A17:$P17,D$1)+COUNTIF('CABLE LENGTH'!$B17:$P17,D$2)=2,'CABLE LENGTH'!$AL17,0) -> 0 | E17: =IF(COUNTIF('CABLE LENGTH'!$A17:$P17,E$1)+COUNTIF('CABLE LENGTH'!$B17:$P17,E$2)=2,'CABLE LENGTH'!$AL17,0) -> 0 | F17: =IF(COUNTIF('CABLE LENGTH'!$A17:$P17,F$1)+COUNTIF('CABLE LENGTH'!$B17:$P17,F$2)=2,'CABLE LENGTH'!$AL17,0) -> 0 | G17: =IF(COUNTIF('CABLE LENGTH'!$A17:$P17,G$1)+COUNTIF('CABLE LENGTH'!$B17:$P17,G$2)=2,'CABLE LENGTH'!$AL17,0) -> 0 | H17: =IF(COUNTIF('CABLE LENGTH'!$A17:$P17,H$1)+COUNTIF('CABLE LENGTH'!$B17:$P17,H$2)=2,'CABLE LENGTH'!$AL17,0) -> 0 | I17: =IF(COUNTIF('CABLE LENGTH'!$A17:$P17,I$1)+COUNTIF('CABLE LENGTH'!$B17:$P17,I$2)=2,'CABLE LENGTH'!$AL17,0) -> 0 | J17: =IF(COUNTIF('CABLE LENGTH'!$A17:$P17,J$1)+COUNTIF('CABLE LENGTH'!$B17:$P17,J$2)=2,'CABLE LENGTH'!$AL17,0) -> 0 | K17: =IF(COUNTIF('CABLE LENGTH'!$A17:$P17,K$1)+COUNTIF('CABLE LENGTH'!$B17:$P17,K$2)=2,'CABLE LENGTH'!$AL17,0) -> 0 | L17: =IF(COUNTIF('CABLE LENGTH'!$A17:$P17,L$1)+COUNTIF('CABLE LENGTH'!$B17:$P17,L$2)=2,'CABLE LENGTH'!$AL17,0) -> 0 | M17: =IF(COUNTIF('CABLE LENGTH'!$A17:$P17,M$1)+COUNTIF('CABLE LENGTH'!$B17:$P17,M$2)=2,'CABLE LENGTH'!$AL17,0) -> 0 | N17: =IF(COUNTIF('CABLE LENGTH'!$A17:$P17,N$1)+COUNTIF('CABLE LENGTH'!$B17:$P17,N$2)=2,'CABLE LENGTH'!$AL17,0) -> 0 | O17: =IF(COUNTIF('CABLE LENGTH'!$A17:$P17,O$1)+COUNTIF('CABLE LENGTH'!$B17:$P17,O$2)=2,'CABLE LENGTH'!$AL17,0) -> 0 | P17: =IF(COUNTIF('CABLE LENGTH'!$A17:$P17,P$1)+COUNTIF('CABLE LENGTH'!$B17:$P17,P$2)=2,'CABLE LENGTH'!$AL17,0) -> 0 | Q17: =IF(COUNTIF('CABLE LENGTH'!$A17:$P17,Q$1)+COUNTIF('CABLE LENGTH'!$B17:$P17,Q$2)=2,'CABLE LENGTH'!$AL17,0) -> 0 | R17: =IF(COUNTIF('CABLE LENGTH'!$A17:$P17,R$1)+COUNTIF('CABLE LENGTH'!$B17:$P17,R$2)=2,'CABLE LENGTH'!$AL17,0) -> 0 | S17: =IF(COUNTIF('CABLE LENGTH'!$A17:$P17,S$1)+COUNTIF('CABLE LENGTH'!$B17:$P17,S$2)=2,'CABLE LENGTH'!$AL17,0) -> 0 | T17: =IF(COUNTIF('CABLE LENGTH'!$A17:$P17,T$1)+COUNTIF('CABLE LENGTH'!$B17:$P17,T$2)=2,'CABLE LENGTH'!$AL17,0) -> 0 | U17: =IF(COUNTIF('CABLE LENGTH'!$A17:$P17,U$1)+COUNTIF('CABLE LENGTH'!$B17:$P17,U$2)=2,'CABLE LENGTH'!$AL17,0) -> 0 | V17: =IF(COUNTIF('CABLE LENGTH'!$A17:$P17,V$1)+COUNTIF('CABLE LENGTH'!$B17:$P17,V$2)=2,'CABLE LENGTH'!$AL17,0) -> 0 | W17: =IF(COUNTIF('CABLE LENGTH'!$A17:$P17,W$1)+COUNTIF('CABLE LENGTH'!$B17:$P17,W$2)=2,'CABLE LENGTH'!$AL17,0) -> 0 | X17: =IF(COUNTIF('CABLE LENGTH'!$A17:$P17,X$1)+COUNTIF('CABLE LENGTH'!$B17:$P17,X$2)=2,'CABLE LENGTH'!$AL17,0) -> 0 | Y17: =IF(COUNTIF('CABLE LENGTH'!$A17:$P17,Y$1)+COUNTIF('CABLE LENGTH'!$A17:$P17,Y$2)=2,'CABLE LENGTH'!$AL17,0) -> 0 | Z17: =IF(COUNTIF('CABLE LENGTH'!$A17:$P17,Z$1)+COUNTIF('CABLE LENGTH'!$A17:$P17,Z$2)=2,'CABLE LENGTH'!$AL17,0) -> 0 | AA17: =IF(COUNTIF('CABLE LENGTH'!$A17:$P17,AA$1)+COUNTIF('CABLE LENGTH'!$A17:$P17,AA$2)=2,'CABLE LENGTH'!$AL17,0) -> 0 | AB17: =IF(COUNTIF('CABLE LENGTH'!$A17:$P17,AB$1)+COUNTIF('CABLE LENGTH'!$A17:$P17,AB$2)=2,'CABLE LENGTH'!$AL17,0) -> 0 | AC17: =IF(COUNTIF('CABLE LENGTH'!$A17:$P17,AC$1)+COUNTIF('CABLE LENGTH'!$A17:$P17,AC$2)=2,'CABLE LENGTH'!$AL17,0) -> 0 | AD17: =IF(COUNTIF('CABLE LENGTH'!$A17:$P17,AD$1)+COUNTIF('CABLE LENGTH'!$A17:$P17,AD$2)=2,'CABLE LENGTH'!$AL17,0) -> 0 | AE17: =IF(COUNTIF('CABLE LENGTH'!$A17:$P17,AE$1)+COUNTIF('CABLE LENGTH'!$A17:$P17,AE$2)=2,'CABLE LENGTH'!$AL17,0) -> 0 | AF17: =IF(COUNTIF('CABLE LENGTH'!$A17:$P17,AF$1)+COUNTIF('CABLE LENGTH'!$A17:$P17,AF$2)=2,'CABLE LENGTH'!$AL17,0) -> 0 | AG17: =IF(COUNTIF('CABLE LENGTH'!$A17:$P17,AG$1)+COUNTIF('CABLE LENGTH'!$A17:$P17,AG$2)=2,'CABLE LENGTH'!$AL17,0) -> 0 | AH17: =IF(COUNTIF('CABLE LENGTH'!$A17:$P17,AH$1)+COUNTIF('CABLE LENGTH'!$A17:$P17,AH$2)=2,'CABLE LENGTH'!$AL17,0) -> 0 | AI17: =IF(COUNTIF('CABLE LENGTH'!$A17:$P17,AI$1)+COUNTIF('CABLE LENGTH'!$A17:$P17,AI$2)=2,'CABLE LENGTH'!$AL17,0) -> 0 | AJ17: =IF(COUNTIF('CABLE LENGTH'!$A17:$P17,AJ$1)+COUNTIF('CABLE LENGTH'!$A17:$P17,AJ$2)=2,'CABLE LENGTH'!$AL17,0) -> 0 | AK17: =IF(COUNTIF('CABLE LENGTH'!$A17:$P17,AK$1)+COUNTIF('CABLE LENGTH'!$A17:$P17,AK$2)=2,'CABLE LENGTH'!$AL17,0) -> 0 | AL17: =IF(COUNTIF('CABLE LENGTH'!$A17:$P17,AL$1)+COUNTIF('CABLE LENGTH'!$A17:$P17,AL$2)=2,'CABLE LENGTH'!$AL17,0) -> 0 | AM17: =IF(COUNTIF('CABLE LENGTH'!$A17:$P17,AM$1)+COUNTIF('CABLE LENGTH'!$A17:$P17,AM$2)=2,'CABLE LENGTH'!$AL17,0) -> 0 | AN17: =IF(COUNTIF('CABLE LENGTH'!$A17:$P17,AN$1)+COUNTIF('CABLE LENGTH'!$A17:$P17,AN$2)=2,'CABLE LENGTH'!$AL17,0) -> 0 | AO17: =IF(COUNTIF('CABLE LENGTH'!$A17:$P17,AO$1)+COUNTIF('CABLE LENGTH'!$A17:$P17,AO$2)=2,'CABLE LENGTH'!$AL17,0) -> 0 | AP17: =IF(COUNTIF('CABLE LENGTH'!$A17:$P17,AP$1)+COUNTIF('CABLE LENGTH'!$A17:$P17,AP$2)=2,'CABLE LENGTH'!$AL17,0) -> 0 | AQ17: =IF(COUNTIF('CABLE LENGTH'!$A17:$P17,AQ$1)+COUNTIF('CABLE LENGTH'!$A17:$P17,AQ$2)=2,'CABLE LENGTH'!$AL17,0) -> 0 | AR17: =IF(COUNTIF('CABLE LENGTH'!$A17:$P17,AR$1)+COUNTIF('CABLE LENGTH'!$A17:$P17,AR$2)=2,'CABLE LENGTH'!$AL17,0) -> 0 | AS17: =IF(COUNTIF('CABLE LENGTH'!$A17:$P17,AS$1)+COUNTIF('CABLE LENGTH'!$A17:$P17,AS$2)=2,'CABLE LENGTH'!$AL17,0) -> 0 | AT17: =IF(COUNTIF('CABLE LENGTH'!$A17:$P17,AT$1)+COUNTIF('CABLE LENGTH'!$A17:$P17,AT$2)=2,'CABLE LENGTH'!$AL17,0) -> 0 | AU17: =IF(COUNTIF('CABLE LENGTH'!$A17:$P17,AU$1)+COUNTIF('CABLE LENGTH'!$A17:$P17,AU$2)=2,'CABLE LENGTH'!$AL17,0) -> 0 | AV17: =IF(COUNTIF('CABLE LENGTH'!$A17:$P17,AV$1)+COUNTIF('CABLE LENGTH'!$A17:$P17,AV$2)=2,'CABLE LENGTH'!$AL17,0) -> 0 | AW17: =IF(COUNTIF('CABLE LENGTH'!$A17:$P17,AW$1)+COUNTIF('CABLE LENGTH'!$A17:$P17,AW$2)=2,'CABLE LENGTH'!$AL17,0) -> 0 | AX17: =IF(COUNTIF('CABLE LENGTH'!$A17:$P17,AX$1)+COUNTIF('CABLE LENGTH'!$A17:$P17,AX$2)=2,'CABLE LENGTH'!$AL17,0) -> 0 | AY17: =IF(COUNTIF('CABLE LENGTH'!$A17:$P17,AY$1)+COUNTIF('CABLE LENGTH'!$A17:$P17,AY$2)=2,'CABLE LENGTH'!$AL17,0) -> 0 | AZ17: =IF(COUNTIF('CABLE LENGTH'!$A17:$P17,AZ$1)+COUNTIF('CABLE LENGTH'!$A17:$P17,AZ$2)=2,'CABLE LENGTH'!$AL17,0) -> 0
B18: =+'CABLE LENGTH'!AK18 -> 0 | C18: =IF(COUNTIF('CABLE LENGTH'!$A18:$P18,C$1)+COUNTIF('CABLE LENGTH'!$B18:$P18,C$2)=2,'CABLE LENGTH'!$AL18,0) -> 0 | D18: =IF(COUNTIF('CABLE LENGTH'!$A18:$P18,D$1)+COUNTIF('CABLE LENGTH'!$B18:$P18,D$2)=2,'CABLE LENGTH'!$AL18,0) -> 0 | E18: =IF(COUNTIF('CABLE LENGTH'!$A18:$P18,E$1)+COUNTIF('CABLE LENGTH'!$B18:$P18,E$2)=2,'CABLE LENGTH'!$AL18,0) -> 0 | F18: =IF(COUNTIF('CABLE LENGTH'!$A18:$P18,F$1)+COUNTIF('CABLE LENGTH'!$B18:$P18,F$2)=2,'CABLE LENGTH'!$AL18,0) -> 0 | G18: =IF(COUNTIF('CABLE LENGTH'!$A18:$P18,G$1)+COUNTIF('CABLE LENGTH'!$B18:$P18,G$2)=2,'CABLE LENGTH'!$AL18,0) -> 0 | H18: =IF(COUNTIF('CABLE LENGTH'!$A18:$P18,H$1)+COUNTIF('CABLE LENGTH'!$B18:$P18,H$2)=2,'CABLE LENGTH'!$AL18,0) -> 0 | I18: =IF(COUNTIF('CABLE LENGTH'!$A18:$P18,I$1)+COUNTIF('CABLE LENGTH'!$B18:$P18,I$2)=2,'CABLE LENGTH'!$AL18,0) -> 0 | J18: =IF(COUNTIF('CABLE LENGTH'!$A18:$P18,J$1)+COUNTIF('CABLE LENGTH'!$B18:$P18,J$2)=2,'CABLE LENGTH'!$AL18,0) -> 0 | K18: =IF(COUNTIF('CABLE LENGTH'!$A18:$P18,K$1)+COUNTIF('CABLE LENGTH'!$B18:$P18,K$2)=2,'CABLE LENGTH'!$AL18,0) -> 0 | L18: =IF(COUNTIF('CABLE LENGTH'!$A18:$P18,L$1)+COUNTIF('CABLE LENGTH'!$B18:$P18,L$2)=2,'CABLE LENGTH'!$AL18,0) -> 0 | M18: =IF(COUNTIF('CABLE LENGTH'!$A18:$P18,M$1)+COUNTIF('CABLE LENGTH'!$B18:$P18,M$2)=2,'CABLE LENGTH'!$AL18,0) -> 0 | N18: =IF(COUNTIF('CABLE LENGTH'!$A18:$P18,N$1)+COUNTIF('CABLE LENGTH'!$B18:$P18,N$2)=2,'CABLE LENGTH'!$AL18,0) -> 0 | O18: =IF(COUNTIF('CABLE LENGTH'!$A18:$P18,O$1)+COUNTIF('CABLE LENGTH'!$B18:$P18,O$2)=2,'CABLE LENGTH'!$AL18,0) -> 0 | P18: =IF(COUNTIF('CABLE LENGTH'!$A18:$P18,P$1)+COUNTIF('CABLE LENGTH'!$B18:$P18,P$2)=2,'CABLE LENGTH'!$AL18,0) -> 0 | Q18: =IF(COUNTIF('CABLE LENGTH'!$A18:$P18,Q$1)+COUNTIF('CABLE LENGTH'!$B18:$P18,Q$2)=2,'CABLE LENGTH'!$AL18,0) -> 0 | R18: =IF(COUNTIF('CABLE LENGTH'!$A18:$P18,R$1)+COUNTIF('CABLE LENGTH'!$B18:$P18,R$2)=2,'CABLE LENGTH'!$AL18,0) -> 0 | S18: =IF(COUNTIF('CABLE LENGTH'!$A18:$P18,S$1)+COUNTIF('CABLE LENGTH'!$B18:$P18,S$2)=2,'CABLE LENGTH'!$AL18,0) -> 0 | T18: =IF(COUNTIF('CABLE LENGTH'!$A18:$P18,T$1)+COUNTIF('CABLE LENGTH'!$B18:$P18,T$2)=2,'CABLE LENGTH'!$AL18,0) -> 0 | U18: =IF(COUNTIF('CABLE LENGTH'!$A18:$P18,U$1)+COUNTIF('CABLE LENGTH'!$B18:$P18,U$2)=2,'CABLE LENGTH'!$AL18,0) -> 0 | V18: =IF(COUNTIF('CABLE LENGTH'!$A18:$P18,V$1)+COUNTIF('CABLE LENGTH'!$B18:$P18,V$2)=2,'CABLE LENGTH'!$AL18,0) -> 0 | W18: =IF(COUNTIF('CABLE LENGTH'!$A18:$P18,W$1)+COUNTIF('CABLE LENGTH'!$B18:$P18,W$2)=2,'CABLE LENGTH'!$AL18,0) -> 0 | X18: =IF(COUNTIF('CABLE LENGTH'!$A18:$P18,X$1)+COUNTIF('CABLE LENGTH'!$B18:$P18,X$2)=2,'CABLE LENGTH'!$AL18,0) -> 0 | Y18: =IF(COUNTIF('CABLE LENGTH'!$A18:$P18,Y$1)+COUNTIF('CABLE LENGTH'!$A18:$P18,Y$2)=2,'CABLE LENGTH'!$AL18,0) -> 0 | Z18: =IF(COUNTIF('CABLE LENGTH'!$A18:$P18,Z$1)+COUNTIF('CABLE LENGTH'!$A18:$P18,Z$2)=2,'CABLE LENGTH'!$AL18,0) -> 0 | AA18: =IF(COUNTIF('CABLE LENGTH'!$A18:$P18,AA$1)+COUNTIF('CABLE LENGTH'!$A18:$P18,AA$2)=2,'CABLE LENGTH'!$AL18,0) -> 0 | AB18: =IF(COUNTIF('CABLE LENGTH'!$A18:$P18,AB$1)+COUNTIF('CABLE LENGTH'!$A18:$P18,AB$2)=2,'CABLE LENGTH'!$AL18,0) -> 0 | AC18: =IF(COUNTIF('CABLE LENGTH'!$A18:$P18,AC$1)+COUNTIF('CABLE LENGTH'!$A18:$P18,AC$2)=2,'CABLE LENGTH'!$AL18,0) -> 0 | AD18: =IF(COUNTIF('CABLE LENGTH'!$A18:$P18,AD$1)+COUNTIF('CABLE LENGTH'!$A18:$P18,AD$2)=2,'CABLE LENGTH'!$AL18,0) -> 0 | AE18: =IF(COUNTIF('CABLE LENGTH'!$A18:$P18,AE$1)+COUNTIF('CABLE LENGTH'!$A18:$P18,AE$2)=2,'CABLE LENGTH'!$AL18,0) -> 0 | AF18: =IF(COUNTIF('CABLE LENGTH'!$A18:$P18,AF$1)+COUNTIF('CABLE LENGTH'!$A18:$P18,AF$2)=2,'CABLE LENGTH'!$AL18,0) -> 0 | AG18: =IF(COUNTIF('CABLE LENGTH'!$A18:$P18,AG$1)+COUNTIF('CABLE LENGTH'!$A18:$P18,AG$2)=2,'CABLE LENGTH'!$AL18,0) -> 0 | AH18: =IF(COUNTIF('CABLE LENGTH'!$A18:$P18,AH$1)+COUNTIF('CABLE LENGTH'!$A18:$P18,AH$2)=2,'CABLE LENGTH'!$AL18,0) -> 0 | AI18: =IF(COUNTIF('CABLE LENGTH'!$A18:$P18,AI$1)+COUNTIF('CABLE LENGTH'!$A18:$P18,AI$2)=2,'CABLE LENGTH'!$AL18,0) -> 0 | AJ18: =IF(COUNTIF('CABLE LENGTH'!$A18:$P18,AJ$1)+COUNTIF('CABLE LENGTH'!$A18:$P18,AJ$2)=2,'CABLE LENGTH'!$AL18,0) -> 0 | AK18: =IF(COUNTIF('CABLE LENGTH'!$A18:$P18,AK$1)+COUNTIF('CABLE LENGTH'!$A18:$P18,AK$2)=2,'CABLE LENGTH'!$AL18,0) -> 0 | AL18: =IF(COUNTIF('CABLE LENGTH'!$A18:$P18,AL$1)+COUNTIF('CABLE LENGTH'!$A18:$P18,AL$2)=2,'CABLE LENGTH'!$AL18,0) -> 0 | AM18: =IF(COUNTIF('CABLE LENGTH'!$A18:$P18,AM$1)+COUNTIF('CABLE LENGTH'!$A18:$P18,AM$2)=2,'CABLE LENGTH'!$AL18,0) -> 0 | AN18: =IF(COUNTIF('CABLE LENGTH'!$A18:$P18,AN$1)+COUNTIF('CABLE LENGTH'!$A18:$P18,AN$2)=2,'CABLE LENGTH'!$AL18,0) -> 0 | AO18: =IF(COUNTIF('CABLE LENGTH'!$A18:$P18,AO$1)+COUNTIF('CABLE LENGTH'!$A18:$P18,AO$2)=2,'CABLE LENGTH'!$AL18,0) -> 0 | AP18: =IF(COUNTIF('CABLE LENGTH'!$A18:$P18,AP$1)+COUNTIF('CABLE LENGTH'!$A18:$P18,AP$2)=2,'CABLE LENGTH'!$AL18,0) -> 0 | AQ18: =IF(COUNTIF('CABLE LENGTH'!$A18:$P18,AQ$1)+COUNTIF('CABLE LENGTH'!$A18:$P18,AQ$2)=2,'CABLE LENGTH'!$AL18,0) -> 0 | AR18: =IF(COUNTIF('CABLE LENGTH'!$A18:$P18,AR$1)+COUNTIF('CABLE LENGTH'!$A18:$P18,AR$2)=2,'CABLE LENGTH'!$AL18,0) -> 0 | AS18: =IF(COUNTIF('CABLE LENGTH'!$A18:$P18,AS$1)+COUNTIF('CABLE LENGTH'!$A18:$P18,AS$2)=2,'CABLE LENGTH'!$AL18,0) -> 0 | AT18: =IF(COUNTIF('CABLE LENGTH'!$A18:$P18,AT$1)+COUNTIF('CABLE LENGTH'!$A18:$P18,AT$2)=2,'CABLE LENGTH'!$AL18,0) -> 0 | AU18: =IF(COUNTIF('CABLE LENGTH'!$A18:$P18,AU$1)+COUNTIF('CABLE LENGTH'!$A18:$P18,AU$2)=2,'CABLE LENGTH'!$AL18,0) -> 0 | AV18: =IF(COUNTIF('CABLE LENGTH'!$A18:$P18,AV$1)+COUNTIF('CABLE LENGTH'!$A18:$P18,AV$2)=2,'CABLE LENGTH'!$AL18,0) -> 0 | AW18: =IF(COUNTIF('CABLE LENGTH'!$A18:$P18,AW$1)+COUNTIF('CABLE LENGTH'!$A18:$P18,AW$2)=2,'CABLE LENGTH'!$AL18,0) -> 0 | AX18: =IF(COUNTIF('CABLE LENGTH'!$A18:$P18,AX$1)+COUNTIF('CABLE LENGTH'!$A18:$P18,AX$2)=2,'CABLE LENGTH'!$AL18,0) -> 0 | AY18: =IF(COUNTIF('CABLE LENGTH'!$A18:$P18,AY$1)+COUNTIF('CABLE LENGTH'!$A18:$P18,AY$2)=2,'CABLE LENGTH'!$AL18,0) -> 0 | AZ18: =IF(COUNTIF('CABLE LENGTH'!$A18:$P18,AZ$1)+COUNTIF('CABLE LENGTH'!$A18:$P18,AZ$2)=2,'CABLE LENGTH'!$AL18,0) -> 0
B19: =+'CABLE LENGTH'!AK19 -> 0 | C19: =IF(COUNTIF('CABLE LENGTH'!$A19:$P19,C$1)+COUNTIF('CABLE LENGTH'!$B19:$P19,C$2)=2,'CABLE LENGTH'!$AL19,0) -> 0 | D19: =IF(COUNTIF('CABLE LENGTH'!$A19:$P19,D$1)+COUNTIF('CABLE LENGTH'!$B19:$P19,D$2)=2,'CABLE LENGTH'!$AL19,0) -> 0 | E19: =IF(COUNTIF('CABLE LENGTH'!$A19:$P19,E$1)+COUNTIF('CABLE LENGTH'!$B19:$P19,E$2)=2,'CABLE LENGTH'!$AL19,0) -> 0 | F19: =IF(COUNTIF('CABLE LENGTH'!$A19:$P19,F$1)+COUNTIF('CABLE LENGTH'!$B19:$P19,F$2)=2,'CABLE LENGTH'!$AL19,0) -> 0 | G19: =IF(COUNTIF('CABLE LENGTH'!$A19:$P19,G$1)+COUNTIF('CABLE LENGTH'!$B19:$P19,G$2)=2,'CABLE LENGTH'!$AL19,0) -> 0 | H19: =IF(COUNTIF('CABLE LENGTH'!$A19:$P19,H$1)+COUNTIF('CABLE LENGTH'!$B19:$P19,H$2)=2,'CABLE LENGTH'!$AL19,0) -> 0 | I19: =IF(COUNTIF('CABLE LENGTH'!$A19:$P19,I$1)+COUNTIF('CABLE LENGTH'!$B19:$P19,I$2)=2,'CABLE LENGTH'!$AL19,0) -> 0 | J19: =IF(COUNTIF('CABLE LENGTH'!$A19:$P19,J$1)+COUNTIF('CABLE LENGTH'!$B19:$P19,J$2)=2,'CABLE LENGTH'!$AL19,0) -> 0 | K19: =IF(COUNTIF('CABLE LENGTH'!$A19:$P19,K$1)+COUNTIF('CABLE LENGTH'!$B19:$P19,K$2)=2,'CABLE LENGTH'!$AL19,0) -> 0 | L19: =IF(COUNTIF('CABLE LENGTH'!$A19:$P19,L$1)+COUNTIF('CABLE LENGTH'!$B19:$P19,L$2)=2,'CABLE LENGTH'!$AL19,0) -> 0 | M19: =IF(COUNTIF('CABLE LENGTH'!$A19:$P19,M$1)+COUNTIF('CABLE LENGTH'!$B19:$P19,M$2)=2,'CABLE LENGTH'!$AL19,0) -> 0 | N19: =IF(COUNTIF('CABLE LENGTH'!$A19:$P19,N$1)+COUNTIF('CABLE LENGTH'!$B19:$P19,N$2)=2,'CABLE LENGTH'!$AL19,0) -> 0 | O19: =IF(COUNTIF('CABLE LENGTH'!$A19:$P19,O$1)+COUNTIF('CABLE LENGTH'!$B19:$P19,O$2)=2,'CABLE LENGTH'!$AL19,0) -> 0 | P19: =IF(COUNTIF('CABLE LENGTH'!$A19:$P19,P$1)+COUNTIF('CABLE LENGTH'!$B19:$P19,P$2)=2,'CABLE LENGTH'!$AL19,0) -> 0 | Q19: =IF(COUNTIF('CABLE LENGTH'!$A19:$P19,Q$1)+COUNTIF('CABLE LENGTH'!$B19:$P19,Q$2)=2,'CABLE LENGTH'!$AL19,0) -> 0 | R19: =IF(COUNTIF('CABLE LENGTH'!$A19:$P19,R$1)+COUNTIF('CABLE LENGTH'!$B19:$P19,R$2)=2,'CABLE LENGTH'!$AL19,0) -> 0 | S19: =IF(COUNTIF('CABLE LENGTH'!$A19:$P19,S$1)+COUNTIF('CABLE LENGTH'!$B19:$P19,S$2)=2,'CABLE LENGTH'!$AL19,0) -> 0 | T19: =IF(COUNTIF('CABLE LENGTH'!$A19:$P19,T$1)+COUNTIF('CABLE LENGTH'!$B19:$P19,T$2)=2,'CABLE LENGTH'!$AL19,0) -> 0 | U19: =IF(COUNTIF('CABLE LENGTH'!$A19:$P19,U$1)+COUNTIF('CABLE LENGTH'!$B19:$P19,U$2)=2,'CABLE LENGTH'!$AL19,0) -> 0 | V19: =IF(COUNTIF('CABLE LENGTH'!$A19:$P19,V$1)+COUNTIF('CABLE LENGTH'!$B19:$P19,V$2)=2,'CABLE LENGTH'!$AL19,0) -> 0 | W19: =IF(COUNTIF('CABLE LENGTH'!$A19:$P19,W$1)+COUNTIF('CABLE LENGTH'!$B19:$P19,W$2)=2,'CABLE LENGTH'!$AL19,0) -> 0 | X19: =IF(COUNTIF('CABLE LENGTH'!$A19:$P19,X$1)+COUNTIF('CABLE LENGTH'!$B19:$P19,X$2)=2,'CABLE LENGTH'!$AL19,0) -> 0 | Y19: =IF(COUNTIF('CABLE LENGTH'!$A19:$P19,Y$1)+COUNTIF('CABLE LENGTH'!$A19:$P19,Y$2)=2,'CABLE LENGTH'!$AL19,0) -> 0 | Z19: =IF(COUNTIF('CABLE LENGTH'!$A19:$P19,Z$1)+COUNTIF('CABLE LENGTH'!$A19:$P19,Z$2)=2,'CABLE LENGTH'!$AL19,0) -> 0 | AA19: =IF(COUNTIF('CABLE LENGTH'!$A19:$P19,AA$1)+COUNTIF('CABLE LENGTH'!$A19:$P19,AA$2)=2,'CABLE LENGTH'!$AL19,0) -> 0 | AB19: =IF(COUNTIF('CABLE LENGTH'!$A19:$P19,AB$1)+COUNTIF('CABLE LENGTH'!$A19:$P19,AB$2)=2,'CABLE LENGTH'!$AL19,0) -> 0 | AC19: =IF(COUNTIF('CABLE LENGTH'!$A19:$P19,AC$1)+COUNTIF('CABLE LENGTH'!$A19:$P19,AC$2)=2,'CABLE LENGTH'!$AL19,0) -> 0 | AD19: =IF(COUNTIF('CABLE LENGTH'!$A19:$P19,AD$1)+COUNTIF('CABLE LENGTH'!$A19:$P19,AD$2)=2,'CABLE LENGTH'!$AL19,0) -> 0 | AE19: =IF(COUNTIF('CABLE LENGTH'!$A19:$P19,AE$1)+COUNTIF('CABLE LENGTH'!$A19:$P19,AE$2)=2,'CABLE LENGTH'!$AL19,0) -> 0 | AF19: =IF(COUNTIF('CABLE LENGTH'!$A19:$P19,AF$1)+COUNTIF('CABLE LENGTH'!$A19:$P19,AF$2)=2,'CABLE LENGTH'!$AL19,0) -> 0 | AG19: =IF(COUNTIF('CABLE LENGTH'!$A19:$P19,AG$1)+COUNTIF('CABLE LENGTH'!$A19:$P19,AG$2)=2,'CABLE LENGTH'!$AL19,0) -> 0 | AH19: =IF(COUNTIF('CABLE LENGTH'!$A19:$P19,AH$1)+COUNTIF('CABLE LENGTH'!$A19:$P19,AH$2)=2,'CABLE LENGTH'!$AL19,0) -> 0 | AI19: =IF(COUNTIF('CABLE LENGTH'!$A19:$P19,AI$1)+COUNTIF('CABLE LENGTH'!$A19:$P19,AI$2)=2,'CABLE LENGTH'!$AL19,0) -> 0 | AJ19: =IF(COUNTIF('CABLE LENGTH'!$A19:$P19,AJ$1)+COUNTIF('CABLE LENGTH'!$A19:$P19,AJ$2)=2,'CABLE LENGTH'!$AL19,0) -> 0 | AK19: =IF(COUNTIF('CABLE LENGTH'!$A19:$P19,AK$1)+COUNTIF('CABLE LENGTH'!$A19:$P19,AK$2)=2,'CABLE LENGTH'!$AL19,0) -> 0 | AL19: =IF(COUNTIF('CABLE LENGTH'!$A19:$P19,AL$1)+COUNTIF('CABLE LENGTH'!$A19:$P19,AL$2)=2,'CABLE LENGTH'!$AL19,0) -> 0 | AM19: =IF(COUNTIF('CABLE LENGTH'!$A19:$P19,AM$1)+COUNTIF('CABLE LENGTH'!$A19:$P19,AM$2)=2,'CABLE LENGTH'!$AL19,0) -> 0 | AN19: =IF(COUNTIF('CABLE LENGTH'!$A19:$P19,AN$1)+COUNTIF('CABLE LENGTH'!$A19:$P19,AN$2)=2,'CABLE LENGTH'!$AL19,0) -> 0 | AO19: =IF(COUNTIF('CABLE LENGTH'!$A19:$P19,AO$1)+COUNTIF('CABLE LENGTH'!$A19:$P19,AO$2)=2,'CABLE LENGTH'!$AL19,0) -> 0 | AP19: =IF(COUNTIF('CABLE LENGTH'!$A19:$P19,AP$1)+COUNTIF('CABLE LENGTH'!$A19:$P19,AP$2)=2,'CABLE LENGTH'!$AL19,0) -> 0 | AQ19: =IF(COUNTIF('CABLE LENGTH'!$A19:$P19,AQ$1)+COUNTIF('CABLE LENGTH'!$A19:$P19,AQ$2)=2,'CABLE LENGTH'!$AL19,0) -> 0 | AR19: =IF(COUNTIF('CABLE LENGTH'!$A19:$P19,AR$1)+COUNTIF('CABLE LENGTH'!$A19:$P19,AR$2)=2,'CABLE LENGTH'!$AL19,0) -> 0 | AS19: =IF(COUNTIF('CABLE LENGTH'!$A19:$P19,AS$1)+COUNTIF('CABLE LENGTH'!$A19:$P19,AS$2)=2,'CABLE LENGTH'!$AL19,0) -> 0 | AT19: =IF(COUNTIF('CABLE LENGTH'!$A19:$P19,AT$1)+COUNTIF('CABLE LENGTH'!$A19:$P19,AT$2)=2,'CABLE LENGTH'!$AL19,0) -> 0 | AU19: =IF(COUNTIF('CABLE LENGTH'!$A19:$P19,AU$1)+COUNTIF('CABLE LENGTH'!$A19:$P19,AU$2)=2,'CABLE LENGTH'!$AL19,0) -> 0 | AV19: =IF(COUNTIF('CABLE LENGTH'!$A19:$P19,AV$1)+COUNTIF('CABLE LENGTH'!$A19:$P19,AV$2)=2,'CABLE LENGTH'!$AL19,0) -> 0 | AW19: =IF(COUNTIF('CABLE LENGTH'!$A19:$P19,AW$1)+COUNTIF('CABLE LENGTH'!$A19:$P19,AW$2)=2,'CABLE LENGTH'!$AL19,0) -> 0 | AX19: =IF(COUNTIF('CABLE LENGTH'!$A19:$P19,AX$1)+COUNTIF('CABLE LENGTH'!$A19:$P19,AX$2)=2,'CABLE LENGTH'!$AL19,0) -> 0 | AY19: =IF(COUNTIF('CABLE LENGTH'!$A19:$P19,AY$1)+COUNTIF('CABLE LENGTH'!$A19:$P19,AY$2)=2,'CABLE LENGTH'!$AL19,0) -> 0 | AZ19: =IF(COUNTIF('CABLE LENGTH'!$A19:$P19,AZ$1)+COUNTIF('CABLE LENGTH'!$A19:$P19,AZ$2)=2,'CABLE LENGTH'!$AL19,0) -> 0
B20: =+'CABLE LENGTH'!AK20 -> 0 | C20: =IF(COUNTIF('CABLE LENGTH'!$A20:$P20,C$1)+COUNTIF('CABLE LENGTH'!$B20:$P20,C$2)=2,'CABLE LENGTH'!$AL20,0) -> 0 | D20: =IF(COUNTIF('CABLE LENGTH'!$A20:$P20,D$1)+COUNTIF('CABLE LENGTH'!$B20:$P20,D$2)=2,'CABLE LENGTH'!$AL20,0) -> 0 | E20: =IF(COUNTIF('CABLE LENGTH'!$A20:$P20,E$1)+COUNTIF('CABLE LENGTH'!$B20:$P20,E$2)=2,'CABLE LENGTH'!$AL20,0) -> 0 | F20: =IF(COUNTIF('CABLE LENGTH'!$A20:$P20,F$1)+COUNTIF('CABLE LENGTH'!$B20:$P20,F$2)=2,'CABLE LENGTH'!$AL20,0) -> 0 | G20: =IF(COUNTIF('CABLE LENGTH'!$A20:$P20,G$1)+COUNTIF('CABLE LENGTH'!$B20:$P20,G$2)=2,'CABLE LENGTH'!$AL20,0) -> 0 | H20: =IF(COUNTIF('CABLE LENGTH'!$A20:$P20,H$1)+COUNTIF('CABLE LENGTH'!$B20:$P20,H$2)=2,'CABLE LENGTH'!$AL20,0) -> 0 | I20: =IF(COUNTIF('CABLE LENGTH'!$A20:$P20,I$1)+COUNTIF('CABLE LENGTH'!$B20:$P20,I$2)=2,'CABLE LENGTH'!$AL20,0) -> 0 | J20: =IF(COUNTIF('CABLE LENGTH'!$A20:$P20,J$1)+COUNTIF('CABLE LENGTH'!$B20:$P20,J$2)=2,'CABLE LENGTH'!$AL20,0) -> 0 | K20: =IF(COUNTIF('CABLE LENGTH'!$A20:$P20,K$1)+COUNTIF('CABLE LENGTH'!$B20:$P20,K$2)=2,'CABLE LENGTH'!$AL20,0) -> 0 | L20: =IF(COUNTIF('CABLE LENGTH'!$A20:$P20,L$1)+COUNTIF('CABLE LENGTH'!$B20:$P20,L$2)=2,'CABLE LENGTH'!$AL20,0) -> 0 | M20: =IF(COUNTIF('CABLE LENGTH'!$A20:$P20,M$1)+COUNTIF('CABLE LENGTH'!$B20:$P20,M$2)=2,'CABLE LENGTH'!$AL20,0) -> 0 | N20: =IF(COUNTIF('CABLE LENGTH'!$A20:$P20,N$1)+COUNTIF('CABLE LENGTH'!$B20:$P20,N$2)=2,'CABLE LENGTH'!$AL20,0) -> 0 | O20: =IF(COUNTIF('CABLE LENGTH'!$A20:$P20,O$1)+COUNTIF('CABLE LENGTH'!$B20:$P20,O$2)=2,'CABLE LENGTH'!$AL20,0) -> 0 | P20: =IF(COUNTIF('CABLE LENGTH'!$A20:$P20,P$1)+COUNTIF('CABLE LENGTH'!$B20:$P20,P$2)=2,'CABLE LENGTH'!$AL20,0) -> 0 | Q20: =IF(COUNTIF('CABLE LENGTH'!$A20:$P20,Q$1)+COUNTIF('CABLE LENGTH'!$B20:$P20,Q$2)=2,'CABLE LENGTH'!$AL20,0) -> 0 | R20: =IF(COUNTIF('CABLE LENGTH'!$A20:$P20,R$1)+COUNTIF('CABLE LENGTH'!$B20:$P20,R$2)=2,'CABLE LENGTH'!$AL20,0) -> 0 | S20: =IF(COUNTIF('CABLE LENGTH'!$A20:$P20,S$1)+COUNTIF('CABLE LENGTH'!$B20:$P20,S$2)=2,'CABLE LENGTH'!$AL20,0) -> 0 | T20: =IF(COUNTIF('CABLE LENGTH'!$A20:$P20,T$1)+COUNTIF('CABLE LENGTH'!$B20:$P20,T$2)=2,'CABLE LENGTH'!$AL20,0) -> 0 | U20: =IF(COUNTIF('CABLE LENGTH'!$A20:$P20,U$1)+COUNTIF('CABLE LENGTH'!$B20:$P20,U$2)=2,'CABLE LENGTH'!$AL20,0) -> 0 | V20: =IF(COUNTIF('CABLE LENGTH'!$A20:$P20,V$1)+COUNTIF('CABLE LENGTH'!$B20:$P20,V$2)=2,'CABLE LENGTH'!$AL20,0) -> 0 | W20: =IF(COUNTIF('CABLE LENGTH'!$A20:$P20,W$1)+COUNTIF('CABLE LENGTH'!$B20:$P20,W$2)=2,'CABLE LENGTH'!$AL20,0) -> 0 | X20: =IF(COUNTIF('CABLE LENGTH'!$A20:$P20,X$1)+COUNTIF('CABLE LENGTH'!$B20:$P20,X$2)=2,'CABLE LENGTH'!$AL20,0) -> 0 | Y20: =IF(COUNTIF('CABLE LENGTH'!$A20:$P20,Y$1)+COUNTIF('CABLE LENGTH'!$A20:$P20,Y$2)=2,'CABLE LENGTH'!$AL20,0) -> 0 | Z20: =IF(COUNTIF('CABLE LENGTH'!$A20:$P20,Z$1)+COUNTIF('CABLE LENGTH'!$A20:$P20,Z$2)=2,'CABLE LENGTH'!$AL20,0) -> 0 | AA20: =IF(COUNTIF('CABLE LENGTH'!$A20:$P20,AA$1)+COUNTIF('CABLE LENGTH'!$A20:$P20,AA$2)=2,'CABLE LENGTH'!$AL20,0) -> 0 | AB20: =IF(COUNTIF('CABLE LENGTH'!$A20:$P20,AB$1)+COUNTIF('CABLE LENGTH'!$A20:$P20,AB$2)=2,'CABLE LENGTH'!$AL20,0) -> 0 | AC20: =IF(COUNTIF('CABLE LENGTH'!$A20:$P20,AC$1)+COUNTIF('CABLE LENGTH'!$A20:$P20,AC$2)=2,'CABLE LENGTH'!$AL20,0) -> 0 | AD20: =IF(COUNTIF('CABLE LENGTH'!$A20:$P20,AD$1)+COUNTIF('CABLE LENGTH'!$A20:$P20,AD$2)=2,'CABLE LENGTH'!$AL20,0) -> 0 | AE20: =IF(COUNTIF('CABLE LENGTH'!$A20:$P20,AE$1)+COUNTIF('CABLE LENGTH'!$A20:$P20,AE$2)=2,'CABLE LENGTH'!$AL20,0) -> 0 | AF20: =IF(COUNTIF('CABLE LENGTH'!$A20:$P20,AF$1)+COUNTIF('CABLE LENGTH'!$A20:$P20,AF$2)=2,'CABLE LENGTH'!$AL20,0) -> 0 | AG20: =IF(COUNTIF('CABLE LENGTH'!$A20:$P20,AG$1)+COUNTIF('CABLE LENGTH'!$A20:$P20,AG$2)=2,'CABLE LENGTH'!$AL20,0) -> 0 | AH20: =IF(COUNTIF('CABLE LENGTH'!$A20:$P20,AH$1)+COUNTIF('CABLE LENGTH'!$A20:$P20,AH$2)=2,'CABLE LENGTH'!$AL20,0) -> 0 | AI20: =IF(COUNTIF('CABLE LENGTH'!$A20:$P20,AI$1)+COUNTIF('CABLE LENGTH'!$A20:$P20,AI$2)=2,'CABLE LENGTH'!$AL20,0) -> 0 | AJ20: =IF(COUNTIF('CABLE LENGTH'!$A20:$P20,AJ$1)+COUNTIF('CABLE LENGTH'!$A20:$P20,AJ$2)=2,'CABLE LENGTH'!$AL20,0) -> 0 | AK20: =IF(COUNTIF('CABLE LENGTH'!$A20:$P20,AK$1)+COUNTIF('CABLE LENGTH'!$A20:$P20,AK$2)=2,'CABLE LENGTH'!$AL20,0) -> 0 | AL20: =IF(COUNTIF('CABLE LENGTH'!$A20:$P20,AL$1)+COUNTIF('CABLE LENGTH'!$A20:$P20,AL$2)=2,'CABLE LENGTH'!$AL20,0) -> 0 | AM20: =IF(COUNTIF('CABLE LENGTH'!$A20:$P20,AM$1)+COUNTIF('CABLE LENGTH'!$A20:$P20,AM$2)=2,'CABLE LENGTH'!$AL20,0) -> 0 | AN20: =IF(COUNTIF('CABLE LENGTH'!$A20:$P20,AN$1)+COUNTIF('CABLE LENGTH'!$A20:$P20,AN$2)=2,'CABLE LENGTH'!$AL20,0) -> 0 | AO20: =IF(COUNTIF('CABLE LENGTH'!$A20:$P20,AO$1)+COUNTIF('CABLE LENGTH'!$A20:$P20,AO$2)=2,'CABLE LENGTH'!$AL20,0) -> 0 | AP20: =IF(COUNTIF('CABLE LENGTH'!$A20:$P20,AP$1)+COUNTIF('CABLE LENGTH'!$A20:$P20,AP$2)=2,'CABLE LENGTH'!$AL20,0) -> 0 | AQ20: =IF(COUNTIF('CABLE LENGTH'!$A20:$P20,AQ$1)+COUNTIF('CABLE LENGTH'!$A20:$P20,AQ$2)=2,'CABLE LENGTH'!$AL20,0) -> 0 | AR20: =IF(COUNTIF('CABLE LENGTH'!$A20:$P20,AR$1)+COUNTIF('CABLE LENGTH'!$A20:$P20,AR$2)=2,'CABLE LENGTH'!$AL20,0) -> 0 | AS20: =IF(COUNTIF('CABLE LENGTH'!$A20:$P20,AS$1)+COUNTIF('CABLE LENGTH'!$A20:$P20,AS$2)=2,'CABLE LENGTH'!$AL20,0) -> 0 | AT20: =IF(COUNTIF('CABLE LENGTH'!$A20:$P20,AT$1)+COUNTIF('CABLE LENGTH'!$A20:$P20,AT$2)=2,'CABLE LENGTH'!$AL20,0) -> 0 | AU20: =IF(COUNTIF('CABLE LENGTH'!$A20:$P20,AU$1)+COUNTIF('CABLE LENGTH'!$A20:$P20,AU$2)=2,'CABLE LENGTH'!$AL20,0) -> 0 | AV20: =IF(COUNTIF('CABLE LENGTH'!$A20:$P20,AV$1)+COUNTIF('CABLE LENGTH'!$A20:$P20,AV$2)=2,'CABLE LENGTH'!$AL20,0) -> 0 | AW20: =IF(COUNTIF('CABLE LENGTH'!$A20:$P20,AW$1)+COUNTIF('CABLE LENGTH'!$A20:$P20,AW$2)=2,'CABLE LENGTH'!$AL20,0) -> 0 | AX20: =IF(COUNTIF('CABLE LENGTH'!$A20:$P20,AX$1)+COUNTIF('CABLE LENGTH'!$A20:$P20,AX$2)=2,'CABLE LENGTH'!$AL20,0) -> 0 | AY20: =IF(COUNTIF('CABLE LENGTH'!$A20:$P20,AY$1)+COUNTIF('CABLE LENGTH'!$A20:$P20,AY$2)=2,'CABLE LENGTH'!$AL20,0) -> 0 | AZ20: =IF(COUNTIF('CABLE LENGTH'!$A20:$P20,AZ$1)+COUNTIF('CABLE LENGTH'!$A20:$P20,AZ$2)=2,'CABLE LENGTH'!$AL20,0) -> 0
B21: =+'CABLE LENGTH'!AK21 -> 0 | C21: =IF(COUNTIF('CABLE LENGTH'!$A21:$P21,C$1)+COUNTIF('CABLE LENGTH'!$B21:$P21,C$2)=2,'CABLE LENGTH'!$AL21,0) -> 0 | D21: =IF(COUNTIF('CABLE LENGTH'!$A21:$P21,D$1)+COUNTIF('CABLE LENGTH'!$B21:$P21,D$2)=2,'CABLE LENGTH'!$AL21,0) -> 0 | E21: =IF(COUNTIF('CABLE LENGTH'!$A21:$P21,E$1)+COUNTIF('CABLE LENGTH'!$B21:$P21,E$2)=2,'CABLE LENGTH'!$AL21,0) -> 0 | F21: =IF(COUNTIF('CABLE LENGTH'!$A21:$P21,F$1)+COUNTIF('CABLE LENGTH'!$B21:$P21,F$2)=2,'CABLE LENGTH'!$AL21,0) -> 0 | G21: =IF(COUNTIF('CABLE LENGTH'!$A21:$P21,G$1)+COUNTIF('CABLE LENGTH'!$B21:$P21,G$2)=2,'CABLE LENGTH'!$AL21,0) -> 0 | H21: =IF(COUNTIF('CABLE LENGTH'!$A21:$P21,H$1)+COUNTIF('CABLE LENGTH'!$B21:$P21,H$2)=2,'CABLE LENGTH'!$AL21,0) -> 0 | I21: =IF(COUNTIF('CABLE LENGTH'!$A21:$P21,I$1)+COUNTIF('CABLE LENGTH'!$B21:$P21,I$2)=2,'CABLE LENGTH'!$AL21,0) -> 0 | J21: =IF(COUNTIF('CABLE LENGTH'!$A21:$P21,J$1)+COUNTIF('CABLE LENGTH'!$B21:$P21,J$2)=2,'CABLE LENGTH'!$AL21,0) -> 0 | K21: =IF(COUNTIF('CABLE LENGTH'!$A21:$P21,K$1)+COUNTIF('CABLE LENGTH'!$B21:$P21,K$2)=2,'CABLE LENGTH'!$AL21,0) -> 0 | L21: =IF(COUNTIF('CABLE LENGTH'!$A21:$P21,L$1)+COUNTIF('CABLE LENGTH'!$B21:$P21,L$2)=2,'CABLE LENGTH'!$AL21,0) -> 0 | M21: =IF(COUNTIF('CABLE LENGTH'!$A21:$P21,M$1)+COUNTIF('CABLE LENGTH'!$B21:$P21,M$2)=2,'CABLE LENGTH'!$AL21,0) -> 0 | N21: =IF(COUNTIF('CABLE LENGTH'!$A21:$P21,N$1)+COUNTIF('CABLE LENGTH'!$B21:$P21,N$2)=2,'CABLE LENGTH'!$AL21,0) -> 0 | O21: =IF(COUNTIF('CABLE LENGTH'!$A21:$P21,O$1)+COUNTIF('CABLE LENGTH'!$B21:$P21,O$2)=2,'CABLE LENGTH'!$AL21,0) -> 0 | P21: =IF(COUNTIF('CABLE LENGTH'!$A21:$P21,P$1)+COUNTIF('CABLE LENGTH'!$B21:$P21,P$2)=2,'CABLE LENGTH'!$AL21,0) -> 0 | Q21: =IF(COUNTIF('CABLE LENGTH'!$A21:$P21,Q$1)+COUNTIF('CABLE LENGTH'!$B21:$P21,Q$2)=2,'CABLE LENGTH'!$AL21,0) -> 0 | R21: =IF(COUNTIF('CABLE LENGTH'!$A21:$P21,R$1)+COUNTIF('CABLE LENGTH'!$B21:$P21,R$2)=2,'CABLE LENGTH'!$AL21,0) -> 0 | S21: =IF(COUNTIF('CABLE LENGTH'!$A21:$P21,S$1)+COUNTIF('CABLE LENGTH'!$B21:$P21,S$2)=2,'CABLE LENGTH'!$AL21,0) -> 0 | T21: =IF(COUNTIF('CABLE LENGTH'!$A21:$P21,T$1)+COUNTIF('CABLE LENGTH'!$B21:$P21,T$2)=2,'CABLE LENGTH'!$AL21,0) -> 0 | U21: =IF(COUNTIF('CABLE LENGTH'!$A21:$P21,U$1)+COUNTIF('CABLE LENGTH'!$B21:$P21,U$2)=2,'CABLE LENGTH'!$AL21,0) -> 0 | V21: =IF(COUNTIF('CABLE LENGTH'!$A21:$P21,V$1)+COUNTIF('CABLE LENGTH'!$B21:$P21,V$2)=2,'CABLE LENGTH'!$AL21,0) -> 0 | W21: =IF(COUNTIF('CABLE LENGTH'!$A21:$P21,W$1)+COUNTIF('CABLE LENGTH'!$B21:$P21,W$2)=2,'CABLE LENGTH'!$AL21,0) -> 0 | X21: =IF(COUNTIF('CABLE LENGTH'!$A21:$P21,X$1)+COUNTIF('CABLE LENGTH'!$B21:$P21,X$2)=2,'CABLE LENGTH'!$AL21,0) -> 0 | Y21: =IF(COUNTIF('CABLE LENGTH'!$A21:$P21,Y$1)+COUNTIF('CABLE LENGTH'!$A21:$P21,Y$2)=2,'CABLE LENGTH'!$AL21,0) -> 0 | Z21: =IF(COUNTIF('CABLE LENGTH'!$A21:$P21,Z$1)+COUNTIF('CABLE LENGTH'!$A21:$P21,Z$2)=2,'CABLE LENGTH'!$AL21,0) -> 0 | AA21: =IF(COUNTIF('CABLE LENGTH'!$A21:$P21,AA$1)+COUNTIF('CABLE LENGTH'!$A21:$P21,AA$2)=2,'CABLE LENGTH'!$AL21,0) -> 0 | AB21: =IF(COUNTIF('CABLE LENGTH'!$A21:$P21,AB$1)+COUNTIF('CABLE LENGTH'!$A21:$P21,AB$2)=2,'CABLE LENGTH'!$AL21,0) -> 0 | AC21: =IF(COUNTIF('CABLE LENGTH'!$A21:$P21,AC$1)+COUNTIF('CABLE LENGTH'!$A21:$P21,AC$2)=2,'CABLE LENGTH'!$AL21,0) -> 0 | AD21: =IF(COUNTIF('CABLE LENGTH'!$A21:$P21,AD$1)+COUNTIF('CABLE LENGTH'!$A21:$P21,AD$2)=2,'CABLE LENGTH'!$AL21,0) -> 0 | AE21: =IF(COUNTIF('CABLE LENGTH'!$A21:$P21,AE$1)+COUNTIF('CABLE LENGTH'!$A21:$P21,AE$2)=2,'CABLE LENGTH'!$AL21,0) -> 0 | AF21: =IF(COUNTIF('CABLE LENGTH'!$A21:$P21,AF$1)+COUNTIF('CABLE LENGTH'!$A21:$P21,AF$2)=2,'CABLE LENGTH'!$AL21,0) -> 0 | AG21: =IF(COUNTIF('CABLE LENGTH'!$A21:$P21,AG$1)+COUNTIF('CABLE LENGTH'!$A21:$P21,AG$2)=2,'CABLE LENGTH'!$AL21,0) -> 0 | AH21: =IF(COUNTIF('CABLE LENGTH'!$A21:$P21,AH$1)+COUNTIF('CABLE LENGTH'!$A21:$P21,AH$2)=2,'CABLE LENGTH'!$AL21,0) -> 0 | AI21: =IF(COUNTIF('CABLE LENGTH'!$A21:$P21,AI$1)+COUNTIF('CABLE LENGTH'!$A21:$P21,AI$2)=2,'CABLE LENGTH'!$AL21,0) -> 0 | AJ21: =IF(COUNTIF('CABLE LENGTH'!$A21:$P21,AJ$1)+COUNTIF('CABLE LENGTH'!$A21:$P21,AJ$2)=2,'CABLE LENGTH'!$AL21,0) -> 0 | AK21: =IF(COUNTIF('CABLE LENGTH'!$A21:$P21,AK$1)+COUNTIF('CABLE LENGTH'!$A21:$P21,AK$2)=2,'CABLE LENGTH'!$AL21,0) -> 0 | AL21: =IF(COUNTIF('CABLE LENGTH'!$A21:$P21,AL$1)+COUNTIF('CABLE LENGTH'!$A21:$P21,AL$2)=2,'CABLE LENGTH'!$AL21,0) -> 0 | AM21: =IF(COUNTIF('CABLE LENGTH'!$A21:$P21,AM$1)+COUNTIF('CABLE LENGTH'!$A21:$P21,AM$2)=2,'CABLE LENGTH'!$AL21,0) -> 0 | AN21: =IF(COUNTIF('CABLE LENGTH'!$A21:$P21,AN$1)+COUNTIF('CABLE LENGTH'!$A21:$P21,AN$2)=2,'CABLE LENGTH'!$AL21,0) -> 0 | AO21: =IF(COUNTIF('CABLE LENGTH'!$A21:$P21,AO$1)+COUNTIF('CABLE LENGTH'!$A21:$P21,AO$2)=2,'CABLE LENGTH'!$AL21,0) -> 0 | AP21: =IF(COUNTIF('CABLE LENGTH'!$A21:$P21,AP$1)+COUNTIF('CABLE LENGTH'!$A21:$P21,AP$2)=2,'CABLE LENGTH'!$AL21,0) -> 0 | AQ21: =IF(COUNTIF('CABLE LENGTH'!$A21:$P21,AQ$1)+COUNTIF('CABLE LENGTH'!$A21:$P21,AQ$2)=2,'CABLE LENGTH'!$AL21,0) -> 0 | AR21: =IF(COUNTIF('CABLE LENGTH'!$A21:$P21,AR$1)+COUNTIF('CABLE LENGTH'!$A21:$P21,AR$2)=2,'CABLE LENGTH'!$AL21,0) -> 0 | AS21: =IF(COUNTIF('CABLE LENGTH'!$A21:$P21,AS$1)+COUNTIF('CABLE LENGTH'!$A21:$P21,AS$2)=2,'CABLE LENGTH'!$AL21,0) -> 0 | AT21: =IF(COUNTIF('CABLE LENGTH'!$A21:$P21,AT$1)+COUNTIF('CABLE LENGTH'!$A21:$P21,AT$2)=2,'CABLE LENGTH'!$AL21,0) -> 0 | AU21: =IF(COUNTIF('CABLE LENGTH'!$A21:$P21,AU$1)+COUNTIF('CABLE LENGTH'!$A21:$P21,AU$2)=2,'CABLE LENGTH'!$AL21,0) -> 0 | AV21: =IF(COUNTIF('CABLE LENGTH'!$A21:$P21,AV$1)+COUNTIF('CABLE LENGTH'!$A21:$P21,AV$2)=2,'CABLE LENGTH'!$AL21,0) -> 0 | AW21: =IF(COUNTIF('CABLE LENGTH'!$A21:$P21,AW$1)+COUNTIF('CABLE LENGTH'!$A21:$P21,AW$2)=2,'CABLE LENGTH'!$AL21,0) -> 0 | AX21: =IF(COUNTIF('CABLE LENGTH'!$A21:$P21,AX$1)+COUNTIF('CABLE LENGTH'!$A21:$P21,AX$2)=2,'CABLE LENGTH'!$AL21,0) -> 0 | AY21: =IF(COUNTIF('CABLE LENGTH'!$A21:$P21,AY$1)+COUNTIF('CABLE LENGTH'!$A21:$P21,AY$2)=2,'CABLE LENGTH'!$AL21,0) -> 0 | AZ21: =IF(COUNTIF('CABLE LENGTH'!$A21:$P21,AZ$1)+COUNTIF('CABLE LENGTH'!$A21:$P21,AZ$2)=2,'CABLE LENGTH'!$AL21,0) -> 0
B22: =+'CABLE LENGTH'!AK22 -> 0 | C22: =IF(COUNTIF('CABLE LENGTH'!$A22:$P22,C$1)+COUNTIF('CABLE LENGTH'!$B22:$P22,C$2)=2,'CABLE LENGTH'!$AL22,0) -> 0 | D22: =IF(COUNTIF('CABLE LENGTH'!$A22:$P22,D$1)+COUNTIF('CABLE LENGTH'!$B22:$P22,D$2)=2,'CABLE LENGTH'!$AL22,0) -> 0 | E22: =IF(COUNTIF('CABLE LENGTH'!$A22:$P22,E$1)+COUNTIF('CABLE LENGTH'!$B22:$P22,E$2)=2,'CABLE LENGTH'!$AL22,0) -> 0 | F22: =IF(COUNTIF('CABLE LENGTH'!$A22:$P22,F$1)+COUNTIF('CABLE LENGTH'!$B22:$P22,F$2)=2,'CABLE LENGTH'!$AL22,0) -> 0 | G22: =IF(COUNTIF('CABLE LENGTH'!$A22:$P22,G$1)+COUNTIF('CABLE LENGTH'!$B22:$P22,G$2)=2,'CABLE LENGTH'!$AL22,0) -> 0 | H22: =IF(COUNTIF('CABLE LENGTH'!$A22:$P22,H$1)+COUNTIF('CABLE LENGTH'!$B22:$P22,H$2)=2,'CABLE LENGTH'!$AL22,0) -> 0 | I22: =IF(COUNTIF('CABLE LENGTH'!$A22:$P22,I$1)+COUNTIF('CABLE LENGTH'!$B22:$P22,I$2)=2,'CABLE LENGTH'!$AL22,0) -> 0 | J22: =IF(COUNTIF('CABLE LENGTH'!$A22:$P22,J$1)+COUNTIF('CABLE LENGTH'!$B22:$P22,J$2)=2,'CABLE LENGTH'!$AL22,0) -> 0 | K22: =IF(COUNTIF('CABLE LENGTH'!$A22:$P22,K$1)+COUNTIF('CABLE LENGTH'!$B22:$P22,K$2)=2,'CABLE LENGTH'!$AL22,0) -> 0 | L22: =IF(COUNTIF('CABLE LENGTH'!$A22:$P22,L$1)+COUNTIF('CABLE LENGTH'!$B22:$P22,L$2)=2,'CABLE LENGTH'!$AL22,0) -> 0 | M22: =IF(COUNTIF('CABLE LENGTH'!$A22:$P22,M$1)+COUNTIF('CABLE LENGTH'!$B22:$P22,M$2)=2,'CABLE LENGTH'!$AL22,0) -> 0 | N22: =IF(COUNTIF('CABLE LENGTH'!$A22:$P22,N$1)+COUNTIF('CABLE LENGTH'!$B22:$P22,N$2)=2,'CABLE LENGTH'!$AL22,0) -> 0 | O22: =IF(COUNTIF('CABLE LENGTH'!$A22:$P22,O$1)+COUNTIF('CABLE LENGTH'!$B22:$P22,O$2)=2,'CABLE LENGTH'!$AL22,0) -> 0 | P22: =IF(COUNTIF('CABLE LENGTH'!$A22:$P22,P$1)+COUNTIF('CABLE LENGTH'!$B22:$P22,P$2)=2,'CABLE LENGTH'!$AL22,0) -> 0 | Q22: =IF(COUNTIF('CABLE LENGTH'!$A22:$P22,Q$1)+COUNTIF('CABLE LENGTH'!$B22:$P22,Q$2)=2,'CABLE LENGTH'!$AL22,0) -> 0 | R22: =IF(COUNTIF('CABLE LENGTH'!$A22:$P22,R$1)+COUNTIF('CABLE LENGTH'!$B22:$P22,R$2)=2,'CABLE LENGTH'!$AL22,0) -> 0 | S22: =IF(COUNTIF('CABLE LENGTH'!$A22:$P22,S$1)+COUNTIF('CABLE LENGTH'!$B22:$P22,S$2)=2,'CABLE LENGTH'!$AL22,0) -> 0 | T22: =IF(COUNTIF('CABLE LENGTH'!$A22:$P22,T$1)+COUNTIF('CABLE LENGTH'!$B22:$P22,T$2)=2,'CABLE LENGTH'!$AL22,0) -> 0 | U22: =IF(COUNTIF('CABLE LENGTH'!$A22:$P22,U$1)+COUNTIF('CABLE LENGTH'!$B22:$P22,U$2)=2,'CABLE LENGTH'!$AL22,0) -> 0 | V22: =IF(COUNTIF('CABLE LENGTH'!$A22:$P22,V$1)+COUNTIF('CABLE LENGTH'!$B22:$P22,V$2)=2,'CABLE LENGTH'!$AL22,0) -> 0 | W22: =IF(COUNTIF('CABLE LENGTH'!$A22:$P22,W$1)+COUNTIF('CABLE LENGTH'!$B22:$P22,W$2)=2,'CABLE LENGTH'!$AL22,0) -> 0 | X22: =IF(COUNTIF('CABLE LENGTH'!$A22:$P22,X$1)+COUNTIF('CABLE LENGTH'!$B22:$P22,X$2)=2,'CABLE LENGTH'!$AL22,0) -> 0 | Y22: =IF(COUNTIF('CABLE LENGTH'!$A22:$P22,Y$1)+COUNTIF('CABLE LENGTH'!$A22:$P22,Y$2)=2,'CABLE LENGTH'!$AL22,0) -> 0 | Z22: =IF(COUNTIF('CABLE LENGTH'!$A22:$P22,Z$1)+COUNTIF('CABLE LENGTH'!$A22:$P22,Z$2)=2,'CABLE LENGTH'!$AL22,0) -> 0 | AA22: =IF(COUNTIF('CABLE LENGTH'!$A22:$P22,AA$1)+COUNTIF('CABLE LENGTH'!$A22:$P22,AA$2)=2,'CABLE LENGTH'!$AL22,0) -> 0 | AB22: =IF(COUNTIF('CABLE LENGTH'!$A22:$P22,AB$1)+COUNTIF('CABLE LENGTH'!$A22:$P22,AB$2)=2,'CABLE LENGTH'!$AL22,0) -> 0 | AC22: =IF(COUNTIF('CABLE LENGTH'!$A22:$P22,AC$1)+COUNTIF('CABLE LENGTH'!$A22:$P22,AC$2)=2,'CABLE LENGTH'!$AL22,0) -> 0 | AD22: =IF(COUNTIF('CABLE LENGTH'!$A22:$P22,AD$1)+COUNTIF('CABLE LENGTH'!$A22:$P22,AD$2)=2,'CABLE LENGTH'!$AL22,0) -> 0 | AE22: =IF(COUNTIF('CABLE LENGTH'!$A22:$P22,AE$1)+COUNTIF('CABLE LENGTH'!$A22:$P22,AE$2)=2,'CABLE LENGTH'!$AL22,0) -> 0 | AF22: =IF(COUNTIF('CABLE LENGTH'!$A22:$P22,AF$1)+COUNTIF('CABLE LENGTH'!$A22:$P22,AF$2)=2,'CABLE LENGTH'!$AL22,0) -> 0 | AG22: =IF(COUNTIF('CABLE LENGTH'!$A22:$P22,AG$1)+COUNTIF('CABLE LENGTH'!$A22:$P22,AG$2)=2,'CABLE LENGTH'!$AL22,0) -> 0 | AH22: =IF(COUNTIF('CABLE LENGTH'!$A22:$P22,AH$1)+COUNTIF('CABLE LENGTH'!$A22:$P22,AH$2)=2,'CABLE LENGTH'!$AL22,0) -> 0 | AI22: =IF(COUNTIF('CABLE LENGTH'!$A22:$P22,AI$1)+COUNTIF('CABLE LENGTH'!$A22:$P22,AI$2)=2,'CABLE LENGTH'!$AL22,0) -> 0 | AJ22: =IF(COUNTIF('CABLE LENGTH'!$A22:$P22,AJ$1)+COUNTIF('CABLE LENGTH'!$A22:$P22,AJ$2)=2,'CABLE LENGTH'!$AL22,0) -> 0 | AK22: =IF(COUNTIF('CABLE LENGTH'!$A22:$P22,AK$1)+COUNTIF('CABLE LENGTH'!$A22:$P22,AK$2)=2,'CABLE LENGTH'!$AL22,0) -> 0 | AL22: =IF(COUNTIF('CABLE LENGTH'!$A22:$P22,AL$1)+COUNTIF('CABLE LENGTH'!$A22:$P22,AL$2)=2,'CABLE LENGTH'!$AL22,0) -> 0 | AM22: =IF(COUNTIF('CABLE LENGTH'!$A22:$P22,AM$1)+COUNTIF('CABLE LENGTH'!$A22:$P22,AM$2)=2,'CABLE LENGTH'!$AL22,0) -> 0 | AN22: =IF(COUNTIF('CABLE LENGTH'!$A22:$P22,AN$1)+COUNTIF('CABLE LENGTH'!$A22:$P22,AN$2)=2,'CABLE LENGTH'!$AL22,0) -> 0 | AO22: =IF(COUNTIF('CABLE LENGTH'!$A22:$P22,AO$1)+COUNTIF('CABLE LENGTH'!$A22:$P22,AO$2)=2,'CABLE LENGTH'!$AL22,0) -> 0 | AP22: =IF(COUNTIF('CABLE LENGTH'!$A22:$P22,AP$1)+COUNTIF('CABLE LENGTH'!$A22:$P22,AP$2)=2,'CABLE LENGTH'!$AL22,0) -> 0 | AQ22: =IF(COUNTIF('CABLE LENGTH'!$A22:$P22,AQ$1)+COUNTIF('CABLE LENGTH'!$A22:$P22,AQ$2)=2,'CABLE LENGTH'!$AL22,0) -> 0 | AR22: =IF(COUNTIF('CABLE LENGTH'!$A22:$P22,AR$1)+COUNTIF('CABLE LENGTH'!$A22:$P22,AR$2)=2,'CABLE LENGTH'!$AL22,0) -> 0 | AS22: =IF(COUNTIF('CABLE LENGTH'!$A22:$P22,AS$1)+COUNTIF('CABLE LENGTH'!$A22:$P22,AS$2)=2,'CABLE LENGTH'!$AL22,0) -> 0 | AT22: =IF(COUNTIF('CABLE LENGTH'!$A22:$P22,AT$1)+COUNTIF('CABLE LENGTH'!$A22:$P22,AT$2)=2,'CABLE LENGTH'!$AL22,0) -> 0 | AU22: =IF(COUNTIF('CABLE LENGTH'!$A22:$P22,AU$1)+COUNTIF('CABLE LENGTH'!$A22:$P22,AU$2)=2,'CABLE LENGTH'!$AL22,0) -> 0 | AV22: =IF(COUNTIF('CABLE LENGTH'!$A22:$P22,AV$1)+COUNTIF('CABLE LENGTH'!$A22:$P22,AV$2)=2,'CABLE LENGTH'!$AL22,0) -> 0 | AW22: =IF(COUNTIF('CABLE LENGTH'!$A22:$P22,AW$1)+COUNTIF('CABLE LENGTH'!$A22:$P22,AW$2)=2,'CABLE LENGTH'!$AL22,0) -> 0 | AX22: =IF(COUNTIF('CABLE LENGTH'!$A22:$P22,AX$1)+COUNTIF('CABLE LENGTH'!$A22:$P22,AX$2)=2,'CABLE LENGTH'!$AL22,0) -> 0 | AY22: =IF(COUNTIF('CABLE LENGTH'!$A22:$P22,AY$1)+COUNTIF('CABLE LENGTH'!$A22:$P22,AY$2)=2,'CABLE LENGTH'!$AL22,0) -> 0 | AZ22: =IF(COUNTIF('CABLE LENGTH'!$A22:$P22,AZ$1)+COUNTIF('CABLE LENGTH'!$A22:$P22,AZ$2)=2,'CABLE LENGTH'!$AL22,0) -> 0
B23: =+'CABLE LENGTH'!AK23 -> 0 | C23: =IF(COUNTIF('CABLE LENGTH'!$A23:$P23,C$1)+COUNTIF('CABLE LENGTH'!$B23:$P23,C$2)=2,'CABLE LENGTH'!$AL23,0) -> 0 | D23: =IF(COUNTIF('CABLE LENGTH'!$A23:$P23,D$1)+COUNTIF('CABLE LENGTH'!$B23:$P23,D$2)=2,'CABLE LENGTH'!$AL23,0) -> 0 | E23: =IF(COUNTIF('CABLE LENGTH'!$A23:$P23,E$1)+COUNTIF('CABLE LENGTH'!$B23:$P23,E$2)=2,'CABLE LENGTH'!$AL23,0) -> 0 | F23: =IF(COUNTIF('CABLE LENGTH'!$A23:$P23,F$1)+COUNTIF('CABLE LENGTH'!$B23:$P23,F$2)=2,'CABLE LENGTH'!$AL23,0) -> 0 | G23: =IF(COUNTIF('CABLE LENGTH'!$A23:$P23,G$1)+COUNTIF('CABLE LENGTH'!$B23:$P23,G$2)=2,'CABLE LENGTH'!$AL23,0) -> 0 | H23: =IF(COUNTIF('CABLE LENGTH'!$A23:$P23,H$1)+COUNTIF('CABLE LENGTH'!$B23:$P23,H$2)=2,'CABLE LENGTH'!$AL23,0) -> 0 | I23: =IF(COUNTIF('CABLE LENGTH'!$A23:$P23,I$1)+COUNTIF('CABLE LENGTH'!$B23:$P23,I$2)=2,'CABLE LENGTH'!$AL23,0) -> 0 | J23: =IF(COUNTIF('CABLE LENGTH'!$A23:$P23,J$1)+COUNTIF('CABLE LENGTH'!$B23:$P23,J$2)=2,'CABLE LENGTH'!$AL23,0) -> 0 | K23: =IF(COUNTIF('CABLE LENGTH'!$A23:$P23,K$1)+COUNTIF('CABLE LENGTH'!$B23:$P23,K$2)=2,'CABLE LENGTH'!$AL23,0) -> 0 | L23: =IF(COUNTIF('CABLE LENGTH'!$A23:$P23,L$1)+COUNTIF('CABLE LENGTH'!$B23:$P23,L$2)=2,'CABLE LENGTH'!$AL23,0) -> 0 | M23: =IF(COUNTIF('CABLE LENGTH'!$A23:$P23,M$1)+COUNTIF('CABLE LENGTH'!$B23:$P23,M$2)=2,'CABLE LENGTH'!$AL23,0) -> 0 | N23: =IF(COUNTIF('CABLE LENGTH'!$A23:$P23,N$1)+COUNTIF('CABLE LENGTH'!$B23:$P23,N$2)=2,'CABLE LENGTH'!$AL23,0) -> 0 | O23: =IF(COUNTIF('CABLE LENGTH'!$A23:$P23,O$1)+COUNTIF('CABLE LENGTH'!$B23:$P23,O$2)=2,'CABLE LENGTH'!$AL23,0) -> 0 | P23: =IF(COUNTIF('CABLE LENGTH'!$A23:$P23,P$1)+COUNTIF('CABLE LENGTH'!$B23:$P23,P$2)=2,'CABLE LENGTH'!$AL23,0) -> 0 | Q23: =IF(COUNTIF('CABLE LENGTH'!$A23:$P23,Q$1)+COUNTIF('CABLE LENGTH'!$B23:$P23,Q$2)=2,'CABLE LENGTH'!$AL23,0) -> 0 | R23: =IF(COUNTIF('CABLE LENGTH'!$A23:$P23,R$1)+COUNTIF('CABLE LENGTH'!$B23:$P23,R$2)=2,'CABLE LENGTH'!$AL23,0) -> 0 | S23: =IF(COUNTIF('CABLE LENGTH'!$A23:$P23,S$1)+COUNTIF('CABLE LENGTH'!$B23:$P23,S$2)=2,'CABLE LENGTH'!$AL23,0) -> 0 | T23: =IF(COUNTIF('CABLE LENGTH'!$A23:$P23,T$1)+COUNTIF('CABLE LENGTH'!$B23:$P23,T$2)=2,'CABLE LENGTH'!$AL23,0) -> 0 | U23: =IF(COUNTIF('CABLE LENGTH'!$A23:$P23,U$1)+COUNTIF('CABLE LENGTH'!$B23:$P23,U$2)=2,'CABLE LENGTH'!$AL23,0) -> 0 | V23: =IF(COUNTIF('CABLE LENGTH'!$A23:$P23,V$1)+COUNTIF('CABLE LENGTH'!$B23:$P23,V$2)=2,'CABLE LENGTH'!$AL23,0) -> 0 | W23: =IF(COUNTIF('CABLE LENGTH'!$A23:$P23,W$1)+COUNTIF('CABLE LENGTH'!$B23:$P23,W$2)=2,'CABLE LENGTH'!$AL23,0) -> 0 | X23: =IF(COUNTIF('CABLE LENGTH'!$A23:$P23,X$1)+COUNTIF('CABLE LENGTH'!$B23:$P23,X$2)=2,'CABLE LENGTH'!$AL23,0) -> 0 | Y23: =IF(COUNTIF('CABLE LENGTH'!$A23:$P23,Y$1)+COUNTIF('CABLE LENGTH'!$A23:$P23,Y$2)=2,'CABLE LENGTH'!$AL23,0) -> 0 | Z23: =IF(COUNTIF('CABLE LENGTH'!$A23:$P23,Z$1)+COUNTIF('CABLE LENGTH'!$A23:$P23,Z$2)=2,'CABLE LENGTH'!$AL23,0) -> 0 | AA23: =IF(COUNTIF('CABLE LENGTH'!$A23:$P23,AA$1)+COUNTIF('CABLE LENGTH'!$A23:$P23,AA$2)=2,'CABLE LENGTH'!$AL23,0) -> 0 | AB23: =IF(COUNTIF('CABLE LENGTH'!$A23:$P23,AB$1)+COUNTIF('CABLE LENGTH'!$A23:$P23,AB$2)=2,'CABLE LENGTH'!$AL23,0) -> 0 | AC23: =IF(COUNTIF('CABLE LENGTH'!$A23:$P23,AC$1)+COUNTIF('CABLE LENGTH'!$A23:$P23,AC$2)=2,'CABLE LENGTH'!$AL23,0) -> 0 | AD23: =IF(COUNTIF('CABLE LENGTH'!$A23:$P23,AD$1)+COUNTIF('CABLE LENGTH'!$A23:$P23,AD$2)=2,'CABLE LENGTH'!$AL23,0) -> 0 | AE23: =IF(COUNTIF('CABLE LENGTH'!$A23:$P23,AE$1)+COUNTIF('CABLE LENGTH'!$A23:$P23,AE$2)=2,'CABLE LENGTH'!$AL23,0) -> 0 | AF23: =IF(COUNTIF('CABLE LENGTH'!$A23:$P23,AF$1)+COUNTIF('CABLE LENGTH'!$A23:$P23,AF$2)=2,'CABLE LENGTH'!$AL23,0) -> 0 | AG23: =IF(COUNTIF('CABLE LENGTH'!$A23:$P23,AG$1)+COUNTIF('CABLE LENGTH'!$A23:$P23,AG$2)=2,'CABLE LENGTH'!$AL23,0) -> 0 | AH23: =IF(COUNTIF('CABLE LENGTH'!$A23:$P23,AH$1)+COUNTIF('CABLE LENGTH'!$A23:$P23,AH$2)=2,'CABLE LENGTH'!$AL23,0) -> 0 | AI23: =IF(COUNTIF('CABLE LENGTH'!$A23:$P23,AI$1)+COUNTIF('CABLE LENGTH'!$A23:$P23,AI$2)=2,'CABLE LENGTH'!$AL23,0) -> 0 | AJ23: =IF(COUNTIF('CABLE LENGTH'!$A23:$P23,AJ$1)+COUNTIF('CABLE LENGTH'!$A23:$P23,AJ$2)=2,'CABLE LENGTH'!$AL23,0) -> 0 | AK23: =IF(COUNTIF('CABLE LENGTH'!$A23:$P23,AK$1)+COUNTIF('CABLE LENGTH'!$A23:$P23,AK$2)=2,'CABLE LENGTH'!$AL23,0) -> 0 | AL23: =IF(COUNTIF('CABLE LENGTH'!$A23:$P23,AL$1)+COUNTIF('CABLE LENGTH'!$A23:$P23,AL$2)=2,'CABLE LENGTH'!$AL23,0) -> 0 | AM23: =IF(COUNTIF('CABLE LENGTH'!$A23:$P23,AM$1)+COUNTIF('CABLE LENGTH'!$A23:$P23,AM$2)=2,'CABLE LENGTH'!$AL23,0) -> 0 | AN23: =IF(COUNTIF('CABLE LENGTH'!$A23:$P23,AN$1)+COUNTIF('CABLE LENGTH'!$A23:$P23,AN$2)=2,'CABLE LENGTH'!$AL23,0) -> 0 | AO23: =IF(COUNTIF('CABLE LENGTH'!$A23:$P23,AO$1)+COUNTIF('CABLE LENGTH'!$A23:$P23,AO$2)=2,'CABLE LENGTH'!$AL23,0) -> 0 | AP23: =IF(COUNTIF('CABLE LENGTH'!$A23:$P23,AP$1)+COUNTIF('CABLE LENGTH'!$A23:$P23,AP$2)=2,'CABLE LENGTH'!$AL23,0) -> 0 | AQ23: =IF(COUNTIF('CABLE LENGTH'!$A23:$P23,AQ$1)+COUNTIF('CABLE LENGTH'!$A23:$P23,AQ$2)=2,'CABLE LENGTH'!$AL23,0) -> 0 | AR23: =IF(COUNTIF('CABLE LENGTH'!$A23:$P23,AR$1)+COUNTIF('CABLE LENGTH'!$A23:$P23,AR$2)=2,'CABLE LENGTH'!$AL23,0) -> 0 | AS23: =IF(COUNTIF('CABLE LENGTH'!$A23:$P23,AS$1)+COUNTIF('CABLE LENGTH'!$A23:$P23,AS$2)=2,'CABLE LENGTH'!$AL23,0) -> 0 | AT23: =IF(COUNTIF('CABLE LENGTH'!$A23:$P23,AT$1)+COUNTIF('CABLE LENGTH'!$A23:$P23,AT$2)=2,'CABLE LENGTH'!$AL23,0) -> 0 | AU23: =IF(COUNTIF('CABLE LENGTH'!$A23:$P23,AU$1)+COUNTIF('CABLE LENGTH'!$A23:$P23,AU$2)=2,'CABLE LENGTH'!$AL23,0) -> 0 | AV23: =IF(COUNTIF('CABLE LENGTH'!$A23:$P23,AV$1)+COUNTIF('CABLE LENGTH'!$A23:$P23,AV$2)=2,'CABLE LENGTH'!$AL23,0) -> 0 | AW23: =IF(COUNTIF('CABLE LENGTH'!$A23:$P23,AW$1)+COUNTIF('CABLE LENGTH'!$A23:$P23,AW$2)=2,'CABLE LENGTH'!$AL23,0) -> 0 | AX23: =IF(COUNTIF('CABLE LENGTH'!$A23:$P23,AX$1)+COUNTIF('CABLE LENGTH'!$A23:$P23,AX$2)=2,'CABLE LENGTH'!$AL23,0) -> 0 | AY23: =IF(COUNTIF('CABLE LENGTH'!$A23:$P23,AY$1)+COUNTIF('CABLE LENGTH'!$A23:$P23,AY$2)=2,'CABLE LENGTH'!$AL23,0) -> 0 | AZ23: =IF(COUNTIF('CABLE LENGTH'!$A23:$P23,AZ$1)+COUNTIF('CABLE LENGTH'!$A23:$P23,AZ$2)=2,'CABLE LENGTH'!$AL23,0) -> 0
B24: =+'CABLE LENGTH'!AK24 -> 0 | C24: =IF(COUNTIF('CABLE LENGTH'!$A24:$P24,C$1)+COUNTIF('CABLE LENGTH'!$B24:$P24,C$2)=2,'CABLE LENGTH'!$AL24,0) -> 0 | D24: =IF(COUNTIF('CABLE LENGTH'!$A24:$P24,D$1)+COUNTIF('CABLE LENGTH'!$B24:$P24,D$2)=2,'CABLE LENGTH'!$AL24,0) -> 0 | E24: =IF(COUNTIF('CABLE LENGTH'!$A24:$P24,E$1)+COUNTIF('CABLE LENGTH'!$B24:$P24,E$2)=2,'CABLE LENGTH'!$AL24,0) -> 0 | F24: =IF(COUNTIF('CABLE LENGTH'!$A24:$P24,F$1)+COUNTIF('CABLE LENGTH'!$B24:$P24,F$2)=2,'CABLE LENGTH'!$AL24,0) -> 0 | G24: =IF(COUNTIF('CABLE LENGTH'!$A24:$P24,G$1)+COUNTIF('CABLE LENGTH'!$B24:$P24,G$2)=2,'CABLE LENGTH'!$AL24,0) -> 0 | H24: =IF(COUNTIF('CABLE LENGTH'!$A24:$P24,H$1)+COUNTIF('CABLE LENGTH'!$B24:$P24,H$2)=2,'CABLE LENGTH'!$AL24,0) -> 0 | I24: =IF(COUNTIF('CABLE LENGTH'!$A24:$P24,I$1)+COUNTIF('CABLE LENGTH'!$B24:$P24,I$2)=2,'CABLE LENGTH'!$AL24,0) -> 0 | J24: =IF(COUNTIF('CABLE LENGTH'!$A24:$P24,J$1)+COUNTIF('CABLE LENGTH'!$B24:$P24,J$2)=2,'CABLE LENGTH'!$AL24,0) -> 0 | K24: =IF(COUNTIF('CABLE LENGTH'!$A24:$P24,K$1)+COUNTIF('CABLE LENGTH'!$B24:$P24,K$2)=2,'CABLE LENGTH'!$AL24,0) -> 0 | L24: =IF(COUNTIF('CABLE LENGTH'!$A24:$P24,L$1)+COUNTIF('CABLE LENGTH'!$B24:$P24,L$2)=2,'CABLE LENGTH'!$AL24,0) -> 0 | M24: =IF(COUNTIF('CABLE LENGTH'!$A24:$P24,M$1)+COUNTIF('CABLE LENGTH'!$B24:$P24,M$2)=2,'CABLE LENGTH'!$AL24,0) -> 0 | N24: =IF(COUNTIF('CABLE LENGTH'!$A24:$P24,N$1)+COUNTIF('CABLE LENGTH'!$B24:$P24,N$2)=2,'CABLE LENGTH'!$AL24,0) -> 0 | O24: =IF(COUNTIF('CABLE LENGTH'!$A24:$P24,O$1)+COUNTIF('CABLE LENGTH'!$B24:$P24,O$2)=2,'CABLE LENGTH'!$AL24,0) -> 0 | P24: =IF(COUNTIF('CABLE LENGTH'!$A24:$P24,P$1)+COUNTIF('CABLE LENGTH'!$B24:$P24,P$2)=2,'CABLE LENGTH'!$AL24,0) -> 0 | Q24: =IF(COUNTIF('CABLE LENGTH'!$A24:$P24,Q$1)+COUNTIF('CABLE LENGTH'!$B24:$P24,Q$2)=2,'CABLE LENGTH'!$AL24,0) -> 0 | R24: =IF(COUNTIF('CABLE LENGTH'!$A24:$P24,R$1)+COUNTIF('CABLE LENGTH'!$B24:$P24,R$2)=2,'CABLE LENGTH'!$AL24,0) -> 0 | S24: =IF(COUNTIF('CABLE LENGTH'!$A24:$P24,S$1)+COUNTIF('CABLE LENGTH'!$B24:$P24,S$2)=2,'CABLE LENGTH'!$AL24,0) -> 0 | T24: =IF(COUNTIF('CABLE LENGTH'!$A24:$P24,T$1)+COUNTIF('CABLE LENGTH'!$B24:$P24,T$2)=2,'CABLE LENGTH'!$AL24,0) -> 0 | U24: =IF(COUNTIF('CABLE LENGTH'!$A24:$P24,U$1)+COUNTIF('CABLE LENGTH'!$B24:$P24,U$2)=2,'CABLE LENGTH'!$AL24,0) -> 0 | V24: =IF(COUNTIF('CABLE LENGTH'!$A24:$P24,V$1)+COUNTIF('CABLE LENGTH'!$B24:$P24,V$2)=2,'CABLE LENGTH'!$AL24,0) -> 0 | W24: =IF(COUNTIF('CABLE LENGTH'!$A24:$P24,W$1)+COUNTIF('CABLE LENGTH'!$B24:$P24,W$2)=2,'CABLE LENGTH'!$AL24,0) -> 0 | X24: =IF(COUNTIF('CABLE LENGTH'!$A24:$P24,X$1)+COUNTIF('CABLE LENGTH'!$B24:$P24,X$2)=2,'CABLE LENGTH'!$AL24,0) -> 0 | Y24: =IF(COUNTIF('CABLE LENGTH'!$A24:$P24,Y$1)+COUNTIF('CABLE LENGTH'!$A24:$P24,Y$2)=2,'CABLE LENGTH'!$AL24,0) -> 0 | Z24: =IF(COUNTIF('CABLE LENGTH'!$A24:$P24,Z$1)+COUNTIF('CABLE LENGTH'!$A24:$P24,Z$2)=2,'CABLE LENGTH'!$AL24,0) -> 0 | AA24: =IF(COUNTIF('CABLE LENGTH'!$A24:$P24,AA$1)+COUNTIF('CABLE LENGTH'!$A24:$P24,AA$2)=2,'CABLE LENGTH'!$AL24,0) -> 0 | AB24: =IF(COUNTIF('CABLE LENGTH'!$A24:$P24,AB$1)+COUNTIF('CABLE LENGTH'!$A24:$P24,AB$2)=2,'CABLE LENGTH'!$AL24,0) -> 0 | AC24: =IF(COUNTIF('CABLE LENGTH'!$A24:$P24,AC$1)+COUNTIF('CABLE LENGTH'!$A24:$P24,AC$2)=2,'CABLE LENGTH'!$AL24,0) -> 0 | AD24: =IF(COUNTIF('CABLE LENGTH'!$A24:$P24,AD$1)+COUNTIF('CABLE LENGTH'!$A24:$P24,AD$2)=2,'CABLE LENGTH'!$AL24,0) -> 0 | AE24: =IF(COUNTIF('CABLE LENGTH'!$A24:$P24,AE$1)+COUNTIF('CABLE LENGTH'!$A24:$P24,AE$2)=2,'CABLE LENGTH'!$AL24,0) -> 0 | AF24: =IF(COUNTIF('CABLE LENGTH'!$A24:$P24,AF$1)+COUNTIF('CABLE LENGTH'!$A24:$P24,AF$2)=2,'CABLE LENGTH'!$AL24,0) -> 0 | AG24: =IF(COUNTIF('CABLE LENGTH'!$A24:$P24,AG$1)+COUNTIF('CABLE LENGTH'!$A24:$P24,AG$2)=2,'CABLE LENGTH'!$AL24,0) -> 0 | AH24: =IF(COUNTIF('CABLE LENGTH'!$A24:$P24,AH$1)+COUNTIF('CABLE LENGTH'!$A24:$P24,AH$2)=2,'CABLE LENGTH'!$AL24,0) -> 0 | AI24: =IF(COUNTIF('CABLE LENGTH'!$A24:$P24,AI$1)+COUNTIF('CABLE LENGTH'!$A24:$P24,AI$2)=2,'CABLE LENGTH'!$AL24,0) -> 0 | AJ24: =IF(COUNTIF('CABLE LENGTH'!$A24:$P24,AJ$1)+COUNTIF('CABLE LENGTH'!$A24:$P24,AJ$2)=2,'CABLE LENGTH'!$AL24,0) -> 0 | AK24: =IF(COUNTIF('CABLE LENGTH'!$A24:$P24,AK$1)+COUNTIF('CABLE LENGTH'!$A24:$P24,AK$2)=2,'CABLE LENGTH'!$AL24,0) -> 0 | AL24: =IF(COUNTIF('CABLE LENGTH'!$A24:$P24,AL$1)+COUNTIF('CABLE LENGTH'!$A24:$P24,AL$2)=2,'CABLE LENGTH'!$AL24,0) -> 0 | AM24: =IF(COUNTIF('CABLE LENGTH'!$A24:$P24,AM$1)+COUNTIF('CABLE LENGTH'!$A24:$P24,AM$2)=2,'CABLE LENGTH'!$AL24,0) -> 0 | AN24: =IF(COUNTIF('CABLE LENGTH'!$A24:$P24,AN$1)+COUNTIF('CABLE LENGTH'!$A24:$P24,AN$2)=2,'CABLE LENGTH'!$AL24,0) -> 0 | AO24: =IF(COUNTIF('CABLE LENGTH'!$A24:$P24,AO$1)+COUNTIF('CABLE LENGTH'!$A24:$P24,AO$2)=2,'CABLE LENGTH'!$AL24,0) -> 0 | AP24: =IF(COUNTIF('CABLE LENGTH'!$A24:$P24,AP$1)+COUNTIF('CABLE LENGTH'!$A24:$P24,AP$2)=2,'CABLE LENGTH'!$AL24,0) -> 0 | AQ24: =IF(COUNTIF('CABLE LENGTH'!$A24:$P24,AQ$1)+COUNTIF('CABLE LENGTH'!$A24:$P24,AQ$2)=2,'CABLE LENGTH'!$AL24,0) -> 0 | AR24: =IF(COUNTIF('CABLE LENGTH'!$A24:$P24,AR$1)+COUNTIF('CABLE LENGTH'!$A24:$P24,AR$2)=2,'CABLE LENGTH'!$AL24,0) -> 0 | AS24: =IF(COUNTIF('CABLE LENGTH'!$A24:$P24,AS$1)+COUNTIF('CABLE LENGTH'!$A24:$P24,AS$2)=2,'CABLE LENGTH'!$AL24,0) -> 0 | AT24: =IF(COUNTIF('CABLE LENGTH'!$A24:$P24,AT$1)+COUNTIF('CABLE LENGTH'!$A24:$P24,AT$2)=2,'CABLE LENGTH'!$AL24,0) -> 0 | AU24: =IF(COUNTIF('CABLE LENGTH'!$A24:$P24,AU$1)+COUNTIF('CABLE LENGTH'!$A24:$P24,AU$2)=2,'CABLE LENGTH'!$AL24,0) -> 0 | AV24: =IF(COUNTIF('CABLE LENGTH'!$A24:$P24,AV$1)+COUNTIF('CABLE LENGTH'!$A24:$P24,AV$2)=2,'CABLE LENGTH'!$AL24,0) -> 0 | AW24: =IF(COUNTIF('CABLE LENGTH'!$A24:$P24,AW$1)+COUNTIF('CABLE LENGTH'!$A24:$P24,AW$2)=2,'CABLE LENGTH'!$AL24,0) -> 0 | AX24: =IF(COUNTIF('CABLE LENGTH'!$A24:$P24,AX$1)+COUNTIF('CABLE LENGTH'!$A24:$P24,AX$2)=2,'CABLE LENGTH'!$AL24,0) -> 0 | AY24: =IF(COUNTIF('CABLE LENGTH'!$A24:$P24,AY$1)+COUNTIF('CABLE LENGTH'!$A24:$P24,AY$2)=2,'CABLE LENGTH'!$AL24,0) -> 0 | AZ24: =IF(COUNTIF('CABLE LENGTH'!$A24:$P24,AZ$1)+COUNTIF('CABLE LENGTH'!$A24:$P24,AZ$2)=2,'CABLE LENGTH'!$AL24,0) -> 0
B25: =+'CABLE LENGTH'!AK25 -> 0 | C25: =IF(COUNTIF('CABLE LENGTH'!$A25:$P25,C$1)+COUNTIF('CABLE LENGTH'!$B25:$P25,C$2)=2,'CABLE LENGTH'!$AL25,0) -> 0 | D25: =IF(COUNTIF('CABLE LENGTH'!$A25:$P25,D$1)+COUNTIF('CABLE LENGTH'!$B25:$P25,D$2)=2,'CABLE LENGTH'!$AL25,0) -> 0 | E25: =IF(COUNTIF('CABLE LENGTH'!$A25:$P25,E$1)+COUNTIF('CABLE LENGTH'!$B25:$P25,E$2)=2,'CABLE LENGTH'!$AL25,0) -> 0 | F25: =IF(COUNTIF('CABLE LENGTH'!$A25:$P25,F$1)+COUNTIF('CABLE LENGTH'!$B25:$P25,F$2)=2,'CABLE LENGTH'!$AL25,0) -> 0 | G25: =IF(COUNTIF('CABLE LENGTH'!$A25:$P25,G$1)+COUNTIF('CABLE LENGTH'!$B25:$P25,G$2)=2,'CABLE LENGTH'!$AL25,0) -> 0 | H25: =IF(COUNTIF('CABLE LENGTH'!$A25:$P25,H$1)+COUNTIF('CABLE LENGTH'!$B25:$P25,H$2)=2,'CABLE LENGTH'!$AL25,0) -> 0 | I25: =IF(COUNTIF('CABLE LENGTH'!$A25:$P25,I$1)+COUNTIF('CABLE LENGTH'!$B25:$P25,I$2)=2,'CABLE LENGTH'!$AL25,0) -> 0 | J25: =IF(COUNTIF('CABLE LENGTH'!$A25:$P25,J$1)+COUNTIF('CABLE LENGTH'!$B25:$P25,J$2)=2,'CABLE LENGTH'!$AL25,0) -> 0 | K25: =IF(COUNTIF('CABLE LENGTH'!$A25:$P25,K$1)+COUNTIF('CABLE LENGTH'!$B25:$P25,K$2)=2,'CABLE LENGTH'!$AL25,0) -> 0 | L25: =IF(COUNTIF('CABLE LENGTH'!$A25:$P25,L$1)+COUNTIF('CABLE LENGTH'!$B25:$P25,L$2)=2,'CABLE LENGTH'!$AL25,0) -> 0 | M25: =IF(COUNTIF('CABLE LENGTH'!$A25:$P25,M$1)+COUNTIF('CABLE LENGTH'!$B25:$P25,M$2)=2,'CABLE LENGTH'!$AL25,0) -> 0 | N25: =IF(COUNTIF('CABLE LENGTH'!$A25:$P25,N$1)+COUNTIF('CABLE LENGTH'!$B25:$P25,N$2)=2,'CABLE LENGTH'!$AL25,0) -> 0 | O25: =IF(COUNTIF('CABLE LENGTH'!$A25:$P25,O$1)+COUNTIF('CABLE LENGTH'!$B25:$P25,O$2)=2,'CABLE LENGTH'!$AL25,0) -> 0 | P25: =IF(COUNTIF('CABLE LENGTH'!$A25:$P25,P$1)+COUNTIF('CABLE LENGTH'!$B25:$P25,P$2)=2,'CABLE LENGTH'!$AL25,0) -> 0 | Q25: =IF(COUNTIF('CABLE LENGTH'!$A25:$P25,Q$1)+COUNTIF('CABLE LENGTH'!$B25:$P25,Q$2)=2,'CABLE LENGTH'!$AL25,0) -> 0 | R25: =IF(COUNTIF('CABLE LENGTH'!$A25:$P25,R$1)+COUNTIF('CABLE LENGTH'!$B25:$P25,R$2)=2,'CABLE LENGTH'!$AL25,0) -> 0 | S25: =IF(COUNTIF('CABLE LENGTH'!$A25:$P25,S$1)+COUNTIF('CABLE LENGTH'!$B25:$P25,S$2)=2,'CABLE LENGTH'!$AL25,0) -> 0 | T25: =IF(COUNTIF('CABLE LENGTH'!$A25:$P25,T$1)+COUNTIF('CABLE LENGTH'!$B25:$P25,T$2)=2,'CABLE LENGTH'!$AL25,0) -> 0 | U25: =IF(COUNTIF('CABLE LENGTH'!$A25:$P25,U$1)+COUNTIF('CABLE LENGTH'!$B25:$P25,U$2)=2,'CABLE LENGTH'!$AL25,0) -> 0 | V25: =IF(COUNTIF('CABLE LENGTH'!$A25:$P25,V$1)+COUNTIF('CABLE LENGTH'!$B25:$P25,V$2)=2,'CABLE LENGTH'!$AL25,0) -> 0 | W25: =IF(COUNTIF('CABLE LENGTH'!$A25:$P25,W$1)+COUNTIF('CABLE LENGTH'!$B25:$P25,W$2)=2,'CABLE LENGTH'!$AL25,0) -> 0 | X25: =IF(COUNTIF('CABLE LENGTH'!$A25:$P25,X$1)+COUNTIF('CABLE LENGTH'!$B25:$P25,X$2)=2,'CABLE LENGTH'!$AL25,0) -> 0 | Y25: =IF(COUNTIF('CABLE LENGTH'!$A25:$P25,Y$1)+COUNTIF('CABLE LENGTH'!$A25:$P25,Y$2)=2,'CABLE LENGTH'!$AL25,0) -> 0 | Z25: =IF(COUNTIF('CABLE LENGTH'!$A25:$P25,Z$1)+COUNTIF('CABLE LENGTH'!$A25:$P25,Z$2)=2,'CABLE LENGTH'!$AL25,0) -> 0 | AA25: =IF(COUNTIF('CABLE LENGTH'!$A25:$P25,AA$1)+COUNTIF('CABLE LENGTH'!$A25:$P25,AA$2)=2,'CABLE LENGTH'!$AL25,0) -> 0 | AB25: =IF(COUNTIF('CABLE LENGTH'!$A25:$P25,AB$1)+COUNTIF('CABLE LENGTH'!$A25:$P25,AB$2)=2,'CABLE LENGTH'!$AL25,0) -> 0 | AC25: =IF(COUNTIF('CABLE LENGTH'!$A25:$P25,AC$1)+COUNTIF('CABLE LENGTH'!$A25:$P25,AC$2)=2,'CABLE LENGTH'!$AL25,0) -> 0 | AD25: =IF(COUNTIF('CABLE LENGTH'!$A25:$P25,AD$1)+COUNTIF('CABLE LENGTH'!$A25:$P25,AD$2)=2,'CABLE LENGTH'!$AL25,0) -> 0 | AE25: =IF(COUNTIF('CABLE LENGTH'!$A25:$P25,AE$1)+COUNTIF('CABLE LENGTH'!$A25:$P25,AE$2)=2,'CABLE LENGTH'!$AL25,0) -> 0 | AF25: =IF(COUNTIF('CABLE LENGTH'!$A25:$P25,AF$1)+COUNTIF('CABLE LENGTH'!$A25:$P25,AF$2)=2,'CABLE LENGTH'!$AL25,0) -> 0 | AG25: =IF(COUNTIF('CABLE LENGTH'!$A25:$P25,AG$1)+COUNTIF('CABLE LENGTH'!$A25:$P25,AG$2)=2,'CABLE LENGTH'!$AL25,0) -> 0 | AH25: =IF(COUNTIF('CABLE LENGTH'!$A25:$P25,AH$1)+COUNTIF('CABLE LENGTH'!$A25:$P25,AH$2)=2,'CABLE LENGTH'!$AL25,0) -> 0 | AI25: =IF(COUNTIF('CABLE LENGTH'!$A25:$P25,AI$1)+COUNTIF('CABLE LENGTH'!$A25:$P25,AI$2)=2,'CABLE LENGTH'!$AL25,0) -> 0 | AJ25: =IF(COUNTIF('CABLE LENGTH'!$A25:$P25,AJ$1)+COUNTIF('CABLE LENGTH'!$A25:$P25,AJ$2)=2,'CABLE LENGTH'!$AL25,0) -> 0 | AK25: =IF(COUNTIF('CABLE LENGTH'!$A25:$P25,AK$1)+COUNTIF('CABLE LENGTH'!$A25:$P25,AK$2)=2,'CABLE LENGTH'!$AL25,0) -> 0 | AL25: =IF(COUNTIF('CABLE LENGTH'!$A25:$P25,AL$1)+COUNTIF('CABLE LENGTH'!$A25:$P25,AL$2)=2,'CABLE LENGTH'!$AL25,0) -> 0 | AM25: =IF(COUNTIF('CABLE LENGTH'!$A25:$P25,AM$1)+COUNTIF('CABLE LENGTH'!$A25:$P25,AM$2)=2,'CABLE LENGTH'!$AL25,0) -> 0 | AN25: =IF(COUNTIF('CABLE LENGTH'!$A25:$P25,AN$1)+COUNTIF('CABLE LENGTH'!$A25:$P25,AN$2)=2,'CABLE LENGTH'!$AL25,0) -> 0 | AO25: =IF(COUNTIF('CABLE LENGTH'!$A25:$P25,AO$1)+COUNTIF('CABLE LENGTH'!$A25:$P25,AO$2)=2,'CABLE LENGTH'!$AL25,0) -> 0 | AP25: =IF(COUNTIF('CABLE LENGTH'!$A25:$P25,AP$1)+COUNTIF('CABLE LENGTH'!$A25:$P25,AP$2)=2,'CABLE LENGTH'!$AL25,0) -> 0 | AQ25: =IF(COUNTIF('CABLE LENGTH'!$A25:$P25,AQ$1)+COUNTIF('CABLE LENGTH'!$A25:$P25,AQ$2)=2,'CABLE LENGTH'!$AL25,0) -> 0 | AR25: =IF(COUNTIF('CABLE LENGTH'!$A25:$P25,AR$1)+COUNTIF('CABLE LENGTH'!$A25:$P25,AR$2)=2,'CABLE LENGTH'!$AL25,0) -> 0 | AS25: =IF(COUNTIF('CABLE LENGTH'!$A25:$P25,AS$1)+COUNTIF('CABLE LENGTH'!$A25:$P25,AS$2)=2,'CABLE LENGTH'!$AL25,0) -> 0 | AT25: =IF(COUNTIF('CABLE LENGTH'!$A25:$P25,AT$1)+COUNTIF('CABLE LENGTH'!$A25:$P25,AT$2)=2,'CABLE LENGTH'!$AL25,0) -> 0 | AU25: =IF(COUNTIF('CABLE LENGTH'!$A25:$P25,AU$1)+COUNTIF('CABLE LENGTH'!$A25:$P25,AU$2)=2,'CABLE LENGTH'!$AL25,0) -> 0 | AV25: =IF(COUNTIF('CABLE LENGTH'!$A25:$P25,AV$1)+COUNTIF('CABLE LENGTH'!$A25:$P25,AV$2)=2,'CABLE LENGTH'!$AL25,0) -> 0 | AW25: =IF(COUNTIF('CABLE LENGTH'!$A25:$P25,AW$1)+COUNTIF('CABLE LENGTH'!$A25:$P25,AW$2)=2,'CABLE LENGTH'!$AL25,0) -> 0 | AX25: =IF(COUNTIF('CABLE LENGTH'!$A25:$P25,AX$1)+COUNTIF('CABLE LENGTH'!$A25:$P25,AX$2)=2,'CABLE LENGTH'!$AL25,0) -> 0 | AY25: =IF(COUNTIF('CABLE LENGTH'!$A25:$P25,AY$1)+COUNTIF('CABLE LENGTH'!$A25:$P25,AY$2)=2,'CABLE LENGTH'!$AL25,0) -> 0 | AZ25: =IF(COUNTIF('CABLE LENGTH'!$A25:$P25,AZ$1)+COUNTIF('CABLE LENGTH'!$A25:$P25,AZ$2)=2,'CABLE LENGTH'!$AL25,0) -> 0
B26: =+'CABLE LENGTH'!AK26 -> 0 | C26: =IF(COUNTIF('CABLE LENGTH'!$A26:$P26,C$1)+COUNTIF('CABLE LENGTH'!$B26:$P26,C$2)=2,'CABLE LENGTH'!$AL26,0) -> 0 | D26: =IF(COUNTIF('CABLE LENGTH'!$A26:$P26,D$1)+COUNTIF('CABLE LENGTH'!$B26:$P26,D$2)=2,'CABLE LENGTH'!$AL26,0) -> 0 | E26: =IF(COUNTIF('CABLE LENGTH'!$A26:$P26,E$1)+COUNTIF('CABLE LENGTH'!$B26:$P26,E$2)=2,'CABLE LENGTH'!$AL26,0) -> 0 | F26: =IF(COUNTIF('CABLE LENGTH'!$A26:$P26,F$1)+COUNTIF('CABLE LENGTH'!$B26:$P26,F$2)=2,'CABLE LENGTH'!$AL26,0) -> 0 | G26: =IF(COUNTIF('CABLE LENGTH'!$A26:$P26,G$1)+COUNTIF('CABLE LENGTH'!$B26:$P26,G$2)=2,'CABLE LENGTH'!$AL26,0) -> 0 | H26: =IF(COUNTIF('CABLE LENGTH'!$A26:$P26,H$1)+COUNTIF('CABLE LENGTH'!$B26:$P26,H$2)=2,'CABLE LENGTH'!$AL26,0) -> 0 | I26: =IF(COUNTIF('CABLE LENGTH'!$A26:$P26,I$1)+COUNTIF('CABLE LENGTH'!$B26:$P26,I$2)=2,'CABLE LENGTH'!$AL26,0) -> 0 | J26: =IF(COUNTIF('CABLE LENGTH'!$A26:$P26,J$1)+COUNTIF('CABLE LENGTH'!$B26:$P26,J$2)=2,'CABLE LENGTH'!$AL26,0) -> 0 | K26: =IF(COUNTIF('CABLE LENGTH'!$A26:$P26,K$1)+COUNTIF('CABLE LENGTH'!$B26:$P26,K$2)=2,'CABLE LENGTH'!$AL26,0) -> 0 | L26: =IF(COUNTIF('CABLE LENGTH'!$A26:$P26,L$1)+COUNTIF('CABLE LENGTH'!$B26:$P26,L$2)=2,'CABLE LENGTH'!$AL26,0) -> 0 | M26: =IF(COUNTIF('CABLE LENGTH'!$A26:$P26,M$1)+COUNTIF('CABLE LENGTH'!$B26:$P26,M$2)=2,'CABLE LENGTH'!$AL26,0) -> 0 | N26: =IF(COUNTIF('CABLE LENGTH'!$A26:$P26,N$1)+COUNTIF('CABLE LENGTH'!$B26:$P26,N$2)=2,'CABLE LENGTH'!$AL26,0) -> 0 | O26: =IF(COUNTIF('CABLE LENGTH'!$A26:$P26,O$1)+COUNTIF('CABLE LENGTH'!$B26:$P26,O$2)=2,'CABLE LENGTH'!$AL26,0) -> 0 | P26: =IF(COUNTIF('CABLE LENGTH'!$A26:$P26,P$1)+COUNTIF('CABLE LENGTH'!$B26:$P26,P$2)=2,'CABLE LENGTH'!$AL26,0) -> 0 | Q26: =IF(COUNTIF('CABLE LENGTH'!$A26:$P26,Q$1)+COUNTIF('CABLE LENGTH'!$B26:$P26,Q$2)=2,'CABLE LENGTH'!$AL26,0) -> 0 | R26: =IF(COUNTIF('CABLE LENGTH'!$A26:$P26,R$1)+COUNTIF('CABLE LENGTH'!$B26:$P26,R$2)=2,'CABLE LENGTH'!$AL26,0) -> 0 | S26: =IF(COUNTIF('CABLE LENGTH'!$A26:$P26,S$1)+COUNTIF('CABLE LENGTH'!$B26:$P26,S$2)=2,'CABLE LENGTH'!$AL26,0) -> 0 | T26: =IF(COUNTIF('CABLE LENGTH'!$A26:$P26,T$1)+COUNTIF('CABLE LENGTH'!$B26:$P26,T$2)=2,'CABLE LENGTH'!$AL26,0) -> 0 | U26: =IF(COUNTIF('CABLE LENGTH'!$A26:$P26,U$1)+COUNTIF('CABLE LENGTH'!$B26:$P26,U$2)=2,'CABLE LENGTH'!$AL26,0) -> 0 | V26: =IF(COUNTIF('CABLE LENGTH'!$A26:$P26,V$1)+COUNTIF('CABLE LENGTH'!$B26:$P26,V$2)=2,'CABLE LENGTH'!$AL26,0) -> 0 | W26: =IF(COUNTIF('CABLE LENGTH'!$A26:$P26,W$1)+COUNTIF('CABLE LENGTH'!$B26:$P26,W$2)=2,'CABLE LENGTH'!$AL26,0) -> 0 | X26: =IF(COUNTIF('CABLE LENGTH'!$A26:$P26,X$1)+COUNTIF('CABLE LENGTH'!$B26:$P26,X$2)=2,'CABLE LENGTH'!$AL26,0) -> 0 | Y26: =IF(COUNTIF('CABLE LENGTH'!$A26:$P26,Y$1)+COUNTIF('CABLE LENGTH'!$A26:$P26,Y$2)=2,'CABLE LENGTH'!$AL26,0) -> 0 | Z26: =IF(COUNTIF('CABLE LENGTH'!$A26:$P26,Z$1)+COUNTIF('CABLE LENGTH'!$A26:$P26,Z$2)=2,'CABLE LENGTH'!$AL26,0) -> 0 | AA26: =IF(COUNTIF('CABLE LENGTH'!$A26:$P26,AA$1)+COUNTIF('CABLE LENGTH'!$A26:$P26,AA$2)=2,'CABLE LENGTH'!$AL26,0) -> 0 | AB26: =IF(COUNTIF('CABLE LENGTH'!$A26:$P26,AB$1)+COUNTIF('CABLE LENGTH'!$A26:$P26,AB$2)=2,'CABLE LENGTH'!$AL26,0) -> 0 | AC26: =IF(COUNTIF('CABLE LENGTH'!$A26:$P26,AC$1)+COUNTIF('CABLE LENGTH'!$A26:$P26,AC$2)=2,'CABLE LENGTH'!$AL26,0) -> 0 | AD26: =IF(COUNTIF('CABLE LENGTH'!$A26:$P26,AD$1)+COUNTIF('CABLE LENGTH'!$A26:$P26,AD$2)=2,'CABLE LENGTH'!$AL26,0) -> 0 | AE26: =IF(COUNTIF('CABLE LENGTH'!$A26:$P26,AE$1)+COUNTIF('CABLE LENGTH'!$A26:$P26,AE$2)=2,'CABLE LENGTH'!$AL26,0) -> 0 | AF26: =IF(COUNTIF('CABLE LENGTH'!$A26:$P26,AF$1)+COUNTIF('CABLE LENGTH'!$A26:$P26,AF$2)=2,'CABLE LENGTH'!$AL26,0) -> 0 | AG26: =IF(COUNTIF('CABLE LENGTH'!$A26:$P26,AG$1)+COUNTIF('CABLE LENGTH'!$A26:$P26,AG$2)=2,'CABLE LENGTH'!$AL26,0) -> 0 | AH26: =IF(COUNTIF('CABLE LENGTH'!$A26:$P26,AH$1)+COUNTIF('CABLE LENGTH'!$A26:$P26,AH$2)=2,'CABLE LENGTH'!$AL26,0) -> 0 | AI26: =IF(COUNTIF('CABLE LENGTH'!$A26:$P26,AI$1)+COUNTIF('CABLE LENGTH'!$A26:$P26,AI$2)=2,'CABLE LENGTH'!$AL26,0) -> 0 | AJ26: =IF(COUNTIF('CABLE LENGTH'!$A26:$P26,AJ$1)+COUNTIF('CABLE LENGTH'!$A26:$P26,AJ$2)=2,'CABLE LENGTH'!$AL26,0) -> 0 | AK26: =IF(COUNTIF('CABLE LENGTH'!$A26:$P26,AK$1)+COUNTIF('CABLE LENGTH'!$A26:$P26,AK$2)=2,'CABLE LENGTH'!$AL26,0) -> 0 | AL26: =IF(COUNTIF('CABLE LENGTH'!$A26:$P26,AL$1)+COUNTIF('CABLE LENGTH'!$A26:$P26,AL$2)=2,'CABLE LENGTH'!$AL26,0) -> 0 | AM26: =IF(COUNTIF('CABLE LENGTH'!$A26:$P26,AM$1)+COUNTIF('CABLE LENGTH'!$A26:$P26,AM$2)=2,'CABLE LENGTH'!$AL26,0) -> 0 | AN26: =IF(COUNTIF('CABLE LENGTH'!$A26:$P26,AN$1)+COUNTIF('CABLE LENGTH'!$A26:$P26,AN$2)=2,'CABLE LENGTH'!$AL26,0) -> 0 | AO26: =IF(COUNTIF('CABLE LENGTH'!$A26:$P26,AO$1)+COUNTIF('CABLE LENGTH'!$A26:$P26,AO$2)=2,'CABLE LENGTH'!$AL26,0) -> 0 | AP26: =IF(COUNTIF('CABLE LENGTH'!$A26:$P26,AP$1)+COUNTIF('CABLE LENGTH'!$A26:$P26,AP$2)=2,'CABLE LENGTH'!$AL26,0) -> 0 | AQ26: =IF(COUNTIF('CABLE LENGTH'!$A26:$P26,AQ$1)+COUNTIF('CABLE LENGTH'!$A26:$P26,AQ$2)=2,'CABLE LENGTH'!$AL26,0) -> 0 | AR26: =IF(COUNTIF('CABLE LENGTH'!$A26:$P26,AR$1)+COUNTIF('CABLE LENGTH'!$A26:$P26,AR$2)=2,'CABLE LENGTH'!$AL26,0) -> 0 | AS26: =IF(COUNTIF('CABLE LENGTH'!$A26:$P26,AS$1)+COUNTIF('CABLE LENGTH'!$A26:$P26,AS$2)=2,'CABLE LENGTH'!$AL26,0) -> 0 | AT26: =IF(COUNTIF('CABLE LENGTH'!$A26:$P26,AT$1)+COUNTIF('CABLE LENGTH'!$A26:$P26,AT$2)=2,'CABLE LENGTH'!$AL26,0) -> 0 | AU26: =IF(COUNTIF('CABLE LENGTH'!$A26:$P26,AU$1)+COUNTIF('CABLE LENGTH'!$A26:$P26,AU$2)=2,'CABLE LENGTH'!$AL26,0) -> 0 | AV26: =IF(COUNTIF('CABLE LENGTH'!$A26:$P26,AV$1)+COUNTIF('CABLE LENGTH'!$A26:$P26,AV$2)=2,'CABLE LENGTH'!$AL26,0) -> 0 | AW26: =IF(COUNTIF('CABLE LENGTH'!$A26:$P26,AW$1)+COUNTIF('CABLE LENGTH'!$A26:$P26,AW$2)=2,'CABLE LENGTH'!$AL26,0) -> 0 | AX26: =IF(COUNTIF('CABLE LENGTH'!$A26:$P26,AX$1)+COUNTIF('CABLE LENGTH'!$A26:$P26,AX$2)=2,'CABLE LENGTH'!$AL26,0) -> 0 | AY26: =IF(COUNTIF('CABLE LENGTH'!$A26:$P26,AY$1)+COUNTIF('CABLE LENGTH'!$A26:$P26,AY$2)=2,'CABLE LENGTH'!$AL26,0) -> 0 | AZ26: =IF(COUNTIF('CABLE LENGTH'!$A26:$P26,AZ$1)+COUNTIF('CABLE LENGTH'!$A26:$P26,AZ$2)=2,'CABLE LENGTH'!$AL26,0) -> 0
B27: =+'CABLE LENGTH'!AK27 -> 0 | C27: =IF(COUNTIF('CABLE LENGTH'!$A27:$P27,C$1)+COUNTIF('CABLE LENGTH'!$B27:$P27,C$2)=2,'CABLE LENGTH'!$AL27,0) -> 0 | D27: =IF(COUNTIF('CABLE LENGTH'!$A27:$P27,D$1)+COUNTIF('CABLE LENGTH'!$B27:$P27,D$2)=2,'CABLE LENGTH'!$AL27,0) -> 0 | E27: =IF(COUNTIF('CABLE LENGTH'!$A27:$P27,E$1)+COUNTIF('CABLE LENGTH'!$B27:$P27,E$2)=2,'CABLE LENGTH'!$AL27,0) -> 0 | F27: =IF(COUNTIF('CABLE LENGTH'!$A27:$P27,F$1)+COUNTIF('CABLE LENGTH'!$B27:$P27,F$2)=2,'CABLE LENGTH'!$AL27,0) -> 0 | G27: =IF(COUNTIF('CABLE LENGTH'!$A27:$P27,G$1)+COUNTIF('CABLE LENGTH'!$B27:$P27,G$2)=2,'CABLE LENGTH'!$AL27,0) -> 0 | H27: =IF(COUNTIF('CABLE LENGTH'!$A27:$P27,H$1)+COUNTIF('CABLE LENGTH'!$B27:$P27,H$2)=2,'CABLE LENGTH'!$AL27,0) -> 0 | I27: =IF(COUNTIF('CABLE LENGTH'!$A27:$P27,I$1)+COUNTIF('CABLE LENGTH'!$B27:$P27,I$2)=2,'CABLE LENGTH'!$AL27,0) -> 0 | J27: =IF(COUNTIF('CABLE LENGTH'!$A27:$P27,J$1)+COUNTIF('CABLE LENGTH'!$B27:$P27,J$2)=2,'CABLE LENGTH'!$AL27,0) -> 0 | K27: =IF(COUNTIF('CABLE LENGTH'!$A27:$P27,K$1)+COUNTIF('CABLE LENGTH'!$B27:$P27,K$2)=2,'CABLE LENGTH'!$AL27,0) -> 0 | L27: =IF(COUNTIF('CABLE LENGTH'!$A27:$P27,L$1)+COUNTIF('CABLE LENGTH'!$B27:$P27,L$2)=2,'CABLE LENGTH'!$AL27,0) -> 0 | M27: =IF(COUNTIF('CABLE LENGTH'!$A27:$P27,M$1)+COUNTIF('CABLE LENGTH'!$B27:$P27,M$2)=2,'CABLE LENGTH'!$AL27,0) -> 0 | N27: =IF(COUNTIF('CABLE LENGTH'!$A27:$P27,N$1)+COUNTIF('CABLE LENGTH'!$B27:$P27,N$2)=2,'CABLE LENGTH'!$AL27,0) -> 0 | O27: =IF(COUNTIF('CABLE LENGTH'!$A27:$P27,O$1)+COUNTIF('CABLE LENGTH'!$B27:$P27,O$2)=2,'CABLE LENGTH'!$AL27,0) -> 0 | P27: =IF(COUNTIF('CABLE LENGTH'!$A27:$P27,P$1)+COUNTIF('CABLE LENGTH'!$B27:$P27,P$2)=2,'CABLE LENGTH'!$AL27,0) -> 0 | Q27: =IF(COUNTIF('CABLE LENGTH'!$A27:$P27,Q$1)+COUNTIF('CABLE LENGTH'!$B27:$P27,Q$2)=2,'CABLE LENGTH'!$AL27,0) -> 0 | R27: =IF(COUNTIF('CABLE LENGTH'!$A27:$P27,R$1)+COUNTIF('CABLE LENGTH'!$B27:$P27,R$2)=2,'CABLE LENGTH'!$AL27,0) -> 0 | S27: =IF(COUNTIF('CABLE LENGTH'!$A27:$P27,S$1)+COUNTIF('CABLE LENGTH'!$B27:$P27,S$2)=2,'CABLE LENGTH'!$AL27,0) -> 0 | T27: =IF(COUNTIF('CABLE LENGTH'!$A27:$P27,T$1)+COUNTIF('CABLE LENGTH'!$B27:$P27,T$2)=2,'CABLE LENGTH'!$AL27,0) -> 0 | U27: =IF(COUNTIF('CABLE LENGTH'!$A27:$P27,U$1)+COUNTIF('CABLE LENGTH'!$B27:$P27,U$2)=2,'CABLE LENGTH'!$AL27,0) -> 0 | V27: =IF(COUNTIF('CABLE LENGTH'!$A27:$P27,V$1)+COUNTIF('CABLE LENGTH'!$B27:$P27,V$2)=2,'CABLE LENGTH'!$AL27,0) -> 0 | W27: =IF(COUNTIF('CABLE LENGTH'!$A27:$P27,W$1)+COUNTIF('CABLE LENGTH'!$B27:$P27,W$2)=2,'CABLE LENGTH'!$AL27,0) -> 0 | X27: =IF(COUNTIF('CABLE LENGTH'!$A27:$P27,X$1)+COUNTIF('CABLE LENGTH'!$B27:$P27,X$2)=2,'CABLE LENGTH'!$AL27,0) -> 0 | Y27: =IF(COUNTIF('CABLE LENGTH'!$A27:$P27,Y$1)+COUNTIF('CABLE LENGTH'!$A27:$P27,Y$2)=2,'CABLE LENGTH'!$AL27,0) -> 0 | Z27: =IF(COUNTIF('CABLE LENGTH'!$A27:$P27,Z$1)+COUNTIF('CABLE LENGTH'!$A27:$P27,Z$2)=2,'CABLE LENGTH'!$AL27,0) -> 0 | AA27: =IF(COUNTIF('CABLE LENGTH'!$A27:$P27,AA$1)+COUNTIF('CABLE LENGTH'!$A27:$P27,AA$2)=2,'CABLE LENGTH'!$AL27,0) -> 0 | AB27: =IF(COUNTIF('CABLE LENGTH'!$A27:$P27,AB$1)+COUNTIF('CABLE LENGTH'!$A27:$P27,AB$2)=2,'CABLE LENGTH'!$AL27,0) -> 0 | AC27: =IF(COUNTIF('CABLE LENGTH'!$A27:$P27,AC$1)+COUNTIF('CABLE LENGTH'!$A27:$P27,AC$2)=2,'CABLE LENGTH'!$AL27,0) -> 0 | AD27: =IF(COUNTIF('CABLE LENGTH'!$A27:$P27,AD$1)+COUNTIF('CABLE LENGTH'!$A27:$P27,AD$2)=2,'CABLE LENGTH'!$AL27,0) -> 0 | AE27: =IF(COUNTIF('CABLE LENGTH'!$A27:$P27,AE$1)+COUNTIF('CABLE LENGTH'!$A27:$P27,AE$2)=2,'CABLE LENGTH'!$AL27,0) -> 0 | AF27: =IF(COUNTIF('CABLE LENGTH'!$A27:$P27,AF$1)+COUNTIF('CABLE LENGTH'!$A27:$P27,AF$2)=2,'CABLE LENGTH'!$AL27,0) -> 0 | AG27: =IF(COUNTIF('CABLE LENGTH'!$A27:$P27,AG$1)+COUNTIF('CABLE LENGTH'!$A27:$P27,AG$2)=2,'CABLE LENGTH'!$AL27,0) -> 0 | AH27: =IF(COUNTIF('CABLE LENGTH'!$A27:$P27,AH$1)+COUNTIF('CABLE LENGTH'!$A27:$P27,AH$2)=2,'CABLE LENGTH'!$AL27,0) -> 0 | AI27: =IF(COUNTIF('CABLE LENGTH'!$A27:$P27,AI$1)+COUNTIF('CABLE LENGTH'!$A27:$P27,AI$2)=2,'CABLE LENGTH'!$AL27,0) -> 0 | AJ27: =IF(COUNTIF('CABLE LENGTH'!$A27:$P27,AJ$1)+COUNTIF('CABLE LENGTH'!$A27:$P27,AJ$2)=2,'CABLE LENGTH'!$AL27,0) -> 0 | AK27: =IF(COUNTIF('CABLE LENGTH'!$A27:$P27,AK$1)+COUNTIF('CABLE LENGTH'!$A27:$P27,AK$2)=2,'CABLE LENGTH'!$AL27,0) -> 0 | AL27: =IF(COUNTIF('CABLE LENGTH'!$A27:$P27,AL$1)+COUNTIF('CABLE LENGTH'!$A27:$P27,AL$2)=2,'CABLE LENGTH'!$AL27,0) -> 0 | AM27: =IF(COUNTIF('CABLE LENGTH'!$A27:$P27,AM$1)+COUNTIF('CABLE LENGTH'!$A27:$P27,AM$2)=2,'CABLE LENGTH'!$AL27,0) -> 0 | AN27: =IF(COUNTIF('CABLE LENGTH'!$A27:$P27,AN$1)+COUNTIF('CABLE LENGTH'!$A27:$P27,AN$2)=2,'CABLE LENGTH'!$AL27,0) -> 0 | AO27: =IF(COUNTIF('CABLE LENGTH'!$A27:$P27,AO$1)+COUNTIF('CABLE LENGTH'!$A27:$P27,AO$2)=2,'CABLE LENGTH'!$AL27,0) -> 0 | AP27: =IF(COUNTIF('CABLE LENGTH'!$A27:$P27,AP$1)+COUNTIF('CABLE LENGTH'!$A27:$P27,AP$2)=2,'CABLE LENGTH'!$AL27,0) -> 0 | AQ27: =IF(COUNTIF('CABLE LENGTH'!$A27:$P27,AQ$1)+COUNTIF('CABLE LENGTH'!$A27:$P27,AQ$2)=2,'CABLE LENGTH'!$AL27,0) -> 0 | AR27: =IF(COUNTIF('CABLE LENGTH'!$A27:$P27,AR$1)+COUNTIF('CABLE LENGTH'!$A27:$P27,AR$2)=2,'CABLE LENGTH'!$AL27,0) -> 0 | AS27: =IF(COUNTIF('CABLE LENGTH'!$A27:$P27,AS$1)+COUNTIF('CABLE LENGTH'!$A27:$P27,AS$2)=2,'CABLE LENGTH'!$AL27,0) -> 0 | AT27: =IF(COUNTIF('CABLE LENGTH'!$A27:$P27,AT$1)+COUNTIF('CABLE LENGTH'!$A27:$P27,AT$2)=2,'CABLE LENGTH'!$AL27,0) -> 0 | AU27: =IF(COUNTIF('CABLE LENGTH'!$A27:$P27,AU$1)+COUNTIF('CABLE LENGTH'!$A27:$P27,AU$2)=2,'CABLE LENGTH'!$AL27,0) -> 0 | AV27: =IF(COUNTIF('CABLE LENGTH'!$A27:$P27,AV$1)+COUNTIF('CABLE LENGTH'!$A27:$P27,AV$2)=2,'CABLE LENGTH'!$AL27,0) -> 0 | AW27: =IF(COUNTIF('CABLE LENGTH'!$A27:$P27,AW$1)+COUNTIF('CABLE LENGTH'!$A27:$P27,AW$2)=2,'CABLE LENGTH'!$AL27,0) -> 0 | AX27: =IF(COUNTIF('CABLE LENGTH'!$A27:$P27,AX$1)+COUNTIF('CABLE LENGTH'!$A27:$P27,AX$2)=2,'CABLE LENGTH'!$AL27,0) -> 0 | AY27: =IF(COUNTIF('CABLE LENGTH'!$A27:$P27,AY$1)+COUNTIF('CABLE LENGTH'!$A27:$P27,AY$2)=2,'CABLE LENGTH'!$AL27,0) -> 0 | AZ27: =IF(COUNTIF('CABLE LENGTH'!$A27:$P27,AZ$1)+COUNTIF('CABLE LENGTH'!$A27:$P27,AZ$2)=2,'CABLE LENGTH'!$AL27,0) -> 0
B28: =+'CABLE LENGTH'!AK28 -> 0 | C28: =IF(COUNTIF('CABLE LENGTH'!$A28:$P28,C$1)+COUNTIF('CABLE LENGTH'!$B28:$P28,C$2)=2,'CABLE LENGTH'!$AL28,0) -> 0 | D28: =IF(COUNTIF('CABLE LENGTH'!$A28:$P28,D$1)+COUNTIF('CABLE LENGTH'!$B28:$P28,D$2)=2,'CABLE LENGTH'!$AL28,0) -> 0 | E28: =IF(COUNTIF('CABLE LENGTH'!$A28:$P28,E$1)+COUNTIF('CABLE LENGTH'!$B28:$P28,E$2)=2,'CABLE LENGTH'!$AL28,0) -> 0 | F28: =IF(COUNTIF('CABLE LENGTH'!$A28:$P28,F$1)+COUNTIF('CABLE LENGTH'!$B28:$P28,F$2)=2,'CABLE LENGTH'!$AL28,0) -> 0 | G28: =IF(COUNTIF('CABLE LENGTH'!$A28:$P28,G$1)+COUNTIF('CABLE LENGTH'!$B28:$P28,G$2)=2,'CABLE LENGTH'!$AL28,0) -> 0 | H28: =IF(COUNTIF('CABLE LENGTH'!$A28:$P28,H$1)+COUNTIF('CABLE LENGTH'!$B28:$P28,H$2)=2,'CABLE LENGTH'!$AL28,0) -> 0 | I28: =IF(COUNTIF('CABLE LENGTH'!$A28:$P28,I$1)+COUNTIF('CABLE LENGTH'!$B28:$P28,I$2)=2,'CABLE LENGTH'!$AL28,0) -> 0 | J28: =IF(COUNTIF('CABLE LENGTH'!$A28:$P28,J$1)+COUNTIF('CABLE LENGTH'!$B28:$P28,J$2)=2,'CABLE LENGTH'!$AL28,0) -> 0 | K28: =IF(COUNTIF('CABLE LENGTH'!$A28:$P28,K$1)+COUNTIF('CABLE LENGTH'!$B28:$P28,K$2)=2,'CABLE LENGTH'!$AL28,0) -> 0 | L28: =IF(COUNTIF('CABLE LENGTH'!$A28:$P28,L$1)+COUNTIF('CABLE LENGTH'!$B28:$P28,L$2)=2,'CABLE LENGTH'!$AL28,0) -> 0 | M28: =IF(COUNTIF('CABLE LENGTH'!$A28:$P28,M$1)+COUNTIF('CABLE LENGTH'!$B28:$P28,M$2)=2,'CABLE LENGTH'!$AL28,0) -> 0 | N28: =IF(COUNTIF('CABLE LENGTH'!$A28:$P28,N$1)+COUNTIF('CABLE LENGTH'!$B28:$P28,N$2)=2,'CABLE LENGTH'!$AL28,0) -> 0 | O28: =IF(COUNTIF('CABLE LENGTH'!$A28:$P28,O$1)+COUNTIF('CABLE LENGTH'!$B28:$P28,O$2)=2,'CABLE LENGTH'!$AL28,0) -> 0 | P28: =IF(COUNTIF('CABLE LENGTH'!$A28:$P28,P$1)+COUNTIF('CABLE LENGTH'!$B28:$P28,P$2)=2,'CABLE LENGTH'!$AL28,0) -> 0 | Q28: =IF(COUNTIF('CABLE LENGTH'!$A28:$P28,Q$1)+COUNTIF('CABLE LENGTH'!$B28:$P28,Q$2)=2,'CABLE LENGTH'!$AL28,0) -> 0 | R28: =IF(COUNTIF('CABLE LENGTH'!$A28:$P28,R$1)+COUNTIF('CABLE LENGTH'!$B28:$P28,R$2)=2,'CABLE LENGTH'!$AL28,0) -> 0 | S28: =IF(COUNTIF('CABLE LENGTH'!$A28:$P28,S$1)+COUNTIF('CABLE LENGTH'!$B28:$P28,S$2)=2,'CABLE LENGTH'!$AL28,0) -> 0 | T28: =IF(COUNTIF('CABLE LENGTH'!$A28:$P28,T$1)+COUNTIF('CABLE LENGTH'!$B28:$P28,T$2)=2,'CABLE LENGTH'!$AL28,0) -> 0 | U28: =IF(COUNTIF('CABLE LENGTH'!$A28:$P28,U$1)+COUNTIF('CABLE LENGTH'!$B28:$P28,U$2)=2,'CABLE LENGTH'!$AL28,0) -> 0 | V28: =IF(COUNTIF('CABLE LENGTH'!$A28:$P28,V$1)+COUNTIF('CABLE LENGTH'!$B28:$P28,V$2)=2,'CABLE LENGTH'!$AL28,0) -> 0 | W28: =IF(COUNTIF('CABLE LENGTH'!$A28:$P28,W$1)+COUNTIF('CABLE LENGTH'!$B28:$P28,W$2)=2,'CABLE LENGTH'!$AL28,0) -> 0 | X28: =IF(COUNTIF('CABLE LENGTH'!$A28:$P28,X$1)+COUNTIF('CABLE LENGTH'!$B28:$P28,X$2)=2,'CABLE LENGTH'!$AL28,0) -> 0 | Y28: =IF(COUNTIF('CABLE LENGTH'!$A28:$P28,Y$1)+COUNTIF('CABLE LENGTH'!$A28:$P28,Y$2)=2,'CABLE LENGTH'!$AL28,0) -> 0 | Z28: =IF(COUNTIF('CABLE LENGTH'!$A28:$P28,Z$1)+COUNTIF('CABLE LENGTH'!$A28:$P28,Z$2)=2,'CABLE LENGTH'!$AL28,0) -> 0 | AA28: =IF(COUNTIF('CABLE LENGTH'!$A28:$P28,AA$1)+COUNTIF('CABLE LENGTH'!$A28:$P28,AA$2)=2,'CABLE LENGTH'!$AL28,0) -> 0 | AB28: =IF(COUNTIF('CABLE LENGTH'!$A28:$P28,AB$1)+COUNTIF('CABLE LENGTH'!$A28:$P28,AB$2)=2,'CABLE LENGTH'!$AL28,0) -> 0 | AC28: =IF(COUNTIF('CABLE LENGTH'!$A28:$P28,AC$1)+COUNTIF('CABLE LENGTH'!$A28:$P28,AC$2)=2,'CABLE LENGTH'!$AL28,0) -> 0 | AD28: =IF(COUNTIF('CABLE LENGTH'!$A28:$P28,AD$1)+COUNTIF('CABLE LENGTH'!$A28:$P28,AD$2)=2,'CABLE LENGTH'!$AL28,0) -> 0 | AE28: =IF(COUNTIF('CABLE LENGTH'!$A28:$P28,AE$1)+COUNTIF('CABLE LENGTH'!$A28:$P28,AE$2)=2,'CABLE LENGTH'!$AL28,0) -> 0 | AF28: =IF(COUNTIF('CABLE LENGTH'!$A28:$P28,AF$1)+COUNTIF('CABLE LENGTH'!$A28:$P28,AF$2)=2,'CABLE LENGTH'!$AL28,0) -> 0 | AG28: =IF(COUNTIF('CABLE LENGTH'!$A28:$P28,AG$1)+COUNTIF('CABLE LENGTH'!$A28:$P28,AG$2)=2,'CABLE LENGTH'!$AL28,0) -> 0 | AH28: =IF(COUNTIF('CABLE LENGTH'!$A28:$P28,AH$1)+COUNTIF('CABLE LENGTH'!$A28:$P28,AH$2)=2,'CABLE LENGTH'!$AL28,0) -> 0 | AI28: =IF(COUNTIF('CABLE LENGTH'!$A28:$P28,AI$1)+COUNTIF('CABLE LENGTH'!$A28:$P28,AI$2)=2,'CABLE LENGTH'!$AL28,0) -> 0 | AJ28: =IF(COUNTIF('CABLE LENGTH'!$A28:$P28,AJ$1)+COUNTIF('CABLE LENGTH'!$A28:$P28,AJ$2)=2,'CABLE LENGTH'!$AL28,0) -> 0 | AK28: =IF(COUNTIF('CABLE LENGTH'!$A28:$P28,AK$1)+COUNTIF('CABLE LENGTH'!$A28:$P28,AK$2)=2,'CABLE LENGTH'!$AL28,0) -> 0 | AL28: =IF(COUNTIF('CABLE LENGTH'!$A28:$P28,AL$1)+COUNTIF('CABLE LENGTH'!$A28:$P28,AL$2)=2,'CABLE LENGTH'!$AL28,0) -> 0 | AM28: =IF(COUNTIF('CABLE LENGTH'!$A28:$P28,AM$1)+COUNTIF('CABLE LENGTH'!$A28:$P28,AM$2)=2,'CABLE LENGTH'!$AL28,0) -> 0 | AN28: =IF(COUNTIF('CABLE LENGTH'!$A28:$P28,AN$1)+COUNTIF('CABLE LENGTH'!$A28:$P28,AN$2)=2,'CABLE LENGTH'!$AL28,0) -> 0 | AO28: =IF(COUNTIF('CABLE LENGTH'!$A28:$P28,AO$1)+COUNTIF('CABLE LENGTH'!$A28:$P28,AO$2)=2,'CABLE LENGTH'!$AL28,0) -> 0 | AP28: =IF(COUNTIF('CABLE LENGTH'!$A28:$P28,AP$1)+COUNTIF('CABLE LENGTH'!$A28:$P28,AP$2)=2,'CABLE LENGTH'!$AL28,0) -> 0 | AQ28: =IF(COUNTIF('CABLE LENGTH'!$A28:$P28,AQ$1)+COUNTIF('CABLE LENGTH'!$A28:$P28,AQ$2)=2,'CABLE LENGTH'!$AL28,0) -> 0 | AR28: =IF(COUNTIF('CABLE LENGTH'!$A28:$P28,AR$1)+COUNTIF('CABLE LENGTH'!$A28:$P28,AR$2)=2,'CABLE LENGTH'!$AL28,0) -> 0 | AS28: =IF(COUNTIF('CABLE LENGTH'!$A28:$P28,AS$1)+COUNTIF('CABLE LENGTH'!$A28:$P28,AS$2)=2,'CABLE LENGTH'!$AL28,0) -> 0 | AT28: =IF(COUNTIF('CABLE LENGTH'!$A28:$P28,AT$1)+COUNTIF('CABLE LENGTH'!$A28:$P28,AT$2)=2,'CABLE LENGTH'!$AL28,0) -> 0 | AU28: =IF(COUNTIF('CABLE LENGTH'!$A28:$P28,AU$1)+COUNTIF('CABLE LENGTH'!$A28:$P28,AU$2)=2,'CABLE LENGTH'!$AL28,0) -> 0 | AV28: =IF(COUNTIF('CABLE LENGTH'!$A28:$P28,AV$1)+COUNTIF('CABLE LENGTH'!$A28:$P28,AV$2)=2,'CABLE LENGTH'!$AL28,0) -> 0 | AW28: =IF(COUNTIF('CABLE LENGTH'!$A28:$P28,AW$1)+COUNTIF('CABLE LENGTH'!$A28:$P28,AW$2)=2,'CABLE LENGTH'!$AL28,0) -> 0 | AX28: =IF(COUNTIF('CABLE LENGTH'!$A28:$P28,AX$1)+COUNTIF('CABLE LENGTH'!$A28:$P28,AX$2)=2,'CABLE LENGTH'!$AL28,0) -> 0 | AY28: =IF(COUNTIF('CABLE LENGTH'!$A28:$P28,AY$1)+COUNTIF('CABLE LENGTH'!$A28:$P28,AY$2)=2,'CABLE LENGTH'!$AL28,0) -> 0 | AZ28: =IF(COUNTIF('CABLE LENGTH'!$A28:$P28,AZ$1)+COUNTIF('CABLE LENGTH'!$A28:$P28,AZ$2)=2,'CABLE LENGTH'!$AL28,0) -> 0
B29: =+'CABLE LENGTH'!AK29 -> 0 | C29: =IF(COUNTIF('CABLE LENGTH'!$A29:$P29,C$1)+COUNTIF('CABLE LENGTH'!$B29:$P29,C$2)=2,'CABLE LENGTH'!$AL29,0) -> 0 | D29: =IF(COUNTIF('CABLE LENGTH'!$A29:$P29,D$1)+COUNTIF('CABLE LENGTH'!$B29:$P29,D$2)=2,'CABLE LENGTH'!$AL29,0) -> 0 | E29: =IF(COUNTIF('CABLE LENGTH'!$A29:$P29,E$1)+COUNTIF('CABLE LENGTH'!$B29:$P29,E$2)=2,'CABLE LENGTH'!$AL29,0) -> 0 | F29: =IF(COUNTIF('CABLE LENGTH'!$A29:$P29,F$1)+COUNTIF('CABLE LENGTH'!$B29:$P29,F$2)=2,'CABLE LENGTH'!$AL29,0) -> 0 | G29: =IF(COUNTIF('CABLE LENGTH'!$A29:$P29,G$1)+COUNTIF('CABLE LENGTH'!$B29:$P29,G$2)=2,'CABLE LENGTH'!$AL29,0) -> 0 | H29: =IF(COUNTIF('CABLE LENGTH'!$A29:$P29,H$1)+COUNTIF('CABLE LENGTH'!$B29:$P29,H$2)=2,'CABLE LENGTH'!$AL29,0) -> 0 | I29: =IF(COUNTIF('CABLE LENGTH'!$A29:$P29,I$1)+COUNTIF('CABLE LENGTH'!$B29:$P29,I$2)=2,'CABLE LENGTH'!$AL29,0) -> 0 | J29: =IF(COUNTIF('CABLE LENGTH'!$A29:$P29,J$1)+COUNTIF('CABLE LENGTH'!$B29:$P29,J$2)=2,'CABLE LENGTH'!$AL29,0) -> 0 | K29: =IF(COUNTIF('CABLE LENGTH'!$A29:$P29,K$1)+COUNTIF('CABLE LENGTH'!$B29:$P29,K$2)=2,'CABLE LENGTH'!$AL29,0) -> 0 | L29: =IF(COUNTIF('CABLE LENGTH'!$A29:$P29,L$1)+COUNTIF('CABLE LENGTH'!$B29:$P29,L$2)=2,'CABLE LENGTH'!$AL29,0) -> 0 | M29: =IF(COUNTIF('CABLE LENGTH'!$A29:$P29,M$1)+COUNTIF('CABLE LENGTH'!$B29:$P29,M$2)=2,'CABLE LENGTH'!$AL29,0) -> 0 | N29: =IF(COUNTIF('CABLE LENGTH'!$A29:$P29,N$1)+COUNTIF('CABLE LENGTH'!$B29:$P29,N$2)=2,'CABLE LENGTH'!$AL29,0) -> 0 | O29: =IF(COUNTIF('CABLE LENGTH'!$A29:$P29,O$1)+COUNTIF('CABLE LENGTH'!$B29:$P29,O$2)=2,'CABLE LENGTH'!$AL29,0) -> 0 | P29: =IF(COUNTIF('CABLE LENGTH'!$A29:$P29,P$1)+COUNTIF('CABLE LENGTH'!$B29:$P29,P$2)=2,'CABLE LENGTH'!$AL29,0) -> 0 | Q29: =IF(COUNTIF('CABLE LENGTH'!$A29:$P29,Q$1)+COUNTIF('CABLE LENGTH'!$B29:$P29,Q$2)=2,'CABLE LENGTH'!$AL29,0) -> 0 | R29: =IF(COUNTIF('CABLE LENGTH'!$A29:$P29,R$1)+COUNTIF('CABLE LENGTH'!$B29:$P29,R$2)=2,'CABLE LENGTH'!$AL29,0) -> 0 | S29: =IF(COUNTIF('CABLE LENGTH'!$A29:$P29,S$1)+COUNTIF('CABLE LENGTH'!$B29:$P29,S$2)=2,'CABLE LENGTH'!$AL29,0) -> 0 | T29: =IF(COUNTIF('CABLE LENGTH'!$A29:$P29,T$1)+COUNTIF('CABLE LENGTH'!$B29:$P29,T$2)=2,'CABLE LENGTH'!$AL29,0) -> 0 | U29: =IF(COUNTIF('CABLE LENGTH'!$A29:$P29,U$1)+COUNTIF('CABLE LENGTH'!$B29:$P29,U$2)=2,'CABLE LENGTH'!$AL29,0) -> 0 | V29: =IF(COUNTIF('CABLE LENGTH'!$A29:$P29,V$1)+COUNTIF('CABLE LENGTH'!$B29:$P29,V$2)=2,'CABLE LENGTH'!$AL29,0) -> 0 | W29: =IF(COUNTIF('CABLE LENGTH'!$A29:$P29,W$1)+COUNTIF('CABLE LENGTH'!$B29:$P29,W$2)=2,'CABLE LENGTH'!$AL29,0) -> 0 | X29: =IF(COUNTIF('CABLE LENGTH'!$A29:$P29,X$1)+COUNTIF('CABLE LENGTH'!$B29:$P29,X$2)=2,'CABLE LENGTH'!$AL29,0) -> 0 | Y29: =IF(COUNTIF('CABLE LENGTH'!$A29:$P29,Y$1)+COUNTIF('CABLE LENGTH'!$A29:$P29,Y$2)=2,'CABLE LENGTH'!$AL29,0) -> 0 | Z29: =IF(COUNTIF('CABLE LENGTH'!$A29:$P29,Z$1)+COUNTIF('CABLE LENGTH'!$A29:$P29,Z$2)=2,'CABLE LENGTH'!$AL29,0) -> 0 | AA29: =IF(COUNTIF('CABLE LENGTH'!$A29:$P29,AA$1)+COUNTIF('CABLE LENGTH'!$A29:$P29,AA$2)=2,'CABLE LENGTH'!$AL29,0) -> 0 | AB29: =IF(COUNTIF('CABLE LENGTH'!$A29:$P29,AB$1)+COUNTIF('CABLE LENGTH'!$A29:$P29,AB$2)=2,'CABLE LENGTH'!$AL29,0) -> 0 | AC29: =IF(COUNTIF('CABLE LENGTH'!$A29:$P29,AC$1)+COUNTIF('CABLE LENGTH'!$A29:$P29,AC$2)=2,'CABLE LENGTH'!$AL29,0) -> 0 | AD29: =IF(COUNTIF('CABLE LENGTH'!$A29:$P29,AD$1)+COUNTIF('CABLE LENGTH'!$A29:$P29,AD$2)=2,'CABLE LENGTH'!$AL29,0) -> 0 | AE29: =IF(COUNTIF('CABLE LENGTH'!$A29:$P29,AE$1)+COUNTIF('CABLE LENGTH'!$A29:$P29,AE$2)=2,'CABLE LENGTH'!$AL29,0) -> 0 | AF29: =IF(COUNTIF('CABLE LENGTH'!$A29:$P29,AF$1)+COUNTIF('CABLE LENGTH'!$A29:$P29,AF$2)=2,'CABLE LENGTH'!$AL29,0) -> 0 | AG29: =IF(COUNTIF('CABLE LENGTH'!$A29:$P29,AG$1)+COUNTIF('CABLE LENGTH'!$A29:$P29,AG$2)=2,'CABLE LENGTH'!$AL29,0) -> 0 | AH29: =IF(COUNTIF('CABLE LENGTH'!$A29:$P29,AH$1)+COUNTIF('CABLE LENGTH'!$A29:$P29,AH$2)=2,'CABLE LENGTH'!$AL29,0) -> 0 | AI29: =IF(COUNTIF('CABLE LENGTH'!$A29:$P29,AI$1)+COUNTIF('CABLE LENGTH'!$A29:$P29,AI$2)=2,'CABLE LENGTH'!$AL29,0) -> 0 | AJ29: =IF(COUNTIF('CABLE LENGTH'!$A29:$P29,AJ$1)+COUNTIF('CABLE LENGTH'!$A29:$P29,AJ$2)=2,'CABLE LENGTH'!$AL29,0) -> 0 | AK29: =IF(COUNTIF('CABLE LENGTH'!$A29:$P29,AK$1)+COUNTIF('CABLE LENGTH'!$A29:$P29,AK$2)=2,'CABLE LENGTH'!$AL29,0) -> 0 | AL29: =IF(COUNTIF('CABLE LENGTH'!$A29:$P29,AL$1)+COUNTIF('CABLE LENGTH'!$A29:$P29,AL$2)=2,'CABLE LENGTH'!$AL29,0) -> 0 | AM29: =IF(COUNTIF('CABLE LENGTH'!$A29:$P29,AM$1)+COUNTIF('CABLE LENGTH'!$A29:$P29,AM$2)=2,'CABLE LENGTH'!$AL29,0) -> 0 | AN29: =IF(COUNTIF('CABLE LENGTH'!$A29:$P29,AN$1)+COUNTIF('CABLE LENGTH'!$A29:$P29,AN$2)=2,'CABLE LENGTH'!$AL29,0) -> 0 | AO29: =IF(COUNTIF('CABLE LENGTH'!$A29:$P29,AO$1)+COUNTIF('CABLE LENGTH'!$A29:$P29,AO$2)=2,'CABLE LENGTH'!$AL29,0) -> 0 | AP29: =IF(COUNTIF('CABLE LENGTH'!$A29:$P29,AP$1)+COUNTIF('CABLE LENGTH'!$A29:$P29,AP$2)=2,'CABLE LENGTH'!$AL29,0) -> 0 | AQ29: =IF(COUNTIF('CABLE LENGTH'!$A29:$P29,AQ$1)+COUNTIF('CABLE LENGTH'!$A29:$P29,AQ$2)=2,'CABLE LENGTH'!$AL29,0) -> 0 | AR29: =IF(COUNTIF('CABLE LENGTH'!$A29:$P29,AR$1)+COUNTIF('CABLE LENGTH'!$A29:$P29,AR$2)=2,'CABLE LENGTH'!$AL29,0) -> 0 | AS29: =IF(COUNTIF('CABLE LENGTH'!$A29:$P29,AS$1)+COUNTIF('CABLE LENGTH'!$A29:$P29,AS$2)=2,'CABLE LENGTH'!$AL29,0) -> 0 | AT29: =IF(COUNTIF('CABLE LENGTH'!$A29:$P29,AT$1)+COUNTIF('CABLE LENGTH'!$A29:$P29,AT$2)=2,'CABLE LENGTH'!$AL29,0) -> 0 | AU29: =IF(COUNTIF('CABLE LENGTH'!$A29:$P29,AU$1)+COUNTIF('CABLE LENGTH'!$A29:$P29,AU$2)=2,'CABLE LENGTH'!$AL29,0) -> 0 | AV29: =IF(COUNTIF('CABLE LENGTH'!$A29:$P29,AV$1)+COUNTIF('CABLE LENGTH'!$A29:$P29,AV$2)=2,'CABLE LENGTH'!$AL29,0) -> 0 | AW29: =IF(COUNTIF('CABLE LENGTH'!$A29:$P29,AW$1)+COUNTIF('CABLE LENGTH'!$A29:$P29,AW$2)=2,'CABLE LENGTH'!$AL29,0) -> 0 | AX29: =IF(COUNTIF('CABLE LENGTH'!$A29:$P29,AX$1)+COUNTIF('CABLE LENGTH'!$A29:$P29,AX$2)=2,'CABLE LENGTH'!$AL29,0) -> 0 | AY29: =IF(COUNTIF('CABLE LENGTH'!$A29:$P29,AY$1)+COUNTIF('CABLE LENGTH'!$A29:$P29,AY$2)=2,'CABLE LENGTH'!$AL29,0) -> 0 | AZ29: =IF(COUNTIF('CABLE LENGTH'!$A29:$P29,AZ$1)+COUNTIF('CABLE LENGTH'!$A29:$P29,AZ$2)=2,'CABLE LENGTH'!$AL29,0) -> 0
B30: =+'CABLE LENGTH'!AK30 -> 0 | C30: =IF(COUNTIF('CABLE LENGTH'!$A30:$P30,C$1)+COUNTIF('CABLE LENGTH'!$B30:$P30,C$2)=2,'CABLE LENGTH'!$AL30,0) -> 0 | D30: =IF(COUNTIF('CABLE LENGTH'!$A30:$P30,D$1)+COUNTIF('CABLE LENGTH'!$B30:$P30,D$2)=2,'CABLE LENGTH'!$AL30,0) -> 0 | E30: =IF(COUNTIF('CABLE LENGTH'!$A30:$P30,E$1)+COUNTIF('CABLE LENGTH'!$B30:$P30,E$2)=2,'CABLE LENGTH'!$AL30,0) -> 0 | F30: =IF(COUNTIF('CABLE LENGTH'!$A30:$P30,F$1)+COUNTIF('CABLE LENGTH'!$B30:$P30,F$2)=2,'CABLE LENGTH'!$AL30,0) -> 0 | G30: =IF(COUNTIF('CABLE LENGTH'!$A30:$P30,G$1)+COUNTIF('CABLE LENGTH'!$B30:$P30,G$2)=2,'CABLE LENGTH'!$AL30,0) -> 0 | H30: =IF(COUNTIF('CABLE LENGTH'!$A30:$P30,H$1)+COUNTIF('CABLE LENGTH'!$B30:$P30,H$2)=2,'CABLE LENGTH'!$AL30,0) -> 0 | I30: =IF(COUNTIF('CABLE LENGTH'!$A30:$P30,I$1)+COUNTIF('CABLE LENGTH'!$B30:$P30,I$2)=2,'CABLE LENGTH'!$AL30,0) -> 0 | J30: =IF(COUNTIF('CABLE LENGTH'!$A30:$P30,J$1)+COUNTIF('CABLE LENGTH'!$B30:$P30,J$2)=2,'CABLE LENGTH'!$AL30,0) -> 0 | K30: =IF(COUNTIF('CABLE LENGTH'!$A30:$P30,K$1)+COUNTIF('CABLE LENGTH'!$B30:$P30,K$2)=2,'CABLE LENGTH'!$AL30,0) -> 0 | L30: =IF(COUNTIF('CABLE LENGTH'!$A30:$P30,L$1)+COUNTIF('CABLE LENGTH'!$B30:$P30,L$2)=2,'CABLE LENGTH'!$AL30,0) -> 0 | M30: =IF(COUNTIF('CABLE LENGTH'!$A30:$P30,M$1)+COUNTIF('CABLE LENGTH'!$B30:$P30,M$2)=2,'CABLE LENGTH'!$AL30,0) -> 0 | N30: =IF(COUNTIF('CABLE LENGTH'!$A30:$P30,N$1)+COUNTIF('CABLE LENGTH'!$B30:$P30,N$2)=2,'CABLE LENGTH'!$AL30,0) -> 0 | O30: =IF(COUNTIF('CABLE LENGTH'!$A30:$P30,O$1)+COUNTIF('CABLE LENGTH'!$B30:$P30,O$2)=2,'CABLE LENGTH'!$AL30,0) -> 0 | P30: =IF(COUNTIF('CABLE LENGTH'!$A30:$P30,P$1)+COUNTIF('CABLE LENGTH'!$B30:$P30,P$2)=2,'CABLE LENGTH'!$AL30,0) -> 0 | Q30: =IF(COUNTIF('CABLE LENGTH'!$A30:$P30,Q$1)+COUNTIF('CABLE LENGTH'!$B30:$P30,Q$2)=2,'CABLE LENGTH'!$AL30,0) -> 0 | R30: =IF(COUNTIF('CABLE LENGTH'!$A30:$P30,R$1)+COUNTIF('CABLE LENGTH'!$B30:$P30,R$2)=2,'CABLE LENGTH'!$AL30,0) -> 0 | S30: =IF(COUNTIF('CABLE LENGTH'!$A30:$P30,S$1)+COUNTIF('CABLE LENGTH'!$B30:$P30,S$2)=2,'CABLE LENGTH'!$AL30,0) -> 0 | T30: =IF(COUNTIF('CABLE LENGTH'!$A30:$P30,T$1)+COUNTIF('CABLE LENGTH'!$B30:$P30,T$2)=2,'CABLE LENGTH'!$AL30,0) -> 0 | U30: =IF(COUNTIF('CABLE LENGTH'!$A30:$P30,U$1)+COUNTIF('CABLE LENGTH'!$B30:$P30,U$2)=2,'CABLE LENGTH'!$AL30,0) -> 0 | V30: =IF(COUNTIF('CABLE LENGTH'!$A30:$P30,V$1)+COUNTIF('CABLE LENGTH'!$B30:$P30,V$2)=2,'CABLE LENGTH'!$AL30,0) -> 0 | W30: =IF(COUNTIF('CABLE LENGTH'!$A30:$P30,W$1)+COUNTIF('CABLE LENGTH'!$B30:$P30,W$2)=2,'CABLE LENGTH'!$AL30,0) -> 0 | X30: =IF(COUNTIF('CABLE LENGTH'!$A30:$P30,X$1)+COUNTIF('CABLE LENGTH'!$B30:$P30,X$2)=2,'CABLE LENGTH'!$AL30,0) -> 0 | Y30: =IF(COUNTIF('CABLE LENGTH'!$A30:$P30,Y$1)+COUNTIF('CABLE LENGTH'!$A30:$P30,Y$2)=2,'CABLE LENGTH'!$AL30,0) -> 0 | Z30: =IF(COUNTIF('CABLE LENGTH'!$A30:$P30,Z$1)+COUNTIF('CABLE LENGTH'!$A30:$P30,Z$2)=2,'CABLE LENGTH'!$AL30,0) -> 0 | AA30: =IF(COUNTIF('CABLE LENGTH'!$A30:$P30,AA$1)+COUNTIF('CABLE LENGTH'!$A30:$P30,AA$2)=2,'CABLE LENGTH'!$AL30,0) -> 0 | AB30: =IF(COUNTIF('CABLE LENGTH'!$A30:$P30,AB$1)+COUNTIF('CABLE LENGTH'!$A30:$P30,AB$2)=2,'CABLE LENGTH'!$AL30,0) -> 0 | AC30: =IF(COUNTIF('CABLE LENGTH'!$A30:$P30,AC$1)+COUNTIF('CABLE LENGTH'!$A30:$P30,AC$2)=2,'CABLE LENGTH'!$AL30,0) -> 0 | AD30: =IF(COUNTIF('CABLE LENGTH'!$A30:$P30,AD$1)+COUNTIF('CABLE LENGTH'!$A30:$P30,AD$2)=2,'CABLE LENGTH'!$AL30,0) -> 0 | AE30: =IF(COUNTIF('CABLE LENGTH'!$A30:$P30,AE$1)+COUNTIF('CABLE LENGTH'!$A30:$P30,AE$2)=2,'CABLE LENGTH'!$AL30,0) -> 0 | AF30: =IF(COUNTIF('CABLE LENGTH'!$A30:$P30,AF$1)+COUNTIF('CABLE LENGTH'!$A30:$P30,AF$2)=2,'CABLE LENGTH'!$AL30,0) -> 0 | AG30: =IF(COUNTIF('CABLE LENGTH'!$A30:$P30,AG$1)+COUNTIF('CABLE LENGTH'!$A30:$P30,AG$2)=2,'CABLE LENGTH'!$AL30,0) -> 0 | AH30: =IF(COUNTIF('CABLE LENGTH'!$A30:$P30,AH$1)+COUNTIF('CABLE LENGTH'!$A30:$P30,AH$2)=2,'CABLE LENGTH'!$AL30,0) -> 0 | AI30: =IF(COUNTIF('CABLE LENGTH'!$A30:$P30,AI$1)+COUNTIF('CABLE LENGTH'!$A30:$P30,AI$2)=2,'CABLE LENGTH'!$AL30,0) -> 0 | AJ30: =IF(COUNTIF('CABLE LENGTH'!$A30:$P30,AJ$1)+COUNTIF('CABLE LENGTH'!$A30:$P30,AJ$2)=2,'CABLE LENGTH'!$AL30,0) -> 0 | AK30: =IF(COUNTIF('CABLE LENGTH'!$A30:$P30,AK$1)+COUNTIF('CABLE LENGTH'!$A30:$P30,AK$2)=2,'CABLE LENGTH'!$AL30,0) -> 0 | AL30: =IF(COUNTIF('CABLE LENGTH'!$A30:$P30,AL$1)+COUNTIF('CABLE LENGTH'!$A30:$P30,AL$2)=2,'CABLE LENGTH'!$AL30,0) -> 0 | AM30: =IF(COUNTIF('CABLE LENGTH'!$A30:$P30,AM$1)+COUNTIF('CABLE LENGTH'!$A30:$P30,AM$2)=2,'CABLE LENGTH'!$AL30,0) -> 0 | AN30: =IF(COUNTIF('CABLE LENGTH'!$A30:$P30,AN$1)+COUNTIF('CABLE LENGTH'!$A30:$P30,AN$2)=2,'CABLE LENGTH'!$AL30,0) -> 0 | AO30: =IF(COUNTIF('CABLE LENGTH'!$A30:$P30,AO$1)+COUNTIF('CABLE LENGTH'!$A30:$P30,AO$2)=2,'CABLE LENGTH'!$AL30,0) -> 0 | AP30: =IF(COUNTIF('CABLE LENGTH'!$A30:$P30,AP$1)+COUNTIF('CABLE LENGTH'!$A30:$P30,AP$2)=2,'CABLE LENGTH'!$AL30,0) -> 0 | AQ30: =IF(COUNTIF('CABLE LENGTH'!$A30:$P30,AQ$1)+COUNTIF('CABLE LENGTH'!$A30:$P30,AQ$2)=2,'CABLE LENGTH'!$AL30,0) -> 0 | AR30: =IF(COUNTIF('CABLE LENGTH'!$A30:$P30,AR$1)+COUNTIF('CABLE LENGTH'!$A30:$P30,AR$2)=2,'CABLE LENGTH'!$AL30,0) -> 0 | AS30: =IF(COUNTIF('CABLE LENGTH'!$A30:$P30,AS$1)+COUNTIF('CABLE LENGTH'!$A30:$P30,AS$2)=2,'CABLE LENGTH'!$AL30,0) -> 0 | AT30: =IF(COUNTIF('CABLE LENGTH'!$A30:$P30,AT$1)+COUNTIF('CABLE LENGTH'!$A30:$P30,AT$2)=2,'CABLE LENGTH'!$AL30,0) -> 0 | AU30: =IF(COUNTIF('CABLE LENGTH'!$A30:$P30,AU$1)+COUNTIF('CABLE LENGTH'!$A30:$P30,AU$2)=2,'CABLE LENGTH'!$AL30,0) -> 0 | AV30: =IF(COUNTIF('CABLE LENGTH'!$A30:$P30,AV$1)+COUNTIF('CABLE LENGTH'!$A30:$P30,AV$2)=2,'CABLE LENGTH'!$AL30,0) -> 0 | AW30: =IF(COUNTIF('CABLE LENGTH'!$A30:$P30,AW$1)+COUNTIF('CABLE LENGTH'!$A30:$P30,AW$2)=2,'CABLE LENGTH'!$AL30,0) -> 0 | AX30: =IF(COUNTIF('CABLE LENGTH'!$A30:$P30,AX$1)+COUNTIF('CABLE LENGTH'!$A30:$P30,AX$2)=2,'CABLE LENGTH'!$AL30,0) -> 0 | AY30: =IF(COUNTIF('CABLE LENGTH'!$A30:$P30,AY$1)+COUNTIF('CABLE LENGTH'!$A30:$P30,AY$2)=2,'CABLE LENGTH'!$AL30,0) -> 0 | AZ30: =IF(COUNTIF('CABLE LENGTH'!$A30:$P30,AZ$1)+COUNTIF('CABLE LENGTH'!$A30:$P30,AZ$2)=2,'CABLE LENGTH'!$AL30,0) -> 0
B31: =+'CABLE LENGTH'!AK31 -> 0 | C31: =IF(COUNTIF('CABLE LENGTH'!$A31:$P31,C$1)+COUNTIF('CABLE LENGTH'!$B31:$P31,C$2)=2,'CABLE LENGTH'!$AL31,0) -> 0 | D31: =IF(COUNTIF('CABLE LENGTH'!$A31:$P31,D$1)+COUNTIF('CABLE LENGTH'!$B31:$P31,D$2)=2,'CABLE LENGTH'!$AL31,0) -> 0 | E31: =IF(COUNTIF('CABLE LENGTH'!$A31:$P31,E$1)+COUNTIF('CABLE LENGTH'!$B31:$P31,E$2)=2,'CABLE LENGTH'!$AL31,0) -> 0 | F31: =IF(COUNTIF('CABLE LENGTH'!$A31:$P31,F$1)+COUNTIF('CABLE LENGTH'!$B31:$P31,F$2)=2,'CABLE LENGTH'!$AL31,0) -> 0 | G31: =IF(COUNTIF('CABLE LENGTH'!$A31:$P31,G$1)+COUNTIF('CABLE LENGTH'!$B31:$P31,G$2)=2,'CABLE LENGTH'!$AL31,0) -> 0 | H31: =IF(COUNTIF('CABLE LENGTH'!$A31:$P31,H$1)+COUNTIF('CABLE LENGTH'!$B31:$P31,H$2)=2,'CABLE LENGTH'!$AL31,0) -> 0 | I31: =IF(COUNTIF('CABLE LENGTH'!$A31:$P31,I$1)+COUNTIF('CABLE LENGTH'!$B31:$P31,I$2)=2,'CABLE LENGTH'!$AL31,0) -> 0 | J31: =IF(COUNTIF('CABLE LENGTH'!$A31:$P31,J$1)+COUNTIF('CABLE LENGTH'!$B31:$P31,J$2)=2,'CABLE LENGTH'!$AL31,0) -> 0 | K31: =IF(COUNTIF('CABLE LENGTH'!$A31:$P31,K$1)+COUNTIF('CABLE LENGTH'!$B31:$P31,K$2)=2,'CABLE LENGTH'!$AL31,0) -> 0 | L31: =IF(COUNTIF('CABLE LENGTH'!$A31:$P31,L$1)+COUNTIF('CABLE LENGTH'!$B31:$P31,L$2)=2,'CABLE LENGTH'!$AL31,0) -> 0 | M31: =IF(COUNTIF('CABLE LENGTH'!$A31:$P31,M$1)+COUNTIF('CABLE LENGTH'!$B31:$P31,M$2)=2,'CABLE LENGTH'!$AL31,0) -> 0 | N31: =IF(COUNTIF('CABLE LENGTH'!$A31:$P31,N$1)+COUNTIF('CABLE LENGTH'!$B31:$P31,N$2)=2,'CABLE LENGTH'!$AL31,0) -> 0 | O31: =IF(COUNTIF('CABLE LENGTH'!$A31:$P31,O$1)+COUNTIF('CABLE LENGTH'!$B31:$P31,O$2)=2,'CABLE LENGTH'!$AL31,0) -> 0 | P31: =IF(COUNTIF('CABLE LENGTH'!$A31:$P31,P$1)+COUNTIF('CABLE LENGTH'!$B31:$P31,P$2)=2,'CABLE LENGTH'!$AL31,0) -> 0 | Q31: =IF(COUNTIF('CABLE LENGTH'!$A31:$P31,Q$1)+COUNTIF('CABLE LENGTH'!$B31:$P31,Q$2)=2,'CABLE LENGTH'!$AL31,0) -> 0 | R31: =IF(COUNTIF('CABLE LENGTH'!$A31:$P31,R$1)+COUNTIF('CABLE LENGTH'!$B31:$P31,R$2)=2,'CABLE LENGTH'!$AL31,0) -> 0 | S31: =IF(COUNTIF('CABLE LENGTH'!$A31:$P31,S$1)+COUNTIF('CABLE LENGTH'!$B31:$P31,S$2)=2,'CABLE LENGTH'!$AL31,0) -> 0 | T31: =IF(COUNTIF('CABLE LENGTH'!$A31:$P31,T$1)+COUNTIF('CABLE LENGTH'!$B31:$P31,T$2)=2,'CABLE LENGTH'!$AL31,0) -> 0 | U31: =IF(COUNTIF('CABLE LENGTH'!$A31:$P31,U$1)+COUNTIF('CABLE LENGTH'!$B31:$P31,U$2)=2,'CABLE LENGTH'!$AL31,0) -> 0 | V31: =IF(COUNTIF('CABLE LENGTH'!$A31:$P31,V$1)+COUNTIF('CABLE LENGTH'!$B31:$P31,V$2)=2,'CABLE LENGTH'!$AL31,0) -> 0 | W31: =IF(COUNTIF('CABLE LENGTH'!$A31:$P31,W$1)+COUNTIF('CABLE LENGTH'!$B31:$P31,W$2)=2,'CABLE LENGTH'!$AL31,0) -> 0 | X31: =IF(COUNTIF('CABLE LENGTH'!$A31:$P31,X$1)+COUNTIF('CABLE LENGTH'!$B31:$P31,X$2)=2,'CABLE LENGTH'!$AL31,0) -> 0 | Y31: =IF(COUNTIF('CABLE LENGTH'!$A31:$P31,Y$1)+COUNTIF('CABLE LENGTH'!$A31:$P31,Y$2)=2,'CABLE LENGTH'!$AL31,0) -> 0 | Z31: =IF(COUNTIF('CABLE LENGTH'!$A31:$P31,Z$1)+COUNTIF('CABLE LENGTH'!$A31:$P31,Z$2)=2,'CABLE LENGTH'!$AL31,0) -> 0 | AA31: =IF(COUNTIF('CABLE LENGTH'!$A31:$P31,AA$1)+COUNTIF('CABLE LENGTH'!$A31:$P31,AA$2)=2,'CABLE LENGTH'!$AL31,0) -> 0 | AB31: =IF(COUNTIF('CABLE LENGTH'!$A31:$P31,AB$1)+COUNTIF('CABLE LENGTH'!$A31:$P31,AB$2)=2,'CABLE LENGTH'!$AL31,0) -> 0 | AC31: =IF(COUNTIF('CABLE LENGTH'!$A31:$P31,AC$1)+COUNTIF('CABLE LENGTH'!$A31:$P31,AC$2)=2,'CABLE LENGTH'!$AL31,0) -> 0 | AD31: =IF(COUNTIF('CABLE LENGTH'!$A31:$P31,AD$1)+COUNTIF('CABLE LENGTH'!$A31:$P31,AD$2)=2,'CABLE LENGTH'!$AL31,0) -> 0 | AE31: =IF(COUNTIF('CABLE LENGTH'!$A31:$P31,AE$1)+COUNTIF('CABLE LENGTH'!$A31:$P31,AE$2)=2,'CABLE LENGTH'!$AL31,0) -> 0 | AF31: =IF(COUNTIF('CABLE LENGTH'!$A31:$P31,AF$1)+COUNTIF('CABLE LENGTH'!$A31:$P31,AF$2)=2,'CABLE LENGTH'!$AL31,0) -> 0 | AG31: =IF(COUNTIF('CABLE LENGTH'!$A31:$P31,AG$1)+COUNTIF('CABLE LENGTH'!$A31:$P31,AG$2)=2,'CABLE LENGTH'!$AL31,0) -> 0 | AH31: =IF(COUNTIF('CABLE LENGTH'!$A31:$P31,AH$1)+COUNTIF('CABLE LENGTH'!$A31:$P31,AH$2)=2,'CABLE LENGTH'!$AL31,0) -> 0 | AI31: =IF(COUNTIF('CABLE LENGTH'!$A31:$P31,AI$1)+COUNTIF('CABLE LENGTH'!$A31:$P31,AI$2)=2,'CABLE LENGTH'!$AL31,0) -> 0 | AJ31: =IF(COUNTIF('CABLE LENGTH'!$A31:$P31,AJ$1)+COUNTIF('CABLE LENGTH'!$A31:$P31,AJ$2)=2,'CABLE LENGTH'!$AL31,0) -> 0 | AK31: =IF(COUNTIF('CABLE LENGTH'!$A31:$P31,AK$1)+COUNTIF('CABLE LENGTH'!$A31:$P31,AK$2)=2,'CABLE LENGTH'!$AL31,0) -> 0 | AL31: =IF(COUNTIF('CABLE LENGTH'!$A31:$P31,AL$1)+COUNTIF('CABLE LENGTH'!$A31:$P31,AL$2)=2,'CABLE LENGTH'!$AL31,0) -> 0 | AM31: =IF(COUNTIF('CABLE LENGTH'!$A31:$P31,AM$1)+COUNTIF('CABLE LENGTH'!$A31:$P31,AM$2)=2,'CABLE LENGTH'!$AL31,0) -> 0 | AN31: =IF(COUNTIF('CABLE LENGTH'!$A31:$P31,AN$1)+COUNTIF('CABLE LENGTH'!$A31:$P31,AN$2)=2,'CABLE LENGTH'!$AL31,0) -> 0 | AO31: =IF(COUNTIF('CABLE LENGTH'!$A31:$P31,AO$1)+COUNTIF('CABLE LENGTH'!$A31:$P31,AO$2)=2,'CABLE LENGTH'!$AL31,0) -> 0 | AP31: =IF(COUNTIF('CABLE LENGTH'!$A31:$P31,AP$1)+COUNTIF('CABLE LENGTH'!$A31:$P31,AP$2)=2,'CABLE LENGTH'!$AL31,0) -> 0 | AQ31: =IF(COUNTIF('CABLE LENGTH'!$A31:$P31,AQ$1)+COUNTIF('CABLE LENGTH'!$A31:$P31,AQ$2)=2,'CABLE LENGTH'!$AL31,0) -> 0 | AR31: =IF(COUNTIF('CABLE LENGTH'!$A31:$P31,AR$1)+COUNTIF('CABLE LENGTH'!$A31:$P31,AR$2)=2,'CABLE LENGTH'!$AL31,0) -> 0 | AS31: =IF(COUNTIF('CABLE LENGTH'!$A31:$P31,AS$1)+COUNTIF('CABLE LENGTH'!$A31:$P31,AS$2)=2,'CABLE LENGTH'!$AL31,0) -> 0 | AT31: =IF(COUNTIF('CABLE LENGTH'!$A31:$P31,AT$1)+COUNTIF('CABLE LENGTH'!$A31:$P31,AT$2)=2,'CABLE LENGTH'!$AL31,0) -> 0 | AU31: =IF(COUNTIF('CABLE LENGTH'!$A31:$P31,AU$1)+COUNTIF('CABLE LENGTH'!$A31:$P31,AU$2)=2,'CABLE LENGTH'!$AL31,0) -> 0 | AV31: =IF(COUNTIF('CABLE LENGTH'!$A31:$P31,AV$1)+COUNTIF('CABLE LENGTH'!$A31:$P31,AV$2)=2,'CABLE LENGTH'!$AL31,0) -> 0 | AW31: =IF(COUNTIF('CABLE LENGTH'!$A31:$P31,AW$1)+COUNTIF('CABLE LENGTH'!$A31:$P31,AW$2)=2,'CABLE LENGTH'!$AL31,0) -> 0 | AX31: =IF(COUNTIF('CABLE LENGTH'!$A31:$P31,AX$1)+COUNTIF('CABLE LENGTH'!$A31:$P31,AX$2)=2,'CABLE LENGTH'!$AL31,0) -> 0 | AY31: =IF(COUNTIF('CABLE LENGTH'!$A31:$P31,AY$1)+COUNTIF('CABLE LENGTH'!$A31:$P31,AY$2)=2,'CABLE LENGTH'!$AL31,0) -> 0 | AZ31: =IF(COUNTIF('CABLE LENGTH'!$A31:$P31,AZ$1)+COUNTIF('CABLE LENGTH'!$A31:$P31,AZ$2)=2,'CABLE LENGTH'!$AL31,0) -> 0
B32: =+'CABLE LENGTH'!AK32 -> 0 | C32: =IF(COUNTIF('CABLE LENGTH'!$A32:$P32,C$1)+COUNTIF('CABLE LENGTH'!$B32:$P32,C$2)=2,'CABLE LENGTH'!$AL32,0) -> 0 | D32: =IF(COUNTIF('CABLE LENGTH'!$A32:$P32,D$1)+COUNTIF('CABLE LENGTH'!$B32:$P32,D$2)=2,'CABLE LENGTH'!$AL32,0) -> 0 | E32: =IF(COUNTIF('CABLE LENGTH'!$A32:$P32,E$1)+COUNTIF('CABLE LENGTH'!$B32:$P32,E$2)=2,'CABLE LENGTH'!$AL32,0) -> 0 | F32: =IF(COUNTIF('CABLE LENGTH'!$A32:$P32,F$1)+COUNTIF('CABLE LENGTH'!$B32:$P32,F$2)=2,'CABLE LENGTH'!$AL32,0) -> 0 | G32: =IF(COUNTIF('CABLE LENGTH'!$A32:$P32,G$1)+COUNTIF('CABLE LENGTH'!$B32:$P32,G$2)=2,'CABLE LENGTH'!$AL32,0) -> 0 | H32: =IF(COUNTIF('CABLE LENGTH'!$A32:$P32,H$1)+COUNTIF('CABLE LENGTH'!$B32:$P32,H$2)=2,'CABLE LENGTH'!$AL32,0) -> 0 | I32: =IF(COUNTIF('CABLE LENGTH'!$A32:$P32,I$1)+COUNTIF('CABLE LENGTH'!$B32:$P32,I$2)=2,'CABLE LENGTH'!$AL32,0) -> 0 | J32: =IF(COUNTIF('CABLE LENGTH'!$A32:$P32,J$1)+COUNTIF('CABLE LENGTH'!$B32:$P32,J$2)=2,'CABLE LENGTH'!$AL32,0) -> 0 | K32: =IF(COUNTIF('CABLE LENGTH'!$A32:$P32,K$1)+COUNTIF('CABLE LENGTH'!$B32:$P32,K$2)=2,'CABLE LENGTH'!$AL32,0) -> 0 | L32: =IF(COUNTIF('CABLE LENGTH'!$A32:$P32,L$1)+COUNTIF('CABLE LENGTH'!$B32:$P32,L$2)=2,'CABLE LENGTH'!$AL32,0) -> 0 | M32: =IF(COUNTIF('CABLE LENGTH'!$A32:$P32,M$1)+COUNTIF('CABLE LENGTH'!$B32:$P32,M$2)=2,'CABLE LENGTH'!$AL32,0) -> 0 | N32: =IF(COUNTIF('CABLE LENGTH'!$A32:$P32,N$1)+COUNTIF('CABLE LENGTH'!$B32:$P32,N$2)=2,'CABLE LENGTH'!$AL32,0) -> 0 | O32: =IF(COUNTIF('CABLE LENGTH'!$A32:$P32,O$1)+COUNTIF('CABLE LENGTH'!$B32:$P32,O$2)=2,'CABLE LENGTH'!$AL32,0) -> 0 | P32: =IF(COUNTIF('CABLE LENGTH'!$A32:$P32,P$1)+COUNTIF('CABLE LENGTH'!$B32:$P32,P$2)=2,'CABLE LENGTH'!$AL32,0) -> 0 | Q32: =IF(COUNTIF('CABLE LENGTH'!$A32:$P32,Q$1)+COUNTIF('CABLE LENGTH'!$B32:$P32,Q$2)=2,'CABLE LENGTH'!$AL32,0) -> 0 | R32: =IF(COUNTIF('CABLE LENGTH'!$A32:$P32,R$1)+COUNTIF('CABLE LENGTH'!$B32:$P32,R$2)=2,'CABLE LENGTH'!$AL32,0) -> 0 | S32: =IF(COUNTIF('CABLE LENGTH'!$A32:$P32,S$1)+COUNTIF('CABLE LENGTH'!$B32:$P32,S$2)=2,'CABLE LENGTH'!$AL32,0) -> 0 | T32: =IF(COUNTIF('CABLE LENGTH'!$A32:$P32,T$1)+COUNTIF('CABLE LENGTH'!$B32:$P32,T$2)=2,'CABLE LENGTH'!$AL32,0) -> 0 | U32: =IF(COUNTIF('CABLE LENGTH'!$A32:$P32,U$1)+COUNTIF('CABLE LENGTH'!$B32:$P32,U$2)=2,'CABLE LENGTH'!$AL32,0) -> 0 | V32: =IF(COUNTIF('CABLE LENGTH'!$A32:$P32,V$1)+COUNTIF('CABLE LENGTH'!$B32:$P32,V$2)=2,'CABLE LENGTH'!$AL32,0) -> 0 | W32: =IF(COUNTIF('CABLE LENGTH'!$A32:$P32,W$1)+COUNTIF('CABLE LENGTH'!$B32:$P32,W$2)=2,'CABLE LENGTH'!$AL32,0) -> 0 | X32: =IF(COUNTIF('CABLE LENGTH'!$A32:$P32,X$1)+COUNTIF('CABLE LENGTH'!$B32:$P32,X$2)=2,'CABLE LENGTH'!$AL32,0) -> 0 | Y32: =IF(COUNTIF('CABLE LENGTH'!$A32:$P32,Y$1)+COUNTIF('CABLE LENGTH'!$A32:$P32,Y$2)=2,'CABLE LENGTH'!$AL32,0) -> 0 | Z32: =IF(COUNTIF('CABLE LENGTH'!$A32:$P32,Z$1)+COUNTIF('CABLE LENGTH'!$A32:$P32,Z$2)=2,'CABLE LENGTH'!$AL32,0) -> 0 | AA32: =IF(COUNTIF('CABLE LENGTH'!$A32:$P32,AA$1)+COUNTIF('CABLE LENGTH'!$A32:$P32,AA$2)=2,'CABLE LENGTH'!$AL32,0) -> 0 | AB32: =IF(COUNTIF('CABLE LENGTH'!$A32:$P32,AB$1)+COUNTIF('CABLE LENGTH'!$A32:$P32,AB$2)=2,'CABLE LENGTH'!$AL32,0) -> 0 | AC32: =IF(COUNTIF('CABLE LENGTH'!$A32:$P32,AC$1)+COUNTIF('CABLE LENGTH'!$A32:$P32,AC$2)=2,'CABLE LENGTH'!$AL32,0) -> 0 | AD32: =IF(COUNTIF('CABLE LENGTH'!$A32:$P32,AD$1)+COUNTIF('CABLE LENGTH'!$A32:$P32,AD$2)=2,'CABLE LENGTH'!$AL32,0) -> 0 | AE32: =IF(COUNTIF('CABLE LENGTH'!$A32:$P32,AE$1)+COUNTIF('CABLE LENGTH'!$A32:$P32,AE$2)=2,'CABLE LENGTH'!$AL32,0) -> 0 | AF32: =IF(COUNTIF('CABLE LENGTH'!$A32:$P32,AF$1)+COUNTIF('CABLE LENGTH'!$A32:$P32,AF$2)=2,'CABLE LENGTH'!$AL32,0) -> 0 | AG32: =IF(COUNTIF('CABLE LENGTH'!$A32:$P32,AG$1)+COUNTIF('CABLE LENGTH'!$A32:$P32,AG$2)=2,'CABLE LENGTH'!$AL32,0) -> 0 | AH32: =IF(COUNTIF('CABLE LENGTH'!$A32:$P32,AH$1)+COUNTIF('CABLE LENGTH'!$A32:$P32,AH$2)=2,'CABLE LENGTH'!$AL32,0) -> 0 | AI32: =IF(COUNTIF('CABLE LENGTH'!$A32:$P32,AI$1)+COUNTIF('CABLE LENGTH'!$A32:$P32,AI$2)=2,'CABLE LENGTH'!$AL32,0) -> 0 | AJ32: =IF(COUNTIF('CABLE LENGTH'!$A32:$P32,AJ$1)+COUNTIF('CABLE LENGTH'!$A32:$P32,AJ$2)=2,'CABLE LENGTH'!$AL32,0) -> 0 | AK32: =IF(COUNTIF('CABLE LENGTH'!$A32:$P32,AK$1)+COUNTIF('CABLE LENGTH'!$A32:$P32,AK$2)=2,'CABLE LENGTH'!$AL32,0) -> 0 | AL32: =IF(COUNTIF('CABLE LENGTH'!$A32:$P32,AL$1)+COUNTIF('CABLE LENGTH'!$A32:$P32,AL$2)=2,'CABLE LENGTH'!$AL32,0) -> 0 | AM32: =IF(COUNTIF('CABLE LENGTH'!$A32:$P32,AM$1)+COUNTIF('CABLE LENGTH'!$A32:$P32,AM$2)=2,'CABLE LENGTH'!$AL32,0) -> 0 | AN32: =IF(COUNTIF('CABLE LENGTH'!$A32:$P32,AN$1)+COUNTIF('CABLE LENGTH'!$A32:$P32,AN$2)=2,'CABLE LENGTH'!$AL32,0) -> 0 | AO32: =IF(COUNTIF('CABLE LENGTH'!$A32:$P32,AO$1)+COUNTIF('CABLE LENGTH'!$A32:$P32,AO$2)=2,'CABLE LENGTH'!$AL32,0) -> 0 | AP32: =IF(COUNTIF('CABLE LENGTH'!$A32:$P32,AP$1)+COUNTIF('CABLE LENGTH'!$A32:$P32,AP$2)=2,'CABLE LENGTH'!$AL32,0) -> 0 | AQ32: =IF(COUNTIF('CABLE LENGTH'!$A32:$P32,AQ$1)+COUNTIF('CABLE LENGTH'!$A32:$P32,AQ$2)=2,'CABLE LENGTH'!$AL32,0) -> 0 | AR32: =IF(COUNTIF('CABLE LENGTH'!$A32:$P32,AR$1)+COUNTIF('CABLE LENGTH'!$A32:$P32,AR$2)=2,'CABLE LENGTH'!$AL32,0) -> 0 | AS32: =IF(COUNTIF('CABLE LENGTH'!$A32:$P32,AS$1)+COUNTIF('CABLE LENGTH'!$A32:$P32,AS$2)=2,'CABLE LENGTH'!$AL32,0) -> 0 | AT32: =IF(COUNTIF('CABLE LENGTH'!$A32:$P32,AT$1)+COUNTIF('CABLE LENGTH'!$A32:$P32,AT$2)=2,'CABLE LENGTH'!$AL32,0) -> 0 | AU32: =IF(COUNTIF('CABLE LENGTH'!$A32:$P32,AU$1)+COUNTIF('CABLE LENGTH'!$A32:$P32,AU$2)=2,'CABLE LENGTH'!$AL32,0) -> 0 | AV32: =IF(COUNTIF('CABLE LENGTH'!$A32:$P32,AV$1)+COUNTIF('CABLE LENGTH'!$A32:$P32,AV$2)=2,'CABLE LENGTH'!$AL32,0) -> 0 | AW32: =IF(COUNTIF('CABLE LENGTH'!$A32:$P32,AW$1)+COUNTIF('CABLE LENGTH'!$A32:$P32,AW$2)=2,'CABLE LENGTH'!$AL32,0) -> 0 | AX32: =IF(COUNTIF('CABLE LENGTH'!$A32:$P32,AX$1)+COUNTIF('CABLE LENGTH'!$A32:$P32,AX$2)=2,'CABLE LENGTH'!$AL32,0) -> 0 | AY32: =IF(COUNTIF('CABLE LENGTH'!$A32:$P32,AY$1)+COUNTIF('CABLE LENGTH'!$A32:$P32,AY$2)=2,'CABLE LENGTH'!$AL32,0) -> 0 | AZ32: =IF(COUNTIF('CABLE LENGTH'!$A32:$P32,AZ$1)+COUNTIF('CABLE LENGTH'!$A32:$P32,AZ$2)=2,'CABLE LENGTH'!$AL32,0) -> 0
B33: =+'CABLE LENGTH'!AK33 -> 0 | C33: =IF(COUNTIF('CABLE LENGTH'!$A33:$P33,C$1)+COUNTIF('CABLE LENGTH'!$B33:$P33,C$2)=2,'CABLE LENGTH'!$AL33,0) -> 0 | D33: =IF(COUNTIF('CABLE LENGTH'!$A33:$P33,D$1)+COUNTIF('CABLE LENGTH'!$B33:$P33,D$2)=2,'CABLE LENGTH'!$AL33,0) -> 0 | E33: =IF(COUNTIF('CABLE LENGTH'!$A33:$P33,E$1)+COUNTIF('CABLE LENGTH'!$B33:$P33,E$2)=2,'CABLE LENGTH'!$AL33,0) -> 0 | F33: =IF(COUNTIF('CABLE LENGTH'!$A33:$P33,F$1)+COUNTIF('CABLE LENGTH'!$B33:$P33,F$2)=2,'CABLE LENGTH'!$AL33,0) -> 0 | G33: =IF(COUNTIF('CABLE LENGTH'!$A33:$P33,G$1)+COUNTIF('CABLE LENGTH'!$B33:$P33,G$2)=2,'CABLE LENGTH'!$AL33,0) -> 0 | H33: =IF(COUNTIF('CABLE LENGTH'!$A33:$P33,H$1)+COUNTIF('CABLE LENGTH'!$B33:$P33,H$2)=2,'CABLE LENGTH'!$AL33,0) -> 0 | I33: =IF(COUNTIF('CABLE LENGTH'!$A33:$P33,I$1)+COUNTIF('CABLE LENGTH'!$B33:$P33,I$2)=2,'CABLE LENGTH'!$AL33,0) -> 0 | J33: =IF(COUNTIF('CABLE LENGTH'!$A33:$P33,J$1)+COUNTIF('CABLE LENGTH'!$B33:$P33,J$2)=2,'CABLE LENGTH'!$AL33,0) -> 0 | K33: =IF(COUNTIF('CABLE LENGTH'!$A33:$P33,K$1)+COUNTIF('CABLE LENGTH'!$B33:$P33,K$2)=2,'CABLE LENGTH'!$AL33,0) -> 0 | L33: =IF(COUNTIF('CABLE LENGTH'!$A33:$P33,L$1)+COUNTIF('CABLE LENGTH'!$B33:$P33,L$2)=2,'CABLE LENGTH'!$AL33,0) -> 0 | M33: =IF(COUNTIF('CABLE LENGTH'!$A33:$P33,M$1)+COUNTIF('CABLE LENGTH'!$B33:$P33,M$2)=2,'CABLE LENGTH'!$AL33,0) -> 0 | N33: =IF(COUNTIF('CABLE LENGTH'!$A33:$P33,N$1)+COUNTIF('CABLE LENGTH'!$B33:$P33,N$2)=2,'CABLE LENGTH'!$AL33,0) -> 0 | O33: =IF(COUNTIF('CABLE LENGTH'!$A33:$P33,O$1)+COUNTIF('CABLE LENGTH'!$B33:$P33,O$2)=2,'CABLE LENGTH'!$AL33,0) -> 0 | P33: =IF(COUNTIF('CABLE LENGTH'!$A33:$P33,P$1)+COUNTIF('CABLE LENGTH'!$B33:$P33,P$2)=2,'CABLE LENGTH'!$AL33,0) -> 0 | Q33: =IF(COUNTIF('CABLE LENGTH'!$A33:$P33,Q$1)+COUNTIF('CABLE LENGTH'!$B33:$P33,Q$2)=2,'CABLE LENGTH'!$AL33,0) -> 0 | R33: =IF(COUNTIF('CABLE LENGTH'!$A33:$P33,R$1)+COUNTIF('CABLE LENGTH'!$B33:$P33,R$2)=2,'CABLE LENGTH'!$AL33,0) -> 0 | S33: =IF(COUNTIF('CABLE LENGTH'!$A33:$P33,S$1)+COUNTIF('CABLE LENGTH'!$B33:$P33,S$2)=2,'CABLE LENGTH'!$AL33,0) -> 0 | T33: =IF(COUNTIF('CABLE LENGTH'!$A33:$P33,T$1)+COUNTIF('CABLE LENGTH'!$B33:$P33,T$2)=2,'CABLE LENGTH'!$AL33,0) -> 0 | U33: =IF(COUNTIF('CABLE LENGTH'!$A33:$P33,U$1)+COUNTIF('CABLE LENGTH'!$B33:$P33,U$2)=2,'CABLE LENGTH'!$AL33,0) -> 0 | V33: =IF(COUNTIF('CABLE LENGTH'!$A33:$P33,V$1)+COUNTIF('CABLE LENGTH'!$B33:$P33,V$2)=2,'CABLE LENGTH'!$AL33,0) -> 0 | W33: =IF(COUNTIF('CABLE LENGTH'!$A33:$P33,W$1)+COUNTIF('CABLE LENGTH'!$B33:$P33,W$2)=2,'CABLE LENGTH'!$AL33,0) -> 0 | X33: =IF(COUNTIF('CABLE LENGTH'!$A33:$P33,X$1)+COUNTIF('CABLE LENGTH'!$B33:$P33,X$2)=2,'CABLE LENGTH'!$AL33,0) -> 0 | Y33: =IF(COUNTIF('CABLE LENGTH'!$A33:$P33,Y$1)+COUNTIF('CABLE LENGTH'!$A33:$P33,Y$2)=2,'CABLE LENGTH'!$AL33,0) -> 0 | Z33: =IF(COUNTIF('CABLE LENGTH'!$A33:$P33,Z$1)+COUNTIF('CABLE LENGTH'!$A33:$P33,Z$2)=2,'CABLE LENGTH'!$AL33,0) -> 0 | AA33: =IF(COUNTIF('CABLE LENGTH'!$A33:$P33,AA$1)+COUNTIF('CABLE LENGTH'!$A33:$P33,AA$2)=2,'CABLE LENGTH'!$AL33,0) -> 0 | AB33: =IF(COUNTIF('CABLE LENGTH'!$A33:$P33,AB$1)+COUNTIF('CABLE LENGTH'!$A33:$P33,AB$2)=2,'CABLE LENGTH'!$AL33,0) -> 0 | AC33: =IF(COUNTIF('CABLE LENGTH'!$A33:$P33,AC$1)+COUNTIF('CABLE LENGTH'!$A33:$P33,AC$2)=2,'CABLE LENGTH'!$AL33,0) -> 0 | AD33: =IF(COUNTIF('CABLE LENGTH'!$A33:$P33,AD$1)+COUNTIF('CABLE LENGTH'!$A33:$P33,AD$2)=2,'CABLE LENGTH'!$AL33,0) -> 0 | AE33: =IF(COUNTIF('CABLE LENGTH'!$A33:$P33,AE$1)+COUNTIF('CABLE LENGTH'!$A33:$P33,AE$2)=2,'CABLE LENGTH'!$AL33,0) -> 0 | AF33: =IF(COUNTIF('CABLE LENGTH'!$A33:$P33,AF$1)+COUNTIF('CABLE LENGTH'!$A33:$P33,AF$2)=2,'CABLE LENGTH'!$AL33,0) -> 0 | AG33: =IF(COUNTIF('CABLE LENGTH'!$A33:$P33,AG$1)+COUNTIF('CABLE LENGTH'!$A33:$P33,AG$2)=2,'CABLE LENGTH'!$AL33,0) -> 0 | AH33: =IF(COUNTIF('CABLE LENGTH'!$A33:$P33,AH$1)+COUNTIF('CABLE LENGTH'!$A33:$P33,AH$2)=2,'CABLE LENGTH'!$AL33,0) -> 0 | AI33: =IF(COUNTIF('CABLE LENGTH'!$A33:$P33,AI$1)+COUNTIF('CABLE LENGTH'!$A33:$P33,AI$2)=2,'CABLE LENGTH'!$AL33,0) -> 0 | AJ33: =IF(COUNTIF('CABLE LENGTH'!$A33:$P33,AJ$1)+COUNTIF('CABLE LENGTH'!$A33:$P33,AJ$2)=2,'CABLE LENGTH'!$AL33,0) -> 0 | AK33: =IF(COUNTIF('CABLE LENGTH'!$A33:$P33,AK$1)+COUNTIF('CABLE LENGTH'!$A33:$P33,AK$2)=2,'CABLE LENGTH'!$AL33,0) -> 0 | AL33: =IF(COUNTIF('CABLE LENGTH'!$A33:$P33,AL$1)+COUNTIF('CABLE LENGTH'!$A33:$P33,AL$2)=2,'CABLE LENGTH'!$AL33,0) -> 0 | AM33: =IF(COUNTIF('CABLE LENGTH'!$A33:$P33,AM$1)+COUNTIF('CABLE LENGTH'!$A33:$P33,AM$2)=2,'CABLE LENGTH'!$AL33,0) -> 0 | AN33: =IF(COUNTIF('CABLE LENGTH'!$A33:$P33,AN$1)+COUNTIF('CABLE LENGTH'!$A33:$P33,AN$2)=2,'CABLE LENGTH'!$AL33,0) -> 0 | AO33: =IF(COUNTIF('CABLE LENGTH'!$A33:$P33,AO$1)+COUNTIF('CABLE LENGTH'!$A33:$P33,AO$2)=2,'CABLE LENGTH'!$AL33,0) -> 0 | AP33: =IF(COUNTIF('CABLE LENGTH'!$A33:$P33,AP$1)+COUNTIF('CABLE LENGTH'!$A33:$P33,AP$2)=2,'CABLE LENGTH'!$AL33,0) -> 0 | AQ33: =IF(COUNTIF('CABLE LENGTH'!$A33:$P33,AQ$1)+COUNTIF('CABLE LENGTH'!$A33:$P33,AQ$2)=2,'CABLE LENGTH'!$AL33,0) -> 0 | AR33: =IF(COUNTIF('CABLE LENGTH'!$A33:$P33,AR$1)+COUNTIF('CABLE LENGTH'!$A33:$P33,AR$2)=2,'CABLE LENGTH'!$AL33,0) -> 0 | AS33: =IF(COUNTIF('CABLE LENGTH'!$A33:$P33,AS$1)+COUNTIF('CABLE LENGTH'!$A33:$P33,AS$2)=2,'CABLE LENGTH'!$AL33,0) -> 0 | AT33: =IF(COUNTIF('CABLE LENGTH'!$A33:$P33,AT$1)+COUNTIF('CABLE LENGTH'!$A33:$P33,AT$2)=2,'CABLE LENGTH'!$AL33,0) -> 0 | AU33: =IF(COUNTIF('CABLE LENGTH'!$A33:$P33,AU$1)+COUNTIF('CABLE LENGTH'!$A33:$P33,AU$2)=2,'CABLE LENGTH'!$AL33,0) -> 0 | AV33: =IF(COUNTIF('CABLE LENGTH'!$A33:$P33,AV$1)+COUNTIF('CABLE LENGTH'!$A33:$P33,AV$2)=2,'CABLE LENGTH'!$AL33,0) -> 0 | AW33: =IF(COUNTIF('CABLE LENGTH'!$A33:$P33,AW$1)+COUNTIF('CABLE LENGTH'!$A33:$P33,AW$2)=2,'CABLE LENGTH'!$AL33,0) -> 0 | AX33: =IF(COUNTIF('CABLE LENGTH'!$A33:$P33,AX$1)+COUNTIF('CABLE LENGTH'!$A33:$P33,AX$2)=2,'CABLE LENGTH'!$AL33,0) -> 0 | AY33: =IF(COUNTIF('CABLE LENGTH'!$A33:$P33,AY$1)+COUNTIF('CABLE LENGTH'!$A33:$P33,AY$2)=2,'CABLE LENGTH'!$AL33,0) -> 0 | AZ33: =IF(COUNTIF('CABLE LENGTH'!$A33:$P33,AZ$1)+COUNTIF('CABLE LENGTH'!$A33:$P33,AZ$2)=2,'CABLE LENGTH'!$AL33,0) -> 0
B34: =+'CABLE LENGTH'!AK34 -> 0 | C34: =IF(COUNTIF('CABLE LENGTH'!$A34:$P34,C$1)+COUNTIF('CABLE LENGTH'!$B34:$P34,C$2)=2,'CABLE LENGTH'!$AL34,0) -> 0 | D34: =IF(COUNTIF('CABLE LENGTH'!$A34:$P34,D$1)+COUNTIF('CABLE LENGTH'!$B34:$P34,D$2)=2,'CABLE LENGTH'!$AL34,0) -> 0 | E34: =IF(COUNTIF('CABLE LENGTH'!$A34:$P34,E$1)+COUNTIF('CABLE LENGTH'!$B34:$P34,E$2)=2,'CABLE LENGTH'!$AL34,0) -> 0 | F34: =IF(COUNTIF('CABLE LENGTH'!$A34:$P34,F$1)+COUNTIF('CABLE LENGTH'!$B34:$P34,F$2)=2,'CABLE LENGTH'!$AL34,0) -> 0 | G34: =IF(COUNTIF('CABLE LENGTH'!$A34:$P34,G$1)+COUNTIF('CABLE LENGTH'!$B34:$P34,G$2)=2,'CABLE LENGTH'!$AL34,0) -> 0 | H34: =IF(COUNTIF('CABLE LENGTH'!$A34:$P34,H$1)+COUNTIF('CABLE LENGTH'!$B34:$P34,H$2)=2,'CABLE LENGTH'!$AL34,0) -> 0 | I34: =IF(COUNTIF('CABLE LENGTH'!$A34:$P34,I$1)+COUNTIF('CABLE LENGTH'!$B34:$P34,I$2)=2,'CABLE LENGTH'!$AL34,0) -> 0 | J34: =IF(COUNTIF('CABLE LENGTH'!$A34:$P34,J$1)+COUNTIF('CABLE LENGTH'!$B34:$P34,J$2)=2,'CABLE LENGTH'!$AL34,0) -> 0 | K34: =IF(COUNTIF('CABLE LENGTH'!$A34:$P34,K$1)+COUNTIF('CABLE LENGTH'!$B34:$P34,K$2)=2,'CABLE LENGTH'!$AL34,0) -> 0 | L34: =IF(COUNTIF('CABLE LENGTH'!$A34:$P34,L$1)+COUNTIF('CABLE LENGTH'!$B34:$P34,L$2)=2,'CABLE LENGTH'!$AL34,0) -> 0 | M34: =IF(COUNTIF('CABLE LENGTH'!$A34:$P34,M$1)+COUNTIF('CABLE LENGTH'!$B34:$P34,M$2)=2,'CABLE LENGTH'!$AL34,0) -> 0 | N34: =IF(COUNTIF('CABLE LENGTH'!$A34:$P34,N$1)+COUNTIF('CABLE LENGTH'!$B34:$P34,N$2)=2,'CABLE LENGTH'!$AL34,0) -> 0 | O34: =IF(COUNTIF('CABLE LENGTH'!$A34:$P34,O$1)+COUNTIF('CABLE LENGTH'!$B34:$P34,O$2)=2,'CABLE LENGTH'!$AL34,0) -> 0 | P34: =IF(COUNTIF('CABLE LENGTH'!$A34:$P34,P$1)+COUNTIF('CABLE LENGTH'!$B34:$P34,P$2)=2,'CABLE LENGTH'!$AL34,0) -> 0 | Q34: =IF(COUNTIF('CABLE LENGTH'!$A34:$P34,Q$1)+COUNTIF('CABLE LENGTH'!$B34:$P34,Q$2)=2,'CABLE LENGTH'!$AL34,0) -> 0 | R34: =IF(COUNTIF('CABLE LENGTH'!$A34:$P34,R$1)+COUNTIF('CABLE LENGTH'!$B34:$P34,R$2)=2,'CABLE LENGTH'!$AL34,0) -> 0 | S34: =IF(COUNTIF('CABLE LENGTH'!$A34:$P34,S$1)+COUNTIF('CABLE LENGTH'!$B34:$P34,S$2)=2,'CABLE LENGTH'!$AL34,0) -> 0 | T34: =IF(COUNTIF('CABLE LENGTH'!$A34:$P34,T$1)+COUNTIF('CABLE LENGTH'!$B34:$P34,T$2)=2,'CABLE LENGTH'!$AL34,0) -> 0 | U34: =IF(COUNTIF('CABLE LENGTH'!$A34:$P34,U$1)+COUNTIF('CABLE LENGTH'!$B34:$P34,U$2)=2,'CABLE LENGTH'!$AL34,0) -> 0 | V34: =IF(COUNTIF('CABLE LENGTH'!$A34:$P34,V$1)+COUNTIF('CABLE LENGTH'!$B34:$P34,V$2)=2,'CABLE LENGTH'!$AL34,0) -> 0 | W34: =IF(COUNTIF('CABLE LENGTH'!$A34:$P34,W$1)+COUNTIF('CABLE LENGTH'!$B34:$P34,W$2)=2,'CABLE LENGTH'!$AL34,0) -> 0 | X34: =IF(COUNTIF('CABLE LENGTH'!$A34:$P34,X$1)+COUNTIF('CABLE LENGTH'!$B34:$P34,X$2)=2,'CABLE LENGTH'!$AL34,0) -> 0 | Y34: =IF(COUNTIF('CABLE LENGTH'!$A34:$P34,Y$1)+COUNTIF('CABLE LENGTH'!$A34:$P34,Y$2)=2,'CABLE LENGTH'!$AL34,0) -> 0 | Z34: =IF(COUNTIF('CABLE LENGTH'!$A34:$P34,Z$1)+COUNTIF('CABLE LENGTH'!$A34:$P34,Z$2)=2,'CABLE LENGTH'!$AL34,0) -> 0 | AA34: =IF(COUNTIF('CABLE LENGTH'!$A34:$P34,AA$1)+COUNTIF('CABLE LENGTH'!$A34:$P34,AA$2)=2,'CABLE LENGTH'!$AL34,0) -> 0 | AB34: =IF(COUNTIF('CABLE LENGTH'!$A34:$P34,AB$1)+COUNTIF('CABLE LENGTH'!$A34:$P34,AB$2)=2,'CABLE LENGTH'!$AL34,0) -> 0 | AC34: =IF(COUNTIF('CABLE LENGTH'!$A34:$P34,AC$1)+COUNTIF('CABLE LENGTH'!$A34:$P34,AC$2)=2,'CABLE LENGTH'!$AL34,0) -> 0 | AD34: =IF(COUNTIF('CABLE LENGTH'!$A34:$P34,AD$1)+COUNTIF('CABLE LENGTH'!$A34:$P34,AD$2)=2,'CABLE LENGTH'!$AL34,0) -> 0 | AE34: =IF(COUNTIF('CABLE LENGTH'!$A34:$P34,AE$1)+COUNTIF('CABLE LENGTH'!$A34:$P34,AE$2)=2,'CABLE LENGTH'!$AL34,0) -> 0 | AF34: =IF(COUNTIF('CABLE LENGTH'!$A34:$P34,AF$1)+COUNTIF('CABLE LENGTH'!$A34:$P34,AF$2)=2,'CABLE LENGTH'!$AL34,0) -> 0 | AG34: =IF(COUNTIF('CABLE LENGTH'!$A34:$P34,AG$1)+COUNTIF('CABLE LENGTH'!$A34:$P34,AG$2)=2,'CABLE LENGTH'!$AL34,0) -> 0 | AH34: =IF(COUNTIF('CABLE LENGTH'!$A34:$P34,AH$1)+COUNTIF('CABLE LENGTH'!$A34:$P34,AH$2)=2,'CABLE LENGTH'!$AL34,0) -> 0 | AI34: =IF(COUNTIF('CABLE LENGTH'!$A34:$P34,AI$1)+COUNTIF('CABLE LENGTH'!$A34:$P34,AI$2)=2,'CABLE LENGTH'!$AL34,0) -> 0 | AJ34: =IF(COUNTIF('CABLE LENGTH'!$A34:$P34,AJ$1)+COUNTIF('CABLE LENGTH'!$A34:$P34,AJ$2)=2,'CABLE LENGTH'!$AL34,0) -> 0 | AK34: =IF(COUNTIF('CABLE LENGTH'!$A34:$P34,AK$1)+COUNTIF('CABLE LENGTH'!$A34:$P34,AK$2)=2,'CABLE LENGTH'!$AL34,0) -> 0 | AL34: =IF(COUNTIF('CABLE LENGTH'!$A34:$P34,AL$1)+COUNTIF('CABLE LENGTH'!$A34:$P34,AL$2)=2,'CABLE LENGTH'!$AL34,0) -> 0 | AM34: =IF(COUNTIF('CABLE LENGTH'!$A34:$P34,AM$1)+COUNTIF('CABLE LENGTH'!$A34:$P34,AM$2)=2,'CABLE LENGTH'!$AL34,0) -> 0 | AN34: =IF(COUNTIF('CABLE LENGTH'!$A34:$P34,AN$1)+COUNTIF('CABLE LENGTH'!$A34:$P34,AN$2)=2,'CABLE LENGTH'!$AL34,0) -> 0 | AO34: =IF(COUNTIF('CABLE LENGTH'!$A34:$P34,AO$1)+COUNTIF('CABLE LENGTH'!$A34:$P34,AO$2)=2,'CABLE LENGTH'!$AL34,0) -> 0 | AP34: =IF(COUNTIF('CABLE LENGTH'!$A34:$P34,AP$1)+COUNTIF('CABLE LENGTH'!$A34:$P34,AP$2)=2,'CABLE LENGTH'!$AL34,0) -> 0 | AQ34: =IF(COUNTIF('CABLE LENGTH'!$A34:$P34,AQ$1)+COUNTIF('CABLE LENGTH'!$A34:$P34,AQ$2)=2,'CABLE LENGTH'!$AL34,0) -> 0 | AR34: =IF(COUNTIF('CABLE LENGTH'!$A34:$P34,AR$1)+COUNTIF('CABLE LENGTH'!$A34:$P34,AR$2)=2,'CABLE LENGTH'!$AL34,0) -> 0 | AS34: =IF(COUNTIF('CABLE LENGTH'!$A34:$P34,AS$1)+COUNTIF('CABLE LENGTH'!$A34:$P34,AS$2)=2,'CABLE LENGTH'!$AL34,0) -> 0 | AT34: =IF(COUNTIF('CABLE LENGTH'!$A34:$P34,AT$1)+COUNTIF('CABLE LENGTH'!$A34:$P34,AT$2)=2,'CABLE LENGTH'!$AL34,0) -> 0 | AU34: =IF(COUNTIF('CABLE LENGTH'!$A34:$P34,AU$1)+COUNTIF('CABLE LENGTH'!$A34:$P34,AU$2)=2,'CABLE LENGTH'!$AL34,0) -> 0 | AV34: =IF(COUNTIF('CABLE LENGTH'!$A34:$P34,AV$1)+COUNTIF('CABLE LENGTH'!$A34:$P34,AV$2)=2,'CABLE LENGTH'!$AL34,0) -> 0 | AW34: =IF(COUNTIF('CABLE LENGTH'!$A34:$P34,AW$1)+COUNTIF('CABLE LENGTH'!$A34:$P34,AW$2)=2,'CABLE LENGTH'!$AL34,0) -> 0 | AX34: =IF(COUNTIF('CABLE LENGTH'!$A34:$P34,AX$1)+COUNTIF('CABLE LENGTH'!$A34:$P34,AX$2)=2,'CABLE LENGTH'!$AL34,0) -> 0 | AY34: =IF(COUNTIF('CABLE LENGTH'!$A34:$P34,AY$1)+COUNTIF('CABLE LENGTH'!$A34:$P34,AY$2)=2,'CABLE LENGTH'!$AL34,0) -> 0 | AZ34: =IF(COUNTIF('CABLE LENGTH'!$A34:$P34,AZ$1)+COUNTIF('CABLE LENGTH'!$A34:$P34,AZ$2)=2,'CABLE LENGTH'!$AL34,0) -> 0
B35: =+'CABLE LENGTH'!AK35 -> 0 | C35: =IF(COUNTIF('CABLE LENGTH'!$A35:$P35,C$1)+COUNTIF('CABLE LENGTH'!$B35:$P35,C$2)=2,'CABLE LENGTH'!$AL35,0) -> 0 | D35: =IF(COUNTIF('CABLE LENGTH'!$A35:$P35,D$1)+COUNTIF('CABLE LENGTH'!$B35:$P35,D$2)=2,'CABLE LENGTH'!$AL35,0) -> 0 | E35: =IF(COUNTIF('CABLE LENGTH'!$A35:$P35,E$1)+COUNTIF('CABLE LENGTH'!$B35:$P35,E$2)=2,'CABLE LENGTH'!$AL35,0) -> 0 | F35: =IF(COUNTIF('CABLE LENGTH'!$A35:$P35,F$1)+COUNTIF('CABLE LENGTH'!$B35:$P35,F$2)=2,'CABLE LENGTH'!$AL35,0) -> 0 | G35: =IF(COUNTIF('CABLE LENGTH'!$A35:$P35,G$1)+COUNTIF('CABLE LENGTH'!$B35:$P35,G$2)=2,'CABLE LENGTH'!$AL35,0) -> 0 | H35: =IF(COUNTIF('CABLE LENGTH'!$A35:$P35,H$1)+COUNTIF('CABLE LENGTH'!$B35:$P35,H$2)=2,'CABLE LENGTH'!$AL35,0) -> 0 | I35: =IF(COUNTIF('CABLE LENGTH'!$A35:$P35,I$1)+COUNTIF('CABLE LENGTH'!$B35:$P35,I$2)=2,'CABLE LENGTH'!$AL35,0) -> 0 | J35: =IF(COUNTIF('CABLE LENGTH'!$A35:$P35,J$1)+COUNTIF('CABLE LENGTH'!$B35:$P35,J$2)=2,'CABLE LENGTH'!$AL35,0) -> 0 | K35: =IF(COUNTIF('CABLE LENGTH'!$A35:$P35,K$1)+COUNTIF('CABLE LENGTH'!$B35:$P35,K$2)=2,'CABLE LENGTH'!$AL35,0) -> 0 | L35: =IF(COUNTIF('CABLE LENGTH'!$A35:$P35,L$1)+COUNTIF('CABLE LENGTH'!$B35:$P35,L$2)=2,'CABLE LENGTH'!$AL35,0) -> 0 | M35: =IF(COUNTIF('CABLE LENGTH'!$A35:$P35,M$1)+COUNTIF('CABLE LENGTH'!$B35:$P35,M$2)=2,'CABLE LENGTH'!$AL35,0) -> 0 | N35: =IF(COUNTIF('CABLE LENGTH'!$A35:$P35,N$1)+COUNTIF('CABLE LENGTH'!$B35:$P35,N$2)=2,'CABLE LENGTH'!$AL35,0) -> 0 | O35: =IF(COUNTIF('CABLE LENGTH'!$A35:$P35,O$1)+COUNTIF('CABLE LENGTH'!$B35:$P35,O$2)=2,'CABLE LENGTH'!$AL35,0) -> 0 | P35: =IF(COUNTIF('CABLE LENGTH'!$A35:$P35,P$1)+COUNTIF('CABLE LENGTH'!$B35:$P35,P$2)=2,'CABLE LENGTH'!$AL35,0) -> 0 | Q35: =IF(COUNTIF('CABLE LENGTH'!$A35:$P35,Q$1)+COUNTIF('CABLE LENGTH'!$B35:$P35,Q$2)=2,'CABLE LENGTH'!$AL35,0) -> 0 | R35: =IF(COUNTIF('CABLE LENGTH'!$A35:$P35,R$1)+COUNTIF('CABLE LENGTH'!$B35:$P35,R$2)=2,'CABLE LENGTH'!$AL35,0) -> 0 | S35: =IF(COUNTIF('CABLE LENGTH'!$A35:$P35,S$1)+COUNTIF('CABLE LENGTH'!$B35:$P35,S$2)=2,'CABLE LENGTH'!$AL35,0) -> 0 | T35: =IF(COUNTIF('CABLE LENGTH'!$A35:$P35,T$1)+COUNTIF('CABLE LENGTH'!$B35:$P35,T$2)=2,'CABLE LENGTH'!$AL35,0) -> 0 | U35: =IF(COUNTIF('CABLE LENGTH'!$A35:$P35,U$1)+COUNTIF('CABLE LENGTH'!$B35:$P35,U$2)=2,'CABLE LENGTH'!$AL35,0) -> 0 | V35: =IF(COUNTIF('CABLE LENGTH'!$A35:$P35,V$1)+COUNTIF('CABLE LENGTH'!$B35:$P35,V$2)=2,'CABLE LENGTH'!$AL35,0) -> 0 | W35: =IF(COUNTIF('CABLE LENGTH'!$A35:$P35,W$1)+COUNTIF('CABLE LENGTH'!$B35:$P35,W$2)=2,'CABLE LENGTH'!$AL35,0) -> 0 | X35: =IF(COUNTIF('CABLE LENGTH'!$A35:$P35,X$1)+COUNTIF('CABLE LENGTH'!$B35:$P35,X$2)=2,'CABLE LENGTH'!$AL35,0) -> 0 | Y35: =IF(COUNTIF('CABLE LENGTH'!$A35:$P35,Y$1)+COUNTIF('CABLE LENGTH'!$A35:$P35,Y$2)=2,'CABLE LENGTH'!$AL35,0) -> 0 | Z35: =IF(COUNTIF('CABLE LENGTH'!$A35:$P35,Z$1)+COUNTIF('CABLE LENGTH'!$A35:$P35,Z$2)=2,'CABLE LENGTH'!$AL35,0) -> 0 | AA35: =IF(COUNTIF('CABLE LENGTH'!$A35:$P35,AA$1)+COUNTIF('CABLE LENGTH'!$A35:$P35,AA$2)=2,'CABLE LENGTH'!$AL35,0) -> 0 | AB35: =IF(COUNTIF('CABLE LENGTH'!$A35:$P35,AB$1)+COUNTIF('CABLE LENGTH'!$A35:$P35,AB$2)=2,'CABLE LENGTH'!$AL35,0) -> 0 | AC35: =IF(COUNTIF('CABLE LENGTH'!$A35:$P35,AC$1)+COUNTIF('CABLE LENGTH'!$A35:$P35,AC$2)=2,'CABLE LENGTH'!$AL35,0) -> 0 | AD35: =IF(COUNTIF('CABLE LENGTH'!$A35:$P35,AD$1)+COUNTIF('CABLE LENGTH'!$A35:$P35,AD$2)=2,'CABLE LENGTH'!$AL35,0) -> 0 | AE35: =IF(COUNTIF('CABLE LENGTH'!$A35:$P35,AE$1)+COUNTIF('CABLE LENGTH'!$A35:$P35,AE$2)=2,'CABLE LENGTH'!$AL35,0) -> 0 | AF35: =IF(COUNTIF('CABLE LENGTH'!$A35:$P35,AF$1)+COUNTIF('CABLE LENGTH'!$A35:$P35,AF$2)=2,'CABLE LENGTH'!$AL35,0) -> 0 | AG35: =IF(COUNTIF('CABLE LENGTH'!$A35:$P35,AG$1)+COUNTIF('CABLE LENGTH'!$A35:$P35,AG$2)=2,'CABLE LENGTH'!$AL35,0) -> 0 | AH35: =IF(COUNTIF('CABLE LENGTH'!$A35:$P35,AH$1)+COUNTIF('CABLE LENGTH'!$A35:$P35,AH$2)=2,'CABLE LENGTH'!$AL35,0) -> 0 | AI35: =IF(COUNTIF('CABLE LENGTH'!$A35:$P35,AI$1)+COUNTIF('CABLE LENGTH'!$A35:$P35,AI$2)=2,'CABLE LENGTH'!$AL35,0) -> 0 | AJ35: =IF(COUNTIF('CABLE LENGTH'!$A35:$P35,AJ$1)+COUNTIF('CABLE LENGTH'!$A35:$P35,AJ$2)=2,'CABLE LENGTH'!$AL35,0) -> 0 | AK35: =IF(COUNTIF('CABLE LENGTH'!$A35:$P35,AK$1)+COUNTIF('CABLE LENGTH'!$A35:$P35,AK$2)=2,'CABLE LENGTH'!$AL35,0) -> 0 | AL35: =IF(COUNTIF('CABLE LENGTH'!$A35:$P35,AL$1)+COUNTIF('CABLE LENGTH'!$A35:$P35,AL$2)=2,'CABLE LENGTH'!$AL35,0) -> 0 | AM35: =IF(COUNTIF('CABLE LENGTH'!$A35:$P35,AM$1)+COUNTIF('CABLE LENGTH'!$A35:$P35,AM$2)=2,'CABLE LENGTH'!$AL35,0) -> 0 | AN35: =IF(COUNTIF('CABLE LENGTH'!$A35:$P35,AN$1)+COUNTIF('CABLE LENGTH'!$A35:$P35,AN$2)=2,'CABLE LENGTH'!$AL35,0) -> 0 | AO35: =IF(COUNTIF('CABLE LENGTH'!$A35:$P35,AO$1)+COUNTIF('CABLE LENGTH'!$A35:$P35,AO$2)=2,'CABLE LENGTH'!$AL35,0) -> 0 | AP35: =IF(COUNTIF('CABLE LENGTH'!$A35:$P35,AP$1)+COUNTIF('CABLE LENGTH'!$A35:$P35,AP$2)=2,'CABLE LENGTH'!$AL35,0) -> 0 | AQ35: =IF(COUNTIF('CABLE LENGTH'!$A35:$P35,AQ$1)+COUNTIF('CABLE LENGTH'!$A35:$P35,AQ$2)=2,'CABLE LENGTH'!$AL35,0) -> 0 | AR35: =IF(COUNTIF('CABLE LENGTH'!$A35:$P35,AR$1)+COUNTIF('CABLE LENGTH'!$A35:$P35,AR$2)=2,'CABLE LENGTH'!$AL35,0) -> 0 | AS35: =IF(COUNTIF('CABLE LENGTH'!$A35:$P35,AS$1)+COUNTIF('CABLE LENGTH'!$A35:$P35,AS$2)=2,'CABLE LENGTH'!$AL35,0) -> 0 | AT35: =IF(COUNTIF('CABLE LENGTH'!$A35:$P35,AT$1)+COUNTIF('CABLE LENGTH'!$A35:$P35,AT$2)=2,'CABLE LENGTH'!$AL35,0) -> 0 | AU35: =IF(COUNTIF('CABLE LENGTH'!$A35:$P35,AU$1)+COUNTIF('CABLE LENGTH'!$A35:$P35,AU$2)=2,'CABLE LENGTH'!$AL35,0) -> 0 | AV35: =IF(COUNTIF('CABLE LENGTH'!$A35:$P35,AV$1)+COUNTIF('CABLE LENGTH'!$A35:$P35,AV$2)=2,'CABLE LENGTH'!$AL35,0) -> 0 | AW35: =IF(COUNTIF('CABLE LENGTH'!$A35:$P35,AW$1)+COUNTIF('CABLE LENGTH'!$A35:$P35,AW$2)=2,'CABLE LENGTH'!$AL35,0) -> 0 | AX35: =IF(COUNTIF('CABLE LENGTH'!$A35:$P35,AX$1)+COUNTIF('CABLE LENGTH'!$A35:$P35,AX$2)=2,'CABLE LENGTH'!$AL35,0) -> 0 | AY35: =IF(COUNTIF('CABLE LENGTH'!$A35:$P35,AY$1)+COUNTIF('CABLE LENGTH'!$A35:$P35,AY$2)=2,'CABLE LENGTH'!$AL35,0) -> 0 | AZ35: =IF(COUNTIF('CABLE LENGTH'!$A35:$P35,AZ$1)+COUNTIF('CABLE LENGTH'!$A35:$P35,AZ$2)=2,'CABLE LENGTH'!$AL35,0) -> 0
B36: =+'CABLE LENGTH'!AK36 -> 0 | C36: =IF(COUNTIF('CABLE LENGTH'!$A36:$P36,C$1)+COUNTIF('CABLE LENGTH'!$B36:$P36,C$2)=2,'CABLE LENGTH'!$AL36,0) -> 0 | D36: =IF(COUNTIF('CABLE LENGTH'!$A36:$P36,D$1)+COUNTIF('CABLE LENGTH'!$B36:$P36,D$2)=2,'CABLE LENGTH'!$AL36,0) -> 0 | E36: =IF(COUNTIF('CABLE LENGTH'!$A36:$P36,E$1)+COUNTIF('CABLE LENGTH'!$B36:$P36,E$2)=2,'CABLE LENGTH'!$AL36,0) -> 0 | F36: =IF(COUNTIF('CABLE LENGTH'!$A36:$P36,F$1)+COUNTIF('CABLE LENGTH'!$B36:$P36,F$2)=2,'CABLE LENGTH'!$AL36,0) -> 0 | G36: =IF(COUNTIF('CABLE LENGTH'!$A36:$P36,G$1)+COUNTIF('CABLE LENGTH'!$B36:$P36,G$2)=2,'CABLE LENGTH'!$AL36,0) -> 0 | H36: =IF(COUNTIF('CABLE LENGTH'!$A36:$P36,H$1)+COUNTIF('CABLE LENGTH'!$B36:$P36,H$2)=2,'CABLE LENGTH'!$AL36,0) -> 0 | I36: =IF(COUNTIF('CABLE LENGTH'!$A36:$P36,I$1)+COUNTIF('CABLE LENGTH'!$B36:$P36,I$2)=2,'CABLE LENGTH'!$AL36,0) -> 0 | J36: =IF(COUNTIF('CABLE LENGTH'!$A36:$P36,J$1)+COUNTIF('CABLE LENGTH'!$B36:$P36,J$2)=2,'CABLE LENGTH'!$AL36,0) -> 0 | K36: =IF(COUNTIF('CABLE LENGTH'!$A36:$P36,K$1)+COUNTIF('CABLE LENGTH'!$B36:$P36,K$2)=2,'CABLE LENGTH'!$AL36,0) -> 0 | L36: =IF(COUNTIF('CABLE LENGTH'!$A36:$P36,L$1)+COUNTIF('CABLE LENGTH'!$B36:$P36,L$2)=2,'CABLE LENGTH'!$AL36,0) -> 0 | M36: =IF(COUNTIF('CABLE LENGTH'!$A36:$P36,M$1)+COUNTIF('CABLE LENGTH'!$B36:$P36,M$2)=2,'CABLE LENGTH'!$AL36,0) -> 0 | N36: =IF(COUNTIF('CABLE LENGTH'!$A36:$P36,N$1)+COUNTIF('CABLE LENGTH'!$B36:$P36,N$2)=2,'CABLE LENGTH'!$AL36,0) -> 0 | O36: =IF(COUNTIF('CABLE LENGTH'!$A36:$P36,O$1)+COUNTIF('CABLE LENGTH'!$B36:$P36,O$2)=2,'CABLE LENGTH'!$AL36,0) -> 0 | P36: =IF(COUNTIF('CABLE LENGTH'!$A36:$P36,P$1)+COUNTIF('CABLE LENGTH'!$B36:$P36,P$2)=2,'CABLE LENGTH'!$AL36,0) -> 0 | Q36: =IF(COUNTIF('CABLE LENGTH'!$A36:$P36,Q$1)+COUNTIF('CABLE LENGTH'!$B36:$P36,Q$2)=2,'CABLE LENGTH'!$AL36,0) -> 0 | R36: =IF(COUNTIF('CABLE LENGTH'!$A36:$P36,R$1)+COUNTIF('CABLE LENGTH'!$B36:$P36,R$2)=2,'CABLE LENGTH'!$AL36,0) -> 0 | S36: =IF(COUNTIF('CABLE LENGTH'!$A36:$P36,S$1)+COUNTIF('CABLE LENGTH'!$B36:$P36,S$2)=2,'CABLE LENGTH'!$AL36,0) -> 0 | T36: =IF(COUNTIF('CABLE LENGTH'!$A36:$P36,T$1)+COUNTIF('CABLE LENGTH'!$B36:$P36,T$2)=2,'CABLE LENGTH'!$AL36,0) -> 0 | U36: =IF(COUNTIF('CABLE LENGTH'!$A36:$P36,U$1)+COUNTIF('CABLE LENGTH'!$B36:$P36,U$2)=2,'CABLE LENGTH'!$AL36,0) -> 0 | V36: =IF(COUNTIF('CABLE LENGTH'!$A36:$P36,V$1)+COUNTIF('CABLE LENGTH'!$B36:$P36,V$2)=2,'CABLE LENGTH'!$AL36,0) -> 0 | W36: =IF(COUNTIF('CABLE LENGTH'!$A36:$P36,W$1)+COUNTIF('CABLE LENGTH'!$B36:$P36,W$2)=2,'CABLE LENGTH'!$AL36,0) -> 0 | X36: =IF(COUNTIF('CABLE LENGTH'!$A36:$P36,X$1)+COUNTIF('CABLE LENGTH'!$B36:$P36,X$2)=2,'CABLE LENGTH'!$AL36,0) -> 0 | Y36: =IF(COUNTIF('CABLE LENGTH'!$A36:$P36,Y$1)+COUNTIF('CABLE LENGTH'!$A36:$P36,Y$2)=2,'CABLE LENGTH'!$AL36,0) -> 0 | Z36: =IF(COUNTIF('CABLE LENGTH'!$A36:$P36,Z$1)+COUNTIF('CABLE LENGTH'!$A36:$P36,Z$2)=2,'CABLE LENGTH'!$AL36,0) -> 0 | AA36: =IF(COUNTIF('CABLE LENGTH'!$A36:$P36,AA$1)+COUNTIF('CABLE LENGTH'!$A36:$P36,AA$2)=2,'CABLE LENGTH'!$AL36,0) -> 0 | AB36: =IF(COUNTIF('CABLE LENGTH'!$A36:$P36,AB$1)+COUNTIF('CABLE LENGTH'!$A36:$P36,AB$2)=2,'CABLE LENGTH'!$AL36,0) -> 0 | AC36: =IF(COUNTIF('CABLE LENGTH'!$A36:$P36,AC$1)+COUNTIF('CABLE LENGTH'!$A36:$P36,AC$2)=2,'CABLE LENGTH'!$AL36,0) -> 0 | AD36: =IF(COUNTIF('CABLE LENGTH'!$A36:$P36,AD$1)+COUNTIF('CABLE LENGTH'!$A36:$P36,AD$2)=2,'CABLE LENGTH'!$AL36,0) -> 0 | AE36: =IF(COUNTIF('CABLE LENGTH'!$A36:$P36,AE$1)+COUNTIF('CABLE LENGTH'!$A36:$P36,AE$2)=2,'CABLE LENGTH'!$AL36,0) -> 0 | AF36: =IF(COUNTIF('CABLE LENGTH'!$A36:$P36,AF$1)+COUNTIF('CABLE LENGTH'!$A36:$P36,AF$2)=2,'CABLE LENGTH'!$AL36,0) -> 0 | AG36: =IF(COUNTIF('CABLE LENGTH'!$A36:$P36,AG$1)+COUNTIF('CABLE LENGTH'!$A36:$P36,AG$2)=2,'CABLE LENGTH'!$AL36,0) -> 0 | AH36: =IF(COUNTIF('CABLE LENGTH'!$A36:$P36,AH$1)+COUNTIF('CABLE LENGTH'!$A36:$P36,AH$2)=2,'CABLE LENGTH'!$AL36,0) -> 0 | AI36: =IF(COUNTIF('CABLE LENGTH'!$A36:$P36,AI$1)+COUNTIF('CABLE LENGTH'!$A36:$P36,AI$2)=2,'CABLE LENGTH'!$AL36,0) -> 0 | AJ36: =IF(COUNTIF('CABLE LENGTH'!$A36:$P36,AJ$1)+COUNTIF('CABLE LENGTH'!$A36:$P36,AJ$2)=2,'CABLE LENGTH'!$AL36,0) -> 0 | AK36: =IF(COUNTIF('CABLE LENGTH'!$A36:$P36,AK$1)+COUNTIF('CABLE LENGTH'!$A36:$P36,AK$2)=2,'CABLE LENGTH'!$AL36,0) -> 0 | AL36: =IF(COUNTIF('CABLE LENGTH'!$A36:$P36,AL$1)+COUNTIF('CABLE LENGTH'!$A36:$P36,AL$2)=2,'CABLE LENGTH'!$AL36,0) -> 0 | AM36: =IF(COUNTIF('CABLE LENGTH'!$A36:$P36,AM$1)+COUNTIF('CABLE LENGTH'!$A36:$P36,AM$2)=2,'CABLE LENGTH'!$AL36,0) -> 0 | AN36: =IF(COUNTIF('CABLE LENGTH'!$A36:$P36,AN$1)+COUNTIF('CABLE LENGTH'!$A36:$P36,AN$2)=2,'CABLE LENGTH'!$AL36,0) -> 0 | AO36: =IF(COUNTIF('CABLE LENGTH'!$A36:$P36,AO$1)+COUNTIF('CABLE LENGTH'!$A36:$P36,AO$2)=2,'CABLE LENGTH'!$AL36,0) -> 0 | AP36: =IF(COUNTIF('CABLE LENGTH'!$A36:$P36,AP$1)+COUNTIF('CABLE LENGTH'!$A36:$P36,AP$2)=2,'CABLE LENGTH'!$AL36,0) -> 0 | AQ36: =IF(COUNTIF('CABLE LENGTH'!$A36:$P36,AQ$1)+COUNTIF('CABLE LENGTH'!$A36:$P36,AQ$2)=2,'CABLE LENGTH'!$AL36,0) -> 0 | AR36: =IF(COUNTIF('CABLE LENGTH'!$A36:$P36,AR$1)+COUNTIF('CABLE LENGTH'!$A36:$P36,AR$2)=2,'CABLE LENGTH'!$AL36,0) -> 0 | AS36: =IF(COUNTIF('CABLE LENGTH'!$A36:$P36,AS$1)+COUNTIF('CABLE LENGTH'!$A36:$P36,AS$2)=2,'CABLE LENGTH'!$AL36,0) -> 0 | AT36: =IF(COUNTIF('CABLE LENGTH'!$A36:$P36,AT$1)+COUNTIF('CABLE LENGTH'!$A36:$P36,AT$2)=2,'CABLE LENGTH'!$AL36,0) -> 0 | AU36: =IF(COUNTIF('CABLE LENGTH'!$A36:$P36,AU$1)+COUNTIF('CABLE LENGTH'!$A36:$P36,AU$2)=2,'CABLE LENGTH'!$AL36,0) -> 0 | AV36: =IF(COUNTIF('CABLE LENGTH'!$A36:$P36,AV$1)+COUNTIF('CABLE LENGTH'!$A36:$P36,AV$2)=2,'CABLE LENGTH'!$AL36,0) -> 0 | AW36: =IF(COUNTIF('CABLE LENGTH'!$A36:$P36,AW$1)+COUNTIF('CABLE LENGTH'!$A36:$P36,AW$2)=2,'CABLE LENGTH'!$AL36,0) -> 0 | AX36: =IF(COUNTIF('CABLE LENGTH'!$A36:$P36,AX$1)+COUNTIF('CABLE LENGTH'!$A36:$P36,AX$2)=2,'CABLE LENGTH'!$AL36,0) -> 0 | AY36: =IF(COUNTIF('CABLE LENGTH'!$A36:$P36,AY$1)+COUNTIF('CABLE LENGTH'!$A36:$P36,AY$2)=2,'CABLE LENGTH'!$AL36,0) -> 0 | AZ36: =IF(COUNTIF('CABLE LENGTH'!$A36:$P36,AZ$1)+COUNTIF('CABLE LENGTH'!$A36:$P36,AZ$2)=2,'CABLE LENGTH'!$AL36,0) -> 0
B37: =+'CABLE LENGTH'!AK37 -> 0 | C37: =IF(COUNTIF('CABLE LENGTH'!$A37:$P37,C$1)+COUNTIF('CABLE LENGTH'!$B37:$P37,C$2)=2,'CABLE LENGTH'!$AL37,0) -> 0 | D37: =IF(COUNTIF('CABLE LENGTH'!$A37:$P37,D$1)+COUNTIF('CABLE LENGTH'!$B37:$P37,D$2)=2,'CABLE LENGTH'!$AL37,0) -> 0 | E37: =IF(COUNTIF('CABLE LENGTH'!$A37:$P37,E$1)+COUNTIF('CABLE LENGTH'!$B37:$P37,E$2)=2,'CABLE LENGTH'!$AL37,0) -> 0 | F37: =IF(COUNTIF('CABLE LENGTH'!$A37:$P37,F$1)+COUNTIF('CABLE LENGTH'!$B37:$P37,F$2)=2,'CABLE LENGTH'!$AL37,0) -> 0 | G37: =IF(COUNTIF('CABLE LENGTH'!$A37:$P37,G$1)+COUNTIF('CABLE LENGTH'!$B37:$P37,G$2)=2,'CABLE LENGTH'!$AL37,0) -> 0 | H37: =IF(COUNTIF('CABLE LENGTH'!$A37:$P37,H$1)+COUNTIF('CABLE LENGTH'!$B37:$P37,H$2)=2,'CABLE LENGTH'!$AL37,0) -> 0 | I37: =IF(COUNTIF('CABLE LENGTH'!$A37:$P37,I$1)+COUNTIF('CABLE LENGTH'!$B37:$P37,I$2)=2,'CABLE LENGTH'!$AL37,0) -> 0 | J37: =IF(COUNTIF('CABLE LENGTH'!$A37:$P37,J$1)+COUNTIF('CABLE LENGTH'!$B37:$P37,J$2)=2,'CABLE LENGTH'!$AL37,0) -> 0 | K37: =IF(COUNTIF('CABLE LENGTH'!$A37:$P37,K$1)+COUNTIF('CABLE LENGTH'!$B37:$P37,K$2)=2,'CABLE LENGTH'!$AL37,0) -> 0 | L37: =IF(COUNTIF('CABLE LENGTH'!$A37:$P37,L$1)+COUNTIF('CABLE LENGTH'!$B37:$P37,L$2)=2,'CABLE LENGTH'!$AL37,0) -> 0 | M37: =IF(COUNTIF('CABLE LENGTH'!$A37:$P37,M$1)+COUNTIF('CABLE LENGTH'!$B37:$P37,M$2)=2,'CABLE LENGTH'!$AL37,0) -> 0 | N37: =IF(COUNTIF('CABLE LENGTH'!$A37:$P37,N$1)+COUNTIF('CABLE LENGTH'!$B37:$P37,N$2)=2,'CABLE LENGTH'!$AL37,0) -> 0 | O37: =IF(COUNTIF('CABLE LENGTH'!$A37:$P37,O$1)+COUNTIF('CABLE LENGTH'!$B37:$P37,O$2)=2,'CABLE LENGTH'!$AL37,0) -> 0 | P37: =IF(COUNTIF('CABLE LENGTH'!$A37:$P37,P$1)+COUNTIF('CABLE LENGTH'!$B37:$P37,P$2)=2,'CABLE LENGTH'!$AL37,0) -> 0 | Q37: =IF(COUNTIF('CABLE LENGTH'!$A37:$P37,Q$1)+COUNTIF('CABLE LENGTH'!$B37:$P37,Q$2)=2,'CABLE LENGTH'!$AL37,0) -> 0 | R37: =IF(COUNTIF('CABLE LENGTH'!$A37:$P37,R$1)+COUNTIF('CABLE LENGTH'!$B37:$P37,R$2)=2,'CABLE LENGTH'!$AL37,0) -> 0 | S37: =IF(COUNTIF('CABLE LENGTH'!$A37:$P37,S$1)+COUNTIF('CABLE LENGTH'!$B37:$P37,S$2)=2,'CABLE LENGTH'!$AL37,0) -> 0 | T37: =IF(COUNTIF('CABLE LENGTH'!$A37:$P37,T$1)+COUNTIF('CABLE LENGTH'!$B37:$P37,T$2)=2,'CABLE LENGTH'!$AL37,0) -> 0 | U37: =IF(COUNTIF('CABLE LENGTH'!$A37:$P37,U$1)+COUNTIF('CABLE LENGTH'!$B37:$P37,U$2)=2,'CABLE LENGTH'!$AL37,0) -> 0 | V37: =IF(COUNTIF('CABLE LENGTH'!$A37:$P37,V$1)+COUNTIF('CABLE LENGTH'!$B37:$P37,V$2)=2,'CABLE LENGTH'!$AL37,0) -> 0 | W37: =IF(COUNTIF('CABLE LENGTH'!$A37:$P37,W$1)+COUNTIF('CABLE LENGTH'!$B37:$P37,W$2)=2,'CABLE LENGTH'!$AL37,0) -> 0 | X37: =IF(COUNTIF('CABLE LENGTH'!$A37:$P37,X$1)+COUNTIF('CABLE LENGTH'!$B37:$P37,X$2)=2,'CABLE LENGTH'!$AL37,0) -> 0 | Y37: =IF(COUNTIF('CABLE LENGTH'!$A37:$P37,Y$1)+COUNTIF('CABLE LENGTH'!$A37:$P37,Y$2)=2,'CABLE LENGTH'!$AL37,0) -> 0 | Z37: =IF(COUNTIF('CABLE LENGTH'!$A37:$P37,Z$1)+COUNTIF('CABLE LENGTH'!$A37:$P37,Z$2)=2,'CABLE LENGTH'!$AL37,0) -> 0 | AA37: =IF(COUNTIF('CABLE LENGTH'!$A37:$P37,AA$1)+COUNTIF('CABLE LENGTH'!$A37:$P37,AA$2)=2,'CABLE LENGTH'!$AL37,0) -> 0 | AB37: =IF(COUNTIF('CABLE LENGTH'!$A37:$P37,AB$1)+COUNTIF('CABLE LENGTH'!$A37:$P37,AB$2)=2,'CABLE LENGTH'!$AL37,0) -> 0 | AC37: =IF(COUNTIF('CABLE LENGTH'!$A37:$P37,AC$1)+COUNTIF('CABLE LENGTH'!$A37:$P37,AC$2)=2,'CABLE LENGTH'!$AL37,0) -> 0 | AD37: =IF(COUNTIF('CABLE LENGTH'!$A37:$P37,AD$1)+COUNTIF('CABLE LENGTH'!$A37:$P37,AD$2)=2,'CABLE LENGTH'!$AL37,0) -> 0 | AE37: =IF(COUNTIF('CABLE LENGTH'!$A37:$P37,AE$1)+COUNTIF('CABLE LENGTH'!$A37:$P37,AE$2)=2,'CABLE LENGTH'!$AL37,0) -> 0 | AF37: =IF(COUNTIF('CABLE LENGTH'!$A37:$P37,AF$1)+COUNTIF('CABLE LENGTH'!$A37:$P37,AF$2)=2,'CABLE LENGTH'!$AL37,0) -> 0 | AG37: =IF(COUNTIF('CABLE LENGTH'!$A37:$P37,AG$1)+COUNTIF('CABLE LENGTH'!$A37:$P37,AG$2)=2,'CABLE LENGTH'!$AL37,0) -> 0 | AH37: =IF(COUNTIF('CABLE LENGTH'!$A37:$P37,AH$1)+COUNTIF('CABLE LENGTH'!$A37:$P37,AH$2)=2,'CABLE LENGTH'!$AL37,0) -> 0 | AI37: =IF(COUNTIF('CABLE LENGTH'!$A37:$P37,AI$1)+COUNTIF('CABLE LENGTH'!$A37:$P37,AI$2)=2,'CABLE LENGTH'!$AL37,0) -> 0 | AJ37: =IF(COUNTIF('CABLE LENGTH'!$A37:$P37,AJ$1)+COUNTIF('CABLE LENGTH'!$A37:$P37,AJ$2)=2,'CABLE LENGTH'!$AL37,0) -> 0 | AK37: =IF(COUNTIF('CABLE LENGTH'!$A37:$P37,AK$1)+COUNTIF('CABLE LENGTH'!$A37:$P37,AK$2)=2,'CABLE LENGTH'!$AL37,0) -> 0 | AL37: =IF(COUNTIF('CABLE LENGTH'!$A37:$P37,AL$1)+COUNTIF('CABLE LENGTH'!$A37:$P37,AL$2)=2,'CABLE LENGTH'!$AL37,0) -> 0 | AM37: =IF(COUNTIF('CABLE LENGTH'!$A37:$P37,AM$1)+COUNTIF('CABLE LENGTH'!$A37:$P37,AM$2)=2,'CABLE LENGTH'!$AL37,0) -> 0 | AN37: =IF(COUNTIF('CABLE LENGTH'!$A37:$P37,AN$1)+COUNTIF('CABLE LENGTH'!$A37:$P37,AN$2)=2,'CABLE LENGTH'!$AL37,0) -> 0 | AO37: =IF(COUNTIF('CABLE LENGTH'!$A37:$P37,AO$1)+COUNTIF('CABLE LENGTH'!$A37:$P37,AO$2)=2,'CABLE LENGTH'!$AL37,0) -> 0 | AP37: =IF(COUNTIF('CABLE LENGTH'!$A37:$P37,AP$1)+COUNTIF('CABLE LENGTH'!$A37:$P37,AP$2)=2,'CABLE LENGTH'!$AL37,0) -> 0 | AQ37: =IF(COUNTIF('CABLE LENGTH'!$A37:$P37,AQ$1)+COUNTIF('CABLE LENGTH'!$A37:$P37,AQ$2)=2,'CABLE LENGTH'!$AL37,0) -> 0 | AR37: =IF(COUNTIF('CABLE LENGTH'!$A37:$P37,AR$1)+COUNTIF('CABLE LENGTH'!$A37:$P37,AR$2)=2,'CABLE LENGTH'!$AL37,0) -> 0 | AS37: =IF(COUNTIF('CABLE LENGTH'!$A37:$P37,AS$1)+COUNTIF('CABLE LENGTH'!$A37:$P37,AS$2)=2,'CABLE LENGTH'!$AL37,0) -> 0 | AT37: =IF(COUNTIF('CABLE LENGTH'!$A37:$P37,AT$1)+COUNTIF('CABLE LENGTH'!$A37:$P37,AT$2)=2,'CABLE LENGTH'!$AL37,0) -> 0 | AU37: =IF(COUNTIF('CABLE LENGTH'!$A37:$P37,AU$1)+COUNTIF('CABLE LENGTH'!$A37:$P37,AU$2)=2,'CABLE LENGTH'!$AL37,0) -> 0 | AV37: =IF(COUNTIF('CABLE LENGTH'!$A37:$P37,AV$1)+COUNTIF('CABLE LENGTH'!$A37:$P37,AV$2)=2,'CABLE LENGTH'!$AL37,0) -> 0 | AW37: =IF(COUNTIF('CABLE LENGTH'!$A37:$P37,AW$1)+COUNTIF('CABLE LENGTH'!$A37:$P37,AW$2)=2,'CABLE LENGTH'!$AL37,0) -> 0 | AX37: =IF(COUNTIF('CABLE LENGTH'!$A37:$P37,AX$1)+COUNTIF('CABLE LENGTH'!$A37:$P37,AX$2)=2,'CABLE LENGTH'!$AL37,0) -> 0 | AY37: =IF(COUNTIF('CABLE LENGTH'!$A37:$P37,AY$1)+COUNTIF('CABLE LENGTH'!$A37:$P37,AY$2)=2,'CABLE LENGTH'!$AL37,0) -> 0 | AZ37: =IF(COUNTIF('CABLE LENGTH'!$A37:$P37,AZ$1)+COUNTIF('CABLE LENGTH'!$A37:$P37,AZ$2)=2,'CABLE LENGTH'!$AL37,0) -> 0
B38: =+'CABLE LENGTH'!AK38 -> 0 | C38: =IF(COUNTIF('CABLE LENGTH'!$A38:$P38,C$1)+COUNTIF('CABLE LENGTH'!$B38:$P38,C$2)=2,'CABLE LENGTH'!$AL38,0) -> 0 | D38: =IF(COUNTIF('CABLE LENGTH'!$A38:$P38,D$1)+COUNTIF('CABLE LENGTH'!$B38:$P38,D$2)=2,'CABLE LENGTH'!$AL38,0) -> 0 | E38: =IF(COUNTIF('CABLE LENGTH'!$A38:$P38,E$1)+COUNTIF('CABLE LENGTH'!$B38:$P38,E$2)=2,'CABLE LENGTH'!$AL38,0) -> 0 | F38: =IF(COUNTIF('CABLE LENGTH'!$A38:$P38,F$1)+COUNTIF('CABLE LENGTH'!$B38:$P38,F$2)=2,'CABLE LENGTH'!$AL38,0) -> 0 | G38: =IF(COUNTIF('CABLE LENGTH'!$A38:$P38,G$1)+COUNTIF('CABLE LENGTH'!$B38:$P38,G$2)=2,'CABLE LENGTH'!$AL38,0) -> 0 | H38: =IF(COUNTIF('CABLE LENGTH'!$A38:$P38,H$1)+COUNTIF('CABLE LENGTH'!$B38:$P38,H$2)=2,'CABLE LENGTH'!$AL38,0) -> 0 | I38: =IF(COUNTIF('CABLE LENGTH'!$A38:$P38,I$1)+COUNTIF('CABLE LENGTH'!$B38:$P38,I$2)=2,'CABLE LENGTH'!$AL38,0) -> 0 | J38: =IF(COUNTIF('CABLE LENGTH'!$A38:$P38,J$1)+COUNTIF('CABLE LENGTH'!$B38:$P38,J$2)=2,'CABLE LENGTH'!$AL38,0) -> 0 | K38: =IF(COUNTIF('CABLE LENGTH'!$A38:$P38,K$1)+COUNTIF('CABLE LENGTH'!$B38:$P38,K$2)=2,'CABLE LENGTH'!$AL38,0) -> 0 | L38: =IF(COUNTIF('CABLE LENGTH'!$A38:$P38,L$1)+COUNTIF('CABLE LENGTH'!$B38:$P38,L$2)=2,'CABLE LENGTH'!$AL38,0) -> 0 | M38: =IF(COUNTIF('CABLE LENGTH'!$A38:$P38,M$1)+COUNTIF('CABLE LENGTH'!$B38:$P38,M$2)=2,'CABLE LENGTH'!$AL38,0) -> 0 | N38: =IF(COUNTIF('CABLE LENGTH'!$A38:$P38,N$1)+COUNTIF('CABLE LENGTH'!$B38:$P38,N$2)=2,'CABLE LENGTH'!$AL38,0) -> 0 | O38: =IF(COUNTIF('CABLE LENGTH'!$A38:$P38,O$1)+COUNTIF('CABLE LENGTH'!$B38:$P38,O$2)=2,'CABLE LENGTH'!$AL38,0) -> 0 | P38: =IF(COUNTIF('CABLE LENGTH'!$A38:$P38,P$1)+COUNTIF('CABLE LENGTH'!$B38:$P38,P$2)=2,'CABLE LENGTH'!$AL38,0) -> 0 | Q38: =IF(COUNTIF('CABLE LENGTH'!$A38:$P38,Q$1)+COUNTIF('CABLE LENGTH'!$B38:$P38,Q$2)=2,'CABLE LENGTH'!$AL38,0) -> 0 | R38: =IF(COUNTIF('CABLE LENGTH'!$A38:$P38,R$1)+COUNTIF('CABLE LENGTH'!$B38:$P38,R$2)=2,'CABLE LENGTH'!$AL38,0) -> 0 | S38: =IF(COUNTIF('CABLE LENGTH'!$A38:$P38,S$1)+COUNTIF('CABLE LENGTH'!$B38:$P38,S$2)=2,'CABLE LENGTH'!$AL38,0) -> 0 | T38: =IF(COUNTIF('CABLE LENGTH'!$A38:$P38,T$1)+COUNTIF('CABLE LENGTH'!$B38:$P38,T$2)=2,'CABLE LENGTH'!$AL38,0) -> 0 | U38: =IF(COUNTIF('CABLE LENGTH'!$A38:$P38,U$1)+COUNTIF('CABLE LENGTH'!$B38:$P38,U$2)=2,'CABLE LENGTH'!$AL38,0) -> 0 | V38: =IF(COUNTIF('CABLE LENGTH'!$A38:$P38,V$1)+COUNTIF('CABLE LENGTH'!$B38:$P38,V$2)=2,'CABLE LENGTH'!$AL38,0) -> 0 | W38: =IF(COUNTIF('CABLE LENGTH'!$A38:$P38,W$1)+COUNTIF('CABLE LENGTH'!$B38:$P38,W$2)=2,'CABLE LENGTH'!$AL38,0) -> 0 | X38: =IF(COUNTIF('CABLE LENGTH'!$A38:$P38,X$1)+COUNTIF('CABLE LENGTH'!$B38:$P38,X$2)=2,'CABLE LENGTH'!$AL38,0) -> 0 | Y38: =IF(COUNTIF('CABLE LENGTH'!$A38:$P38,Y$1)+COUNTIF('CABLE LENGTH'!$A38:$P38,Y$2)=2,'CABLE LENGTH'!$AL38,0) -> 0 | Z38: =IF(COUNTIF('CABLE LENGTH'!$A38:$P38,Z$1)+COUNTIF('CABLE LENGTH'!$A38:$P38,Z$2)=2,'CABLE LENGTH'!$AL38,0) -> 0 | AA38: =IF(COUNTIF('CABLE LENGTH'!$A38:$P38,AA$1)+COUNTIF('CABLE LENGTH'!$A38:$P38,AA$2)=2,'CABLE LENGTH'!$AL38,0) -> 0 | AB38: =IF(COUNTIF('CABLE LENGTH'!$A38:$P38,AB$1)+COUNTIF('CABLE LENGTH'!$A38:$P38,AB$2)=2,'CABLE LENGTH'!$AL38,0) -> 0 | AC38: =IF(COUNTIF('CABLE LENGTH'!$A38:$P38,AC$1)+COUNTIF('CABLE LENGTH'!$A38:$P38,AC$2)=2,'CABLE LENGTH'!$AL38,0) -> 0 | AD38: =IF(COUNTIF('CABLE LENGTH'!$A38:$P38,AD$1)+COUNTIF('CABLE LENGTH'!$A38:$P38,AD$2)=2,'CABLE LENGTH'!$AL38,0) -> 0 | AE38: =IF(COUNTIF('CABLE LENGTH'!$A38:$P38,AE$1)+COUNTIF('CABLE LENGTH'!$A38:$P38,AE$2)=2,'CABLE LENGTH'!$AL38,0) -> 0 | AF38: =IF(COUNTIF('CABLE LENGTH'!$A38:$P38,AF$1)+COUNTIF('CABLE LENGTH'!$A38:$P38,AF$2)=2,'CABLE LENGTH'!$AL38,0) -> 0 | AG38: =IF(COUNTIF('CABLE LENGTH'!$A38:$P38,AG$1)+COUNTIF('CABLE LENGTH'!$A38:$P38,AG$2)=2,'CABLE LENGTH'!$AL38,0) -> 0 | AH38: =IF(COUNTIF('CABLE LENGTH'!$A38:$P38,AH$1)+COUNTIF('CABLE LENGTH'!$A38:$P38,AH$2)=2,'CABLE LENGTH'!$AL38,0) -> 0 | AI38: =IF(COUNTIF('CABLE LENGTH'!$A38:$P38,AI$1)+COUNTIF('CABLE LENGTH'!$A38:$P38,AI$2)=2,'CABLE LENGTH'!$AL38,0) -> 0 | AJ38: =IF(COUNTIF('CABLE LENGTH'!$A38:$P38,AJ$1)+COUNTIF('CABLE LENGTH'!$A38:$P38,AJ$2)=2,'CABLE LENGTH'!$AL38,0) -> 0 | AK38: =IF(COUNTIF('CABLE LENGTH'!$A38:$P38,AK$1)+COUNTIF('CABLE LENGTH'!$A38:$P38,AK$2)=2,'CABLE LENGTH'!$AL38,0) -> 0 | AL38: =IF(COUNTIF('CABLE LENGTH'!$A38:$P38,AL$1)+COUNTIF('CABLE LENGTH'!$A38:$P38,AL$2)=2,'CABLE LENGTH'!$AL38,0) -> 0 | AM38: =IF(COUNTIF('CABLE LENGTH'!$A38:$P38,AM$1)+COUNTIF('CABLE LENGTH'!$A38:$P38,AM$2)=2,'CABLE LENGTH'!$AL38,0) -> 0 | AN38: =IF(COUNTIF('CABLE LENGTH'!$A38:$P38,AN$1)+COUNTIF('CABLE LENGTH'!$A38:$P38,AN$2)=2,'CABLE LENGTH'!$AL38,0) -> 0 | AO38: =IF(COUNTIF('CABLE LENGTH'!$A38:$P38,AO$1)+COUNTIF('CABLE LENGTH'!$A38:$P38,AO$2)=2,'CABLE LENGTH'!$AL38,0) -> 0 | AP38: =IF(COUNTIF('CABLE LENGTH'!$A38:$P38,AP$1)+COUNTIF('CABLE LENGTH'!$A38:$P38,AP$2)=2,'CABLE LENGTH'!$AL38,0) -> 0 | AQ38: =IF(COUNTIF('CABLE LENGTH'!$A38:$P38,AQ$1)+COUNTIF('CABLE LENGTH'!$A38:$P38,AQ$2)=2,'CABLE LENGTH'!$AL38,0) -> 0 | AR38: =IF(COUNTIF('CABLE LENGTH'!$A38:$P38,AR$1)+COUNTIF('CABLE LENGTH'!$A38:$P38,AR$2)=2,'CABLE LENGTH'!$AL38,0) -> 0 | AS38: =IF(COUNTIF('CABLE LENGTH'!$A38:$P38,AS$1)+COUNTIF('CABLE LENGTH'!$A38:$P38,AS$2)=2,'CABLE LENGTH'!$AL38,0) -> 0 | AT38: =IF(COUNTIF('CABLE LENGTH'!$A38:$P38,AT$1)+COUNTIF('CABLE LENGTH'!$A38:$P38,AT$2)=2,'CABLE LENGTH'!$AL38,0) -> 0 | AU38: =IF(COUNTIF('CABLE LENGTH'!$A38:$P38,AU$1)+COUNTIF('CABLE LENGTH'!$A38:$P38,AU$2)=2,'CABLE LENGTH'!$AL38,0) -> 0 | AV38: =IF(COUNTIF('CABLE LENGTH'!$A38:$P38,AV$1)+COUNTIF('CABLE LENGTH'!$A38:$P38,AV$2)=2,'CABLE LENGTH'!$AL38,0) -> 0 | AW38: =IF(COUNTIF('CABLE LENGTH'!$A38:$P38,AW$1)+COUNTIF('CABLE LENGTH'!$A38:$P38,AW$2)=2,'CABLE LENGTH'!$AL38,0) -> 0 | AX38: =IF(COUNTIF('CABLE LENGTH'!$A38:$P38,AX$1)+COUNTIF('CABLE LENGTH'!$A38:$P38,AX$2)=2,'CABLE LENGTH'!$AL38,0) -> 0 | AY38: =IF(COUNTIF('CABLE LENGTH'!$A38:$P38,AY$1)+COUNTIF('CABLE LENGTH'!$A38:$P38,AY$2)=2,'CABLE LENGTH'!$AL38,0) -> 0 | AZ38: =IF(COUNTIF('CABLE LENGTH'!$A38:$P38,AZ$1)+COUNTIF('CABLE LENGTH'!$A38:$P38,AZ$2)=2,'CABLE LENGTH'!$AL38,0) -> 0
B39: =+'CABLE LENGTH'!AK39 -> 0 | C39: =IF(COUNTIF('CABLE LENGTH'!$A39:$P39,C$1)+COUNTIF('CABLE LENGTH'!$B39:$P39,C$2)=2,'CABLE LENGTH'!$AL39,0) -> 0 | D39: =IF(COUNTIF('CABLE LENGTH'!$A39:$P39,D$1)+COUNTIF('CABLE LENGTH'!$B39:$P39,D$2)=2,'CABLE LENGTH'!$AL39,0) -> 0 | E39: =IF(COUNTIF('CABLE LENGTH'!$A39:$P39,E$1)+COUNTIF('CABLE LENGTH'!$B39:$P39,E$2)=2,'CABLE LENGTH'!$AL39,0) -> 0 | F39: =IF(COUNTIF('CABLE LENGTH'!$A39:$P39,F$1)+COUNTIF('CABLE LENGTH'!$B39:$P39,F$2)=2,'CABLE LENGTH'!$AL39,0) -> 0 | G39: =IF(COUNTIF('CABLE LENGTH'!$A39:$P39,G$1)+COUNTIF('CABLE LENGTH'!$B39:$P39,G$2)=2,'CABLE LENGTH'!$AL39,0) -> 0 | H39: =IF(COUNTIF('CABLE LENGTH'!$A39:$P39,H$1)+COUNTIF('CABLE LENGTH'!$B39:$P39,H$2)=2,'CABLE LENGTH'!$AL39,0) -> 0 | I39: =IF(COUNTIF('CABLE LENGTH'!$A39:$P39,I$1)+COUNTIF('CABLE LENGTH'!$B39:$P39,I$2)=2,'CABLE LENGTH'!$AL39,0) -> 0 | J39: =IF(COUNTIF('CABLE LENGTH'!$A39:$P39,J$1)+COUNTIF('CABLE LENGTH'!$B39:$P39,J$2)=2,'CABLE LENGTH'!$AL39,0) -> 0 | K39: =IF(COUNTIF('CABLE LENGTH'!$A39:$P39,K$1)+COUNTIF('CABLE LENGTH'!$B39:$P39,K$2)=2,'CABLE LENGTH'!$AL39,0) -> 0 | L39: =IF(COUNTIF('CABLE LENGTH'!$A39:$P39,L$1)+COUNTIF('CABLE LENGTH'!$B39:$P39,L$2)=2,'CABLE LENGTH'!$AL39,0) -> 0 | M39: =IF(COUNTIF('CABLE LENGTH'!$A39:$P39,M$1)+COUNTIF('CABLE LENGTH'!$B39:$P39,M$2)=2,'CABLE LENGTH'!$AL39,0) -> 0 | N39: =IF(COUNTIF('CABLE LENGTH'!$A39:$P39,N$1)+COUNTIF('CABLE LENGTH'!$B39:$P39,N$2)=2,'CABLE LENGTH'!$AL39,0) -> 0 | O39: =IF(COUNTIF('CABLE LENGTH'!$A39:$P39,O$1)+COUNTIF('CABLE LENGTH'!$B39:$P39,O$2)=2,'CABLE LENGTH'!$AL39,0) -> 0 | P39: =IF(COUNTIF('CABLE LENGTH'!$A39:$P39,P$1)+COUNTIF('CABLE LENGTH'!$B39:$P39,P$2)=2,'CABLE LENGTH'!$AL39,0) -> 0 | Q39: =IF(COUNTIF('CABLE LENGTH'!$A39:$P39,Q$1)+COUNTIF('CABLE LENGTH'!$B39:$P39,Q$2)=2,'CABLE LENGTH'!$AL39,0) -> 0 | R39: =IF(COUNTIF('CABLE LENGTH'!$A39:$P39,R$1)+COUNTIF('CABLE LENGTH'!$B39:$P39,R$2)=2,'CABLE LENGTH'!$AL39,0) -> 0 | S39: =IF(COUNTIF('CABLE LENGTH'!$A39:$P39,S$1)+COUNTIF('CABLE LENGTH'!$B39:$P39,S$2)=2,'CABLE LENGTH'!$AL39,0) -> 0 | T39: =IF(COUNTIF('CABLE LENGTH'!$A39:$P39,T$1)+COUNTIF('CABLE LENGTH'!$B39:$P39,T$2)=2,'CABLE LENGTH'!$AL39,0) -> 0 | U39: =IF(COUNTIF('CABLE LENGTH'!$A39:$P39,U$1)+COUNTIF('CABLE LENGTH'!$B39:$P39,U$2)=2,'CABLE LENGTH'!$AL39,0) -> 0 | V39: =IF(COUNTIF('CABLE LENGTH'!$A39:$P39,V$1)+COUNTIF('CABLE LENGTH'!$B39:$P39,V$2)=2,'CABLE LENGTH'!$AL39,0) -> 0 | W39: =IF(COUNTIF('CABLE LENGTH'!$A39:$P39,W$1)+COUNTIF('CABLE LENGTH'!$B39:$P39,W$2)=2,'CABLE LENGTH'!$AL39,0) -> 0 | X39: =IF(COUNTIF('CABLE LENGTH'!$A39:$P39,X$1)+COUNTIF('CABLE LENGTH'!$B39:$P39,X$2)=2,'CABLE LENGTH'!$AL39,0) -> 0 | Y39: =IF(COUNTIF('CABLE LENGTH'!$A39:$P39,Y$1)+COUNTIF('CABLE LENGTH'!$A39:$P39,Y$2)=2,'CABLE LENGTH'!$AL39,0) -> 0 | Z39: =IF(COUNTIF('CABLE LENGTH'!$A39:$P39,Z$1)+COUNTIF('CABLE LENGTH'!$A39:$P39,Z$2)=2,'CABLE LENGTH'!$AL39,0) -> 0 | AA39: =IF(COUNTIF('CABLE LENGTH'!$A39:$P39,AA$1)+COUNTIF('CABLE LENGTH'!$A39:$P39,AA$2)=2,'CABLE LENGTH'!$AL39,0) -> 0 | AB39: =IF(COUNTIF('CABLE LENGTH'!$A39:$P39,AB$1)+COUNTIF('CABLE LENGTH'!$A39:$P39,AB$2)=2,'CABLE LENGTH'!$AL39,0) -> 0 | AC39: =IF(COUNTIF('CABLE LENGTH'!$A39:$P39,AC$1)+COUNTIF('CABLE LENGTH'!$A39:$P39,AC$2)=2,'CABLE LENGTH'!$AL39,0) -> 0 | AD39: =IF(COUNTIF('CABLE LENGTH'!$A39:$P39,AD$1)+COUNTIF('CABLE LENGTH'!$A39:$P39,AD$2)=2,'CABLE LENGTH'!$AL39,0) -> 0 | AE39: =IF(COUNTIF('CABLE LENGTH'!$A39:$P39,AE$1)+COUNTIF('CABLE LENGTH'!$A39:$P39,AE$2)=2,'CABLE LENGTH'!$AL39,0) -> 0 | AF39: =IF(COUNTIF('CABLE LENGTH'!$A39:$P39,AF$1)+COUNTIF('CABLE LENGTH'!$A39:$P39,AF$2)=2,'CABLE LENGTH'!$AL39,0) -> 0 | AG39: =IF(COUNTIF('CABLE LENGTH'!$A39:$P39,AG$1)+COUNTIF('CABLE LENGTH'!$A39:$P39,AG$2)=2,'CABLE LENGTH'!$AL39,0) -> 0 | AH39: =IF(COUNTIF('CABLE LENGTH'!$A39:$P39,AH$1)+COUNTIF('CABLE LENGTH'!$A39:$P39,AH$2)=2,'CABLE LENGTH'!$AL39,0) -> 0 | AI39: =IF(COUNTIF('CABLE LENGTH'!$A39:$P39,AI$1)+COUNTIF('CABLE LENGTH'!$A39:$P39,AI$2)=2,'CABLE LENGTH'!$AL39,0) -> 0 | AJ39: =IF(COUNTIF('CABLE LENGTH'!$A39:$P39,AJ$1)+COUNTIF('CABLE LENGTH'!$A39:$P39,AJ$2)=2,'CABLE LENGTH'!$AL39,0) -> 0 | AK39: =IF(COUNTIF('CABLE LENGTH'!$A39:$P39,AK$1)+COUNTIF('CABLE LENGTH'!$A39:$P39,AK$2)=2,'CABLE LENGTH'!$AL39,0) -> 0 | AL39: =IF(COUNTIF('CABLE LENGTH'!$A39:$P39,AL$1)+COUNTIF('CABLE LENGTH'!$A39:$P39,AL$2)=2,'CABLE LENGTH'!$AL39,0) -> 0 | AM39: =IF(COUNTIF('CABLE LENGTH'!$A39:$P39,AM$1)+COUNTIF('CABLE LENGTH'!$A39:$P39,AM$2)=2,'CABLE LENGTH'!$AL39,0) -> 0 | AN39: =IF(COUNTIF('CABLE LENGTH'!$A39:$P39,AN$1)+COUNTIF('CABLE LENGTH'!$A39:$P39,AN$2)=2,'CABLE LENGTH'!$AL39,0) -> 0 | AO39: =IF(COUNTIF('CABLE LENGTH'!$A39:$P39,AO$1)+COUNTIF('CABLE LENGTH'!$A39:$P39,AO$2)=2,'CABLE LENGTH'!$AL39,0) -> 0 | AP39: =IF(COUNTIF('CABLE LENGTH'!$A39:$P39,AP$1)+COUNTIF('CABLE LENGTH'!$A39:$P39,AP$2)=2,'CABLE LENGTH'!$AL39,0) -> 0 | AQ39: =IF(COUNTIF('CABLE LENGTH'!$A39:$P39,AQ$1)+COUNTIF('CABLE LENGTH'!$A39:$P39,AQ$2)=2,'CABLE LENGTH'!$AL39,0) -> 0 | AR39: =IF(COUNTIF('CABLE LENGTH'!$A39:$P39,AR$1)+COUNTIF('CABLE LENGTH'!$A39:$P39,AR$2)=2,'CABLE LENGTH'!$AL39,0) -> 0 | AS39: =IF(COUNTIF('CABLE LENGTH'!$A39:$P39,AS$1)+COUNTIF('CABLE LENGTH'!$A39:$P39,AS$2)=2,'CABLE LENGTH'!$AL39,0) -> 0 | AT39: =IF(COUNTIF('CABLE LENGTH'!$A39:$P39,AT$1)+COUNTIF('CABLE LENGTH'!$A39:$P39,AT$2)=2,'CABLE LENGTH'!$AL39,0) -> 0 | AU39: =IF(COUNTIF('CABLE LENGTH'!$A39:$P39,AU$1)+COUNTIF('CABLE LENGTH'!$A39:$P39,AU$2)=2,'CABLE LENGTH'!$AL39,0) -> 0 | AV39: =IF(COUNTIF('CABLE LENGTH'!$A39:$P39,AV$1)+COUNTIF('CABLE LENGTH'!$A39:$P39,AV$2)=2,'CABLE LENGTH'!$AL39,0) -> 0 | AW39: =IF(COUNTIF('CABLE LENGTH'!$A39:$P39,AW$1)+COUNTIF('CABLE LENGTH'!$A39:$P39,AW$2)=2,'CABLE LENGTH'!$AL39,0) -> 0 | AX39: =IF(COUNTIF('CABLE LENGTH'!$A39:$P39,AX$1)+COUNTIF('CABLE LENGTH'!$A39:$P39,AX$2)=2,'CABLE LENGTH'!$AL39,0) -> 0 | AY39: =IF(COUNTIF('CABLE LENGTH'!$A39:$P39,AY$1)+COUNTIF('CABLE LENGTH'!$A39:$P39,AY$2)=2,'CABLE LENGTH'!$AL39,0) -> 0 | AZ39: =IF(COUNTIF('CABLE LENGTH'!$A39:$P39,AZ$1)+COUNTIF('CABLE LENGTH'!$A39:$P39,AZ$2)=2,'CABLE LENGTH'!$AL39,0) -> 0
B40: =+'CABLE LENGTH'!AK40 -> 0 | C40: =IF(COUNTIF('CABLE LENGTH'!$A40:$P40,C$1)+COUNTIF('CABLE LENGTH'!$B40:$P40,C$2)=2,'CABLE LENGTH'!$AL40,0) -> 0 | D40: =IF(COUNTIF('CABLE LENGTH'!$A40:$P40,D$1)+COUNTIF('CABLE LENGTH'!$B40:$P40,D$2)=2,'CABLE LENGTH'!$AL40,0) -> 0 | E40: =IF(COUNTIF('CABLE LENGTH'!$A40:$P40,E$1)+COUNTIF('CABLE LENGTH'!$B40:$P40,E$2)=2,'CABLE LENGTH'!$AL40,0) -> 0 | F40: =IF(COUNTIF('CABLE LENGTH'!$A40:$P40,F$1)+COUNTIF('CABLE LENGTH'!$B40:$P40,F$2)=2,'CABLE LENGTH'!$AL40,0) -> 0 | G40: =IF(COUNTIF('CABLE LENGTH'!$A40:$P40,G$1)+COUNTIF('CABLE LENGTH'!$B40:$P40,G$2)=2,'CABLE LENGTH'!$AL40,0) -> 0 | H40: =IF(COUNTIF('CABLE LENGTH'!$A40:$P40,H$1)+COUNTIF('CABLE LENGTH'!$B40:$P40,H$2)=2,'CABLE LENGTH'!$AL40,0) -> 0 | I40: =IF(COUNTIF('CABLE LENGTH'!$A40:$P40,I$1)+COUNTIF('CABLE LENGTH'!$B40:$P40,I$2)=2,'CABLE LENGTH'!$AL40,0) -> 0 | J40: =IF(COUNTIF('CABLE LENGTH'!$A40:$P40,J$1)+COUNTIF('CABLE LENGTH'!$B40:$P40,J$2)=2,'CABLE LENGTH'!$AL40,0) -> 0 | K40: =IF(COUNTIF('CABLE LENGTH'!$A40:$P40,K$1)+COUNTIF('CABLE LENGTH'!$B40:$P40,K$2)=2,'CABLE LENGTH'!$AL40,0) -> 0 | L40: =IF(COUNTIF('CABLE LENGTH'!$A40:$P40,L$1)+COUNTIF('CABLE LENGTH'!$B40:$P40,L$2)=2,'CABLE LENGTH'!$AL40,0) -> 0 | M40: =IF(COUNTIF('CABLE LENGTH'!$A40:$P40,M$1)+COUNTIF('CABLE LENGTH'!$B40:$P40,M$2)=2,'CABLE LENGTH'!$AL40,0) -> 0 | N40: =IF(COUNTIF('CABLE LENGTH'!$A40:$P40,N$1)+COUNTIF('CABLE LENGTH'!$B40:$P40,N$2)=2,'CABLE LENGTH'!$AL40,0) -> 0 | O40: =IF(COUNTIF('CABLE LENGTH'!$A40:$P40,O$1)+COUNTIF('CABLE LENGTH'!$B40:$P40,O$2)=2,'CABLE LENGTH'!$AL40,0) -> 0 | P40: =IF(COUNTIF('CABLE LENGTH'!$A40:$P40,P$1)+COUNTIF('CABLE LENGTH'!$B40:$P40,P$2)=2,'CABLE LENGTH'!$AL40,0) -> 0 | Q40: =IF(COUNTIF('CABLE LENGTH'!$A40:$P40,Q$1)+COUNTIF('CABLE LENGTH'!$B40:$P40,Q$2)=2,'CABLE LENGTH'!$AL40,0) -> 0 | R40: =IF(COUNTIF('CABLE LENGTH'!$A40:$P40,R$1)+COUNTIF('CABLE LENGTH'!$B40:$P40,R$2)=2,'CABLE LENGTH'!$AL40,0) -> 0 | S40: =IF(COUNTIF('CABLE LENGTH'!$A40:$P40,S$1)+COUNTIF('CABLE LENGTH'!$B40:$P40,S$2)=2,'CABLE LENGTH'!$AL40,0) -> 0 | T40: =IF(COUNTIF('CABLE LENGTH'!$A40:$P40,T$1)+COUNTIF('CABLE LENGTH'!$B40:$P40,T$2)=2,'CABLE LENGTH'!$AL40,0) -> 0 | U40: =IF(COUNTIF('CABLE LENGTH'!$A40:$P40,U$1)+COUNTIF('CABLE LENGTH'!$B40:$P40,U$2)=2,'CABLE LENGTH'!$AL40,0) -> 0 | V40: =IF(COUNTIF('CABLE LENGTH'!$A40:$P40,V$1)+COUNTIF('CABLE LENGTH'!$B40:$P40,V$2)=2,'CABLE LENGTH'!$AL40,0) -> 0 | W40: =IF(COUNTIF('CABLE LENGTH'!$A40:$P40,W$1)+COUNTIF('CABLE LENGTH'!$B40:$P40,W$2)=2,'CABLE LENGTH'!$AL40,0) -> 0 | X40: =IF(COUNTIF('CABLE LENGTH'!$A40:$P40,X$1)+COUNTIF('CABLE LENGTH'!$B40:$P40,X$2)=2,'CABLE LENGTH'!$AL40,0) -> 0 | Y40: =IF(COUNTIF('CABLE LENGTH'!$A40:$P40,Y$1)+COUNTIF('CABLE LENGTH'!$A40:$P40,Y$2)=2,'CABLE LENGTH'!$AL40,0) -> 0 | Z40: =IF(COUNTIF('CABLE LENGTH'!$A40:$P40,Z$1)+COUNTIF('CABLE LENGTH'!$A40:$P40,Z$2)=2,'CABLE LENGTH'!$AL40,0) -> 0 | AA40: =IF(COUNTIF('CABLE LENGTH'!$A40:$P40,AA$1)+COUNTIF('CABLE LENGTH'!$A40:$P40,AA$2)=2,'CABLE LENGTH'!$AL40,0) -> 0 | AB40: =IF(COUNTIF('CABLE LENGTH'!$A40:$P40,AB$1)+COUNTIF('CABLE LENGTH'!$A40:$P40,AB$2)=2,'CABLE LENGTH'!$AL40,0) -> 0 | AC40: =IF(COUNTIF('CABLE LENGTH'!$A40:$P40,AC$1)+COUNTIF('CABLE LENGTH'!$A40:$P40,AC$2)=2,'CABLE LENGTH'!$AL40,0) -> 0 | AD40: =IF(COUNTIF('CABLE LENGTH'!$A40:$P40,AD$1)+COUNTIF('CABLE LENGTH'!$A40:$P40,AD$2)=2,'CABLE LENGTH'!$AL40,0) -> 0 | AE40: =IF(COUNTIF('CABLE LENGTH'!$A40:$P40,AE$1)+COUNTIF('CABLE LENGTH'!$A40:$P40,AE$2)=2,'CABLE LENGTH'!$AL40,0) -> 0 | AF40: =IF(COUNTIF('CABLE LENGTH'!$A40:$P40,AF$1)+COUNTIF('CABLE LENGTH'!$A40:$P40,AF$2)=2,'CABLE LENGTH'!$AL40,0) -> 0 | AG40: =IF(COUNTIF('CABLE LENGTH'!$A40:$P40,AG$1)+COUNTIF('CABLE LENGTH'!$A40:$P40,AG$2)=2,'CABLE LENGTH'!$AL40,0) -> 0 | AH40: =IF(COUNTIF('CABLE LENGTH'!$A40:$P40,AH$1)+COUNTIF('CABLE LENGTH'!$A40:$P40,AH$2)=2,'CABLE LENGTH'!$AL40,0) -> 0 | AI40: =IF(COUNTIF('CABLE LENGTH'!$A40:$P40,AI$1)+COUNTIF('CABLE LENGTH'!$A40:$P40,AI$2)=2,'CABLE LENGTH'!$AL40,0) -> 0 | AJ40: =IF(COUNTIF('CABLE LENGTH'!$A40:$P40,AJ$1)+COUNTIF('CABLE LENGTH'!$A40:$P40,AJ$2)=2,'CABLE LENGTH'!$AL40,0) -> 0 | AK40: =IF(COUNTIF('CABLE LENGTH'!$A40:$P40,AK$1)+COUNTIF('CABLE LENGTH'!$A40:$P40,AK$2)=2,'CABLE LENGTH'!$AL40,0) -> 0 | AL40: =IF(COUNTIF('CABLE LENGTH'!$A40:$P40,AL$1)+COUNTIF('CABLE LENGTH'!$A40:$P40,AL$2)=2,'CABLE LENGTH'!$AL40,0) -> 0 | AM40: =IF(COUNTIF('CABLE LENGTH'!$A40:$P40,AM$1)+COUNTIF('CABLE LENGTH'!$A40:$P40,AM$2)=2,'CABLE LENGTH'!$AL40,0) -> 0 | AN40: =IF(COUNTIF('CABLE LENGTH'!$A40:$P40,AN$1)+COUNTIF('CABLE LENGTH'!$A40:$P40,AN$2)=2,'CABLE LENGTH'!$AL40,0) -> 0 | AO40: =IF(COUNTIF('CABLE LENGTH'!$A40:$P40,AO$1)+COUNTIF('CABLE LENGTH'!$A40:$P40,AO$2)=2,'CABLE LENGTH'!$AL40,0) -> 0 | AP40: =IF(COUNTIF('CABLE LENGTH'!$A40:$P40,AP$1)+COUNTIF('CABLE LENGTH'!$A40:$P40,AP$2)=2,'CABLE LENGTH'!$AL40,0) -> 0 | AQ40: =IF(COUNTIF('CABLE LENGTH'!$A40:$P40,AQ$1)+COUNTIF('CABLE LENGTH'!$A40:$P40,AQ$2)=2,'CABLE LENGTH'!$AL40,0) -> 0 | AR40: =IF(COUNTIF('CABLE LENGTH'!$A40:$P40,AR$1)+COUNTIF('CABLE LENGTH'!$A40:$P40,AR$2)=2,'CABLE LENGTH'!$AL40,0) -> 0 | AS40: =IF(COUNTIF('CABLE LENGTH'!$A40:$P40,AS$1)+COUNTIF('CABLE LENGTH'!$A40:$P40,AS$2)=2,'CABLE LENGTH'!$AL40,0) -> 0 | AT40: =IF(COUNTIF('CABLE LENGTH'!$A40:$P40,AT$1)+COUNTIF('CABLE LENGTH'!$A40:$P40,AT$2)=2,'CABLE LENGTH'!$AL40,0) -> 0 | AU40: =IF(COUNTIF('CABLE LENGTH'!$A40:$P40,AU$1)+COUNTIF('CABLE LENGTH'!$A40:$P40,AU$2)=2,'CABLE LENGTH'!$AL40,0) -> 0 | AV40: =IF(COUNTIF('CABLE LENGTH'!$A40:$P40,AV$1)+COUNTIF('CABLE LENGTH'!$A40:$P40,AV$2)=2,'CABLE LENGTH'!$AL40,0) -> 0 | AW40: =IF(COUNTIF('CABLE LENGTH'!$A40:$P40,AW$1)+COUNTIF('CABLE LENGTH'!$A40:$P40,AW$2)=2,'CABLE LENGTH'!$AL40,0) -> 0 | AX40: =IF(COUNTIF('CABLE LENGTH'!$A40:$P40,AX$1)+COUNTIF('CABLE LENGTH'!$A40:$P40,AX$2)=2,'CABLE LENGTH'!$AL40,0) -> 0 | AY40: =IF(COUNTIF('CABLE LENGTH'!$A40:$P40,AY$1)+COUNTIF('CABLE LENGTH'!$A40:$P40,AY$2)=2,'CABLE LENGTH'!$AL40,0) -> 0 | AZ40: =IF(COUNTIF('CABLE LENGTH'!$A40:$P40,AZ$1)+COUNTIF('CABLE LENGTH'!$A40:$P40,AZ$2)=2,'CABLE LENGTH'!$AL40,0) -> 0
